Workbook

Sheet Раздел0
E2: СТАТИСТИЧЕСКОЕ НАБЛЮДЕНИЕ МИНИСТЕРСТВА СПОРТА РОССИЙСКОЙ ФЕДЕРАЦИИ
E4: КОНФИДЕНЦИАЛЬНОСТЬ ГАРАНТИРУЕТСЯ ПОЛУЧАТЕЛЕМ ИНФОРМАЦИИ
D6: Нарушение порядка представления статистической информации, а равно представление недостоверной статистической информации влечет ответственность, установленную статьей 13.19 Кодекса Российской Федерации об административных правонарушениях от 30.12.2001 г. № 195-ФЗ, а также статьей 3 Закона Российской Федерации от 13.05.1992 г. № 2761-1 “Об ответственности за нарушение порядка представления государственной статистической отчетности” порядка представления государственной статистической отчетности”
E8: ВОЗМОЖНО ПРЕДОСТАВЛЕНИЕ В ЭЛЕКТРОННОМ ВИДЕ
F10: СВЕДЕНИЯ ПО ОРГАНИЗАЦИЯМ, ОСУЩЕСТВЛЯЮЩИМ СПОРТИВНУЮ ПОДГОТОВКУ
F11: по состоянию на 31 декабря 2017 г.
B13: Предоставляют: | K13: Сроки предоставления | N13: Форма № 5-ФК
B14: юридические лица – организации, осуществляющие спортивную подготовку: | K14: 10 января
B15: - | C15: органу местного самоуправления поселения, внутригородской территории города | K15: после отчетного периода
C16: федерального значения; | N16: Письмо Минспорта России
B17: - | C17: органу местного самоуправления городского округа, муниципального района в | N17: от 15.11.2017 № СК-02-10/8765
C18: сфере физической культуры и спорта;
B19: - | C19: территориальному органу исполнительной власти города федерального значения в
C20: сфере физической культуры и спорта;
B21: - | C21: иные органы местного самоуправления, в ведении которых находятся
C22: организации, осуществляющие спортивную подготовку
B23: органы местного самоуправления городских округов, муниципальных районов в сфере | K23: 15 января | N23: Годовая
B24: физической культуры и спорта, территориальные органы исполнительной власти | K24: после отчетного периода
B25: городов федерального значения в сфере физической культуры и спорта:
B26: - | C26: органу исполнительной власти субъекта Российской Федерации в области
C27: физической культуры и спорта
B28: органы исполнительной власти субъектов Российской Федерации в области | K28: 20 января
B29: физической культуры и спорта: | K29: после отчетного периода
B30: - | C30: Министерству спорта Российской Федерации
B33: Наименование отчитывающейся организации | H33: Муниципальное автономное учреждение дополнительного образования "Киришская детско-юношеская спортивная школа" (МАУДО "Киришская ДЮСШ")
B34: Почтовый адрес | E34: 187110, Ленинградская область, город Кириши, улица Строителей, дом 10
B35: Код формы по ОКУД | E35: Код
E36: отчитывающейся организации по ОКПО
B37: 1 | E37: 2 | I37: 3 | M37: 4
B38: 0609403 | E38: 43507488

Sheet Раздел1
B1: Раздел I. Число организаций
I2: Код по ОКЕИ: единица – 642
B3: Ведомственная принадлежность | C3: № стро-ки | D3: Число организаций – всего | E3: в том числе по виду организации:
E4: ДЮСШ | F4: СШ | G4: СДЮСШОР | H4: СШОР | I4: УОР | J4: ЦСП | K4: ЦОП | L4: Другие организации
B5: 1 | C5: 2 | D5: 3 | E5: 4 | F5: 5 | G5: 6 | H5: 7 | I5: 8 | J5: 9 | K5: 10 | L5: 11
B6: Органы управления в сфере образования | C6: 01 | D6: =SUM(E6:L6) -> 1 | E6: 1 | G6: 0
B7: Органы управления в сфере физической культуры и спорта | C7: 02 | D7: =SUM(E7:L7) -> 0 | G7: 0 | L7: 0
B8: Другая ведомственная принадлежность | C8: 03 | D8: =SUM(E8:L8) -> 0 | E8: 0 | G8: 0 | I8: 0 | J8: 0 | L8: 0
B9: ИТОГО | C9: 04 | D9: =SUM(E9:L9) -> 1 | E9: =SUM(E6:E8) -> 1 | F9: =SUM(F6:F8) -> 0 | G9: 0 | H9: 0 | I9: 0 | J9: 0 | K9: 0 | L9: 0
H13: Код по ОКЕИ: единица – 642
B14: Виды правовых образований | C14: 05 | D14: Публичные правовые образования | I14: Иные правовые образования
D15: Российская Федерация | E15: Субъект Российской Федерации | G15: Муниципальное образование
G16: 1
B17: Переход на программу спортивной подготовки | C17: 06 | D17: Не перешли | F17: Частично перешли | H17: Полностью перешли
D18: 1
B19: ОГРН | C19: 07 | D19: 1024701480605
B20: Признак того, является ли организация юридическим лицом | C20: 08 | D20: Да | G20: Нет
D21: 1

Sheet Раздел2
B1: Раздел II. Численность занимающихся
Q2: Коды по ОКЕИ: человек - 792, единица - 642
B3: Виды спорта | C3: № строки | D3: Число отделений по видам спорта | F3: Число занимающихся на 31 декабря отчетного года
F4: из них:
F5: всего | G5: по этапам подготовки | L5: по возрастам | Q5: женщин | R5: спортсменов, спортсменов – инструкторов | S5: в платных группах | T5: обучающихся по предпрофессио-нальным программам в области физической куль-туры и спорта
D6: всего | E6: в том числе отделения ФСО и ОУ, имеющие право использовать в наименовании слово "Олимпийский" | G6: спортивно-оздорови-тельный | H6: начальной подготовки | I6: трениро-вочный | J6: совершен-ствования спортивного мастерства | K6: высшего спортивного мастерства | L6: до 5 лет | M6: от 6 до 15 лет | N6: от 16 до 21 года | O6: от 22 до 30 лет | P6: старше 30 лет
B7: 1 | C7: 2 | D7: 3 | E7: 4 | F7: 5 | G7: 6 | H7: 7 | I7: 8 | J7: 9 | K7: 10 | L7: 11 | M7: 12 | N7: 13 | O7: 14 | P7: 15 | Q7: 16 | R7: 17 | S7: 18 | T7: 19
B8: Авиамодельный спорт | C8: 01 | E8: 0 | F8: =SUM(G8:K8)*IF(D8>0,1,0) -> 0 | V8: =Раздел3!D8 -> 0 | W8: =Раздел3!E8 -> 0 | X8: =Раздел3!F8 -> 0 | Y8: =Раздел3!G8 -> 0 | Z8: =Раздел3!H8 -> 0 | AA8: =SUM(Раздел5!D7:O7) -> 0
B9: Автомобильный спорт | C9: 02 | F9: =SUM(G9:K9)*IF(D9>0,1,0) -> 0 | V9: =Раздел3!D9 -> 0 | W9: =Раздел3!E9 -> 0 | X9: =Раздел3!F9 -> 0 | Y9: =Раздел3!G9 -> 0 | Z9: =Раздел3!H9 -> 0 | AA9: =SUM(Раздел5!D8:O8) -> 0
B10: Автомодельный спорт | C10: 03 | F10: 0
B11: Айкидо | C11: 04 | E11: 0 | F11: 0 | V11: =Раздел3!D10 -> 0 | W11: =Раздел3!E10 -> 0 | X11: =Раздел3!F10 -> 0 | Y11: =Раздел3!G10 -> 0 | Z11: =Раздел3!H10 -> 0 | AA11: =SUM(Раздел5!D9:O9) -> 0
B12: Айсшток | C12: 05 | F12: 0
B13: Акробатический рок-н-ролл | C13: 06 | E13: 0 | F13: 0 | R13: 0 | S13: 0 | T13: 0 | V13: =Раздел3!D11 -> 0 | W13: =Раздел3!E11 -> 0 | X13: =Раздел3!F11 -> 0 | Y13: =Раздел3!G11 -> 0 | Z13: =Раздел3!H11 -> 0 | AA13: =SUM(Раздел5!D10:O10) -> 0
B14: Альпинизм | C14: 07 | E14: 0 | F14: 0 | G14: 0 | H14: 0 | I14: 0 | J14: 0 | K14: 0 | L14: 0 | M14: 0 | N14: 0 | O14: 0 | P14: 0 | Q14: 0 | R14: 0 | S14: 0 | T14: 0 | V14: =Раздел3!D12 -> 0 | W14: =Раздел3!E12 -> 0 | X14: =Раздел3!F12 -> 0 | Y14: =Раздел3!G12 -> 0 | Z14: =Раздел3!H12 -> 0 | AA14: =SUM(Раздел5!D11:O11) -> 0
B15: Американский футбол | C15: 08 | E15: 0 | F15: 0 | G15: 0 | H15: 0 | I15: 0 | J15: 0 | K15: 0 | L15: 0 | M15: 0 | N15: 0 | O15: 0 | P15: 0 | Q15: 0 | R15: 0 | S15: 0 | T15: 0 | V15: =Раздел3!D13 -> 0 | W15: =Раздел3!E13 -> 0 | X15: =Раздел3!F13 -> 0 | Y15: =Раздел3!G13 -> 0 | Z15: =Раздел3!H13 -> 0 | AA15: =SUM(Раздел5!D12:O12) -> 0
B16: Армейский рукопашный бой | C16: 09 | F16: 0
B17: Армрестлинг | C17: 10 | E17: 0 | F17: 0 | G17: 0 | H17: 0 | I17: 0 | J17: 0 | K17: 0 | L17: 0 | M17: 0 | N17: 0 | O17: 0 | P17: 0 | Q17: 0 | R17: 0 | S17: 0 | T17: 0 | V17: =Раздел3!D14 -> 0 | W17: =Раздел3!E14 -> 0 | X17: =Раздел3!F14 -> 0 | Y17: =Раздел3!G14 -> 0 | Z17: =Раздел3!H14 -> 0 | AA17: =SUM(Раздел5!D13:O13) -> 0
B18: Бадминтон | C18: 11 | E18: 0 | F18: 0 | G18: 0 | H18: 0 | I18: 0 | J18: 0 | K18: 0 | L18: 0 | M18: 0 | N18: 0 | O18: 0 | P18: 0 | Q18: 0 | R18: 0 | S18: 0 | T18: 0 | V18: =Раздел3!D15 -> 0 | W18: =Раздел3!E15 -> 0 | X18: =Раздел3!F15 -> 0 | Y18: =Раздел3!G15 -> 0 | Z18: =Раздел3!H15 -> 0 | AA18: =SUM(Раздел5!D14:O14) -> 0
B19: Баскетбол - всего | C19: 12 | D19: =IF(SUM(D20:D21)>=1,1,0) -> 1 | E19: =IF(SUM(E20:E21)>=1,1,0) -> 0 | F19: 134 | G19: =SUM(G20:G21) -> 92 | H19: 27 | I19: 15 | J19: 0 | K19: 0 | L19: 0 | M19: 111 | N19: 23 | O19: 0 | P19: 0 | Q19: 41 | R19: 0 | S19: 0 | T19: 42 | V19: =Раздел3!D16 -> 0 | W19: =Раздел3!E16 -> 0 | X19: =Раздел3!F16 -> 0 | Y19: =Раздел3!G16 -> 0 | Z19: =Раздел3!H16 -> 0 | AA19: =SUM(Раздел5!D15:O15) -> 0
B20: в том числе: Баскетбол (муж.) | C20: 13 | D20: 1 | E20: 0 | F20: 93 | G20: 72 | H20: 12 | I20: 9 | J20: 0 | K20: 0 | L20: 0 | M20: 73 | N20: 20 | O20: 0 | P20: 0 | Q20: 0 | R20: 0 | S20: 0 | T20: 21 | V20: =Раздел3!D17 -> 0 | W20: =Раздел3!E17 -> 0 | X20: =Раздел3!F17 -> 0 | Y20: =Раздел3!G17 -> 0 | Z20: =Раздел3!H17 -> 0 | AA20: =SUM(Раздел5!D16:O16) -> 0
B21: Баскетбол (жен.) | C21: 14 | D21: 1 | E21: 0 | F21: 41 | G21: 20 | H21: 15 | I21: 6 | M21: 38 | N21: 3 | Q21: 41 | R21: 0 | S21: 0 | T21: 21 | V21: =Раздел3!D18 -> 0 | W21: =Раздел3!E18 -> 0 | X21: =Раздел3!F18 -> 0 | Y21: =Раздел3!G18 -> 0 | Z21: =Раздел3!H18 -> 0 | AA21: =SUM(Раздел5!D17:O17) -> 0
B22: Бейсбол | C22: 15 | E22: 0 | F22: 0 | G22: 0 | H22: 0 | I22: 0 | J22: 0 | K22: 0 | L22: 0 | M22: 0 | N22: 0 | O22: 0 | P22: 0 | Q22: 0 | R22: 0 | S22: 0 | T22: 0 | V22: =Раздел3!D19 -> 0 | W22: =Раздел3!E19 -> 0 | X22: =Раздел3!F19 -> 0 | Y22: =Раздел3!G19 -> 0 | Z22: =Раздел3!H19 -> 0 | AA22: =SUM(Раздел5!D18:O18) -> 0
B23: Биатлон | C23: 16 | E23: 0 | F23: 0 | G23: 0 | H23: 0 | I23: 0 | J23: 0 | K23: 0 | L23: 0 | M23: 0 | N23: 0 | O23: 0 | P23: 0 | Q23: 0 | R23: 0 | S23: 0 | T23: 0 | V23: =Раздел3!D20 -> 0 | W23: =Раздел3!E20 -> 0 | X23: =Раздел3!F20 -> 0 | Y23: =Раздел3!G20 -> 0 | Z23: =Раздел3!H20 -> 0 | AA23: =SUM(Раздел5!D19:O19) -> 0
B24: Бильярдный спорт | C24: 17 | E24: 0 | F24: 0 | G24: 0 | H24: 0 | I24: 0 | J24: 0 | K24: 0 | L24: 0 | M24: 0 | N24: 0 | O24: 0 | P24: 0 | Q24: 0 | R24: 0 | S24: 0 | T24: 0 | V24: =Раздел3!D21 -> 0 | W24: =Раздел3!E21 -> 0 | X24: =Раздел3!F21 -> 0 | Y24: =Раздел3!G21 -> 0 | Z24: =Раздел3!H21 -> 0 | AA24: =SUM(Раздел5!D20:O20) -> 0
B25: Бобслей - всего | C25: 18 | D25: =IF(SUM(D26:D27)>=1,1,0) -> 0 | E25: =IF(SUM(E26:E27)>=1,1,0) -> 0 | F25: 0 | G25: =SUM(G26:G27) -> 0 | H25: 0 | I25: 0 | J25: 0 | K25: 0 | L25: 0 | M25: 0 | N25: 0 | O25: 0 | P25: 0 | Q25: 0 | R25: 0 | S25: 0 | T25: 0 | V25: =Раздел3!D22 -> 0 | W25: =Раздел3!E22 -> 0 | X25: =Раздел3!F22 -> 0 | Y25: =Раздел3!G22 -> 0 | Z25: =Раздел3!H22 -> 0 | AA25: =SUM(Раздел5!D21:O21) -> 0
B26: в том числе: Бобслей | C26: 19 | E26: 0 | F26: 0 | G26: 0 | H26: 0 | I26: 0 | J26: 0 | K26: 0 | L26: 0 | M26: 0 | N26: 0 | O26: 0 | P26: 0 | Q26: 0 | R26: 0 | S26: 0 | T26: 0 | V26: =Раздел3!D23 -> 0 | W26: =Раздел3!E23 -> 0 | X26: =Раздел3!F23 -> 0 | Y26: =Раздел3!G23 -> 0 | Z26: =Раздел3!H23 -> 0 | AA26: =SUM(Раздел5!D22:O22) -> 0
B27: Скелетон | C27: 20 | D27: 0 | E27: 0 | F27: 0 | G27: 0 | H27: 0 | I27: 0 | J27: 0 | K27: 0 | L27: 0 | M27: 0 | N27: 0 | O27: 0 | P27: 0 | Q27: 0 | R27: 0 | S27: 0 | T27: 0 | V27: =Раздел3!D24 -> 0 | W27: =Раздел3!E24 -> 0 | X27: =Раздел3!F24 -> 0 | Y27: =Раздел3!G24 -> 0 | Z27: =Раздел3!H24 -> 0 | AA27: =SUM(Раздел5!D23:O23) -> 0
B28: Бодибилдинг | C28: 21 | D28: 0 | E28: 0 | F28: 0 | G28: 0 | H28: 0 | I28: 0 | J28: 0 | K28: 0 | L28: 0 | M28: 0 | N28: 0 | O28: 0 | P28: 0 | Q28: 0 | R28: 0 | S28: 0 | T28: 0 | V28: =Раздел3!D25 -> 0 | W28: =Раздел3!E25 -> 0 | X28: =Раздел3!F25 -> 0 | Y28: =Раздел3!G25 -> 0 | Z28: =Раздел3!H25 -> 0 | AA28: =SUM(Раздел5!D24:O24) -> 0
B29: Бокс | C29: 22 | D29: 1 | E29: 0 | F29: 90 | G29: 90 | H29: 0 | I29: 0 | J29: 0 | K29: 0 | L29: 0 | M29: 87 | N29: 3 | O29: 0 | P29: 0 | Q29: 3 | R29: 0 | S29: 0 | T29: 0 | V29: =Раздел3!D26 -> 0 | W29: =Раздел3!E26 -> 0 | X29: =Раздел3!F26 -> 0 | Y29: =Раздел3!G26 -> 0 | Z29: =Раздел3!H26 -> 0 | AA29: =SUM(Раздел5!D25:O25) -> 0
B30: Борьба на поясах | C30: 23 | D30: 0 | E30: 0 | F30: 0 | G30: 0 | H30: 0 | I30: 0 | J30: 0 | K30: 0 | L30: 0 | M30: 0 | N30: 0 | O30: 0 | P30: 0 | Q30: 0 | R30: 0 | S30: 0 | T30: 0 | V30: =Раздел3!D27 -> 0 | W30: =Раздел3!E27 -> 0 | X30: =Раздел3!F27 -> 0 | Y30: =Раздел3!G27 -> 0 | Z30: =Раздел3!H27 -> 0 | AA30: =SUM(Раздел5!D26:O26) -> 0
B31: Боулинг | C31: 24 | D31: 0 | E31: 0 | F31: 0 | G31: 0 | H31: 0 | I31: 0 | J31: 0 | K31: 0 | L31: 0 | M31: 0 | N31: 0 | O31: 0 | P31: 0 | Q31: 0 | R31: 0 | S31: 0 | T31: 0 | V31: =Раздел3!D28 -> 0 | W31: =Раздел3!E28 -> 0 | X31: =Раздел3!F28 -> 0 | Y31: =Раздел3!G28 -> 0 | Z31: =Раздел3!H28 -> 0 | AA31: =SUM(Раздел5!D27:O27) -> 0
B32: Велоспорт ВМХ | C32: 25 | D32: 0 | E32: 0 | F32: 0 | G32: 0 | H32: 0 | I32: 0 | J32: 0 | K32: 0 | L32: 0 | M32: 0 | N32: 0 | O32: 0 | P32: 0 | Q32: 0 | R32: 0 | S32: 0 | T32: 0 | V32: =Раздел3!D29 -> 0 | W32: =Раздел3!E29 -> 0 | X32: =Раздел3!F29 -> 0 | Y32: =Раздел3!G29 -> 0 | Z32: =Раздел3!H29 -> 0 | AA32: =SUM(Раздел5!D28:O28) -> 0
B33: Велоспорт – маунтинбайк | C33: 26 | D33: 0 | E33: 0 | F33: 0 | G33: 0 | H33: 0 | I33: 0 | J33: 0 | K33: 0 | L33: 0 | M33: 0 | N33: 0 | O33: 0 | P33: 0 | Q33: 0 | R33: 0 | S33: 0 | T33: 0 | V33: =Раздел3!D30 -> 0 | W33: =Раздел3!E30 -> 0 | X33: =Раздел3!F30 -> 0 | Y33: =Раздел3!G30 -> 0 | Z33: =Раздел3!H30 -> 0 | AA33: =SUM(Раздел5!D29:O29) -> 0
B34: Велоспорт – трек | C34: 27 | D34: 0 | E34: 0 | F34: 0 | G34: 0 | H34: 0 | I34: 0 | J34: 0 | K34: 0 | L34: 0 | M34: 0 | N34: 0 | O34: 0 | P34: 0 | Q34: 0 | R34: 0 | S34: 0 | T34: 0 | V34: =Раздел3!D31 -> 0 | W34: =Раздел3!E31 -> 0 | X34: =Раздел3!F31 -> 0 | Y34: =Раздел3!G31 -> 0 | Z34: =Раздел3!H31 -> 0 | AA34: =SUM(Раздел5!D30:O30) -> 0
B35: Велоспорт – шоссе | C35: 28 | D35: 0 | E35: 0 | F35: 0 | G35: 0 | H35: 0 | I35: 0 | J35: 0 | K35: 0 | L35: 0 | M35: 0 | N35: 0 | O35: 0 | P35: 0 | Q35: 0 | R35: 0 | S35: 0 | T35: 0 | V35: =Раздел3!D32 -> 0 | W35: =Раздел3!E32 -> 0 | X35: =Раздел3!F32 -> 0 | Y35: =Раздел3!G32 -> 0 | Z35: =Раздел3!H32 -> 0 | AA35: =SUM(Раздел5!D31:O31) -> 0
B36: Вертолетный спорт | C36: 29 | D36: 0 | E36: 0 | F36: 0 | G36: 0 | H36: 0 | I36: 0 | J36: 0 | K36: 0 | L36: 0 | M36: 0 | N36: 0 | O36: 0 | P36: 0 | Q36: 0 | R36: 0 | S36: 0 | T36: 0 | V36: =Раздел3!D33 -> 0 | W36: =Раздел3!E33 -> 0 | X36: =Раздел3!F33 -> 0 | Y36: =Раздел3!G33 -> 0 | Z36: =Раздел3!H33 -> 0 | AA36: =SUM(Раздел5!D32:O32) -> 0
B37: Водно-моторный спорт | C37: 30 | D37: 0 | E37: 0 | F37: 0 | G37: 0 | H37: 0 | I37: 0 | J37: 0 | K37: 0 | L37: 0 | M37: 0 | N37: 0 | O37: 0 | P37: 0 | Q37: 0 | R37: 0 | S37: 0 | T37: 0 | V37: =Раздел3!D34 -> 0 | W37: =Раздел3!E34 -> 0 | X37: =Раздел3!F34 -> 0 | Y37: =Раздел3!G34 -> 0 | Z37: =Раздел3!H34 -> 0 | AA37: =SUM(Раздел5!D33:O33) -> 0
B38: Водное поло - всего | C38: 31 | D38: =IF(SUM(D39:D40)>=1,1,0) -> 0 | E38: =IF(SUM(E39:E40)>=1,1,0) -> 0 | F38: =SUM(G38:K38)*IF(D38>0,1,0) -> 0 | G38: =SUM(G39:G40) -> 0 | H38: 0 | I38: 0 | J38: 0 | K38: 0 | L38: 0 | M38: 0 | N38: 0 | O38: 0 | P38: 0 | Q38: 0 | R38: 0 | S38: 0 | T38: 0 | V38: =Раздел3!D35 -> 0 | W38: =Раздел3!E35 -> 0 | X38: =Раздел3!F35 -> 0 | Y38: =Раздел3!G35 -> 0 | Z38: =Раздел3!H35 -> 0 | AA38: =SUM(Раздел5!D34:O34) -> 0
B39: в том числе: Водное поло (муж.) | C39: 32 | E39: 0 | F39: 0 | R39: 0 | S39: 0 | T39: 0 | V39: =Раздел3!D36 -> 0 | W39: =Раздел3!E36 -> 0 | X39: =Раздел3!F36 -> 0 | Y39: =Раздел3!G36 -> 0 | Z39: =Раздел3!H36 -> 0 | AA39: =SUM(Раздел5!D35:O35) -> 0
B40: Водное поло (жен.) | C40: 33 | E40: 0 | F40: 0 | R40: 0 | S40: 0 | T40: 0 | V40: =Раздел3!D37 -> 0 | W40: =Раздел3!E37 -> 0 | X40: =Раздел3!F37 -> 0 | Y40: =Раздел3!G37 -> 0 | Z40: =Раздел3!H37 -> 0 | AA40: =SUM(Раздел5!D36:O36) -> 0
B41: Воднолыжный спорт | C41: 34 | D41: 0 | E41: 0 | F41: 0 | Q41: 0 | R41: 0 | S41: 0 | T41: 0 | V41: =Раздел3!D38 -> 0 | W41: =Раздел3!E38 -> 0 | X41: =Раздел3!F38 -> 0 | Y41: =Раздел3!G38 -> 0 | Z41: =Раздел3!H38 -> 0 | AA41: =SUM(Раздел5!D37:O37) -> 0
B42: Военно-прикладной спорт | C42: 35 | F42: 0
B43: Военно-спортивное многоборье | C43: 36 | F43: 0
B44: Воздухоплавательный спорт | C44: 37 | D44: 0 | E44: 0 | F44: 0 | G44: 0 | H44: 0 | I44: 0 | J44: 0 | K44: 0 | L44: 0 | M44: 0 | N44: 0 | O44: 0 | P44: 0 | Q44: 0 | R44: 0 | S44: 0 | T44: 0 | V44: =Раздел3!D39 -> 0 | W44: =Раздел3!E39 -> 0 | X44: =Раздел3!F39 -> 0 | Y44: =Раздел3!G39 -> 0 | Z44: =Раздел3!H39 -> 0 | AA44: =SUM(Раздел5!D38:O38) -> 0
B45: Волейбол - всего | C45: 38 | D45: =IF(SUM(D46:D49)>=1,1,0) -> 1 | E45: =IF(SUM(E46:E49)>=1,1,0) -> 0 | F45: 80 | G45: =SUM(G46:G49) -> 80 | H45: =SUM(H46:H49) -> 0 | I45: 0 | J45: 0 | K45: 0 | L45: 0 | M45: 64 | N45: 16 | O45: 0 | P45: 0 | Q45: 59 | R45: 0 | S45: 0 | T45: 0 | V45: =Раздел3!D40 -> 0 | W45: =Раздел3!E40 -> 0 | X45: =Раздел3!F40 -> 0 | Y45: =Раздел3!G40 -> 0 | Z45: =Раздел3!H40 -> 0 | AA45: =SUM(Раздел5!D39:O39) -> 0
B46: в том числе: Волейбол (муж.) | C46: 39 | D46: 1 | E46: 0 | F46: 21 | G46: 21 | H46: 0 | I46: 0 | J46: 0 | K46: 0 | L46: 0 | M46: 13 | N46: 8 | O46: 0 | P46: 0 | Q46: 0 | R46: 0 | S46: 0 | T46: 0 | V46: =Раздел3!D41 -> 0 | W46: =Раздел3!E41 -> 0 | X46: =Раздел3!F41 -> 0 | Y46: =Раздел3!G41 -> 0 | Z46: =Раздел3!H41 -> 0 | AA46: =SUM(Раздел5!D40:O40) -> 0
B47: Волейбол (жен.) | C47: 40 | D47: 1 | E47: 0 | F47: 59 | G47: 59 | M47: 51 | N47: 8 | Q47: 59 | R47: 0 | S47: 0 | T47: 0 | V47: =Раздел3!D42 -> 0 | W47: =Раздел3!E42 -> 0 | X47: =Раздел3!F42 -> 0 | Y47: =Раздел3!G42 -> 0 | Z47: =Раздел3!H42 -> 0 | AA47: =SUM(Раздел5!D41:O41) -> 0
B48: Пляжный волейбол (муж.) | C48: 41 | D48: 0 | E48: 0 | F48: 0 | G48: 0 | H48: 0 | I48: 0 | J48: 0 | K48: 0 | L48: 0 | M48: 0 | N48: 0 | O48: 0 | P48: 0 | Q48: 0 | R48: 0 | S48: 0 | T48: 0 | V48: =Раздел3!D43 -> 0 | W48: =Раздел3!E43 -> 0 | X48: =Раздел3!F43 -> 0 | Y48: =Раздел3!G43 -> 0 | Z48: =Раздел3!H43 -> 0 | AA48: =SUM(Раздел5!D42:O42) -> 0
B49: Пляжный волейбол (жен.) | C49: 42 | D49: 0 | E49: 0 | F49: 0 | G49: 0 | H49: 0 | I49: 0 | J49: 0 | K49: 0 | L49: 0 | M49: 0 | N49: 0 | O49: 0 | P49: 0 | Q49: 0 | R49: 0 | S49: 0 | T49: 0 | V49: =Раздел3!D44 -> 0 | W49: =Раздел3!E44 -> 0 | X49: =Раздел3!F44 -> 0 | Y49: =Раздел3!G44 -> 0 | Z49: =Раздел3!H44 -> 0 | AA49: =SUM(Раздел5!D43:O43) -> 0
B50: Восточное боевое единоборство | C50: 43 | D50: 0 | E50: 0 | F50: 0 | G50: 0 | H50: 0 | I50: 0 | J50: 0 | K50: 0 | L50: 0 | M50: 0 | N50: 0 | O50: 0 | P50: 0 | Q50: 0 | R50: 0 | S50: 0 | T50: 0 | V50: =Раздел3!D45 -> 0 | W50: =Раздел3!E45 -> 0 | X50: =Раздел3!F45 -> 0 | Y50: =Раздел3!G45 -> 0 | Z50: =Раздел3!H45 -> 0 | AA50: =SUM(Раздел5!D44:O44) -> 0
B51: Всестилевое карате | C51: 44 | D51: 0 | E51: 0 | F51: 0 | G51: 0 | H51: 0 | I51: 0 | J51: 0 | K51: 0 | L51: 0 | M51: 0 | N51: 0 | O51: 0 | P51: 0 | Q51: 0 | R51: 0 | S51: 0 | T51: 0 | V51: =Раздел3!D46 -> 0 | W51: =Раздел3!E46 -> 0 | X51: =Раздел3!F46 -> 0 | Y51: =Раздел3!G46 -> 0 | Z51: =Раздел3!H46 -> 0 | AA51: =SUM(Раздел5!D45:O45) -> 0
B52: Гандбол - всего | C52: 45 | D52: =IF(SUM(D53:D55)>=1,1,0) -> 0 | E52: =IF(SUM(E53:E55)>=1,1,0) -> 0 | F52: =SUM(G52:K52)*IF(D52>0,1,0) -> 0 | G52: =SUM(G53:G55) -> 0 | H52: =SUM(H53:H55) -> 0 | I52: 0 | J52: 0 | K52: 0 | L52: 0 | M52: 0 | N52: 0 | O52: 0 | P52: 0 | Q52: 0 | R52: 0 | S52: 0 | T52: 0 | V52: =Раздел3!D47 -> 0 | W52: =Раздел3!E47 -> 0 | X52: =Раздел3!F47 -> 0 | Y52: =Раздел3!G47 -> 0 | Z52: =Раздел3!H47 -> 0 | AA52: =SUM(Раздел5!D46:O46) -> 0
B53: в том числе: Гандбол (муж.) | C53: 46 | D53: 0 | E53: 0 | F53: 0 | G53: 0 | H53: 0 | I53: 0 | J53: 0 | K53: 0 | L53: 0 | M53: 0 | N53: 0 | O53: 0 | P53: 0 | Q53: 0 | R53: 0 | S53: 0 | T53: 0 | V53: =Раздел3!D48 -> 0 | W53: =Раздел3!E48 -> 0 | X53: =Раздел3!F48 -> 0 | Y53: =Раздел3!G48 -> 0 | Z53: =Раздел3!H48 -> 0 | AA53: =SUM(Раздел5!D47:O47) -> 0
B54: Гандбол (жен.) | C54: 47 | D54: 0 | E54: 0 | F54: 0 | G54: 0 | H54: 0 | I54: 0 | J54: 0 | K54: 0 | L54: 0 | M54: 0 | N54: 0 | O54: 0 | P54: 0 | Q54: 0 | R54: 0 | S54: 0 | T54: 0 | V54: =Раздел3!D49 -> 0 | W54: =Раздел3!E49 -> 0 | X54: =Раздел3!F49 -> 0 | Y54: =Раздел3!G49 -> 0 | Z54: =Раздел3!H49 -> 0 | AA54: =SUM(Раздел5!D48:O48) -> 0
B55: Пляжный гандбол | C55: 48 | F55: 0
B56: Гиревой спорт | C56: 49 | D56: 0 | E56: 0 | F56: 0 | G56: 0 | H56: 0 | I56: 0 | J56: 0 | K56: 0 | L56: 0 | M56: 0 | N56: 0 | O56: 0 | P56: 0 | Q56: 0 | R56: 0 | S56: 0 | T56: 0 | V56: =Раздел3!D50 -> 0 | W56: =Раздел3!E50 -> 0 | X56: =Раздел3!F50 -> 0 | Y56: =Раздел3!G50 -> 0 | Z56: =Раздел3!H50 -> 0 | AA56: =SUM(Раздел5!D49:O49) -> 0
B57: Го | C57: 50 | D57: 0 | E57: 0 | F57: 0 | G57: 0 | H57: 0 | I57: 0 | J57: 0 | K57: 0 | L57: 0 | M57: 0 | N57: 0 | O57: 0 | P57: 0 | Q57: 0 | R57: 0 | S57: 0 | T57: 0 | V57: =Раздел3!D51 -> 0 | W57: =Раздел3!E51 -> 0 | X57: =Раздел3!F51 -> 0 | Y57: =Раздел3!G51 -> 0 | Z57: =Раздел3!H51 -> 0 | AA57: =SUM(Раздел5!D50:O50) -> 0
B58: Гольф | C58: 51 | D58: 0 | E58: 0 | F58: 0 | G58: 0 | H58: 0 | I58: 0 | J58: 0 | K58: 0 | L58: 0 | M58: 0 | N58: 0 | O58: 0 | P58: 0 | Q58: 0 | R58: 0 | S58: 0 | T58: 0 | V58: =Раздел3!D52 -> 0 | W58: =Раздел3!E52 -> 0 | X58: =Раздел3!F52 -> 0 | Y58: =Раздел3!G52 -> 0 | Z58: =Раздел3!H52 -> 0 | AA58: =SUM(Раздел5!D51:O51) -> 0
B59: Горнолыжный спорт | C59: 52 | D59: 0 | E59: 0 | F59: 0 | G59: 0 | H59: 0 | I59: 0 | J59: 0 | K59: 0 | L59: 0 | M59: 0 | N59: 0 | O59: 0 | P59: 0 | Q59: 0 | R59: 0 | S59: 0 | T59: 0 | V59: =Раздел3!D53 -> 0 | W59: =Раздел3!E53 -> 0 | X59: =Раздел3!F53 -> 0 | Y59: =Раздел3!G53 -> 0 | Z59: =Раздел3!H53 -> 0 | AA59: =SUM(Раздел5!D52:O52) -> 0
B60: Городошный спорт | C60: 53 | D60: 0 | E60: 0 | F60: 0 | G60: 0 | H60: 0 | I60: 0 | J60: 0 | K60: 0 | L60: 0 | M60: 0 | N60: 0 | O60: 0 | P60: 0 | Q60: 0 | R60: 0 | S60: 0 | T60: 0 | V60: =Раздел3!D54 -> 0 | W60: =Раздел3!E54 -> 0 | X60: =Раздел3!F54 -> 0 | Y60: =Раздел3!G54 -> 0 | Z60: =Раздел3!H54 -> 0 | AA60: =SUM(Раздел5!D53:O53) -> 0
B61: Гребля на байдарках и каноэ | C61: 54 | D61: 0 | E61: 0 | F61: 0 | G61: 0 | H61: 0 | I61: 0 | J61: 0 | K61: 0 | L61: 0 | M61: 0 | N61: 0 | O61: 0 | P61: 0 | Q61: 0 | R61: 0 | S61: 0 | T61: 0 | V61: =Раздел3!D55 -> 0 | W61: =Раздел3!E55 -> 0 | X61: =Раздел3!F55 -> 0 | Y61: =Раздел3!G55 -> 0 | Z61: =Раздел3!H55 -> 0 | AA61: =SUM(Раздел5!D54:O54) -> 0
B62: Гребля на шлюпках | C62: 55 | F62: 0
B63: Гребной слалом | C63: 56 | D63: 0 | E63: 0 | F63: 0 | G63: 0 | H63: 0 | I63: 0 | J63: 0 | K63: 0 | L63: 0 | M63: 0 | N63: 0 | O63: 0 | P63: 0 | Q63: 0 | R63: 0 | S63: 0 | T63: 0 | V63: =Раздел3!D56 -> 0 | W63: =Раздел3!E56 -> 0 | X63: =Раздел3!F56 -> 0 | Y63: =Раздел3!G56 -> 0 | Z63: =Раздел3!H56 -> 0 | AA63: =SUM(Раздел5!D55:O55) -> 0
B64: Гребной спорт - всего | C64: 57 | D64: =IF(SUM(D65:D68)>=1,1,0) -> 0 | E64: =IF(SUM(E65:E68)>=1,1,0) -> 0 | F64: 0 | G64: =SUM(G65:G68) -> 0 | H64: =SUM(H65:H68) -> 0 | I64: 0 | J64: 0 | K64: 0 | L64: 0 | M64: 0 | N64: 0 | O64: 0 | P64: 0 | Q64: 0 | R64: 0 | S64: 0 | T64: 0 | V64: =Раздел3!D57 -> 0 | W64: =Раздел3!E57 -> 0 | X64: =Раздел3!F57 -> 0 | Y64: =Раздел3!G57 -> 0 | Z64: =Раздел3!H57 -> 0 | AA64: =SUM(Раздел5!D56:O56) -> 0
B65: в том числе: Академическая гребля | C65: 58 | D65: 0 | E65: 0 | F65: 0 | G65: 0 | H65: 0 | I65: 0 | J65: 0 | K65: 0 | L65: 0 | M65: 0 | N65: 0 | O65: 0 | P65: 0 | Q65: 0 | R65: 0 | S65: 0 | T65: 0 | V65: =Раздел3!D58 -> 0 | W65: =Раздел3!E58 -> 0 | X65: =Раздел3!F58 -> 0 | Y65: =Раздел3!G58 -> 0 | Z65: =Раздел3!H58 -> 0 | AA65: =SUM(Раздел5!D57:O57) -> 0
B66: Гребля-индор | C66: 59 | D66: 0 | E66: 0 | F66: 0 | G66: 0 | H66: 0 | I66: 0 | J66: 0 | K66: 0 | L66: 0 | M66: 0 | N66: 0 | O66: 0 | P66: 0 | Q66: 0 | R66: 0 | S66: 0 | T66: 0 | V66: =Раздел3!D59 -> 0 | W66: =Раздел3!E59 -> 0 | X66: =Раздел3!F59 -> 0 | Y66: =Раздел3!G59 -> 0 | Z66: =Раздел3!H59 -> 0 | AA66: =SUM(Раздел5!D58:O58) -> 0
B67: Народная гребля | C67: 60 | D67: 0 | E67: 0 | F67: 0 | G67: 0 | H67: 0 | I67: 0 | J67: 0 | K67: 0 | L67: 0 | M67: 0 | N67: 0 | O67: 0 | P67: 0 | Q67: 0 | R67: 0 | S67: 0 | T67: 0 | V67: =Раздел3!D60 -> 0 | W67: =Раздел3!E60 -> 0 | X67: =Раздел3!F60 -> 0 | Y67: =Раздел3!G60 -> 0 | Z67: =Раздел3!H60 -> 0 | AA67: =SUM(Раздел5!D59:O59) -> 0
B68: Прибрежная гребля | C68: 61 | D68: 0 | E68: 0 | F68: 0 | G68: 0 | H68: 0 | I68: 0 | J68: 0 | K68: 0 | L68: 0 | M68: 0 | N68: 0 | O68: 0 | P68: 0 | Q68: 0 | R68: 0 | S68: 0 | T68: 0 | V68: =Раздел3!D61 -> 0 | W68: =Раздел3!E61 -> 0 | X68: =Раздел3!F61 -> 0 | Y68: =Раздел3!G61 -> 0 | Z68: =Раздел3!H61 -> 0 | AA68: =SUM(Раздел5!D60:O60) -> 0
B69: Гребно-парусное двоеборье | C69: 62 | D69: 0 | E69: 0 | F69: 0 | G69: 0 | H69: 0 | I69: 0 | J69: 0 | K69: 0 | L69: 0 | M69: 0 | N69: 0 | O69: 0 | P69: 0 | Q69: 0 | R69: 0 | S69: 0 | T69: 0 | V69: =Раздел3!D62 -> 0 | W69: =Раздел3!E62 -> 0 | X69: =Раздел3!F62 -> 0 | Y69: =Раздел3!G62 -> 0 | Z69: =Раздел3!H62 -> 0 | AA69: =SUM(Раздел5!D61:O61) -> 0
B70: Дартс | C70: 63 | D70: 0 | E70: 0 | F70: 0 | G70: 0 | H70: 0 | I70: 0 | J70: 0 | K70: 0 | L70: 0 | M70: 0 | N70: 0 | O70: 0 | P70: 0 | Q70: 0 | R70: 0 | S70: 0 | T70: 0 | V70: =Раздел3!D63 -> 0 | W70: =Раздел3!E63 -> 0 | X70: =Раздел3!F63 -> 0 | Y70: =Раздел3!G63 -> 0 | Z70: =Раздел3!H63 -> 0 | AA70: =SUM(Раздел5!D62:O62) -> 0
B71: Джиу-джитсу | C71: 64 | D71: 0 | E71: 0 | F71: 0 | G71: 0 | H71: 0 | I71: 0 | J71: 0 | K71: 0 | L71: 0 | M71: 0 | N71: 0 | O71: 0 | P71: 0 | Q71: 0 | R71: 0 | S71: 0 | T71: 0 | V71: =Раздел3!D64 -> 0 | W71: =Раздел3!E64 -> 0 | X71: =Раздел3!F64 -> 0 | Y71: =Раздел3!G64 -> 0 | Z71: =Раздел3!H64 -> 0 | AA71: =SUM(Раздел5!D63:O63) -> 0
B72: Дзюдо | C72: 65 | D72: 1 | E72: 0 | F72: 282 | G72: 151 | H72: 64 | I72: 67 | J72: 0 | K72: 0 | L72: 0 | M72: 267 | N72: 15 | O72: 0 | P72: 0 | Q72: 37 | R72: 0 | S72: 0 | T72: 131 | V72: =Раздел3!D65 -> 0 | W72: =Раздел3!E65 -> 0 | X72: =Раздел3!F65 -> 0 | Y72: =Раздел3!G65 -> 0 | Z72: =Раздел3!H65 -> 0 | AA72: =SUM(Раздел5!D64:O64) -> 0
B73: Ездовой спорт | C73: 66 | D73: 0 | E73: 0 | F73: =SUM(G73:K73)*IF(D73>0,1,0) -> 0 | G73: 0 | H73: 0 | I73: 0 | J73: 0 | K73: 0 | L73: 0 | M73: 0 | N73: 0 | O73: 0 | P73: 0 | Q73: 0 | R73: 0 | S73: 0 | T73: 0 | V73: =Раздел3!D66 -> 0 | W73: =Раздел3!E66 -> 0 | X73: =Раздел3!F66 -> 0 | Y73: =Раздел3!G66 -> 0 | Z73: =Раздел3!H66 -> 0 | AA73: =SUM(Раздел5!D65:O65) -> 0
B74: Капоэйра | C74: 67 | D74: 0 | E74: 0 | F74: 0 | G74: 0 | H74: 0 | I74: 0 | J74: 0 | K74: 0 | L74: 0 | M74: 0 | N74: 0 | O74: 0 | P74: 0 | Q74: 0 | R74: 0 | S74: 0 | T74: 0 | V74: =Раздел3!D67 -> 0 | W74: =Раздел3!E67 -> 0 | X74: =Раздел3!F67 -> 0 | Y74: =Раздел3!G67 -> 0 | Z74: =Раздел3!H67 -> 0 | AA74: =SUM(Раздел5!D66:O66) -> 0
B75: Каратэ | C75: 68 | D75: 0 | E75: 0 | F75: 0 | G75: 0 | H75: 0 | I75: 0 | J75: 0 | K75: 0 | L75: 0 | M75: 0 | N75: 0 | O75: 0 | P75: 0 | Q75: 0 | R75: 0 | S75: 0 | T75: 0 | V75: =Раздел3!D68 -> 0 | W75: =Раздел3!E68 -> 0 | X75: =Раздел3!F68 -> 0 | Y75: =Раздел3!G68 -> 0 | Z75: =Раздел3!H68 -> 0 | AA75: =SUM(Раздел5!D67:O67) -> 0
B76: Кендо | C76: 69 | D76: 0 | E76: 0 | F76: 0 | G76: 0 | H76: 0 | I76: 0 | J76: 0 | K76: 0 | L76: 0 | M76: 0 | N76: 0 | O76: 0 | P76: 0 | Q76: 0 | R76: 0 | S76: 0 | T76: 0 | V76: =Раздел3!D69 -> 0 | W76: =Раздел3!E69 -> 0 | X76: =Раздел3!F69 -> 0 | Y76: =Раздел3!G69 -> 0 | Z76: =Раздел3!H69 -> 0 | AA76: =SUM(Раздел5!D68:O68) -> 0
B77: Керешу | C77: 70 | D77: 0 | E77: 0 | F77: 0 | G77: 0 | H77: 0 | I77: 0 | J77: 0 | K77: 0 | L77: 0 | M77: 0 | N77: 0 | O77: 0 | P77: 0 | Q77: 0 | R77: 0 | S77: 0 | T77: 0 | V77: =Раздел3!D70 -> 0 | W77: =Раздел3!E70 -> 0 | X77: =Раздел3!F70 -> 0 | Y77: =Раздел3!G70 -> 0 | Z77: =Раздел3!H70 -> 0 | AA77: =SUM(Раздел5!D69:O69) -> 0
B78: Керлинг - всего | C78: 71 | D78: =IF(SUM(D79:D80)>=1,1,0) -> 0 | E78: =IF(SUM(E79:E80)>=1,1,0) -> 0 | F78: =SUM(G78:K78)*IF(D78>0,1,0) -> 0 | G78: =SUM(G79:G80) -> 0 | H78: 0 | I78: 0 | J78: 0 | K78: 0 | L78: 0 | M78: 0 | N78: 0 | O78: 0 | P78: 0 | Q78: 0 | R78: 0 | S78: 0 | T78: 0 | V78: =Раздел3!D71 -> 0 | W78: =Раздел3!E71 -> 0 | X78: =Раздел3!F71 -> 0 | Y78: =Раздел3!G71 -> 0 | Z78: =Раздел3!H71 -> 0 | AA78: =SUM(Раздел5!D70:O70) -> 0
B79: в том числе: Керлинг (муж.) | C79: 72 | D79: 0 | E79: 0 | F79: 0 | G79: 0 | H79: 0 | I79: 0 | J79: 0 | K79: 0 | L79: 0 | M79: 0 | N79: 0 | O79: 0 | P79: 0 | Q79: 0 | R79: 0 | S79: 0 | T79: 0 | V79: =Раздел3!D72 -> 0 | W79: =Раздел3!E72 -> 0 | X79: =Раздел3!F72 -> 0 | Y79: =Раздел3!G72 -> 0 | Z79: =Раздел3!H72 -> 0 | AA79: =SUM(Раздел5!D71:O71) -> 0
B80: Керлинг (жен.) | C80: 73 | D80: 0 | E80: 0 | F80: 0 | G80: 0 | H80: 0 | I80: 0 | J80: 0 | K80: 0 | L80: 0 | M80: 0 | N80: 0 | O80: 0 | P80: 0 | Q80: 0 | R80: 0 | S80: 0 | T80: 0 | V80: =Раздел3!D73 -> 0 | W80: =Раздел3!E73 -> 0 | X80: =Раздел3!F73 -> 0 | Y80: =Раздел3!G73 -> 0 | Z80: =Раздел3!H73 -> 0 | AA80: =SUM(Раздел5!D72:O72) -> 0
B81: Кикбоксинг | C81: 74 | D81: 0 | E81: 0 | F81: 0 | G81: 0 | H81: 0 | I81: 0 | J81: 0 | K81: 0 | L81: 0 | M81: 0 | N81: 0 | O81: 0 | P81: 0 | Q81: 0 | R81: 0 | S81: 0 | T81: 0 | V81: =Раздел3!D74 -> 0 | W81: =Раздел3!E74 -> 0 | X81: =Раздел3!F74 -> 0 | Y81: =Раздел3!G74 -> 0 | Z81: =Раздел3!H74 -> 0 | AA81: =SUM(Раздел5!D73:O73) -> 0
B82: Кинологический спорт | C82: 75 | D82: 0 | E82: 0 | F82: 0 | G82: 0 | H82: 0 | I82: 0 | J82: 0 | K82: 0 | L82: 0 | M82: 0 | N82: 0 | O82: 0 | P82: 0 | Q82: 0 | R82: 0 | S82: 0 | T82: 0 | V82: =Раздел3!D75 -> 0 | W82: =Раздел3!E75 -> 0 | X82: =Раздел3!F75 -> 0 | Y82: =Раздел3!G75 -> 0 | Z82: =Раздел3!H75 -> 0 | AA82: =SUM(Раздел5!D74:O74) -> 0
B83: Киокусинкай | C83: 76 | D83: 0 | E83: 0 | F83: 0 | G83: 0 | H83: 0 | I83: 0 | J83: 0 | K83: 0 | L83: 0 | M83: 0 | N83: 0 | O83: 0 | P83: 0 | Q83: 0 | R83: 0 | S83: 0 | T83: 0 | V83: =Раздел3!D76 -> 0 | W83: =Раздел3!E76 -> 0 | X83: =Раздел3!F76 -> 0 | Y83: =Раздел3!G76 -> 0 | Z83: =Раздел3!H76 -> 0 | AA83: =SUM(Раздел5!D75:O75) -> 0
B84: Комплексное единоборство | C84: 77 | D84: 0 | E84: 0 | F84: 0 | G84: 0 | H84: 0 | I84: 0 | J84: 0 | K84: 0 | L84: 0 | M84: 0 | N84: 0 | O84: 0 | P84: 0 | Q84: 0 | R84: 0 | S84: 0 | T84: 0 | V84: =Раздел3!D77 -> 0 | W84: =Раздел3!E77 -> 0 | X84: =Раздел3!F77 -> 0 | Y84: =Раздел3!G77 -> 0 | Z84: =Раздел3!H77 -> 0 | AA84: =SUM(Раздел5!D76:O76) -> 0
B85: Компьютерный спорт | C85: 78 | D85: 0 | E85: 0 | F85: 0 | G85: 0 | H85: 0 | I85: 0 | J85: 0 | K85: 0 | L85: 0 | M85: 0 | N85: 0 | O85: 0 | P85: 0 | Q85: 0 | R85: 0 | S85: 0 | T85: 0 | V85: =Раздел3!D78 -> 0 | W85: =Раздел3!E78 -> 0 | X85: =Раздел3!F78 -> 0 | Y85: =Раздел3!G78 -> 0 | Z85: =Раздел3!H78 -> 0 | AA85: =SUM(Раздел5!D77:O77) -> 0
B86: Конный спорт | C86: 79 | D86: 0 | E86: 0 | F86: 0 | G86: 0 | H86: 0 | I86: 0 | J86: 0 | K86: 0 | L86: 0 | M86: 0 | N86: 0 | O86: 0 | P86: 0 | Q86: 0 | R86: 0 | S86: 0 | T86: 0 | V86: =Раздел3!D79 -> 0 | W86: =Раздел3!E79 -> 0 | X86: =Раздел3!F79 -> 0 | Y86: =Раздел3!G79 -> 0 | Z86: =Раздел3!H79 -> 0 | AA86: =SUM(Раздел5!D78:O78) -> 0
B87: Конькобежный спорт - всего | C87: 80 | D87: =IF(SUM(D88:D89)>=1,1,0) -> 0 | E87: =IF(SUM(E88:E89)>=1,1,0) -> 0 | F87: =SUM(G87:K87)*IF(D87>0,1,0) -> 0 | G87: =SUM(G88:G89) -> 0 | H87: 0 | I87: 0 | J87: 0 | K87: 0 | L87: 0 | M87: 0 | N87: 0 | O87: 0 | P87: 0 | Q87: 0 | R87: 0 | S87: 0 | T87: 0 | V87: =Раздел3!D80 -> 0 | W87: =Раздел3!E80 -> 0 | X87: =Раздел3!F80 -> 0 | Y87: =Раздел3!G80 -> 0 | Z87: =Раздел3!H80 -> 0 | AA87: =SUM(Раздел5!D79:O79) -> 0
B88: в том числе: Конькобежный спорт | C88: 81 | D88: 0 | E88: 0 | F88: 0 | G88: 0 | H88: 0 | I88: 0 | J88: 0 | K88: 0 | L88: 0 | M88: 0 | N88: 0 | O88: 0 | P88: 0 | Q88: 0 | R88: 0 | S88: 0 | T88: 0 | V88: =Раздел3!D81 -> 0 | W88: =Раздел3!E81 -> 0 | X88: =Раздел3!F81 -> 0 | Y88: =Раздел3!G81 -> 0 | Z88: =Раздел3!H81 -> 0 | AA88: =SUM(Раздел5!D80:O80) -> 0
B89: Шорт-трек | C89: 82 | D89: 0 | E89: 0 | F89: 0 | G89: 0 | H89: 0 | I89: 0 | J89: 0 | K89: 0 | L89: 0 | M89: 0 | N89: 0 | O89: 0 | P89: 0 | Q89: 0 | R89: 0 | S89: 0 | T89: 0 | V89: =Раздел3!D82 -> 0 | W89: =Раздел3!E82 -> 0 | X89: =Раздел3!F82 -> 0 | Y89: =Раздел3!G82 -> 0 | Z89: =Раздел3!H82 -> 0 | AA89: =SUM(Раздел5!D81:O81) -> 0
B90: Корэш | C90: 83 | D90: 0 | E90: 0 | F90: 0 | G90: 0 | H90: 0 | I90: 0 | J90: 0 | K90: 0 | L90: 0 | M90: 0 | N90: 0 | O90: 0 | P90: 0 | Q90: 0 | R90: 0 | S90: 0 | T90: 0 | V90: =Раздел3!D83 -> 0 | W90: =Раздел3!E83 -> 0 | X90: =Раздел3!F83 -> 0 | Y90: =Раздел3!G83 -> 0 | Z90: =Раздел3!H83 -> 0 | AA90: =SUM(Раздел5!D82:O82) -> 0
B91: Корфбол | C91: 84 | D91: 0 | E91: 0 | F91: 0 | G91: 0 | H91: 0 | I91: 0 | J91: 0 | K91: 0 | L91: 0 | M91: 0 | N91: 0 | O91: 0 | P91: 0 | Q91: 0 | R91: 0 | S91: 0 | T91: 0 | V91: =Раздел3!D84 -> 0 | W91: =Раздел3!E84 -> 0 | X91: =Раздел3!F84 -> 0 | Y91: =Раздел3!G84 -> 0 | Z91: =Раздел3!H84 -> 0 | AA91: =SUM(Раздел5!D83:O83) -> 0
B92: Лапта | C92: 85 | D92: 0 | E92: 0 | F92: 0 | G92: 0 | H92: 0 | I92: 0 | J92: 0 | K92: 0 | L92: 0 | M92: 0 | N92: 0 | O92: 0 | P92: 0 | Q92: 0 | R92: 0 | S92: 0 | T92: 0 | V92: =Раздел3!D85 -> 0 | W92: =Раздел3!E85 -> 0 | X92: =Раздел3!F85 -> 0 | Y92: =Раздел3!G85 -> 0 | Z92: =Раздел3!H85 -> 0 | AA92: =SUM(Раздел5!D84:O84) -> 0
B93: Легкая атлетика - всего | C93: 86 | D93: =IF(SUM(D94:D100)>=1,1,0) -> 1 | E93: =IF(SUM(E94:E100)>=1,1,0) -> 0 | F93: =SUM(G93:K93)*IF(D93>0,1,0) -> 187 | G93: =SUM(G94:G100) -> 187 | H93: =SUM(H94:H100) -> 0 | I93: 0 | J93: 0 | K93: 0 | L93: 0 | M93: 187 | N93: 0 | O93: 0 | P93: 0 | Q93: 98 | R93: 0 | S93: 0 | T93: 0 | V93: =Раздел3!D86 -> 0 | W93: =Раздел3!E86 -> 0 | X93: =Раздел3!F86 -> 0 | Y93: =Раздел3!G86 -> 0 | Z93: =Раздел3!H86 -> 0 | AA93: =SUM(Раздел5!D85:O85) -> 0
B94: в том числе: Спринтерский и барьерный бег | C94: 87 | D94: 0 | E94: 0 | F94: 0 | G94: 0 | H94: 0 | I94: 0 | J94: 0 | K94: 0 | L94: 0 | M94: 0 | N94: 0 | O94: 0 | P94: 0 | Q94: 0 | R94: 0 | S94: 0 | T94: 0 | V94: =Раздел3!D87 -> 0 | W94: =Раздел3!E87 -> 0 | X94: =Раздел3!F87 -> 0 | Y94: =Раздел3!G87 -> 0 | Z94: =Раздел3!H87 -> 0 | AA94: =SUM(Раздел5!D86:O86) -> 0
B95: Бег на средние дистанции и бег с препятствиями | C95: 88 | D95: 0 | E95: 0 | F95: 0 | G95: 0 | H95: 0 | I95: 0 | J95: 0 | K95: 0 | L95: 0 | M95: 0 | N95: 0 | O95: 0 | P95: 0 | Q95: 0 | R95: 0 | S95: 0 | T95: 0 | V95: =Раздел3!D88 -> 0 | W95: =Раздел3!E88 -> 0 | X95: =Раздел3!F88 -> 0 | Y95: =Раздел3!G88 -> 0 | Z95: =Раздел3!H88 -> 0 | AA95: =SUM(Раздел5!D87:O87) -> 0
B96: Бег на длинные и сверхдлинные дистанции | C96: 89 | D96: 0 | E96: 0 | F96: 0 | G96: 0 | H96: 0 | I96: 0 | J96: 0 | K96: 0 | L96: 0 | M96: 0 | N96: 0 | O96: 0 | P96: 0 | Q96: 0 | R96: 0 | S96: 0 | T96: 0 | V96: =Раздел3!D89 -> 0 | W96: =Раздел3!E89 -> 0 | X96: =Раздел3!F89 -> 0 | Y96: =Раздел3!G89 -> 0 | Z96: =Раздел3!H89 -> 0 | AA96: =SUM(Раздел5!D88:O88) -> 0
B97: Многоборья | C97: 90 | D97: 1 | E97: 0 | F97: 187 | G97: 187 | H97: 0 | I97: 0 | J97: 0 | K97: 0 | L97: 0 | M97: 187 | N97: 0 | O97: 0 | P97: 0 | Q97: 98 | R97: 0 | S97: 0 | T97: 0 | V97: =Раздел3!D90 -> 0 | W97: =Раздел3!E90 -> 0 | X97: =Раздел3!F90 -> 0 | Y97: =Раздел3!G90 -> 0 | Z97: =Раздел3!H90 -> 0 | AA97: =SUM(Раздел5!D89:O89) -> 0
B98: Прыжки | C98: 91 | D98: 0 | E98: 0 | F98: 0 | G98: 0 | H98: 0 | I98: 0 | J98: 0 | K98: 0 | L98: 0 | M98: 0 | N98: 0 | O98: 0 | P98: 0 | Q98: 0 | R98: 0 | S98: 0 | T98: 0 | V98: =Раздел3!D91 -> 0 | W98: =Раздел3!E91 -> 0 | X98: =Раздел3!F91 -> 0 | Y98: =Раздел3!G91 -> 0 | Z98: =Раздел3!H91 -> 0 | AA98: =SUM(Раздел5!D90:O90) -> 0
B99: Метания | C99: 92 | D99: 0 | E99: 0 | F99: 0 | G99: 0 | H99: 0 | I99: 0 | J99: 0 | K99: 0 | L99: 0 | M99: 0 | N99: 0 | O99: 0 | P99: 0 | Q99: 0 | R99: 0 | S99: 0 | T99: 0 | V99: =Раздел3!D92 -> 0 | W99: =Раздел3!E92 -> 0 | X99: =Раздел3!F92 -> 0 | Y99: =Раздел3!G92 -> 0 | Z99: =Раздел3!H92 -> 0 | AA99: =SUM(Раздел5!D91:O91) -> 0
B100: Спортивная ходьба | C100: 93 | D100: 0 | E100: 0 | F100: 0 | G100: 0 | H100: 0 | I100: 0 | J100: 0 | K100: 0 | L100: 0 | M100: 0 | N100: 0 | O100: 0 | P100: 0 | Q100: 0 | R100: 0 | S100: 0 | T100: 0 | V100: =Раздел3!D93 -> 0 | W100: =Раздел3!E93 -> 0 | X100: =Раздел3!F93 -> 0 | Y100: =Раздел3!G93 -> 0 | Z100: =Раздел3!H93 -> 0 | AA100: =SUM(Раздел5!D92:O92) -> 0
B101: Лыжное двоеборье | C101: 94 | D101: 0 | E101: 0 | F101: 0 | G101: 0 | H101: 0 | I101: 0 | J101: 0 | K101: 0 | L101: 0 | M101: 0 | N101: 0 | O101: 0 | P101: 0 | Q101: 0 | R101: 0 | S101: 0 | T101: 0 | V101: =Раздел3!D94 -> 0 | W101: =Раздел3!E94 -> 0 | X101: =Раздел3!F94 -> 0 | Y101: =Раздел3!G94 -> 0 | Z101: =Раздел3!H94 -> 0 | AA101: =SUM(Раздел5!D93:O93) -> 0
B102: Лыжные гонки | C102: 95 | D102: 0 | E102: 0 | F102: 0 | G102: 0 | H102: 0 | I102: 0 | J102: 0 | K102: 0 | L102: 0 | M102: 0 | N102: 0 | O102: 0 | P102: 0 | Q102: 0 | R102: 0 | S102: 0 | T102: 0 | V102: =Раздел3!D95 -> 0 | W102: =Раздел3!E95 -> 0 | X102: =Раздел3!F95 -> 0 | Y102: =Раздел3!G95 -> 0 | Z102: =Раздел3!H95 -> 0 | AA102: =SUM(Раздел5!D94:O94) -> 0
B103: Мас-рестлинг | C103: 96 | D103: 0 | E103: 0 | F103: 0 | G103: 0 | H103: 0 | I103: 0 | J103: 0 | K103: 0 | L103: 0 | M103: 0 | N103: 0 | O103: 0 | P103: 0 | Q103: 0 | R103: 0 | S103: 0 | T103: 0 | V103: =Раздел3!D96 -> 0 | W103: =Раздел3!E96 -> 0 | X103: =Раздел3!F96 -> 0 | Y103: =Раздел3!G96 -> 0 | Z103: =Раздел3!H96 -> 0 | AA103: =SUM(Раздел5!D95:O95) -> 0
B104: Международное военно-спортивное многоборье | C104: 97 | D104: 0 | E104: 0 | F104: 0 | G104: 0 | H104: 0 | I104: 0 | J104: 0 | K104: 0 | L104: 0 | M104: 0 | N104: 0 | O104: 0 | P104: 0 | Q104: 0 | R104: 0 | S104: 0 | T104: 0 | V104: =Раздел3!D97 -> 0 | W104: =Раздел3!E97 -> 0 | X104: =Раздел3!F97 -> 0 | Y104: =Раздел3!G97 -> 0 | Z104: =Раздел3!H97 -> 0 | AA104: =SUM(Раздел5!D96:O96) -> 0
B105: Многоборье кинологов | C105: 98 | D105: 0 | E105: 0 | F105: 0 | G105: 0 | H105: 0 | I105: 0 | J105: 0 | K105: 0 | L105: 0 | M105: 0 | N105: 0 | O105: 0 | P105: 0 | Q105: 0 | R105: 0 | S105: 0 | T105: 0 | V105: =Раздел3!D98 -> 0 | W105: =Раздел3!E98 -> 0 | X105: =Раздел3!F98 -> 0 | Y105: =Раздел3!G98 -> 0 | Z105: =Раздел3!H98 -> 0 | AA105: =SUM(Раздел5!D97:O97) -> 0
B106: Многоборье спасателей МЧС России | C106: 99 | D106: 0 | E106: 0 | F106: 0 | G106: 0 | H106: 0 | I106: 0 | J106: 0 | K106: 0 | L106: 0 | M106: 0 | N106: 0 | O106: 0 | P106: 0 | Q106: 0 | R106: 0 | S106: 0 | T106: 0 | V106: =Раздел3!D99 -> 0 | W106: =Раздел3!E99 -> 0 | X106: =Раздел3!F99 -> 0 | Y106: =Раздел3!G99 -> 0 | Z106: =Раздел3!H99 -> 0 | AA106: =SUM(Раздел5!D98:O98) -> 0
B107: Морское многоборье | C107: 100 | D107: 0 | E107: 0 | F107: 0 | G107: 0 | H107: 0 | I107: 0 | J107: 0 | K107: 0 | L107: 0 | M107: 0 | N107: 0 | O107: 0 | P107: 0 | Q107: 0 | R107: 0 | S107: 0 | T107: 0 | V107: =Раздел3!D100 -> 0 | W107: =Раздел3!E100 -> 0 | X107: =Раздел3!F100 -> 0 | Y107: =Раздел3!G100 -> 0 | Z107: =Раздел3!H100 -> 0 | AA107: =SUM(Раздел5!D99:O99) -> 0
B108: Мотоциклетный спорт | C108: 101 | D108: 0 | E108: 0 | F108: 0 | G108: 0 | H108: 0 | I108: 0 | J108: 0 | K108: 0 | L108: 0 | M108: 0 | N108: 0 | O108: 0 | P108: 0 | Q108: 0 | R108: 0 | S108: 0 | T108: 0 | V108: =Раздел3!D101 -> 0 | W108: =Раздел3!E101 -> 0 | X108: =Раздел3!F101 -> 0 | Y108: =Раздел3!G101 -> 0 | Z108: =Раздел3!H101 -> 0 | AA108: =SUM(Раздел5!D100:O100) -> 0
B109: Настольный теннис | C109: 102 | D109: 0 | E109: 0 | F109: 0 | G109: 0 | H109: 0 | I109: 0 | J109: 0 | K109: 0 | L109: 0 | M109: 0 | N109: 0 | O109: 0 | P109: 0 | Q109: 0 | R109: 0 | S109: 0 | T109: 0 | V109: =Раздел3!D102 -> 0 | W109: =Раздел3!E102 -> 0 | X109: =Раздел3!F102 -> 0 | Y109: =Раздел3!G102 -> 0 | Z109: =Раздел3!H102 -> 0 | AA109: =SUM(Раздел5!D101:O101) -> 0
B110: Парашютный спорт | C110: 103 | D110: 0 | E110: 0 | F110: 0 | G110: 0 | H110: 0 | I110: 0 | J110: 0 | K110: 0 | L110: 0 | M110: 0 | N110: 0 | O110: 0 | P110: 0 | Q110: 0 | R110: 0 | S110: 0 | T110: 0 | V110: =Раздел3!D103 -> 0 | W110: =Раздел3!E103 -> 0 | X110: =Раздел3!F103 -> 0 | Y110: =Раздел3!G103 -> 0 | Z110: =Раздел3!H103 -> 0 | AA110: =SUM(Раздел5!D102:O102) -> 0
B111: Парусный спорт | C111: 104 | D111: 0 | E111: 0 | F111: 0 | G111: 0 | H111: 0 | I111: 0 | J111: 0 | K111: 0 | L111: 0 | M111: 0 | N111: 0 | O111: 0 | P111: 0 | Q111: 0 | R111: 0 | S111: 0 | T111: 0 | V111: =Раздел3!D104 -> 0 | W111: =Раздел3!E104 -> 0 | X111: =Раздел3!F104 -> 0 | Y111: =Раздел3!G104 -> 0 | Z111: =Раздел3!H104 -> 0 | AA111: =SUM(Раздел5!D103:O103) -> 0
B112: Пауэрлифтинг | C112: 105 | D112: 0 | E112: 0 | F112: 0 | G112: 0 | H112: 0 | I112: 0 | J112: 0 | K112: 0 | L112: 0 | M112: 0 | N112: 0 | O112: 0 | P112: 0 | Q112: 0 | R112: 0 | S112: 0 | T112: 0 | V112: =Раздел3!D105 -> 0 | W112: =Раздел3!E105 -> 0 | X112: =Раздел3!F105 -> 0 | Y112: =Раздел3!G105 -> 0 | Z112: =Раздел3!H105 -> 0 | AA112: =SUM(Раздел5!D104:O104) -> 0
B113: Перетягивание каната | C113: 106 | D113: 0 | E113: 0 | F113: 0 | G113: 0 | H113: 0 | I113: 0 | J113: 0 | K113: 0 | L113: 0 | M113: 0 | N113: 0 | O113: 0 | P113: 0 | Q113: 0 | R113: 0 | S113: 0 | T113: 0 | V113: =Раздел3!D106 -> 0 | W113: =Раздел3!E106 -> 0 | X113: =Раздел3!F106 -> 0 | Y113: =Раздел3!G106 -> 0 | Z113: =Раздел3!H106 -> 0 | AA113: =SUM(Раздел5!D105:O105) -> 0
B114: Петанк | C114: 107 | D114: 0 | E114: 0 | F114: 0 | G114: 0 | H114: 0 | I114: 0 | J114: 0 | K114: 0 | L114: 0 | M114: 0 | N114: 0 | O114: 0 | P114: 0 | Q114: 0 | R114: 0 | S114: 0 | T114: 0 | V114: =Раздел3!D107 -> 0 | W114: =Раздел3!E107 -> 0 | X114: =Раздел3!F107 -> 0 | Y114: =Раздел3!G107 -> 0 | Z114: =Раздел3!H107 -> 0 | AA114: =SUM(Раздел5!D106:O106) -> 0
B115: Плавание - всего | C115: 108 | D115: =IF(SUM(D116:D117)>=1,1,0) -> 0 | E115: =IF(SUM(E116:E117)>=1,1,0) -> 0 | F115: =SUM(G115:K115)*IF(D115>0,1,0) -> 0 | G115: =SUM(G116:G117) -> 0 | H115: 0 | I115: 0 | J115: 0 | K115: 0 | L115: 0 | M115: 0 | N115: 0 | O115: 0 | P115: 0 | Q115: 0 | R115: 0 | S115: 0 | T115: 0 | V115: =Раздел3!D108 -> 0 | W115: =Раздел3!E108 -> 0 | X115: =Раздел3!F108 -> 0 | Y115: =Раздел3!G108 -> 0 | Z115: =Раздел3!H108 -> 0 | AA115: =SUM(Раздел5!D107:O107) -> 0
B116: в том числе: Плавание | C116: 109 | D116: 0 | E116: 0 | F116: 0 | G116: 0 | H116: 0 | I116: 0 | J116: 0 | K116: 0 | L116: 0 | M116: 0 | N116: 0 | O116: 0 | P116: 0 | Q116: 0 | R116: 0 | S116: 0 | T116: 0 | V116: =Раздел3!D109 -> 0 | W116: =Раздел3!E109 -> 0 | X116: =Раздел3!F109 -> 0 | Y116: =Раздел3!G109 -> 0 | Z116: =Раздел3!H109 -> 0 | AA116: =SUM(Раздел5!D108:O108) -> 0
B117: Открытая вода | C117: 110 | D117: 0 | E117: 0 | F117: 0 | G117: 0 | H117: 0 | I117: 0 | J117: 0 | K117: 0 | L117: 0 | M117: 0 | N117: 0 | O117: 0 | P117: 0 | Q117: 0 | R117: 0 | S117: 0 | T117: 0 | V117: =Раздел3!D110 -> 0 | W117: =Раздел3!E110 -> 0 | X117: =Раздел3!F110 -> 0 | Y117: =Раздел3!G110 -> 0 | Z117: =Раздел3!H110 -> 0 | AA117: =SUM(Раздел5!D109:O109) -> 0
B118: Планерный спорт | C118: 111 | D118: 0 | E118: 0 | F118: 0 | G118: 0 | H118: 0 | I118: 0 | J118: 0 | K118: 0 | L118: 0 | M118: 0 | N118: 0 | O118: 0 | P118: 0 | Q118: 0 | R118: 0 | S118: 0 | T118: 0 | V118: =Раздел3!D111 -> 0 | W118: =Раздел3!E111 -> 0 | X118: =Раздел3!F111 -> 0 | Y118: =Раздел3!G111 -> 0 | Z118: =Раздел3!H111 -> 0 | AA118: =SUM(Раздел5!D110:O110) -> 0
B119: Подводный спорт | C119: 112 | D119: 0 | E119: 0 | F119: 0 | G119: 0 | H119: 0 | I119: 0 | J119: 0 | K119: 0 | L119: 0 | M119: 0 | N119: 0 | O119: 0 | P119: 0 | Q119: 0 | R119: 0 | S119: 0 | T119: 0 | V119: =Раздел3!D112 -> 0 | W119: =Раздел3!E112 -> 0 | X119: =Раздел3!F112 -> 0 | Y119: =Раздел3!G112 -> 0 | Z119: =Раздел3!H112 -> 0 | AA119: =SUM(Раздел5!D111:O111) -> 0
B120: Пожарно-прикладной спорт | C120: 113 | D120: 0 | E120: 0 | F120: 0 | G120: 0 | H120: 0 | I120: 0 | J120: 0 | K120: 0 | L120: 0 | M120: 0 | N120: 0 | O120: 0 | P120: 0 | Q120: 0 | R120: 0 | S120: 0 | T120: 0 | V120: =Раздел3!D113 -> 0 | W120: =Раздел3!E113 -> 0 | X120: =Раздел3!F113 -> 0 | Y120: =Раздел3!G113 -> 0 | Z120: =Раздел3!H113 -> 0 | AA120: =SUM(Раздел5!D112:O112) -> 0
B121: Полиатлон | C121: 114 | D121: 0 | E121: 0 | F121: 0 | G121: 0 | H121: 0 | I121: 0 | J121: 0 | K121: 0 | L121: 0 | M121: 0 | N121: 0 | O121: 0 | P121: 0 | Q121: 0 | R121: 0 | S121: 0 | T121: 0 | V121: =Раздел3!D114 -> 0 | W121: =Раздел3!E114 -> 0 | X121: =Раздел3!F114 -> 0 | Y121: =Раздел3!G114 -> 0 | Z121: =Раздел3!H114 -> 0 | AA121: =SUM(Раздел5!D113:O113) -> 0
B122: Практическая стрельба | C122: 115 | D122: 0 | E122: 0 | F122: 0 | G122: 0 | H122: 0 | I122: 0 | J122: 0 | K122: 0 | L122: 0 | M122: 0 | N122: 0 | O122: 0 | P122: 0 | Q122: 0 | R122: 0 | S122: 0 | T122: 0 | V122: =Раздел3!D115 -> 0 | W122: =Раздел3!E115 -> 0 | X122: =Раздел3!F115 -> 0 | Y122: =Раздел3!G115 -> 0 | Z122: =Раздел3!H115 -> 0 | AA122: =SUM(Раздел5!D114:O114) -> 0
B123: Прыжки в воду - всего | C123: 116 | D123: =IF(SUM(D124:D125)>=1,1,0) -> 0 | E123: =IF(SUM(E124:E125)>=1,1,0) -> 0 | F123: =SUM(G123:K123)*IF(D123>0,1,0) -> 0 | G123: =SUM(G124:G125) -> 0 | H123: 0 | I123: 0 | J123: 0 | K123: 0 | L123: 0 | M123: 0 | N123: 0 | O123: 0 | P123: 0 | Q123: 0 | R123: 0 | S123: 0 | T123: 0 | V123: =Раздел3!D116 -> 0 | W123: =Раздел3!E116 -> 0 | X123: =Раздел3!F116 -> 0 | Y123: =Раздел3!G116 -> 0 | Z123: =Раздел3!H116 -> 0 | AA123: =SUM(Раздел5!D115:O115) -> 0
B124: в том числе: Прыжки в воду | C124: 117 | D124: 0 | E124: 0 | F124: 0 | G124: 0 | H124: 0 | I124: 0 | J124: 0 | K124: 0 | L124: 0 | M124: 0 | N124: 0 | O124: 0 | P124: 0 | Q124: 0 | R124: 0 | S124: 0 | T124: 0 | V124: =Раздел3!D117 -> 0 | W124: =Раздел3!E117 -> 0 | X124: =Раздел3!F117 -> 0 | Y124: =Раздел3!G117 -> 0 | Z124: =Раздел3!H117 -> 0 | AA124: =SUM(Раздел5!D116:O116) -> 0
B125: Прыжки в открытый водоем | C125: 118 | D125: 0 | E125: 0 | F125: 0 | G125: 0 | H125: 0 | I125: 0 | J125: 0 | K125: 0 | L125: 0 | M125: 0 | N125: 0 | O125: 0 | P125: 0 | Q125: 0 | R125: 0 | S125: 0 | T125: 0 | V125: =Раздел3!D118 -> 0 | W125: =Раздел3!E118 -> 0 | X125: =Раздел3!F118 -> 0 | Y125: =Раздел3!G118 -> 0 | Z125: =Раздел3!H118 -> 0 | AA125: =SUM(Раздел5!D117:O117) -> 0
B126: Прыжки на батуте - всего | C126: 119 | D126: =IF(SUM(D127:D130)>=1,1,0) -> 0 | E126: =IF(SUM(E127:E130)>=1,1,0) -> 0 | F126: =SUM(G126:K126)*IF(D126>0,1,0) -> 0 | G126: =SUM(G127:G130) -> 0 | H126: =SUM(H127:H130) -> 0 | I126: 0 | J126: 0 | K126: 0 | L126: 0 | M126: 0 | N126: 0 | O126: 0 | P126: 0 | Q126: 0 | R126: 0 | S126: 0 | T126: 0 | V126: =Раздел3!D119 -> 0 | W126: =Раздел3!E119 -> 0 | X126: =Раздел3!F119 -> 0 | Y126: =Раздел3!G119 -> 0 | Z126: =Раздел3!H119 -> 0 | AA126: =SUM(Раздел5!D118:O118) -> 0
B127: в том числе: Акробатическая дорожка | C127: 120 | D127: 0 | E127: 0 | F127: 0 | G127: 0 | H127: 0 | I127: 0 | J127: 0 | K127: 0 | L127: 0 | M127: 0 | N127: 0 | O127: 0 | P127: 0 | Q127: 0 | R127: 0 | S127: 0 | T127: 0 | V127: =Раздел3!D120 -> 0 | W127: =Раздел3!E120 -> 0 | X127: =Раздел3!F120 -> 0 | Y127: =Раздел3!G120 -> 0 | Z127: =Раздел3!H120 -> 0 | AA127: =SUM(Раздел5!D119:O119) -> 0
B128: Двойной минитрамп | C128: 121 | D128: 0 | E128: 0 | F128: 0 | G128: 0 | H128: 0 | I128: 0 | J128: 0 | K128: 0 | L128: 0 | M128: 0 | N128: 0 | O128: 0 | P128: 0 | Q128: 0 | R128: 0 | S128: 0 | T128: 0 | V128: =Раздел3!D121 -> 0 | W128: =Раздел3!E121 -> 0 | X128: =Раздел3!F121 -> 0 | Y128: =Раздел3!G121 -> 0 | Z128: =Раздел3!H121 -> 0 | AA128: =SUM(Раздел5!D120:O120) -> 0
B129: Индивидуальные прыжки | C129: 122 | D129: 0 | E129: 0 | F129: 0 | G129: 0 | H129: 0 | I129: 0 | J129: 0 | K129: 0 | L129: 0 | M129: 0 | N129: 0 | O129: 0 | P129: 0 | Q129: 0 | R129: 0 | S129: 0 | T129: 0 | V129: =Раздел3!D122 -> 0 | W129: =Раздел3!E122 -> 0 | X129: =Раздел3!F122 -> 0 | Y129: =Раздел3!G122 -> 0 | Z129: =Раздел3!H122 -> 0 | AA129: =SUM(Раздел5!D121:O121) -> 0
B130: Синхронные прыжки | C130: 123 | D130: 0 | E130: 0 | F130: 0 | G130: 0 | H130: 0 | I130: 0 | J130: 0 | K130: 0 | L130: 0 | M130: 0 | N130: 0 | O130: 0 | P130: 0 | Q130: 0 | R130: 0 | S130: 0 | T130: 0 | V130: =Раздел3!D123 -> 0 | W130: =Раздел3!E123 -> 0 | X130: =Раздел3!F123 -> 0 | Y130: =Раздел3!G123 -> 0 | Z130: =Раздел3!H123 -> 0 | AA130: =SUM(Раздел5!D122:O122) -> 0
B131: Прыжки на лыжах с трамплина | C131: 124 | D131: 0 | E131: 0 | F131: 0 | G131: 0 | H131: 0 | I131: 0 | J131: 0 | K131: 0 | L131: 0 | M131: 0 | N131: 0 | O131: 0 | P131: 0 | Q131: 0 | R131: 0 | S131: 0 | T131: 0 | V131: =Раздел3!D124 -> 0 | W131: =Раздел3!E124 -> 0 | X131: =Раздел3!F124 -> 0 | Y131: =Раздел3!G124 -> 0 | Z131: =Раздел3!H124 -> 0 | AA131: =SUM(Раздел5!D123:O123) -> 0
B132: Пулевая стрельба - всего | C132: 125 | D132: =IF(SUM(D133:D137)>=1,1,0) -> 0 | E132: =IF(SUM(E133:E137)>=1,1,0) -> 0 | F132: =SUM(G132:K132)*IF(D132>0,1,0) -> 0 | G132: =SUM(G133:G137) -> 0 | H132: =SUM(H133:H137) -> 0 | I132: 0 | J132: 0 | K132: 0 | L132: 0 | M132: 0 | N132: 0 | O132: 0 | P132: 0 | Q132: 0 | R132: 0 | S132: 0 | T132: 0 | V132: =Раздел3!D125 -> 0 | W132: =Раздел3!E125 -> 0 | X132: =Раздел3!F125 -> 0 | Y132: =Раздел3!G125 -> 0 | Z132: =Раздел3!H125 -> 0 | AA132: =SUM(Раздел5!D124:O124) -> 0
B133: в том числе: Пневматическая винтовка | C133: 126 | D133: 0 | E133: 0 | F133: 0 | G133: 0 | H133: 0 | I133: 0 | J133: 0 | K133: 0 | L133: 0 | M133: 0 | N133: 0 | O133: 0 | P133: 0 | Q133: 0 | R133: 0 | S133: 0 | T133: 0 | V133: =Раздел3!D126 -> 0 | W133: =Раздел3!E126 -> 0 | X133: =Раздел3!F126 -> 0 | Y133: =Раздел3!G126 -> 0 | Z133: =Раздел3!H126 -> 0 | AA133: =SUM(Раздел5!D125:O125) -> 0
B134: Пневматический пистолет | C134: 127 | D134: 0 | E134: 0 | F134: 0 | G134: 0 | H134: 0 | I134: 0 | J134: 0 | K134: 0 | L134: 0 | M134: 0 | N134: 0 | O134: 0 | P134: 0 | Q134: 0 | R134: 0 | S134: 0 | T134: 0 | V134: =Раздел3!D127 -> 0 | W134: =Раздел3!E127 -> 0 | X134: =Раздел3!F127 -> 0 | Y134: =Раздел3!G127 -> 0 | Z134: =Раздел3!H127 -> 0 | AA134: =SUM(Раздел5!D126:O126) -> 0
B135: Малокалиберная винтовка | C135: 128 | D135: 0 | E135: 0 | F135: 0 | G135: 0 | H135: 0 | I135: 0 | J135: 0 | K135: 0 | L135: 0 | M135: 0 | N135: 0 | O135: 0 | P135: 0 | Q135: 0 | R135: 0 | S135: 0 | T135: 0 | V135: =Раздел3!D128 -> 0 | W135: =Раздел3!E128 -> 0 | X135: =Раздел3!F128 -> 0 | Y135: =Раздел3!G128 -> 0 | Z135: =Раздел3!H128 -> 0 | AA135: =SUM(Раздел5!D127:O127) -> 0
B136: Малокалиберный пистолет | C136: 129 | D136: 0 | E136: 0 | F136: 0 | G136: 0 | H136: 0 | I136: 0 | J136: 0 | K136: 0 | L136: 0 | M136: 0 | N136: 0 | O136: 0 | P136: 0 | Q136: 0 | R136: 0 | S136: 0 | T136: 0 | V136: =Раздел3!D129 -> 0 | W136: =Раздел3!E129 -> 0 | X136: =Раздел3!F129 -> 0 | Y136: =Раздел3!G129 -> 0 | Z136: =Раздел3!H129 -> 0 | AA136: =SUM(Раздел5!D128:O128) -> 0
B137: Движущаяся мишень | C137: 130 | D137: 0 | E137: 0 | F137: =SUM(G137:K137)*IF(D137>0,1,0) -> 0 | G137: 0 | H137: 0 | I137: 0 | J137: 0 | K137: 0 | L137: 0 | M137: 0 | N137: 0 | O137: 0 | P137: 0 | Q137: 0 | R137: 0 | S137: 0 | T137: 0 | V137: =Раздел3!D130 -> 0 | W137: =Раздел3!E130 -> 0 | X137: =Раздел3!F130 -> 0 | Y137: =Раздел3!G130 -> 0 | Z137: =Раздел3!H130 -> 0 | AA137: =SUM(Раздел5!D129:O129) -> 0
B138: Пэйнтбол | C138: 131 | D138: 0 | E138: 0 | F138: 0 | G138: 0 | H138: 0 | I138: 0 | J138: 0 | K138: 0 | L138: 0 | M138: 0 | N138: 0 | O138: 0 | P138: 0 | Q138: 0 | R138: 0 | S138: 0 | T138: 0 | V138: =Раздел3!D131 -> 0 | W138: =Раздел3!E131 -> 0 | X138: =Раздел3!F131 -> 0 | Y138: =Раздел3!G131 -> 0 | Z138: =Раздел3!H131 -> 0 | AA138: =SUM(Раздел5!D130:O130) -> 0
B139: Радиоспорт | C139: 132 | D139: 0 | E139: 0 | F139: 0 | G139: 0 | H139: 0 | I139: 0 | J139: 0 | K139: 0 | L139: 0 | M139: 0 | N139: 0 | O139: 0 | P139: 0 | Q139: 0 | R139: 0 | S139: 0 | T139: 0 | V139: =Раздел3!D132 -> 0 | W139: =Раздел3!E132 -> 0 | X139: =Раздел3!F132 -> 0 | Y139: =Раздел3!G132 -> 0 | Z139: =Раздел3!H132 -> 0 | AA139: =SUM(Раздел5!D131:O131) -> 0
B140: Рафтинг | C140: 133 | D140: 0 | E140: 0 | F140: 0 | G140: 0 | H140: 0 | I140: 0 | J140: 0 | K140: 0 | L140: 0 | M140: 0 | N140: 0 | O140: 0 | P140: 0 | Q140: 0 | R140: 0 | S140: 0 | T140: 0 | V140: =Раздел3!D133 -> 0 | W140: =Раздел3!E133 -> 0 | X140: =Раздел3!F133 -> 0 | Y140: =Раздел3!G133 -> 0 | Z140: =Раздел3!H133 -> 0 | AA140: =SUM(Раздел5!D132:O132) -> 0
B141: Регби - всего | C141: 134 | D141: =IF(SUM(D142:D145)>=1,1,0) -> 0 | E141: =IF(SUM(E142:E145)>=1,1,0) -> 0 | F141: =SUM(G141:K141)*IF(D141>0,1,0) -> 0 | G141: =SUM(G142:G145) -> 0 | H141: =SUM(H142:H145) -> 0 | I141: 0 | J141: 0 | K141: 0 | L141: 0 | M141: 0 | N141: 0 | O141: 0 | P141: 0 | Q141: 0 | R141: 0 | S141: 0 | T141: 0 | V141: =Раздел3!D134 -> 0 | W141: =Раздел3!E134 -> 0 | X141: =Раздел3!F134 -> 0 | Y141: =Раздел3!G134 -> 0 | Z141: =Раздел3!H134 -> 0 | AA141: =SUM(Раздел5!D133:O133) -> 0
B142: в том числе: Регби | C142: 135 | D142: 0 | E142: 0 | F142: 0 | G142: 0 | H142: 0 | I142: 0 | J142: 0 | K142: 0 | L142: 0 | M142: 0 | N142: 0 | O142: 0 | P142: 0 | Q142: 0 | R142: 0 | S142: 0 | T142: 0 | V142: =Раздел3!D135 -> 0 | W142: =Раздел3!E135 -> 0 | X142: =Раздел3!F135 -> 0 | Y142: =Раздел3!G135 -> 0 | Z142: =Раздел3!H135 -> 0 | AA142: =SUM(Раздел5!D134:O134) -> 0
B143: Регби 7 (муж.) | C143: 136 | D143: 0 | E143: 0 | F143: 0 | G143: 0 | H143: 0 | I143: 0 | J143: 0 | K143: 0 | L143: 0 | M143: 0 | N143: 0 | O143: 0 | P143: 0 | Q143: 0 | R143: 0 | S143: 0 | T143: 0 | V143: =Раздел3!D136 -> 0 | W143: =Раздел3!E136 -> 0 | X143: =Раздел3!F136 -> 0 | Y143: =Раздел3!G136 -> 0 | Z143: =Раздел3!H136 -> 0 | AA143: =SUM(Раздел5!D135:O135) -> 0
B144: Регби 7 (жен.) | C144: 137 | D144: 0 | E144: 0 | F144: 0 | G144: 0 | H144: 0 | I144: 0 | J144: 0 | K144: 0 | L144: 0 | M144: 0 | N144: 0 | O144: 0 | P144: 0 | Q144: 0 | R144: 0 | S144: 0 | T144: 0 | V144: =Раздел3!D137 -> 0 | W144: =Раздел3!E137 -> 0 | X144: =Раздел3!F137 -> 0 | Y144: =Раздел3!G137 -> 0 | Z144: =Раздел3!H137 -> 0 | AA144: =SUM(Раздел5!D136:O136) -> 0
B145: Регби - пляжное | C145: 138 | D145: 0 | E145: 0 | F145: 0 | G145: 0 | H145: 0 | I145: 0 | J145: 0 | K145: 0 | L145: 0 | M145: 0 | N145: 0 | O145: 0 | P145: 0 | Q145: 0 | R145: 0 | S145: 0 | T145: 0 | V145: =Раздел3!D138 -> 0 | W145: =Раздел3!E138 -> 0 | X145: =Раздел3!F138 -> 0 | Y145: =Раздел3!G138 -> 0 | Z145: =Раздел3!H138 -> 0 | AA145: =SUM(Раздел5!D137:O137) -> 0
B146: Регбол | C146: 139 | D146: 0 | E146: 0 | F146: 0 | G146: 0 | H146: 0 | I146: 0 | J146: 0 | K146: 0 | L146: 0 | M146: 0 | N146: 0 | O146: 0 | P146: 0 | Q146: 0 | R146: 0 | S146: 0 | T146: 0 | V146: =Раздел3!D139 -> 0 | W146: =Раздел3!E139 -> 0 | X146: =Раздел3!F139 -> 0 | Y146: =Раздел3!G139 -> 0 | Z146: =Раздел3!H139 -> 0 | AA146: =SUM(Раздел5!D138:O138) -> 0
B147: Роллер спорт | C147: 140 | D147: 0 | E147: 0 | F147: 0 | G147: 0 | H147: 0 | I147: 0 | J147: 0 | K147: 0 | L147: 0 | M147: 0 | N147: 0 | O147: 0 | P147: 0 | Q147: 0 | R147: 0 | S147: 0 | T147: 0 | V147: =Раздел3!D140 -> 0 | W147: =Раздел3!E140 -> 0 | X147: =Раздел3!F140 -> 0 | Y147: =Раздел3!G140 -> 0 | Z147: =Раздел3!H140 -> 0 | AA147: =SUM(Раздел5!D139:O139) -> 0
B148: Рукопашный бой | C148: 141 | D148: 0 | E148: 0 | F148: 0 | G148: 0 | H148: 0 | I148: 0 | J148: 0 | K148: 0 | L148: 0 | M148: 0 | N148: 0 | O148: 0 | P148: 0 | Q148: 0 | R148: 0 | S148: 0 | T148: 0 | V148: =Раздел3!D141 -> 0 | W148: =Раздел3!E141 -> 0 | X148: =Раздел3!F141 -> 0 | Y148: =Раздел3!G141 -> 0 | Z148: =Раздел3!H141 -> 0 | AA148: =SUM(Раздел5!D140:O140) -> 0
B149: Рыболовный спорт | C149: 142 | D149: 0 | E149: 0 | F149: 0 | G149: 0 | H149: 0 | I149: 0 | J149: 0 | K149: 0 | L149: 0 | M149: 0 | N149: 0 | O149: 0 | P149: 0 | Q149: 0 | R149: 0 | S149: 0 | T149: 0 | V149: =Раздел3!D142 -> 0 | W149: =Раздел3!E142 -> 0 | X149: =Раздел3!F142 -> 0 | Y149: =Раздел3!G142 -> 0 | Z149: =Раздел3!H142 -> 0 | AA149: =SUM(Раздел5!D141:O141) -> 0
B150: Сават | C150: 143 | D150: 0 | E150: 0 | F150: 0 | G150: 0 | H150: 0 | I150: 0 | J150: 0 | K150: 0 | L150: 0 | M150: 0 | N150: 0 | O150: 0 | P150: 0 | Q150: 0 | R150: 0 | S150: 0 | T150: 0 | V150: =Раздел3!D143 -> 0 | W150: =Раздел3!E143 -> 0 | X150: =Раздел3!F143 -> 0 | Y150: =Раздел3!G143 -> 0 | Z150: =Раздел3!H143 -> 0 | AA150: =SUM(Раздел5!D142:O142) -> 0
B151: Самбо | C151: 144 | D151: 0 | E151: 0 | F151: 0 | G151: 0 | H151: 0 | I151: 0 | J151: 0 | K151: 0 | L151: 0 | M151: 0 | N151: 0 | O151: 0 | P151: 0 | Q151: 0 | R151: 0 | S151: 0 | T151: 0 | V151: =Раздел3!D144 -> 0 | W151: =Раздел3!E144 -> 0 | X151: =Раздел3!F144 -> 0 | Y151: =Раздел3!G144 -> 0 | Z151: =Раздел3!H144 -> 0 | AA151: =SUM(Раздел5!D143:O143) -> 0
B152: Самолетный спорт | C152: 145 | D152: 0 | E152: 0 | F152: 0 | G152: 0 | H152: 0 | I152: 0 | J152: 0 | K152: 0 | L152: 0 | M152: 0 | N152: 0 | O152: 0 | P152: 0 | Q152: 0 | R152: 0 | S152: 0 | T152: 0 | V152: =Раздел3!D145 -> 0 | W152: =Раздел3!E145 -> 0 | X152: =Раздел3!F145 -> 0 | Y152: =Раздел3!G145 -> 0 | Z152: =Раздел3!H145 -> 0 | AA152: =SUM(Раздел5!D144:O144) -> 0
B153: Санный спорт | C153: 146 | D153: 0 | E153: 0 | F153: 0 | G153: 0 | H153: 0 | I153: 0 | J153: 0 | K153: 0 | L153: 0 | M153: 0 | N153: 0 | O153: 0 | P153: 0 | Q153: 0 | R153: 0 | S153: 0 | T153: 0 | V153: =Раздел3!D146 -> 0 | W153: =Раздел3!E146 -> 0 | X153: =Раздел3!F146 -> 0 | Y153: =Раздел3!G146 -> 0 | Z153: =Раздел3!H146 -> 0 | AA153: =SUM(Раздел5!D145:O145) -> 0
B154: Северное многоборье | C154: 147 | D154: 0 | E154: 0 | F154: 0 | G154: 0 | H154: 0 | I154: 0 | J154: 0 | K154: 0 | L154: 0 | M154: 0 | N154: 0 | O154: 0 | P154: 0 | Q154: 0 | R154: 0 | S154: 0 | T154: 0 | V154: =Раздел3!D147 -> 0 | W154: =Раздел3!E147 -> 0 | X154: =Раздел3!F147 -> 0 | Y154: =Раздел3!G147 -> 0 | Z154: =Раздел3!H147 -> 0 | AA154: =SUM(Раздел5!D146:O146) -> 0
B155: Серфинг | C155: 148 | D155: 0 | E155: 0 | F155: 0 | G155: 0 | H155: 0 | I155: 0 | J155: 0 | K155: 0 | L155: 0 | M155: 0 | N155: 0 | O155: 0 | P155: 0 | Q155: 0 | R155: 0 | S155: 0 | T155: 0 | V155: =Раздел3!D148 -> 0 | W155: =Раздел3!E148 -> 0 | X155: =Раздел3!F148 -> 0 | Y155: =Раздел3!G148 -> 0 | Z155: =Раздел3!H148 -> 0 | AA155: =SUM(Раздел5!D147:O147) -> 0
B156: Синхронное плавание | C156: 149 | D156: 0 | E156: 0 | F156: 0 | G156: 0 | H156: 0 | I156: 0 | J156: 0 | K156: 0 | L156: 0 | M156: 0 | N156: 0 | O156: 0 | P156: 0 | Q156: 0 | R156: 0 | S156: 0 | T156: 0 | V156: =Раздел3!D149 -> 0 | W156: =Раздел3!E149 -> 0 | X156: =Раздел3!F149 -> 0 | Y156: =Раздел3!G149 -> 0 | Z156: =Раздел3!H149 -> 0 | AA156: =SUM(Раздел5!D148:O148) -> 0
B157: Скалолазание | C157: 150 | D157: 0 | E157: 0 | F157: 0 | G157: 0 | H157: 0 | I157: 0 | J157: 0 | K157: 0 | L157: 0 | M157: 0 | N157: 0 | O157: 0 | P157: 0 | Q157: 0 | R157: 0 | S157: 0 | T157: 0 | V157: =Раздел3!D150 -> 0 | W157: =Раздел3!E150 -> 0 | X157: =Раздел3!F150 -> 0 | Y157: =Раздел3!G150 -> 0 | Z157: =Раздел3!H150 -> 0 | AA157: =SUM(Раздел5!D149:O149) -> 0
B158: Скейтбординг | C158: 151 | D158: 0 | E158: 0 | F158: 0 | G158: 0 | H158: 0 | I158: 0 | J158: 0 | K158: 0 | L158: 0 | M158: 0 | N158: 0 | O158: 0 | P158: 0 | Q158: 0 | R158: 0 | S158: 0 | T158: 0 | V158: =Раздел3!D151 -> 0 | W158: =Раздел3!E151 -> 0 | X158: =Раздел3!F151 -> 0 | Y158: =Раздел3!G151 -> 0 | Z158: =Раздел3!H151 -> 0 | AA158: =SUM(Раздел5!D150:O150) -> 0
B159: Сквош | C159: 152 | D159: 0 | E159: 0 | F159: 0 | G159: 0 | H159: 0 | I159: 0 | J159: 0 | K159: 0 | L159: 0 | M159: 0 | N159: 0 | O159: 0 | P159: 0 | Q159: 0 | R159: 0 | S159: 0 | T159: 0 | V159: =Раздел3!D152 -> 0 | W159: =Раздел3!E152 -> 0 | X159: =Раздел3!F152 -> 0 | Y159: =Раздел3!G152 -> 0 | Z159: =Раздел3!H152 -> 0 | AA159: =SUM(Раздел5!D151:O151) -> 0
B160: Служебно-прикладной спорт ФСО России | C160: 153 | D160: 0 | E160: 0 | F160: 0 | G160: 0 | H160: 0 | I160: 0 | J160: 0 | K160: 0 | L160: 0 | M160: 0 | N160: 0 | O160: 0 | P160: 0 | Q160: 0 | R160: 0 | S160: 0 | T160: 0 | V160: =Раздел3!D153 -> 0 | W160: =Раздел3!E153 -> 0 | X160: =Раздел3!F153 -> 0 | Y160: =Раздел3!G153 -> 0 | Z160: =Раздел3!H153 -> 0 | AA160: =SUM(Раздел5!D152:O152) -> 0
B161: Служебно-прикладной спорт ГФС России | C161: 154 | D161: 0 | E161: 0 | F161: 0 | G161: 0 | H161: 0 | I161: 0 | J161: 0 | K161: 0 | L161: 0 | M161: 0 | N161: 0 | O161: 0 | P161: 0 | Q161: 0 | R161: 0 | S161: 0 | T161: 0 | V161: =Раздел3!D154 -> 0 | W161: =Раздел3!E154 -> 0 | X161: =Раздел3!F154 -> 0 | Y161: =Раздел3!G154 -> 0 | Z161: =Раздел3!H154 -> 0 | AA161: =SUM(Раздел5!D153:O153) -> 0
B162: Служебно-прикладной спорт ФСКН России | C162: 155 | D162: 0 | E162: 0 | F162: 0 | G162: 0 | H162: 0 | I162: 0 | J162: 0 | K162: 0 | L162: 0 | M162: 0 | N162: 0 | O162: 0 | P162: 0 | Q162: 0 | R162: 0 | S162: 0 | T162: 0 | V162: =Раздел3!D155 -> 0 | W162: =Раздел3!E155 -> 0 | X162: =Раздел3!F155 -> 0 | Y162: =Раздел3!G155 -> 0 | Z162: =Раздел3!H155 -> 0 | AA162: =SUM(Раздел5!D154:O154) -> 0
B163: Служебно-прикладной спорт ФТС России | C163: 156 | D163: 0 | E163: 0 | F163: 0 | G163: 0 | H163: 0 | I163: 0 | J163: 0 | K163: 0 | L163: 0 | M163: 0 | N163: 0 | O163: 0 | P163: 0 | Q163: 0 | R163: 0 | S163: 0 | T163: 0 | V163: =Раздел3!D156 -> 0 | W163: =Раздел3!E156 -> 0 | X163: =Раздел3!F156 -> 0 | Y163: =Раздел3!G156 -> 0 | Z163: =Раздел3!H156 -> 0 | AA163: =SUM(Раздел5!D155:O155) -> 0
B164: Служебное двоеборье | C164: 157 | D164: 0 | E164: 0 | F164: 0 | G164: 0 | H164: 0 | I164: 0 | J164: 0 | K164: 0 | L164: 0 | M164: 0 | N164: 0 | O164: 0 | P164: 0 | Q164: 0 | R164: 0 | S164: 0 | T164: 0 | V164: =Раздел3!D157 -> 0 | W164: =Раздел3!E157 -> 0 | X164: =Раздел3!F157 -> 0 | Y164: =Раздел3!G157 -> 0 | Z164: =Раздел3!H157 -> 0 | AA164: =SUM(Раздел5!D156:O156) -> 0
B165: Служебное единоборство | C165: 158 | D165: 0 | E165: 0 | F165: 0 | G165: 0 | H165: 0 | I165: 0 | J165: 0 | K165: 0 | L165: 0 | M165: 0 | N165: 0 | O165: 0 | P165: 0 | Q165: 0 | R165: 0 | S165: 0 | T165: 0 | V165: =Раздел3!D158 -> 0 | W165: =Раздел3!E158 -> 0 | X165: =Раздел3!F158 -> 0 | Y165: =Раздел3!G158 -> 0 | Z165: =Раздел3!H158 -> 0 | AA165: =SUM(Раздел5!D157:O157) -> 0
B166: Служебное многоборье | C166: 159 | D166: 0 | E166: 0 | F166: 0 | G166: 0 | H166: 0 | I166: 0 | J166: 0 | K166: 0 | L166: 0 | M166: 0 | N166: 0 | O166: 0 | P166: 0 | Q166: 0 | R166: 0 | S166: 0 | T166: 0 | V166: =Раздел3!D159 -> 0 | W166: =Раздел3!E159 -> 0 | X166: =Раздел3!F159 -> 0 | Y166: =Раздел3!G159 -> 0 | Z166: =Раздел3!H159 -> 0 | AA166: =SUM(Раздел5!D158:O158) -> 0
B167: Служебное собаководство | C167: 160 | D167: 0 | E167: 0 | F167: 0 | G167: 0 | H167: 0 | I167: 0 | J167: 0 | K167: 0 | L167: 0 | M167: 0 | N167: 0 | O167: 0 | P167: 0 | Q167: 0 | R167: 0 | S167: 0 | T167: 0 | V167: =Раздел3!D160 -> 0 | W167: =Раздел3!E160 -> 0 | X167: =Раздел3!F160 -> 0 | Y167: =Раздел3!G160 -> 0 | Z167: =Раздел3!H160 -> 0 | AA167: =SUM(Раздел5!D159:O159) -> 0
B168: Служебный биатлон | C168: 161 | D168: 0 | E168: 0 | F168: 0 | G168: 0 | H168: 0 | I168: 0 | J168: 0 | K168: 0 | L168: 0 | M168: 0 | N168: 0 | O168: 0 | P168: 0 | Q168: 0 | R168: 0 | S168: 0 | T168: 0 | V168: =Раздел3!D161 -> 0 | W168: =Раздел3!E161 -> 0 | X168: =Раздел3!F161 -> 0 | Y168: =Раздел3!G161 -> 0 | Z168: =Раздел3!H161 -> 0 | AA168: =SUM(Раздел5!D160:O160) -> 0
B169: Спасательный спорт | C169: 162 | D169: 0 | E169: 0 | F169: 0 | G169: 0 | H169: 0 | I169: 0 | J169: 0 | K169: 0 | L169: 0 | M169: 0 | N169: 0 | O169: 0 | P169: 0 | Q169: 0 | R169: 0 | S169: 0 | T169: 0 | V169: =Раздел3!D162 -> 0 | W169: =Раздел3!E162 -> 0 | X169: =Раздел3!F162 -> 0 | Y169: =Раздел3!G162 -> 0 | Z169: =Раздел3!H162 -> 0 | AA169: =SUM(Раздел5!D161:O161) -> 0
B170: Стрельба из боевого ручного стрелкового оружия | C170: 163 | D170: 0 | E170: 0 | F170: 0 | G170: 0 | H170: 0 | I170: 0 | J170: 0 | K170: 0 | L170: 0 | M170: 0 | N170: 0 | O170: 0 | P170: 0 | Q170: 0 | R170: 0 | S170: 0 | T170: 0 | V170: =Раздел3!D163 -> 0 | W170: =Раздел3!E163 -> 0 | X170: =Раздел3!F163 -> 0 | Y170: =Раздел3!G163 -> 0 | Z170: =Раздел3!H163 -> 0 | AA170: =SUM(Раздел5!D162:O162) -> 0
B171: Стрельба из штатного или табельного оружия | C171: 164 | D171: 0 | E171: 0 | F171: 0 | G171: 0 | H171: 0 | I171: 0 | J171: 0 | K171: 0 | L171: 0 | M171: 0 | N171: 0 | O171: 0 | P171: 0 | Q171: 0 | R171: 0 | S171: 0 | T171: 0 | V171: =Раздел3!D164 -> 0 | W171: =Раздел3!E164 -> 0 | X171: =Раздел3!F164 -> 0 | Y171: =Раздел3!G164 -> 0 | Z171: =Раздел3!H164 -> 0 | AA171: =SUM(Раздел5!D163:O163) -> 0
B172: Смешанное боевое единоборство (ММА) | C172: 165 | D172: 0 | E172: 0 | F172: 0 | G172: 0 | H172: 0 | I172: 0 | J172: 0 | K172: 0 | L172: 0 | M172: 0 | N172: 0 | O172: 0 | P172: 0 | Q172: 0 | R172: 0 | S172: 0 | T172: 0 | V172: =Раздел3!D165 -> 0 | W172: =Раздел3!E165 -> 0 | X172: =Раздел3!F165 -> 0 | Y172: =Раздел3!G165 -> 0 | Z172: =Раздел3!H165 -> 0 | AA172: =SUM(Раздел5!D164:O164) -> 0
B173: Сноуборд | C173: 166 | D173: 0 | E173: 0 | F173: 0 | G173: 0 | H173: 0 | I173: 0 | J173: 0 | K173: 0 | L173: 0 | M173: 0 | N173: 0 | O173: 0 | P173: 0 | Q173: 0 | R173: 0 | S173: 0 | T173: 0 | V173: =Раздел3!D166 -> 0 | W173: =Раздел3!E166 -> 0 | X173: =Раздел3!F166 -> 0 | Y173: =Раздел3!G166 -> 0 | Z173: =Раздел3!H166 -> 0 | AA173: =SUM(Раздел5!D165:O165) -> 0
B174: Современное пятиборье | C174: 167 | D174: 0 | E174: 0 | F174: 0 | G174: 0 | H174: 0 | I174: 0 | J174: 0 | K174: 0 | L174: 0 | M174: 0 | N174: 0 | O174: 0 | P174: 0 | Q174: 0 | R174: 0 | S174: 0 | T174: 0 | V174: =Раздел3!D167 -> 0 | W174: =Раздел3!E167 -> 0 | X174: =Раздел3!F167 -> 0 | Y174: =Раздел3!G167 -> 0 | Z174: =Раздел3!H167 -> 0 | AA174: =SUM(Раздел5!D166:O166) -> 0
B175: Софтбол | C175: 168 | D175: 0 | E175: 0 | F175: 0 | G175: 0 | H175: 0 | I175: 0 | J175: 0 | K175: 0 | L175: 0 | M175: 0 | N175: 0 | O175: 0 | P175: 0 | Q175: 0 | R175: 0 | S175: 0 | T175: 0 | V175: =Раздел3!D168 -> 0 | W175: =Раздел3!E168 -> 0 | X175: =Раздел3!F168 -> 0 | Y175: =Раздел3!G168 -> 0 | Z175: =Раздел3!H168 -> 0 | AA175: =SUM(Раздел5!D167:O167) -> 0
B176: Спорт сверхлегкой авиации | C176: 169 | D176: 0 | E176: 0 | F176: 0 | G176: 0 | H176: 0 | I176: 0 | J176: 0 | K176: 0 | L176: 0 | M176: 0 | N176: 0 | O176: 0 | P176: 0 | Q176: 0 | R176: 0 | S176: 0 | T176: 0 | V176: =Раздел3!D169 -> 0 | W176: =Раздел3!E169 -> 0 | X176: =Раздел3!F169 -> 0 | Y176: =Раздел3!G169 -> 0 | Z176: =Раздел3!H169 -> 0 | AA176: =SUM(Раздел5!D168:O168) -> 0
B177: Спортивная акробатика | C177: 170 | D177: 0 | E177: 0 | F177: 0 | G177: 0 | H177: 0 | I177: 0 | J177: 0 | K177: 0 | L177: 0 | M177: 0 | N177: 0 | O177: 0 | P177: 0 | Q177: 0 | R177: 0 | S177: 0 | T177: 0 | V177: =Раздел3!D170 -> 0 | W177: =Раздел3!E170 -> 0 | X177: =Раздел3!F170 -> 0 | Y177: =Раздел3!G170 -> 0 | Z177: =Раздел3!H170 -> 0 | AA177: =SUM(Раздел5!D169:O169) -> 0
B178: Спортивная аэробика | C178: 171 | D178: 1 | E178: 0 | F178: 297 | G178: 258 | H178: 28 | I178: 11 | J178: 0 | K178: 0 | L178: 0 | M178: 291 | N178: 6 | O178: 0 | P178: 0 | Q178: 149 | R178: 0 | S178: 0 | T178: 39 | V178: =Раздел3!D171 -> 0 | W178: =Раздел3!E171 -> 0 | X178: =Раздел3!F171 -> 0 | Y178: =Раздел3!G171 -> 0 | Z178: =Раздел3!H171 -> 0 | AA178: =SUM(Раздел5!D170:O170) -> 0
B179: Спортивная борьба - всего | C179: 172 | D179: =IF(SUM(D180:D184)>=1,1,0) -> 0 | E179: =IF(SUM(E180:E184)>=1,1,0) -> 0 | F179: =SUM(G179:K179)*IF(D179>0,1,0) -> 0 | G179: =SUM(G180:G184) -> 0 | H179: =SUM(H180:H184) -> 0 | I179: 0 | J179: 0 | K179: 0 | L179: 0 | M179: 0 | N179: 0 | O179: 0 | P179: 0 | Q179: 0 | R179: 0 | S179: 0 | T179: 0 | V179: =Раздел3!D172 -> 0 | W179: =Раздел3!E172 -> 0 | X179: =Раздел3!F172 -> 0 | Y179: =Раздел3!G172 -> 0 | Z179: =Раздел3!H172 -> 0 | AA179: =SUM(Раздел5!D171:O171) -> 0
B180: в том числе: Вольная борьба | C180: 173 | D180: 0 | E180: 0 | F180: 0 | G180: 0 | H180: 0 | I180: 0 | J180: 0 | K180: 0 | L180: 0 | M180: 0 | N180: 0 | O180: 0 | P180: 0 | Q180: 0 | R180: 0 | S180: 0 | T180: 0 | V180: =Раздел3!D173 -> 0 | W180: =Раздел3!E173 -> 0 | X180: =Раздел3!F173 -> 0 | Y180: =Раздел3!G173 -> 0 | Z180: =Раздел3!H173 -> 0 | AA180: =SUM(Раздел5!D172:O172) -> 0
B181: Греко-римская борьба | C181: 174 | F181: 0 | Q181: 0 | R181: 0 | S181: 0 | T181: 0 | V181: =Раздел3!D174 -> 0 | W181: =Раздел3!E174 -> 0 | X181: =Раздел3!F174 -> 0 | Y181: =Раздел3!G174 -> 0 | Z181: =Раздел3!H174 -> 0 | AA181: =SUM(Раздел5!D173:O173) -> 0
B182: Грэпплинг | C182: 175 | D182: 0 | E182: 0 | F182: 0 | G182: 0 | H182: 0 | I182: 0 | J182: 0 | K182: 0 | L182: 0 | M182: 0 | N182: 0 | O182: 0 | P182: 0 | Q182: 0 | R182: 0 | S182: 0 | T182: 0 | V182: =Раздел3!D175 -> 0 | W182: =Раздел3!E175 -> 0 | X182: =Раздел3!F175 -> 0 | Y182: =Раздел3!G175 -> 0 | Z182: =Раздел3!H175 -> 0 | AA182: =SUM(Раздел5!D174:O174) -> 0
B183: Грэпплинг-ги | C183: 176 | D183: 0 | E183: 0 | F183: 0 | G183: 0 | H183: 0 | I183: 0 | J183: 0 | K183: 0 | L183: 0 | M183: 0 | N183: 0 | O183: 0 | P183: 0 | Q183: 0 | R183: 0 | S183: 0 | T183: 0 | V183: =Раздел3!D176 -> 0 | W183: =Раздел3!E176 -> 0 | X183: =Раздел3!F176 -> 0 | Y183: =Раздел3!G176 -> 0 | Z183: =Раздел3!H176 -> 0 | AA183: =SUM(Раздел5!D175:O175) -> 0
B184: Панкратион | C184: 177 | D184: 0 | E184: 0 | F184: 0 | G184: 0 | H184: 0 | I184: 0 | J184: 0 | K184: 0 | L184: 0 | M184: 0 | N184: 0 | O184: 0 | P184: 0 | Q184: 0 | R184: 0 | S184: 0 | T184: 0 | V184: =Раздел3!D177 -> 0 | W184: =Раздел3!E177 -> 0 | X184: =Раздел3!F177 -> 0 | Y184: =Раздел3!G177 -> 0 | Z184: =Раздел3!H177 -> 0 | AA184: =SUM(Раздел5!D176:O176) -> 0
B185: Спортивно-прикладное собаководство | C185: 178 | D185: 0 | E185: 0 | F185: 0 | G185: 0 | H185: 0 | I185: 0 | J185: 0 | K185: 0 | L185: 0 | M185: 0 | N185: 0 | O185: 0 | P185: 0 | Q185: 0 | R185: 0 | S185: 0 | T185: 0 | V185: =Раздел3!D178 -> 0 | W185: =Раздел3!E178 -> 0 | X185: =Раздел3!F178 -> 0 | Y185: =Раздел3!G178 -> 0 | Z185: =Раздел3!H178 -> 0 | AA185: =SUM(Раздел5!D177:O177) -> 0
B186: Спортивная гимнастика | C186: 179 | D186: 0 | E186: 0 | F186: 0 | G186: 0 | H186: 0 | I186: 0 | J186: 0 | K186: 0 | L186: 0 | M186: 0 | N186: 0 | O186: 0 | P186: 0 | Q186: 0 | R186: 0 | S186: 0 | T186: 0 | V186: =Раздел3!D179 -> 0 | W186: =Раздел3!E179 -> 0 | X186: =Раздел3!F179 -> 0 | Y186: =Раздел3!G179 -> 0 | Z186: =Раздел3!H179 -> 0 | AA186: =SUM(Раздел5!D178:O178) -> 0
B187: Спортивное ориентирование | C187: 180 | D187: 0 | E187: 0 | F187: 0 | G187: 0 | H187: 0 | I187: 0 | J187: 0 | K187: 0 | L187: 0 | M187: 0 | N187: 0 | O187: 0 | P187: 0 | Q187: 0 | R187: 0 | S187: 0 | T187: 0 | V187: =Раздел3!D180 -> 0 | W187: =Раздел3!E180 -> 0 | X187: =Раздел3!F180 -> 0 | Y187: =Раздел3!G180 -> 0 | Z187: =Раздел3!H180 -> 0 | AA187: =SUM(Раздел5!D179:O179) -> 0
B188: Спортивный бридж | C188: 181 | D188: 0 | E188: 0 | F188: 0 | G188: 0 | H188: 0 | I188: 0 | J188: 0 | K188: 0 | L188: 0 | M188: 0 | N188: 0 | O188: 0 | P188: 0 | Q188: 0 | R188: 0 | S188: 0 | T188: 0 | V188: =Раздел3!D181 -> 0 | W188: =Раздел3!E181 -> 0 | X188: =Раздел3!F181 -> 0 | Y188: =Раздел3!G181 -> 0 | Z188: =Раздел3!H181 -> 0 | AA188: =SUM(Раздел5!D180:O180) -> 0
B189: Спортивный туризм | C189: 182 | D189: 0 | E189: 0 | F189: 0 | G189: 0 | H189: 0 | I189: 0 | J189: 0 | K189: 0 | L189: 0 | M189: 0 | N189: 0 | O189: 0 | P189: 0 | Q189: 0 | R189: 0 | S189: 0 | T189: 0 | V189: =Раздел3!D182 -> 0 | W189: =Раздел3!E182 -> 0 | X189: =Раздел3!F182 -> 0 | Y189: =Раздел3!G182 -> 0 | Z189: =Раздел3!H182 -> 0 | AA189: =SUM(Раздел5!D181:O181) -> 0
B190: Стендовая стрельба - всего | C190: 183 | D190: =IF(SUM(D191:D194)>=1,1,0) -> 0 | E190: =IF(SUM(E191:E194)>=1,1,0) -> 0 | F190: =SUM(G190:K190)*IF(D190>0,1,0) -> 0 | G190: =SUM(G191:G194) -> 0 | H190: =SUM(H191:H194) -> 0 | I190: 0 | J190: 0 | K190: 0 | L190: 0 | M190: 0 | N190: 0 | O190: 0 | P190: 0 | Q190: 0 | R190: 0 | S190: 0 | T190: 0 | V190: =Раздел3!D183 -> 0 | W190: =Раздел3!E183 -> 0 | X190: =Раздел3!F183 -> 0 | Y190: =Раздел3!G183 -> 0 | Z190: =Раздел3!H183 -> 0 | AA190: =SUM(Раздел5!D182:O182) -> 0
B191: в том числе: Трап | C191: 184 | D191: 0 | E191: 0 | F191: 0 | G191: 0 | H191: 0 | I191: 0 | J191: 0 | K191: 0 | L191: 0 | M191: 0 | N191: 0 | O191: 0 | P191: 0 | Q191: 0 | R191: 0 | S191: 0 | T191: 0 | V191: =Раздел3!D184 -> 0 | W191: =Раздел3!E184 -> 0 | X191: =Раздел3!F184 -> 0 | Y191: =Раздел3!G184 -> 0 | Z191: =Раздел3!H184 -> 0 | AA191: =SUM(Раздел5!D183:O183) -> 0
B192: Скит | C192: 185 | D192: 0 | E192: 0 | F192: 0 | G192: 0 | H192: 0 | I192: 0 | J192: 0 | K192: 0 | L192: 0 | M192: 0 | N192: 0 | O192: 0 | P192: 0 | Q192: 0 | R192: 0 | S192: 0 | T192: 0 | V192: =Раздел3!D185 -> 0 | W192: =Раздел3!E185 -> 0 | X192: =Раздел3!F185 -> 0 | Y192: =Раздел3!G185 -> 0 | Z192: =Раздел3!H185 -> 0 | AA192: =SUM(Раздел5!D184:O184) -> 0
B193: Дубль-трап | C193: 186 | D193: 0 | E193: 0 | F193: 0 | G193: 0 | H193: 0 | I193: 0 | J193: 0 | K193: 0 | L193: 0 | M193: 0 | N193: 0 | O193: 0 | P193: 0 | Q193: 0 | R193: 0 | S193: 0 | T193: 0 | V193: =Раздел3!D186 -> 0 | W193: =Раздел3!E186 -> 0 | X193: =Раздел3!F186 -> 0 | Y193: =Раздел3!G186 -> 0 | Z193: =Раздел3!H186 -> 0 | AA193: =SUM(Раздел5!D185:O185) -> 0
B194: Спортинг | C194: 187 | D194: 0 | E194: 0 | F194: 0 | G194: 0 | H194: 0 | I194: 0 | J194: 0 | K194: 0 | L194: 0 | M194: 0 | N194: 0 | O194: 0 | P194: 0 | Q194: 0 | R194: 0 | S194: 0 | T194: 0 | V194: =Раздел3!D187 -> 0 | W194: =Раздел3!E187 -> 0 | X194: =Раздел3!F187 -> 0 | Y194: =Раздел3!G187 -> 0 | Z194: =Раздел3!H187 -> 0 | AA194: =SUM(Раздел5!D186:O186) -> 0
B195: Стрельба из арбалета | C195: 188 | D195: 0 | E195: 0 | F195: 0 | G195: 0 | H195: 0 | I195: 0 | J195: 0 | K195: 0 | L195: 0 | M195: 0 | N195: 0 | O195: 0 | P195: 0 | Q195: 0 | R195: 0 | S195: 0 | T195: 0 | V195: =Раздел3!D188 -> 0 | W195: =Раздел3!E188 -> 0 | X195: =Раздел3!F188 -> 0 | Y195: =Раздел3!G188 -> 0 | Z195: =Раздел3!H188 -> 0 | AA195: =SUM(Раздел5!D187:O187) -> 0
B196: Стрельба из лука - всего | C196: 189 | D196: =IF(SUM(D197:D199)>=1,1,0) -> 0 | E196: =IF(SUM(E197:E199)>=1,1,0) -> 0 | F196: =SUM(G196:K196)*IF(D196>0,1,0) -> 0 | G196: =SUM(G197:G199) -> 0 | H196: =SUM(H197:H199) -> 0 | I196: 0 | J196: 0 | K196: 0 | L196: 0 | M196: 0 | N196: 0 | O196: 0 | P196: 0 | Q196: 0 | R196: 0 | S196: 0 | T196: 0 | V196: =Раздел3!D189 -> 0 | W196: =Раздел3!E189 -> 0 | X196: =Раздел3!F189 -> 0 | Y196: =Раздел3!G189 -> 0 | Z196: =Раздел3!H189 -> 0 | AA196: =SUM(Раздел5!D188:O188) -> 0
B197: в том числе: Классический лук | C197: 190 | D197: 0 | E197: 0 | F197: 0 | G197: 0 | H197: 0 | I197: 0 | J197: 0 | K197: 0 | L197: 0 | M197: 0 | N197: 0 | O197: 0 | P197: 0 | Q197: 0 | R197: 0 | S197: 0 | T197: 0 | V197: =Раздел3!D190 -> 0 | W197: =Раздел3!E190 -> 0 | X197: =Раздел3!F190 -> 0 | Y197: =Раздел3!G190 -> 0 | Z197: =Раздел3!H190 -> 0 | AA197: =SUM(Раздел5!D189:O189) -> 0
B198: Блочный лук | C198: 191 | D198: 0 | E198: 0 | F198: 0 | G198: 0 | H198: 0 | I198: 0 | J198: 0 | K198: 0 | L198: 0 | M198: 0 | N198: 0 | O198: 0 | P198: 0 | Q198: 0 | R198: 0 | S198: 0 | T198: 0 | V198: =Раздел3!D191 -> 0 | W198: =Раздел3!E191 -> 0 | X198: =Раздел3!F191 -> 0 | Y198: =Раздел3!G191 -> 0 | Z198: =Раздел3!H191 -> 0 | AA198: =SUM(Раздел5!D190:O190) -> 0
B199: Ачери | C199: 192 | D199: 0 | E199: 0 | F199: 0 | G199: 0 | H199: 0 | I199: 0 | J199: 0 | K199: 0 | L199: 0 | M199: 0 | N199: 0 | O199: 0 | P199: 0 | Q199: 0 | R199: 0 | S199: 0 | T199: 0 | V199: =Раздел3!D192 -> 0 | W199: =Раздел3!E192 -> 0 | X199: =Раздел3!F192 -> 0 | Y199: =Раздел3!G192 -> 0 | Z199: =Раздел3!H192 -> 0 | AA199: =SUM(Раздел5!D191:O191) -> 0
B200: Судомодельный спорт | C200: 193 | D200: 0 | E200: 0 | F200: 0 | G200: 0 | H200: 0 | I200: 0 | J200: 0 | K200: 0 | L200: 0 | M200: 0 | N200: 0 | O200: 0 | P200: 0 | Q200: 0 | R200: 0 | S200: 0 | T200: 0 | V200: =Раздел3!D193 -> 0 | W200: =Раздел3!E193 -> 0 | X200: =Раздел3!F193 -> 0 | Y200: =Раздел3!G193 -> 0 | Z200: =Раздел3!H193 -> 0 | AA200: =SUM(Раздел5!D192:O192) -> 0
... 49 more rows

Sheet Раздел3
B1: Раздел III. Численность занимающихся по программам спортивной подготовки
N2: Код по ОКЕИ: человек – 792
B3: Виды спорта | C3: № строки | D3: Число занимающихся по программам спортивной подготовки на 31 декабря отчетного года (из гр. 5 раздела II) | I3: Число занимающихся, зачисленных на программы спортивной подготовки в отчетном году | N3: Число занимающихся, отчисленных с программ спортивной подготовки в отчетном году | U3: Раздел2 графа3 Число отделений | V3: Раздел2 графа5 Число отделений
D4: всего | E4: в том числе по этапам подготовки | I4: всего | J4: в том числе по этапам подготовки | N4: всего | O4: в том числе по этапам подготовки
E6: начальной подготовки | F6: трениро-вочный | G6: совершен-ствования спортивного мастерства | H6: высшего спортивного мастерства | J6: начальной подготовки | K6: трениро-вочный | L6: совершен-ствования спортивного мастерства | M6: высшего спортивного мастерства | O6: начальной подготовки | P6: трениро-вочный | Q6: совершен-ствования спортивного мастерства | R6: высшего спортивного мастерства | W6: 2-7 | X6: 2-8 | Y6: 2-9 | Z6: 2-10
B7: 1 | C7: 2 | D7: 3 | E7: 4 | F7: 5 | G7: 6 | H7: 7 | I7: 8 | J7: 9 | K7: 10 | L7: 11 | M7: 12 | N7: 13 | O7: 14 | P7: 15 | Q7: 16 | R7: 17
B8: Авиамодельный спорт | C8: 01 | D8: =SUM(E8:H8) -> 0 | I8: =SUM(J8:M8) -> 0 | N8: =SUM(O8:R8) -> 0 | U8: =Раздел2!F8 -> 0 | V8: =Раздел2!F8 -> 0 | W8: =Раздел2!H8 -> 0 | X8: =Раздел2!I8 -> 0 | Y8: =Раздел2!J8 -> 0 | Z8: =Раздел2!K8 -> 0 | AC8: 0 | AD8: =Раздел1!D18 -> 1
B9: Автомобильный спорт | C9: 02 | D9: =SUM(E9:H9) -> 0 | I9: =SUM(J9:M9) -> 0 | N9: =SUM(O9:R9) -> 0 | U9: =Раздел2!F9 -> 0 | V9: =Раздел2!F9 -> 0 | W9: =Раздел2!H9 -> 0 | X9: =Раздел2!I9 -> 0 | Y9: =Раздел2!J9 -> 0 | Z9: =Раздел2!K9 -> 0
B10: Автомодельный спорт | C10: 03 | D10: 0 | I10: 0 | N10: 0 | U10: =Раздел2!F10 -> 0 | V10: =Раздел2!F10 -> 0 | W10: =Раздел2!H10 -> 0 | X10: =Раздел2!I10 -> 0 | Y10: =Раздел2!J10 -> 0 | Z10: =Раздел2!K10 -> 0
B11: Айкидо | C11: 04 | D11: 0 | I11: 0 | N11: 0 | U11: =Раздел2!F11 -> 0 | V11: =Раздел2!F11 -> 0 | W11: =Раздел2!H11 -> 0 | X11: =Раздел2!I11 -> 0 | Y11: =Раздел2!J11 -> 0 | Z11: =Раздел2!K11 -> 0
B12: Айсшток | C12: 05 | D12: 0 | I12: 0 | N12: 0 | U12: =Раздел2!F12 -> 0 | V12: =Раздел2!F12 -> 0 | W12: =Раздел2!H12 -> 0 | X12: =Раздел2!I12 -> 0 | Y12: =Раздел2!J12 -> 0 | Z12: =Раздел2!K12 -> 0
B13: Акробатический рок-н-ролл | C13: 06 | D13: 0 | I13: 0 | N13: 0 | U13: =Раздел2!F13 -> 0 | V13: =Раздел2!F13 -> 0 | W13: =Раздел2!H13 -> 0 | X13: =Раздел2!I13 -> 0 | Y13: =Раздел2!J13 -> 0 | Z13: =Раздел2!K13 -> 0
B14: Альпинизм | C14: 07 | D14: 0 | E14: 0 | F14: 0 | G14: 0 | H14: 0 | I14: 0 | J14: 0 | K14: 0 | L14: 0 | M14: 0 | N14: 0 | O14: 0 | P14: 0 | Q14: 0 | R14: 0 | U14: =Раздел2!F14 -> 0 | V14: =Раздел2!F14 -> 0 | W14: =Раздел2!H14 -> 0 | X14: =Раздел2!I14 -> 0 | Y14: =Раздел2!J14 -> 0 | Z14: =Раздел2!K14 -> 0
B15: Американский футбол | C15: 08 | D15: 0 | E15: 0 | F15: 0 | G15: 0 | H15: 0 | I15: 0 | J15: 0 | K15: 0 | L15: 0 | M15: 0 | N15: 0 | O15: 0 | P15: 0 | Q15: 0 | R15: 0 | U15: =Раздел2!F15 -> 0 | V15: =Раздел2!F15 -> 0 | W15: =Раздел2!H15 -> 0 | X15: =Раздел2!I15 -> 0 | Y15: =Раздел2!J15 -> 0 | Z15: =Раздел2!K15 -> 0
B16: Армейский рукопашный бой | C16: 09 | D16: 0 | I16: 0 | N16: 0 | U16: =Раздел2!F16 -> 0 | V16: =Раздел2!F16 -> 0 | W16: =Раздел2!H16 -> 0 | X16: =Раздел2!I16 -> 0 | Y16: =Раздел2!J16 -> 0 | Z16: =Раздел2!K16 -> 0
B17: Армрестлинг | C17: 10 | D17: 0 | E17: 0 | F17: 0 | G17: 0 | H17: 0 | I17: 0 | J17: 0 | K17: 0 | L17: 0 | M17: 0 | N17: 0 | O17: 0 | P17: 0 | Q17: 0 | R17: 0 | U17: =Раздел2!F17 -> 0 | V17: =Раздел2!F17 -> 0 | W17: =Раздел2!H17 -> 0 | X17: =Раздел2!I17 -> 0 | Y17: =Раздел2!J17 -> 0 | Z17: =Раздел2!K17 -> 0
B18: Бадминтон | C18: 11 | D18: 0 | E18: 0 | F18: 0 | G18: 0 | H18: 0 | I18: 0 | J18: 0 | K18: 0 | L18: 0 | M18: 0 | N18: 0 | O18: 0 | P18: 0 | Q18: 0 | R18: 0 | U18: =Раздел2!F18 -> 0 | V18: =Раздел2!F18 -> 0 | W18: =Раздел2!H18 -> 0 | X18: =Раздел2!I18 -> 0 | Y18: =Раздел2!J18 -> 0 | Z18: =Раздел2!K18 -> 0
B19: Баскетбол - всего | C19: 12 | D19: 0 | E19: =SUM(E20:E21) -> 0 | F19: =SUM(F20:F21) -> 0 | G19: =SUM(G20:G21) -> 0 | H19: =SUM(H20:H21) -> 0 | I19: 0 | J19: =SUM(J20:J21) -> 0 | K19: =SUM(K20:K21) -> 0 | L19: =SUM(L20:L21) -> 0 | M19: =SUM(M20:M21) -> 0 | N19: 0 | O19: =SUM(O20:O21) -> 0 | P19: =SUM(P20:P21) -> 0 | Q19: =SUM(Q20:Q21) -> 0 | R19: =SUM(R20:R21) -> 0 | U19: =Раздел2!F19 -> 134 | V19: =Раздел2!F19 -> 134 | W19: =Раздел2!H19 -> 27 | X19: =Раздел2!I19 -> 15 | Y19: =Раздел2!J19 -> 0 | Z19: =Раздел2!K19 -> 0
B20: в том числе: Баскетбол (муж.) | C20: 13 | D20: 0 | E20: 0 | F20: 0 | G20: 0 | H20: 0 | I20: 0 | J20: 0 | K20: 0 | L20: 0 | M20: 0 | N20: 0 | O20: 0 | P20: 0 | Q20: 0 | R20: 0 | U20: =Раздел2!F20 -> 93 | V20: =Раздел2!F20 -> 93 | W20: =Раздел2!H20 -> 12 | X20: =Раздел2!I20 -> 9 | Y20: =Раздел2!J20 -> 0 | Z20: =Раздел2!K20 -> 0
B21: Баскетбол (жен.) | C21: 14 | D21: 0 | I21: 0 | N21: 0 | U21: =Раздел2!F21 -> 41 | V21: =Раздел2!F21 -> 41 | W21: =Раздел2!H21 -> 15 | X21: =Раздел2!I21 -> 6 | Y21: =Раздел2!J21 -> 0 | Z21: =Раздел2!K21 -> 0
B22: Бейсбол | C22: 15 | D22: 0 | E22: 0 | F22: 0 | G22: 0 | H22: 0 | I22: 0 | J22: 0 | K22: 0 | L22: 0 | M22: 0 | N22: 0 | O22: 0 | P22: 0 | Q22: 0 | R22: 0 | U22: =Раздел2!F22 -> 0 | V22: =Раздел2!F22 -> 0 | W22: =Раздел2!H22 -> 0 | X22: =Раздел2!I22 -> 0 | Y22: =Раздел2!J22 -> 0 | Z22: =Раздел2!K22 -> 0
B23: Биатлон | C23: 16 | D23: 0 | E23: 0 | F23: 0 | G23: 0 | H23: 0 | I23: 0 | J23: 0 | K23: 0 | L23: 0 | M23: 0 | N23: 0 | O23: 0 | P23: 0 | Q23: 0 | R23: 0 | U23: =Раздел2!F23 -> 0 | V23: =Раздел2!F23 -> 0 | W23: =Раздел2!H23 -> 0 | X23: =Раздел2!I23 -> 0 | Y23: =Раздел2!J23 -> 0 | Z23: =Раздел2!K23 -> 0
B24: Бильярдный спорт | C24: 17 | D24: 0 | E24: 0 | F24: 0 | G24: 0 | H24: 0 | I24: 0 | J24: 0 | K24: 0 | L24: 0 | M24: 0 | N24: 0 | O24: 0 | P24: 0 | Q24: 0 | R24: 0 | U24: =Раздел2!F24 -> 0 | V24: =Раздел2!F24 -> 0 | W24: =Раздел2!H24 -> 0 | X24: =Раздел2!I24 -> 0 | Y24: =Раздел2!J24 -> 0 | Z24: =Раздел2!K24 -> 0
B25: Бобслей - всего | C25: 18 | D25: 0 | E25: =SUM(E26:E27) -> 0 | F25: =SUM(F26:F27) -> 0 | G25: =SUM(G26:G27) -> 0 | H25: =SUM(H26:H27) -> 0 | I25: 0 | J25: =SUM(J26:J27) -> 0 | K25: =SUM(K26:K27) -> 0 | L25: =SUM(L26:L27) -> 0 | M25: =SUM(M26:M27) -> 0 | N25: 0 | O25: =SUM(O26:O27) -> 0 | P25: =SUM(P26:P27) -> 0 | Q25: =SUM(Q26:Q27) -> 0 | R25: =SUM(R26:R27) -> 0 | U25: =Раздел2!F25 -> 0 | V25: =Раздел2!F25 -> 0 | W25: =Раздел2!H25 -> 0 | X25: =Раздел2!I25 -> 0 | Y25: =Раздел2!J25 -> 0 | Z25: =Раздел2!K25 -> 0
B26: в том числе: Бобслей | C26: 19 | D26: 0 | E26: 0 | F26: 0 | G26: 0 | H26: 0 | I26: 0 | J26: 0 | K26: 0 | L26: 0 | M26: 0 | N26: 0 | O26: 0 | P26: 0 | Q26: 0 | R26: 0 | U26: =Раздел2!F26 -> 0 | V26: =Раздел2!F26 -> 0 | W26: =Раздел2!H26 -> 0 | X26: =Раздел2!I26 -> 0 | Y26: =Раздел2!J26 -> 0 | Z26: =Раздел2!K26 -> 0
B27: Скелетон | C27: 20 | D27: 0 | E27: 0 | F27: 0 | G27: 0 | H27: 0 | I27: 0 | J27: 0 | K27: 0 | L27: 0 | M27: 0 | N27: 0 | O27: 0 | P27: 0 | Q27: 0 | R27: 0 | U27: =Раздел2!F27 -> 0 | V27: =Раздел2!F27 -> 0 | W27: =Раздел2!H27 -> 0 | X27: =Раздел2!I27 -> 0 | Y27: =Раздел2!J27 -> 0 | Z27: =Раздел2!K27 -> 0
B28: Бодибилдинг | C28: 21 | D28: 0 | E28: 0 | F28: 0 | G28: 0 | H28: 0 | I28: 0 | J28: 0 | K28: 0 | L28: 0 | M28: 0 | N28: 0 | O28: 0 | P28: 0 | Q28: 0 | R28: 0 | U28: =Раздел2!F28 -> 0 | V28: =Раздел2!F28 -> 0 | W28: =Раздел2!H28 -> 0 | X28: =Раздел2!I28 -> 0 | Y28: =Раздел2!J28 -> 0 | Z28: =Раздел2!K28 -> 0
B29: Бокс | C29: 22 | D29: 0 | E29: 0 | F29: 0 | G29: 0 | H29: 0 | I29: 0 | J29: 0 | K29: 0 | L29: 0 | M29: 0 | N29: 0 | O29: 0 | P29: 0 | Q29: 0 | R29: 0 | U29: =Раздел2!F29 -> 90 | V29: =Раздел2!F29 -> 90 | W29: =Раздел2!H29 -> 0 | X29: =Раздел2!I29 -> 0 | Y29: =Раздел2!J29 -> 0 | Z29: =Раздел2!K29 -> 0
B30: Борьба на поясах | C30: 23 | D30: 0 | E30: 0 | F30: 0 | G30: 0 | H30: 0 | I30: 0 | J30: 0 | K30: 0 | L30: 0 | M30: 0 | N30: 0 | O30: 0 | P30: 0 | Q30: 0 | R30: 0 | U30: =Раздел2!F30 -> 0 | V30: =Раздел2!F30 -> 0 | W30: =Раздел2!H30 -> 0 | X30: =Раздел2!I30 -> 0 | Y30: =Раздел2!J30 -> 0 | Z30: =Раздел2!K30 -> 0
B31: Боулинг | C31: 24 | D31: 0 | E31: 0 | F31: 0 | G31: 0 | H31: 0 | I31: 0 | J31: 0 | K31: 0 | L31: 0 | M31: 0 | N31: 0 | O31: 0 | P31: 0 | Q31: 0 | R31: 0 | U31: =Раздел2!F31 -> 0 | V31: =Раздел2!F31 -> 0 | W31: =Раздел2!H31 -> 0 | X31: =Раздел2!I31 -> 0 | Y31: =Раздел2!J31 -> 0 | Z31: =Раздел2!K31 -> 0
B32: Велоспорт ВМХ | C32: 25 | D32: 0 | E32: 0 | F32: 0 | G32: 0 | H32: 0 | I32: 0 | J32: 0 | K32: 0 | L32: 0 | M32: 0 | N32: 0 | O32: 0 | P32: 0 | Q32: 0 | R32: 0 | U32: =Раздел2!F32 -> 0 | V32: =Раздел2!F32 -> 0 | W32: =Раздел2!H32 -> 0 | X32: =Раздел2!I32 -> 0 | Y32: =Раздел2!J32 -> 0 | Z32: =Раздел2!K32 -> 0
B33: Велоспорт – маунтинбайк | C33: 26 | D33: 0 | E33: 0 | F33: 0 | G33: 0 | H33: 0 | I33: 0 | J33: 0 | K33: 0 | L33: 0 | M33: 0 | N33: 0 | O33: 0 | P33: 0 | Q33: 0 | R33: 0 | U33: =Раздел2!F33 -> 0 | V33: =Раздел2!F33 -> 0 | W33: =Раздел2!H33 -> 0 | X33: =Раздел2!I33 -> 0 | Y33: =Раздел2!J33 -> 0 | Z33: =Раздел2!K33 -> 0
B34: Велоспорт – трек | C34: 27 | D34: 0 | E34: 0 | F34: 0 | G34: 0 | H34: 0 | I34: 0 | J34: 0 | K34: 0 | L34: 0 | M34: 0 | N34: 0 | O34: 0 | P34: 0 | Q34: 0 | R34: 0 | U34: =Раздел2!F34 -> 0 | V34: =Раздел2!F34 -> 0 | W34: =Раздел2!H34 -> 0 | X34: =Раздел2!I34 -> 0 | Y34: =Раздел2!J34 -> 0 | Z34: =Раздел2!K34 -> 0
B35: Велоспорт – шоссе | C35: 28 | D35: 0 | E35: 0 | F35: 0 | G35: 0 | H35: 0 | I35: 0 | J35: 0 | K35: 0 | L35: 0 | M35: 0 | N35: 0 | O35: 0 | P35: 0 | Q35: 0 | R35: 0 | U35: =Раздел2!F35 -> 0 | V35: =Раздел2!F35 -> 0 | W35: =Раздел2!H35 -> 0 | X35: =Раздел2!I35 -> 0 | Y35: =Раздел2!J35 -> 0 | Z35: =Раздел2!K35 -> 0
B36: Вертолетный спорт | C36: 29 | D36: 0 | E36: 0 | F36: 0 | G36: 0 | H36: 0 | I36: 0 | J36: 0 | K36: 0 | L36: 0 | M36: 0 | N36: 0 | O36: 0 | P36: 0 | Q36: 0 | R36: 0 | U36: =Раздел2!F36 -> 0 | V36: =Раздел2!F36 -> 0 | W36: =Раздел2!H36 -> 0 | X36: =Раздел2!I36 -> 0 | Y36: =Раздел2!J36 -> 0 | Z36: =Раздел2!K36 -> 0
B37: Водно-моторный спорт | C37: 30 | D37: 0 | E37: 0 | F37: 0 | G37: 0 | H37: 0 | I37: 0 | J37: 0 | K37: 0 | L37: 0 | M37: 0 | N37: 0 | O37: 0 | P37: 0 | Q37: 0 | R37: 0 | U37: =Раздел2!F37 -> 0 | V37: =Раздел2!F37 -> 0 | W37: =Раздел2!H37 -> 0 | X37: =Раздел2!I37 -> 0 | Y37: =Раздел2!J37 -> 0 | Z37: =Раздел2!K37 -> 0
B38: Водное поло - всего | C38: 31 | D38: 0 | E38: =SUM(E39:E40) -> 0 | F38: =SUM(F39:F40) -> 0 | G38: =SUM(G39:G40) -> 0 | H38: =SUM(H39:H40) -> 0 | I38: 0 | J38: =SUM(J39:J40) -> 0 | K38: =SUM(K39:K40) -> 0 | L38: =SUM(L39:L40) -> 0 | M38: =SUM(M39:M40) -> 0 | N38: 0 | O38: =SUM(O39:O40) -> 0 | P38: =SUM(P39:P40) -> 0 | Q38: =SUM(Q39:Q40) -> 0 | R38: =SUM(R39:R40) -> 0 | U38: =Раздел2!F38 -> 0 | V38: =Раздел2!F38 -> 0 | W38: =Раздел2!H38 -> 0 | X38: =Раздел2!I38 -> 0 | Y38: =Раздел2!J38 -> 0 | Z38: =Раздел2!K38 -> 0
B39: в том числе: Водное поло (муж.) | C39: 32 | D39: 0 | I39: 0 | N39: 0 | U39: =Раздел2!F39 -> 0 | V39: =Раздел2!F39 -> 0 | W39: =Раздел2!H39 -> 0 | X39: =Раздел2!I39 -> 0 | Y39: =Раздел2!J39 -> 0 | Z39: =Раздел2!K39 -> 0
B40: Водное поло (жен.) | C40: 33 | D40: 0 | I40: 0 | N40: 0 | U40: =Раздел2!F40 -> 0 | V40: =Раздел2!F40 -> 0 | W40: =Раздел2!H40 -> 0 | X40: =Раздел2!I40 -> 0 | Y40: =Раздел2!J40 -> 0 | Z40: =Раздел2!K40 -> 0
B41: Воднолыжный спорт | C41: 34 | D41: 0 | I41: 0 | N41: 0 | U41: =Раздел2!F41 -> 0 | V41: =Раздел2!F41 -> 0 | W41: =Раздел2!H41 -> 0 | X41: =Раздел2!I41 -> 0 | Y41: =Раздел2!J41 -> 0 | Z41: =Раздел2!K41 -> 0
B42: Военно-прикладной спорт | C42: 35 | D42: 0 | I42: 0 | N42: 0 | U42: =Раздел2!F42 -> 0 | V42: =Раздел2!F42 -> 0 | W42: =Раздел2!H42 -> 0 | X42: =Раздел2!I42 -> 0 | Y42: =Раздел2!J42 -> 0 | Z42: =Раздел2!K42 -> 0
B43: Военно-спортивное многоборье | C43: 36 | D43: 0 | I43: 0 | N43: 0 | U43: =Раздел2!F43 -> 0 | V43: =Раздел2!F43 -> 0 | W43: =Раздел2!H43 -> 0 | X43: =Раздел2!I43 -> 0 | Y43: =Раздел2!J43 -> 0 | Z43: =Раздел2!K43 -> 0
B44: Воздухоплавательный спорт | C44: 37 | D44: 0 | E44: 0 | F44: 0 | G44: 0 | H44: 0 | I44: 0 | J44: 0 | K44: 0 | L44: 0 | M44: 0 | N44: 0 | O44: 0 | P44: 0 | Q44: 0 | R44: 0 | U44: =Раздел2!F44 -> 0 | V44: =Раздел2!F44 -> 0 | W44: =Раздел2!H44 -> 0 | X44: =Раздел2!I44 -> 0 | Y44: =Раздел2!J44 -> 0 | Z44: =Раздел2!K44 -> 0
B45: Волейбол - всего | C45: 38 | D45: 0 | E45: =SUM(E46:E49) -> 0 | F45: =SUM(F46:F49) -> 0 | G45: =SUM(G46:G49) -> 0 | H45: =SUM(H46:H49) -> 0 | I45: 0 | J45: =SUM(J46:J49) -> 0 | K45: =SUM(K46:K49) -> 0 | L45: =SUM(L46:L49) -> 0 | M45: =SUM(M46:M49) -> 0 | N45: 0 | O45: =SUM(O46:O49) -> 0 | P45: =SUM(P46:P49) -> 0 | Q45: =SUM(Q46:Q49) -> 0 | R45: =SUM(R46:R49) -> 0 | U45: =Раздел2!F45 -> 80 | V45: =Раздел2!F45 -> 80 | W45: =Раздел2!H45 -> 0 | X45: =Раздел2!I45 -> 0 | Y45: =Раздел2!J45 -> 0 | Z45: =Раздел2!K45 -> 0
B46: в том числе: Волейбол (муж.) | C46: 39 | D46: 0 | E46: 0 | F46: 0 | G46: 0 | H46: 0 | I46: 0 | J46: 0 | K46: 0 | L46: 0 | M46: 0 | N46: 0 | O46: 0 | P46: 0 | Q46: 0 | R46: 0 | U46: =Раздел2!F46 -> 21 | V46: =Раздел2!F46 -> 21 | W46: =Раздел2!H46 -> 0 | X46: =Раздел2!I46 -> 0 | Y46: =Раздел2!J46 -> 0 | Z46: =Раздел2!K46 -> 0
B47: Волейбол (жен.) | C47: 40 | D47: 0 | I47: 0 | N47: 0 | U47: =Раздел2!F47 -> 59 | V47: =Раздел2!F47 -> 59 | W47: =Раздел2!H47 -> 0 | X47: =Раздел2!I47 -> 0 | Y47: =Раздел2!J47 -> 0 | Z47: =Раздел2!K47 -> 0
B48: Пляжный волейбол (муж.) | C48: 41 | D48: 0 | E48: 0 | F48: 0 | G48: 0 | H48: 0 | I48: 0 | J48: 0 | K48: 0 | L48: 0 | M48: 0 | N48: 0 | O48: 0 | P48: 0 | Q48: 0 | R48: 0 | U48: =Раздел2!F48 -> 0 | V48: =Раздел2!F48 -> 0 | W48: =Раздел2!H48 -> 0 | X48: =Раздел2!I48 -> 0 | Y48: =Раздел2!J48 -> 0 | Z48: =Раздел2!K48 -> 0
B49: Пляжный волейбол (жен.) | C49: 42 | D49: 0 | E49: 0 | F49: 0 | G49: 0 | H49: 0 | I49: 0 | J49: 0 | K49: 0 | L49: 0 | M49: 0 | N49: 0 | O49: 0 | P49: 0 | Q49: 0 | R49: 0 | U49: =Раздел2!F49 -> 0 | V49: =Раздел2!F49 -> 0 | W49: =Раздел2!H49 -> 0 | X49: =Раздел2!I49 -> 0 | Y49: =Раздел2!J49 -> 0 | Z49: =Раздел2!K49 -> 0
B50: Восточное боевое единоборство | C50: 43 | D50: 0 | E50: 0 | F50: 0 | G50: 0 | H50: 0 | I50: 0 | J50: 0 | K50: 0 | L50: 0 | M50: 0 | N50: 0 | O50: 0 | P50: 0 | Q50: 0 | R50: 0 | U50: =Раздел2!F50 -> 0 | V50: =Раздел2!F50 -> 0 | W50: =Раздел2!H50 -> 0 | X50: =Раздел2!I50 -> 0 | Y50: =Раздел2!J50 -> 0 | Z50: =Раздел2!K50 -> 0
B51: Всестилевое карате | C51: 44 | D51: 0 | E51: 0 | F51: 0 | G51: 0 | H51: 0 | I51: 0 | J51: 0 | K51: 0 | L51: 0 | M51: 0 | N51: 0 | O51: 0 | P51: 0 | Q51: 0 | R51: 0 | U51: =Раздел2!F51 -> 0 | V51: =Раздел2!F51 -> 0 | W51: =Раздел2!H51 -> 0 | X51: =Раздел2!I51 -> 0 | Y51: =Раздел2!J51 -> 0 | Z51: =Раздел2!K51 -> 0
B52: Гандбол - всего | C52: 45 | D52: 0 | E52: =SUM(E53:E55) -> 0 | F52: =SUM(F53:F55) -> 0 | G52: =SUM(G53:G55) -> 0 | H52: =SUM(H53:H55) -> 0 | I52: 0 | J52: =SUM(J53:J55) -> 0 | K52: =SUM(K53:K55) -> 0 | L52: =SUM(L53:L55) -> 0 | M52: =SUM(M53:M55) -> 0 | N52: 0 | O52: =SUM(O53:O55) -> 0 | P52: =SUM(P53:P55) -> 0 | Q52: =SUM(Q53:Q55) -> 0 | R52: =SUM(R53:R55) -> 0 | U52: =Раздел2!F52 -> 0 | V52: =Раздел2!F52 -> 0 | W52: =Раздел2!H52 -> 0 | X52: =Раздел2!I52 -> 0 | Y52: =Раздел2!J52 -> 0 | Z52: =Раздел2!K52 -> 0
B53: в том числе: Гандбол (муж.) | C53: 46 | D53: 0 | E53: 0 | F53: 0 | G53: 0 | H53: 0 | I53: 0 | J53: 0 | K53: 0 | L53: 0 | M53: 0 | N53: 0 | O53: 0 | P53: 0 | Q53: 0 | R53: 0 | U53: =Раздел2!F53 -> 0 | V53: =Раздел2!F53 -> 0 | W53: =Раздел2!H53 -> 0 | X53: =Раздел2!I53 -> 0 | Y53: =Раздел2!J53 -> 0 | Z53: =Раздел2!K53 -> 0
B54: Гандбол (жен.) | C54: 47 | D54: 0 | E54: 0 | F54: 0 | G54: 0 | H54: 0 | I54: 0 | J54: 0 | K54: 0 | L54: 0 | M54: 0 | N54: 0 | O54: 0 | P54: 0 | Q54: 0 | R54: 0 | U54: =Раздел2!F54 -> 0 | V54: =Раздел2!F54 -> 0 | W54: =Раздел2!H54 -> 0 | X54: =Раздел2!I54 -> 0 | Y54: =Раздел2!J54 -> 0 | Z54: =Раздел2!K54 -> 0
B55: Пляжный гандбол | C55: 48 | D55: 0 | I55: 0 | N55: 0 | U55: =Раздел2!F55 -> 0 | V55: =Раздел2!F55 -> 0 | W55: =Раздел2!H55 -> 0 | X55: =Раздел2!I55 -> 0 | Y55: =Раздел2!J55 -> 0 | Z55: =Раздел2!K55 -> 0
B56: Гиревой спорт | C56: 49 | D56: 0 | E56: 0 | F56: 0 | G56: 0 | H56: 0 | I56: 0 | J56: 0 | K56: 0 | L56: 0 | M56: 0 | N56: 0 | O56: 0 | P56: 0 | Q56: 0 | R56: 0 | U56: =Раздел2!F56 -> 0 | V56: =Раздел2!F56 -> 0 | W56: =Раздел2!H56 -> 0 | X56: =Раздел2!I56 -> 0 | Y56: =Раздел2!J56 -> 0 | Z56: =Раздел2!K56 -> 0
B57: Го | C57: 50 | D57: 0 | E57: 0 | F57: 0 | G57: 0 | H57: 0 | I57: 0 | J57: 0 | K57: 0 | L57: 0 | M57: 0 | N57: 0 | O57: 0 | P57: 0 | Q57: 0 | R57: 0 | U57: =Раздел2!F57 -> 0 | V57: =Раздел2!F57 -> 0 | W57: =Раздел2!H57 -> 0 | X57: =Раздел2!I57 -> 0 | Y57: =Раздел2!J57 -> 0 | Z57: =Раздел2!K57 -> 0
B58: Гольф | C58: 51 | D58: 0 | E58: 0 | F58: 0 | G58: 0 | H58: 0 | I58: 0 | J58: 0 | K58: 0 | L58: 0 | M58: 0 | N58: 0 | O58: 0 | P58: 0 | Q58: 0 | R58: 0 | U58: =Раздел2!F58 -> 0 | V58: =Раздел2!F58 -> 0 | W58: =Раздел2!H58 -> 0 | X58: =Раздел2!I58 -> 0 | Y58: =Раздел2!J58 -> 0 | Z58: =Раздел2!K58 -> 0
B59: Горнолыжный спорт | C59: 52 | D59: 0 | E59: 0 | F59: 0 | G59: 0 | H59: 0 | I59: 0 | J59: 0 | K59: 0 | L59: 0 | M59: 0 | N59: 0 | O59: 0 | P59: 0 | Q59: 0 | R59: 0 | U59: =Раздел2!F59 -> 0 | V59: =Раздел2!F59 -> 0 | W59: =Раздел2!H59 -> 0 | X59: =Раздел2!I59 -> 0 | Y59: =Раздел2!J59 -> 0 | Z59: =Раздел2!K59 -> 0
B60: Городошный спорт | C60: 53 | D60: 0 | E60: 0 | F60: 0 | G60: 0 | H60: 0 | I60: 0 | J60: 0 | K60: 0 | L60: 0 | M60: 0 | N60: 0 | O60: 0 | P60: 0 | Q60: 0 | R60: 0 | U60: =Раздел2!F60 -> 0 | V60: =Раздел2!F60 -> 0 | W60: =Раздел2!H60 -> 0 | X60: =Раздел2!I60 -> 0 | Y60: =Раздел2!J60 -> 0 | Z60: =Раздел2!K60 -> 0
B61: Гребля на байдарках и каноэ | C61: 54 | D61: 0 | E61: 0 | F61: 0 | G61: 0 | H61: 0 | I61: 0 | J61: 0 | K61: 0 | L61: 0 | M61: 0 | N61: 0 | O61: 0 | P61: 0 | Q61: 0 | R61: 0 | U61: =Раздел2!F61 -> 0 | V61: =Раздел2!F61 -> 0 | W61: =Раздел2!H61 -> 0 | X61: =Раздел2!I61 -> 0 | Y61: =Раздел2!J61 -> 0 | Z61: =Раздел2!K61 -> 0
B62: Гребля на шлюпках | C62: 55 | D62: 0 | I62: 0 | N62: 0 | U62: =Раздел2!F62 -> 0 | V62: =Раздел2!F62 -> 0 | W62: =Раздел2!H62 -> 0 | X62: =Раздел2!I62 -> 0 | Y62: =Раздел2!J62 -> 0 | Z62: =Раздел2!K62 -> 0
B63: Гребной слалом | C63: 56 | D63: 0 | E63: 0 | F63: 0 | G63: 0 | H63: 0 | I63: 0 | J63: 0 | K63: 0 | L63: 0 | M63: 0 | N63: 0 | O63: 0 | P63: 0 | Q63: 0 | R63: 0 | U63: =Раздел2!F63 -> 0 | V63: =Раздел2!F63 -> 0 | W63: =Раздел2!H63 -> 0 | X63: =Раздел2!I63 -> 0 | Y63: =Раздел2!J63 -> 0 | Z63: =Раздел2!K63 -> 0
B64: Гребной спорт - всего | C64: 57 | D64: 0 | E64: =SUM(E65:E68) -> 0 | F64: =SUM(F65:F68) -> 0 | G64: =SUM(G65:G68) -> 0 | H64: =SUM(H65:H68) -> 0 | I64: 0 | J64: =SUM(J65:J68) -> 0 | K64: =SUM(K65:K68) -> 0 | L64: =SUM(L65:L68) -> 0 | M64: =SUM(M65:M68) -> 0 | N64: 0 | O64: =SUM(O65:O68) -> 0 | P64: =SUM(P65:P68) -> 0 | Q64: =SUM(Q65:Q68) -> 0 | R64: =SUM(R65:R68) -> 0 | U64: =Раздел2!F64 -> 0 | V64: =Раздел2!F64 -> 0 | W64: =Раздел2!H64 -> 0 | X64: =Раздел2!I64 -> 0 | Y64: =Раздел2!J64 -> 0 | Z64: =Раздел2!K64 -> 0
B65: в том числе: Академическая гребля | C65: 58 | D65: 0 | E65: 0 | F65: 0 | G65: 0 | H65: 0 | I65: 0 | J65: 0 | K65: 0 | L65: 0 | M65: 0 | N65: 0 | O65: 0 | P65: 0 | Q65: 0 | R65: 0 | U65: =Раздел2!F65 -> 0 | V65: =Раздел2!F65 -> 0 | W65: =Раздел2!H65 -> 0 | X65: =Раздел2!I65 -> 0 | Y65: =Раздел2!J65 -> 0 | Z65: =Раздел2!K65 -> 0
B66: Гребля-индор | C66: 59 | D66: 0 | E66: 0 | F66: 0 | G66: 0 | H66: 0 | I66: 0 | J66: 0 | K66: 0 | L66: 0 | M66: 0 | N66: 0 | O66: 0 | P66: 0 | Q66: 0 | R66: 0 | U66: =Раздел2!F66 -> 0 | V66: =Раздел2!F66 -> 0 | W66: =Раздел2!H66 -> 0 | X66: =Раздел2!I66 -> 0 | Y66: =Раздел2!J66 -> 0 | Z66: =Раздел2!K66 -> 0
B67: Народная гребля | C67: 60 | D67: 0 | E67: 0 | F67: 0 | G67: 0 | H67: 0 | I67: 0 | J67: 0 | K67: 0 | L67: 0 | M67: 0 | N67: 0 | O67: 0 | P67: 0 | Q67: 0 | R67: 0 | U67: =Раздел2!F67 -> 0 | V67: =Раздел2!F67 -> 0 | W67: =Раздел2!H67 -> 0 | X67: =Раздел2!I67 -> 0 | Y67: =Раздел2!J67 -> 0 | Z67: =Раздел2!K67 -> 0
B68: Прибрежная гребля | C68: 61 | D68: 0 | E68: 0 | F68: 0 | G68: 0 | H68: 0 | I68: 0 | J68: 0 | K68: 0 | L68: 0 | M68: 0 | N68: 0 | O68: 0 | P68: 0 | Q68: 0 | R68: 0 | U68: =Раздел2!F68 -> 0 | V68: =Раздел2!F68 -> 0 | W68: =Раздел2!H68 -> 0 | X68: =Раздел2!I68 -> 0 | Y68: =Раздел2!J68 -> 0 | Z68: =Раздел2!K68 -> 0
B69: Гребно-парусное двоеборье | C69: 62 | D69: 0 | E69: 0 | F69: 0 | G69: 0 | H69: 0 | I69: 0 | J69: 0 | K69: 0 | L69: 0 | M69: 0 | N69: 0 | O69: 0 | P69: 0 | Q69: 0 | R69: 0 | U69: =Раздел2!F69 -> 0 | V69: =Раздел2!F69 -> 0 | W69: =Раздел2!H69 -> 0 | X69: =Раздел2!I69 -> 0 | Y69: =Раздел2!J69 -> 0 | Z69: =Раздел2!K69 -> 0
B70: Дартс | C70: 63 | D70: 0 | E70: 0 | F70: 0 | G70: 0 | H70: 0 | I70: 0 | J70: 0 | K70: 0 | L70: 0 | M70: 0 | N70: 0 | O70: 0 | P70: 0 | Q70: 0 | R70: 0 | U70: =Раздел2!F70 -> 0 | V70: =Раздел2!F70 -> 0 | W70: =Раздел2!H70 -> 0 | X70: =Раздел2!I70 -> 0 | Y70: =Раздел2!J70 -> 0 | Z70: =Раздел2!K70 -> 0
B71: Джиу-джитсу | C71: 64 | D71: 0 | E71: 0 | F71: 0 | G71: 0 | H71: 0 | I71: 0 | J71: 0 | K71: 0 | L71: 0 | M71: 0 | N71: 0 | O71: 0 | P71: 0 | Q71: 0 | R71: 0 | U71: =Раздел2!F71 -> 0 | V71: =Раздел2!F71 -> 0 | W71: =Раздел2!H71 -> 0 | X71: =Раздел2!I71 -> 0 | Y71: =Раздел2!J71 -> 0 | Z71: =Раздел2!K71 -> 0
B72: Дзюдо | C72: 65 | D72: 0 | E72: 0 | F72: 0 | G72: 0 | H72: 0 | I72: 0 | J72: 0 | K72: 0 | L72: 0 | M72: 0 | N72: 0 | O72: 0 | P72: 0 | Q72: 0 | R72: 0 | U72: =Раздел2!F72 -> 282 | V72: =Раздел2!F72 -> 282 | W72: =Раздел2!H72 -> 64 | X72: =Раздел2!I72 -> 67 | Y72: =Раздел2!J72 -> 0 | Z72: =Раздел2!K72 -> 0
B73: Ездовой спорт | C73: 66 | D73: =SUM(E73:H73) -> 0 | E73: 0 | F73: 0 | G73: 0 | H73: 0 | I73: =SUM(J73:M73) -> 0 | J73: 0 | K73: 0 | L73: 0 | M73: 0 | N73: =SUM(O73:R73) -> 0 | O73: 0 | P73: 0 | Q73: 0 | R73: 0 | U73: =Раздел2!F73 -> 0 | V73: =Раздел2!F73 -> 0 | W73: =Раздел2!H73 -> 0 | X73: =Раздел2!I73 -> 0 | Y73: =Раздел2!J73 -> 0 | Z73: =Раздел2!K73 -> 0
B74: Капоэйра | C74: 67 | D74: 0 | E74: 0 | F74: 0 | G74: 0 | H74: 0 | I74: 0 | J74: 0 | K74: 0 | L74: 0 | M74: 0 | N74: 0 | O74: 0 | P74: 0 | Q74: 0 | R74: 0 | U74: =Раздел2!F74 -> 0 | V74: =Раздел2!F74 -> 0 | W74: =Раздел2!H74 -> 0 | X74: =Раздел2!I74 -> 0 | Y74: =Раздел2!J74 -> 0 | Z74: =Раздел2!K74 -> 0
B75: Каратэ | C75: 68 | D75: 0 | E75: 0 | F75: 0 | G75: 0 | H75: 0 | I75: 0 | J75: 0 | K75: 0 | L75: 0 | M75: 0 | N75: 0 | O75: 0 | P75: 0 | Q75: 0 | R75: 0 | U75: =Раздел2!F75 -> 0 | V75: =Раздел2!F75 -> 0 | W75: =Раздел2!H75 -> 0 | X75: =Раздел2!I75 -> 0 | Y75: =Раздел2!J75 -> 0 | Z75: =Раздел2!K75 -> 0
B76: Кендо | C76: 69 | D76: 0 | E76: 0 | F76: 0 | G76: 0 | H76: 0 | I76: 0 | J76: 0 | K76: 0 | L76: 0 | M76: 0 | N76: 0 | O76: 0 | P76: 0 | Q76: 0 | R76: 0 | U76: =Раздел2!F76 -> 0 | V76: =Раздел2!F76 -> 0 | W76: =Раздел2!H76 -> 0 | X76: =Раздел2!I76 -> 0 | Y76: =Раздел2!J76 -> 0 | Z76: =Раздел2!K76 -> 0
B77: Керешу | C77: 70 | D77: 0 | E77: 0 | F77: 0 | G77: 0 | H77: 0 | I77: 0 | J77: 0 | K77: 0 | L77: 0 | M77: 0 | N77: 0 | O77: 0 | P77: 0 | Q77: 0 | R77: 0 | U77: =Раздел2!F77 -> 0 | V77: =Раздел2!F77 -> 0 | W77: =Раздел2!H77 -> 0 | X77: =Раздел2!I77 -> 0 | Y77: =Раздел2!J77 -> 0 | Z77: =Раздел2!K77 -> 0
B78: Керлинг - всего | C78: 71 | D78: 0 | E78: =SUM(E79:E80) -> 0 | F78: =SUM(F79:F80) -> 0 | G78: =SUM(G79:G80) -> 0 | H78: =SUM(H79:H80) -> 0 | I78: 0 | J78: =SUM(J79:J80) -> 0 | K78: =SUM(K79:K80) -> 0 | L78: =SUM(L79:L80) -> 0 | M78: =SUM(M79:M80) -> 0 | N78: 0 | O78: =SUM(O79:O80) -> 0 | P78: =SUM(P79:P80) -> 0 | Q78: =SUM(Q79:Q80) -> 0 | R78: =SUM(R79:R80) -> 0 | U78: =Раздел2!F78 -> 0 | V78: =Раздел2!F78 -> 0 | W78: =Раздел2!H78 -> 0 | X78: =Раздел2!I78 -> 0 | Y78: =Раздел2!J78 -> 0 | Z78: =Раздел2!K78 -> 0
B79: в том числе: Керлинг (муж.) | C79: 72 | D79: 0 | E79: 0 | F79: 0 | G79: 0 | H79: 0 | I79: 0 | J79: 0 | K79: 0 | L79: 0 | M79: 0 | N79: 0 | O79: 0 | P79: 0 | Q79: 0 | R79: 0 | U79: =Раздел2!F79 -> 0 | V79: =Раздел2!F79 -> 0 | W79: =Раздел2!H79 -> 0 | X79: =Раздел2!I79 -> 0 | Y79: =Раздел2!J79 -> 0 | Z79: =Раздел2!K79 -> 0
B80: Керлинг (жен.) | C80: 73 | D80: 0 | E80: 0 | F80: 0 | G80: 0 | H80: 0 | I80: 0 | J80: 0 | K80: 0 | L80: 0 | M80: 0 | N80: 0 | O80: 0 | P80: 0 | Q80: 0 | R80: 0 | U80: =Раздел2!F80 -> 0 | V80: =Раздел2!F80 -> 0 | W80: =Раздел2!H80 -> 0 | X80: =Раздел2!I80 -> 0 | Y80: =Раздел2!J80 -> 0 | Z80: =Раздел2!K80 -> 0
B81: Кикбоксинг | C81: 74 | D81: 0 | E81: 0 | F81: 0 | G81: 0 | H81: 0 | I81: 0 | J81: 0 | K81: 0 | L81: 0 | M81: 0 | N81: 0 | O81: 0 | P81: 0 | Q81: 0 | R81: 0 | U81: =Раздел2!F81 -> 0 | V81: =Раздел2!F81 -> 0 | W81: =Раздел2!H81 -> 0 | X81: =Раздел2!I81 -> 0 | Y81: =Раздел2!J81 -> 0 | Z81: =Раздел2!K81 -> 0
B82: Кинологический спорт | C82: 75 | D82: 0 | E82: 0 | F82: 0 | G82: 0 | H82: 0 | I82: 0 | J82: 0 | K82: 0 | L82: 0 | M82: 0 | N82: 0 | O82: 0 | P82: 0 | Q82: 0 | R82: 0 | U82: =Раздел2!F82 -> 0 | V82: =Раздел2!F82 -> 0 | W82: =Раздел2!H82 -> 0 | X82: =Раздел2!I82 -> 0 | Y82: =Раздел2!J82 -> 0 | Z82: =Раздел2!K82 -> 0
B83: Киокусинкай | C83: 76 | D83: 0 | E83: 0 | F83: 0 | G83: 0 | H83: 0 | I83: 0 | J83: 0 | K83: 0 | L83: 0 | M83: 0 | N83: 0 | O83: 0 | P83: 0 | Q83: 0 | R83: 0 | U83: =Раздел2!F83 -> 0 | V83: =Раздел2!F83 -> 0 | W83: =Раздел2!H83 -> 0 | X83: =Раздел2!I83 -> 0 | Y83: =Раздел2!J83 -> 0 | Z83: =Раздел2!K83 -> 0
B84: Комплексное единоборство | C84: 77 | D84: 0 | E84: 0 | F84: 0 | G84: 0 | H84: 0 | I84: 0 | J84: 0 | K84: 0 | L84: 0 | M84: 0 | N84: 0 | O84: 0 | P84: 0 | Q84: 0 | R84: 0 | U84: =Раздел2!F84 -> 0 | V84: =Раздел2!F84 -> 0 | W84: =Раздел2!H84 -> 0 | X84: =Раздел2!I84 -> 0 | Y84: =Раздел2!J84 -> 0 | Z84: =Раздел2!K84 -> 0
B85: Компьютерный спорт | C85: 78 | D85: 0 | E85: 0 | F85: 0 | G85: 0 | H85: 0 | I85: 0 | J85: 0 | K85: 0 | L85: 0 | M85: 0 | N85: 0 | O85: 0 | P85: 0 | Q85: 0 | R85: 0 | U85: =Раздел2!F85 -> 0 | V85: =Раздел2!F85 -> 0 | W85: =Раздел2!H85 -> 0 | X85: =Раздел2!I85 -> 0 | Y85: =Раздел2!J85 -> 0 | Z85: =Раздел2!K85 -> 0
B86: Конный спорт | C86: 79 | D86: 0 | E86: 0 | F86: 0 | G86: 0 | H86: 0 | I86: 0 | J86: 0 | K86: 0 | L86: 0 | M86: 0 | N86: 0 | O86: 0 | P86: 0 | Q86: 0 | R86: 0 | U86: =Раздел2!F86 -> 0 | V86: =Раздел2!F86 -> 0 | W86: =Раздел2!H86 -> 0 | X86: =Раздел2!I86 -> 0 | Y86: =Раздел2!J86 -> 0 | Z86: =Раздел2!K86 -> 0
B87: Конькобежный спорт - всего | C87: 80 | D87: 0 | E87: =SUM(E88:E89) -> 0 | F87: =SUM(F88:F89) -> 0 | G87: =SUM(G88:G89) -> 0 | H87: =SUM(H88:H89) -> 0 | I87: 0 | J87: =SUM(J88:J89) -> 0 | K87: =SUM(K88:K89) -> 0 | L87: =SUM(L88:L89) -> 0 | M87: =SUM(M88:M89) -> 0 | N87: 0 | O87: =SUM(O88:O89) -> 0 | P87: =SUM(P88:P89) -> 0 | Q87: =SUM(Q88:Q89) -> 0 | R87: =SUM(R88:R89) -> 0 | U87: =Раздел2!F87 -> 0 | V87: =Раздел2!F87 -> 0 | W87: =Раздел2!H87 -> 0 | X87: =Раздел2!I87 -> 0 | Y87: =Раздел2!J87 -> 0 | Z87: =Раздел2!K87 -> 0
B88: в том числе: Конькобежный спорт | C88: 81 | D88: 0 | E88: 0 | F88: 0 | G88: 0 | H88: 0 | I88: 0 | J88: 0 | K88: 0 | L88: 0 | M88: 0 | N88: 0 | O88: 0 | P88: 0 | Q88: 0 | R88: 0 | U88: =Раздел2!F88 -> 0 | V88: =Раздел2!F88 -> 0 | W88: =Раздел2!H88 -> 0 | X88: =Раздел2!I88 -> 0 | Y88: =Раздел2!J88 -> 0 | Z88: =Раздел2!K88 -> 0
B89: Шорт-трек | C89: 82 | D89: 0 | E89: 0 | F89: 0 | G89: 0 | H89: 0 | I89: 0 | J89: 0 | K89: 0 | L89: 0 | M89: 0 | N89: 0 | O89: 0 | P89: 0 | Q89: 0 | R89: 0 | U89: =Раздел2!F89 -> 0 | V89: =Раздел2!F89 -> 0 | W89: =Раздел2!H89 -> 0 | X89: =Раздел2!I89 -> 0 | Y89: =Раздел2!J89 -> 0 | Z89: =Раздел2!K89 -> 0
B90: Корэш | C90: 83 | D90: 0 | E90: 0 | F90: 0 | G90: 0 | H90: 0 | I90: 0 | J90: 0 | K90: 0 | L90: 0 | M90: 0 | N90: 0 | O90: 0 | P90: 0 | Q90: 0 | R90: 0 | U90: =Раздел2!F90 -> 0 | V90: =Раздел2!F90 -> 0 | W90: =Раздел2!H90 -> 0 | X90: =Раздел2!I90 -> 0 | Y90: =Раздел2!J90 -> 0 | Z90: =Раздел2!K90 -> 0
B91: Корфбол | C91: 84 | D91: 0 | E91: 0 | F91: 0 | G91: 0 | H91: 0 | I91: 0 | J91: 0 | K91: 0 | L91: 0 | M91: 0 | N91: 0 | O91: 0 | P91: 0 | Q91: 0 | R91: 0 | U91: =Раздел2!F91 -> 0 | V91: =Раздел2!F91 -> 0 | W91: =Раздел2!H91 -> 0 | X91: =Раздел2!I91 -> 0 | Y91: =Раздел2!J91 -> 0 | Z91: =Раздел2!K91 -> 0
B92: Лапта | C92: 85 | D92: 0 | E92: 0 | F92: 0 | G92: 0 | H92: 0 | I92: 0 | J92: 0 | K92: 0 | L92: 0 | M92: 0 | N92: 0 | O92: 0 | P92: 0 | Q92: 0 | R92: 0 | U92: =Раздел2!F92 -> 0 | V92: =Раздел2!F92 -> 0 | W92: =Раздел2!H92 -> 0 | X92: =Раздел2!I92 -> 0 | Y92: =Раздел2!J92 -> 0 | Z92: =Раздел2!K92 -> 0
B93: Легкая атлетика - всего | C93: 86 | D93: 0 | E93: =SUM(E94:E100) -> 0 | F93: =SUM(F94:F100) -> 0 | G93: =SUM(G94:G100) -> 0 | H93: =SUM(H94:H100) -> 0 | I93: 0 | J93: =SUM(J94:J100) -> 0 | K93: =SUM(K94:K100) -> 0 | L93: =SUM(L94:L100) -> 0 | M93: =SUM(M94:M100) -> 0 | N93: 0 | O93: =SUM(O94:O100) -> 0 | P93: =SUM(P94:P100) -> 0 | Q93: =SUM(Q94:Q100) -> 0 | R93: =SUM(R94:R100) -> 0 | U93: =Раздел2!F93 -> 187 | V93: =Раздел2!F93 -> 187 | W93: =Раздел2!H93 -> 0 | X93: =Раздел2!I93 -> 0 | Y93: =Раздел2!J93 -> 0 | Z93: =Раздел2!K93 -> 0
B94: в том числе: Спринтерский и барьерный бег | C94: 87 | D94: 0 | E94: 0 | F94: 0 | G94: 0 | H94: 0 | I94: 0 | J94: 0 | K94: 0 | L94: 0 | M94: 0 | N94: 0 | O94: 0 | P94: 0 | Q94: 0 | R94: 0 | U94: =Раздел2!F94 -> 0 | V94: =Раздел2!F94 -> 0 | W94: =Раздел2!H94 -> 0 | X94: =Раздел2!I94 -> 0 | Y94: =Раздел2!J94 -> 0 | Z94: =Раздел2!K94 -> 0
B95: Бег на средние дистанции и бег с препятствиями | C95: 88 | D95: 0 | E95: 0 | F95: 0 | G95: 0 | H95: 0 | I95: 0 | J95: 0 | K95: 0 | L95: 0 | M95: 0 | N95: 0 | O95: 0 | P95: 0 | Q95: 0 | R95: 0 | U95: =Раздел2!F95 -> 0 | V95: =Раздел2!F95 -> 0 | W95: =Раздел2!H95 -> 0 | X95: =Раздел2!I95 -> 0 | Y95: =Раздел2!J95 -> 0 | Z95: =Раздел2!K95 -> 0
B96: Бег на длинные и сверхдлинные дистанции | C96: 89 | D96: 0 | E96: 0 | F96: 0 | G96: 0 | H96: 0 | I96: 0 | J96: 0 | K96: 0 | L96: 0 | M96: 0 | N96: 0 | O96: 0 | P96: 0 | Q96: 0 | R96: 0 | U96: =Раздел2!F96 -> 0 | V96: =Раздел2!F96 -> 0 | W96: =Раздел2!H96 -> 0 | X96: =Раздел2!I96 -> 0 | Y96: =Раздел2!J96 -> 0 | Z96: =Раздел2!K96 -> 0
B97: Многоборья | C97: 90 | D97: 0 | E97: 0 | F97: 0 | G97: 0 | H97: 0 | I97: 0 | J97: 0 | K97: 0 | L97: 0 | M97: 0 | N97: 0 | O97: 0 | P97: 0 | Q97: 0 | R97: 0 | U97: =Раздел2!F97 -> 187 | V97: =Раздел2!F97 -> 187 | W97: =Раздел2!H97 -> 0 | X97: =Раздел2!I97 -> 0 | Y97: =Раздел2!J97 -> 0 | Z97: =Раздел2!K97 -> 0
B98: Прыжки | C98: 91 | D98: 0 | E98: 0 | F98: 0 | G98: 0 | H98: 0 | I98: 0 | J98: 0 | K98: 0 | L98: 0 | M98: 0 | N98: 0 | O98: 0 | P98: 0 | Q98: 0 | R98: 0 | U98: =Раздел2!F98 -> 0 | V98: =Раздел2!F98 -> 0 | W98: =Раздел2!H98 -> 0 | X98: =Раздел2!I98 -> 0 | Y98: =Раздел2!J98 -> 0 | Z98: =Раздел2!K98 -> 0
B99: Метания | C99: 92 | D99: 0 | E99: 0 | F99: 0 | G99: 0 | H99: 0 | I99: 0 | J99: 0 | K99: 0 | L99: 0 | M99: 0 | N99: 0 | O99: 0 | P99: 0 | Q99: 0 | R99: 0 | U99: =Раздел2!F99 -> 0 | V99: =Раздел2!F99 -> 0 | W99: =Раздел2!H99 -> 0 | X99: =Раздел2!I99 -> 0 | Y99: =Раздел2!J99 -> 0 | Z99: =Раздел2!K99 -> 0
B100: Спортивная ходьба | C100: 93 | D100: 0 | E100: 0 | F100: 0 | G100: 0 | H100: 0 | I100: 0 | J100: 0 | K100: 0 | L100: 0 | M100: 0 | N100: 0 | O100: 0 | P100: 0 | Q100: 0 | R100: 0 | U100: =Раздел2!F100 -> 0 | V100: =Раздел2!F100 -> 0 | W100: =Раздел2!H100 -> 0 | X100: =Раздел2!I100 -> 0 | Y100: =Раздел2!J100 -> 0 | Z100: =Раздел2!K100 -> 0
B101: Лыжное двоеборье | C101: 94 | D101: 0 | E101: 0 | F101: 0 | G101: 0 | H101: 0 | I101: 0 | J101: 0 | K101: 0 | L101: 0 | M101: 0 | N101: 0 | O101: 0 | P101: 0 | Q101: 0 | R101: 0 | U101: =Раздел2!F101 -> 0 | V101: =Раздел2!F101 -> 0 | W101: =Раздел2!H101 -> 0 | X101: =Раздел2!I101 -> 0 | Y101: =Раздел2!J101 -> 0 | Z101: =Раздел2!K101 -> 0
B102: Лыжные гонки | C102: 95 | D102: 0 | E102: 0 | F102: 0 | G102: 0 | H102: 0 | I102: 0 | J102: 0 | K102: 0 | L102: 0 | M102: 0 | N102: 0 | O102: 0 | P102: 0 | Q102: 0 | R102: 0 | U102: =Раздел2!F102 -> 0 | V102: =Раздел2!F102 -> 0 | W102: =Раздел2!H102 -> 0 | X102: =Раздел2!I102 -> 0 | Y102: =Раздел2!J102 -> 0 | Z102: =Раздел2!K102 -> 0
B103: Мас-рестлинг | C103: 96 | D103: 0 | E103: 0 | F103: 0 | G103: 0 | H103: 0 | I103: 0 | J103: 0 | K103: 0 | L103: 0 | M103: 0 | N103: 0 | O103: 0 | P103: 0 | Q103: 0 | R103: 0 | U103: =Раздел2!F103 -> 0 | V103: =Раздел2!F103 -> 0 | W103: =Раздел2!H103 -> 0 | X103: =Раздел2!I103 -> 0 | Y103: =Раздел2!J103 -> 0 | Z103: =Раздел2!K103 -> 0
B104: Международное военно-спортивное многоборье | C104: 97 | D104: 0 | E104: 0 | F104: 0 | G104: 0 | H104: 0 | I104: 0 | J104: 0 | K104: 0 | L104: 0 | M104: 0 | N104: 0 | O104: 0 | P104: 0 | Q104: 0 | R104: 0 | U104: =Раздел2!F104 -> 0 | V104: =Раздел2!F104 -> 0 | W104: =Раздел2!H104 -> 0 | X104: =Раздел2!I104 -> 0 | Y104: =Раздел2!J104 -> 0 | Z104: =Раздел2!K104 -> 0
B105: Многоборье кинологов | C105: 98 | D105: 0 | E105: 0 | F105: 0 | G105: 0 | H105: 0 | I105: 0 | J105: 0 | K105: 0 | L105: 0 | M105: 0 | N105: 0 | O105: 0 | P105: 0 | Q105: 0 | R105: 0 | U105: =Раздел2!F105 -> 0 | V105: =Раздел2!F105 -> 0 | W105: =Раздел2!H105 -> 0 | X105: =Раздел2!I105 -> 0 | Y105: =Раздел2!J105 -> 0 | Z105: =Раздел2!K105 -> 0
B106: Многоборье спасателей МЧС России | C106: 99 | D106: 0 | E106: 0 | F106: 0 | G106: 0 | H106: 0 | I106: 0 | J106: 0 | K106: 0 | L106: 0 | M106: 0 | N106: 0 | O106: 0 | P106: 0 | Q106: 0 | R106: 0 | U106: =Раздел2!F106 -> 0 | V106: =Раздел2!F106 -> 0 | W106: =Раздел2!H106 -> 0 | X106: =Раздел2!I106 -> 0 | Y106: =Раздел2!J106 -> 0 | Z106: =Раздел2!K106 -> 0
B107: Морское многоборье | C107: 100 | D107: 0 | E107: 0 | F107: 0 | G107: 0 | H107: 0 | I107: 0 | J107: 0 | K107: 0 | L107: 0 | M107: 0 | N107: 0 | O107: 0 | P107: 0 | Q107: 0 | R107: 0 | U107: =Раздел2!F107 -> 0 | V107: =Раздел2!F107 -> 0 | W107: =Раздел2!H107 -> 0 | X107: =Раздел2!I107 -> 0 | Y107: =Раздел2!J107 -> 0 | Z107: =Раздел2!K107 -> 0
B108: Мотоциклетный спорт | C108: 101 | D108: 0 | E108: 0 | F108: 0 | G108: 0 | H108: 0 | I108: 0 | J108: 0 | K108: 0 | L108: 0 | M108: 0 | N108: 0 | O108: 0 | P108: 0 | Q108: 0 | R108: 0 | U108: =Раздел2!F108 -> 0 | V108: =Раздел2!F108 -> 0 | W108: =Раздел2!H108 -> 0 | X108: =Раздел2!I108 -> 0 | Y108: =Раздел2!J108 -> 0 | Z108: =Раздел2!K108 -> 0
B109: Настольный теннис | C109: 102 | D109: 0 | E109: 0 | F109: 0 | G109: 0 | H109: 0 | I109: 0 | J109: 0 | K109: 0 | L109: 0 | M109: 0 | N109: 0 | O109: 0 | P109: 0 | Q109: 0 | R109: 0 | U109: =Раздел2!F109 -> 0 | V109: =Раздел2!F109 -> 0 | W109: =Раздел2!H109 -> 0 | X109: =Раздел2!I109 -> 0 | Y109: =Раздел2!J109 -> 0 | Z109: =Раздел2!K109 -> 0
B110: Парашютный спорт | C110: 103 | D110: 0 | E110: 0 | F110: 0 | G110: 0 | H110: 0 | I110: 0 | J110: 0 | K110: 0 | L110: 0 | M110: 0 | N110: 0 | O110: 0 | P110: 0 | Q110: 0 | R110: 0 | U110: =Раздел2!F110 -> 0 | V110: =Раздел2!F110 -> 0 | W110: =Раздел2!H110 -> 0 | X110: =Раздел2!I110 -> 0 | Y110: =Раздел2!J110 -> 0 | Z110: =Раздел2!K110 -> 0
B111: Парусный спорт | C111: 104 | D111: 0 | E111: 0 | F111: 0 | G111: 0 | H111: 0 | I111: 0 | J111: 0 | K111: 0 | L111: 0 | M111: 0 | N111: 0 | O111: 0 | P111: 0 | Q111: 0 | R111: 0 | U111: =Раздел2!F111 -> 0 | V111: =Раздел2!F111 -> 0 | W111: =Раздел2!H111 -> 0 | X111: =Раздел2!I111 -> 0 | Y111: =Раздел2!J111 -> 0 | Z111: =Раздел2!K111 -> 0
B112: Пауэрлифтинг | C112: 105 | D112: 0 | E112: 0 | F112: 0 | G112: 0 | H112: 0 | I112: 0 | J112: 0 | K112: 0 | L112: 0 | M112: 0 | N112: 0 | O112: 0 | P112: 0 | Q112: 0 | R112: 0 | U112: =Раздел2!F112 -> 0 | V112: =Раздел2!F112 -> 0 | W112: =Раздел2!H112 -> 0 | X112: =Раздел2!I112 -> 0 | Y112: =Раздел2!J112 -> 0 | Z112: =Раздел2!K112 -> 0
B113: Перетягивание каната | C113: 106 | D113: 0 | E113: 0 | F113: 0 | G113: 0 | H113: 0 | I113: 0 | J113: 0 | K113: 0 | L113: 0 | M113: 0 | N113: 0 | O113: 0 | P113: 0 | Q113: 0 | R113: 0 | U113: =Раздел2!F113 -> 0 | V113: =Раздел2!F113 -> 0 | W113: =Раздел2!H113 -> 0 | X113: =Раздел2!I113 -> 0 | Y113: =Раздел2!J113 -> 0 | Z113: =Раздел2!K113 -> 0
B114: Петанк | C114: 107 | D114: 0 | E114: 0 | F114: 0 | G114: 0 | H114: 0 | I114: 0 | J114: 0 | K114: 0 | L114: 0 | M114: 0 | N114: 0 | O114: 0 | P114: 0 | Q114: 0 | R114: 0 | U114: =Раздел2!F114 -> 0 | V114: =Раздел2!F114 -> 0 | W114: =Раздел2!H114 -> 0 | X114: =Раздел2!I114 -> 0 | Y114: =Раздел2!J114 -> 0 | Z114: =Раздел2!K114 -> 0
B115: Плавание - всего | C115: 108 | D115: 0 | E115: =SUM(E116:E117) -> 0 | F115: =SUM(F116:F117) -> 0 | G115: =SUM(G116:G117) -> 0 | H115: =SUM(H116:H117) -> 0 | I115: 0 | J115: =SUM(J116:J117) -> 0 | K115: =SUM(K116:K117) -> 0 | L115: =SUM(L116:L117) -> 0 | M115: =SUM(M116:M117) -> 0 | N115: 0 | O115: =SUM(O116:O117) -> 0 | P115: =SUM(P116:P117) -> 0 | Q115: =SUM(Q116:Q117) -> 0 | R115: =SUM(R116:R117) -> 0 | U115: =Раздел2!F115 -> 0 | V115: =Раздел2!F115 -> 0 | W115: =Раздел2!H115 -> 0 | X115: =Раздел2!I115 -> 0 | Y115: =Раздел2!J115 -> 0 | Z115: =Раздел2!K115 -> 0
B116: в том числе: Плавание | C116: 109 | D116: 0 | E116: 0 | F116: 0 | G116: 0 | H116: 0 | I116: 0 | J116: 0 | K116: 0 | L116: 0 | M116: 0 | N116: 0 | O116: 0 | P116: 0 | Q116: 0 | R116: 0 | U116: =Раздел2!F116 -> 0 | V116: =Раздел2!F116 -> 0 | W116: =Раздел2!H116 -> 0 | X116: =Раздел2!I116 -> 0 | Y116: =Раздел2!J116 -> 0 | Z116: =Раздел2!K116 -> 0
B117: Открытая вода | C117: 110 | D117: 0 | E117: 0 | F117: 0 | G117: 0 | H117: 0 | I117: 0 | J117: 0 | K117: 0 | L117: 0 | M117: 0 | N117: 0 | O117: 0 | P117: 0 | Q117: 0 | R117: 0 | U117: =Раздел2!F117 -> 0 | V117: =Раздел2!F117 -> 0 | W117: =Раздел2!H117 -> 0 | X117: =Раздел2!I117 -> 0 | Y117: =Раздел2!J117 -> 0 | Z117: =Раздел2!K117 -> 0
B118: Планерный спорт | C118: 111 | D118: 0 | E118: 0 | F118: 0 | G118: 0 | H118: 0 | I118: 0 | J118: 0 | K118: 0 | L118: 0 | M118: 0 | N118: 0 | O118: 0 | P118: 0 | Q118: 0 | R118: 0 | U118: =Раздел2!F118 -> 0 | V118: =Раздел2!F118 -> 0 | W118: =Раздел2!H118 -> 0 | X118: =Раздел2!I118 -> 0 | Y118: =Раздел2!J118 -> 0 | Z118: =Раздел2!K118 -> 0
B119: Подводный спорт | C119: 112 | D119: 0 | E119: 0 | F119: 0 | G119: 0 | H119: 0 | I119: 0 | J119: 0 | K119: 0 | L119: 0 | M119: 0 | N119: 0 | O119: 0 | P119: 0 | Q119: 0 | R119: 0 | U119: =Раздел2!F119 -> 0 | V119: =Раздел2!F119 -> 0 | W119: =Раздел2!H119 -> 0 | X119: =Раздел2!I119 -> 0 | Y119: =Раздел2!J119 -> 0 | Z119: =Раздел2!K119 -> 0
B120: Пожарно-прикладной спорт | C120: 113 | D120: 0 | E120: 0 | F120: 0 | G120: 0 | H120: 0 | I120: 0 | J120: 0 | K120: 0 | L120: 0 | M120: 0 | N120: 0 | O120: 0 | P120: 0 | Q120: 0 | R120: 0 | U120: =Раздел2!F120 -> 0 | V120: =Раздел2!F120 -> 0 | W120: =Раздел2!H120 -> 0 | X120: =Раздел2!I120 -> 0 | Y120: =Раздел2!J120 -> 0 | Z120: =Раздел2!K120 -> 0
B121: Полиатлон | C121: 114 | D121: 0 | E121: 0 | F121: 0 | G121: 0 | H121: 0 | I121: 0 | J121: 0 | K121: 0 | L121: 0 | M121: 0 | N121: 0 | O121: 0 | P121: 0 | Q121: 0 | R121: 0 | U121: =Раздел2!F121 -> 0 | V121: =Раздел2!F121 -> 0 | W121: =Раздел2!H121 -> 0 | X121: =Раздел2!I121 -> 0 | Y121: =Раздел2!J121 -> 0 | Z121: =Раздел2!K121 -> 0
B122: Практическая стрельба | C122: 115 | D122: 0 | E122: 0 | F122: 0 | G122: 0 | H122: 0 | I122: 0 | J122: 0 | K122: 0 | L122: 0 | M122: 0 | N122: 0 | O122: 0 | P122: 0 | Q122: 0 | R122: 0 | U122: =Раздел2!F122 -> 0 | V122: =Раздел2!F122 -> 0 | W122: =Раздел2!H122 -> 0 | X122: =Раздел2!I122 -> 0 | Y122: =Раздел2!J122 -> 0 | Z122: =Раздел2!K122 -> 0
B123: Прыжки в воду - всего | C123: 116 | D123: 0 | E123: =SUM(E124:E125) -> 0 | F123: =SUM(F124:F125) -> 0 | G123: =SUM(G124:G125) -> 0 | H123: =SUM(H124:H125) -> 0 | I123: 0 | J123: =SUM(J124:J125) -> 0 | K123: =SUM(K124:K125) -> 0 | L123: =SUM(L124:L125) -> 0 | M123: =SUM(M124:M125) -> 0 | N123: 0 | O123: =SUM(O124:O125) -> 0 | P123: =SUM(P124:P125) -> 0 | Q123: =SUM(Q124:Q125) -> 0 | R123: =SUM(R124:R125) -> 0 | U123: =Раздел2!F123 -> 0 | V123: =Раздел2!F123 -> 0 | W123: =Раздел2!H123 -> 0 | X123: =Раздел2!I123 -> 0 | Y123: =Раздел2!J123 -> 0 | Z123: =Раздел2!K123 -> 0
B124: в том числе: Прыжки в воду | C124: 117 | D124: 0 | E124: 0 | F124: 0 | G124: 0 | H124: 0 | I124: 0 | J124: 0 | K124: 0 | L124: 0 | M124: 0 | N124: 0 | O124: 0 | P124: 0 | Q124: 0 | R124: 0 | U124: =Раздел2!F124 -> 0 | V124: =Раздел2!F124 -> 0 | W124: =Раздел2!H124 -> 0 | X124: =Раздел2!I124 -> 0 | Y124: =Раздел2!J124 -> 0 | Z124: =Раздел2!K124 -> 0
B125: Прыжки в открытый водоем | C125: 118 | D125: 0 | E125: 0 | F125: 0 | G125: 0 | H125: 0 | I125: 0 | J125: 0 | K125: 0 | L125: 0 | M125: 0 | N125: 0 | O125: 0 | P125: 0 | Q125: 0 | R125: 0 | U125: =Раздел2!F125 -> 0 | V125: =Раздел2!F125 -> 0 | W125: =Раздел2!H125 -> 0 | X125: =Раздел2!I125 -> 0 | Y125: =Раздел2!J125 -> 0 | Z125: =Раздел2!K125 -> 0
B126: Прыжки на батуте - всего | C126: 119 | D126: 0 | E126: =SUM(E127:E130) -> 0 | F126: =SUM(F127:F130) -> 0 | G126: =SUM(G127:G130) -> 0 | H126: =SUM(H127:H130) -> 0 | I126: 0 | J126: =SUM(J127:J130) -> 0 | K126: =SUM(K127:K130) -> 0 | L126: =SUM(L127:L130) -> 0 | M126: =SUM(M127:M130) -> 0 | N126: 0 | O126: =SUM(O127:O130) -> 0 | P126: =SUM(P127:P130) -> 0 | Q126: =SUM(Q127:Q130) -> 0 | R126: =SUM(R127:R130) -> 0 | U126: =Раздел2!F126 -> 0 | V126: =Раздел2!F126 -> 0 | W126: =Раздел2!H126 -> 0 | X126: =Раздел2!I126 -> 0 | Y126: =Раздел2!J126 -> 0 | Z126: =Раздел2!K126 -> 0
B127: в том числе: Акробатическая дорожка | C127: 120 | D127: 0 | E127: 0 | F127: 0 | G127: 0 | H127: 0 | I127: 0 | J127: 0 | K127: 0 | L127: 0 | M127: 0 | N127: 0 | O127: 0 | P127: 0 | Q127: 0 | R127: 0 | U127: =Раздел2!F127 -> 0 | V127: =Раздел2!F127 -> 0 | W127: =Раздел2!H127 -> 0 | X127: =Раздел2!I127 -> 0 | Y127: =Раздел2!J127 -> 0 | Z127: =Раздел2!K127 -> 0
B128: Двойной минитрамп | C128: 121 | D128: 0 | E128: 0 | F128: 0 | G128: 0 | H128: 0 | I128: 0 | J128: 0 | K128: 0 | L128: 0 | M128: 0 | N128: 0 | O128: 0 | P128: 0 | Q128: 0 | R128: 0 | U128: =Раздел2!F128 -> 0 | V128: =Раздел2!F128 -> 0 | W128: =Раздел2!H128 -> 0 | X128: =Раздел2!I128 -> 0 | Y128: =Раздел2!J128 -> 0 | Z128: =Раздел2!K128 -> 0
B129: Индивидуальные прыжки | C129: 122 | D129: 0 | E129: 0 | F129: 0 | G129: 0 | H129: 0 | I129: 0 | J129: 0 | K129: 0 | L129: 0 | M129: 0 | N129: 0 | O129: 0 | P129: 0 | Q129: 0 | R129: 0 | U129: =Раздел2!F129 -> 0 | V129: =Раздел2!F129 -> 0 | W129: =Раздел2!H129 -> 0 | X129: =Раздел2!I129 -> 0 | Y129: =Раздел2!J129 -> 0 | Z129: =Раздел2!K129 -> 0
B130: Синхронные прыжки | C130: 123 | D130: 0 | E130: 0 | F130: 0 | G130: 0 | H130: 0 | I130: 0 | J130: 0 | K130: 0 | L130: 0 | M130: 0 | N130: 0 | O130: 0 | P130: 0 | Q130: 0 | R130: 0 | U130: =Раздел2!F130 -> 0 | V130: =Раздел2!F130 -> 0 | W130: =Раздел2!H130 -> 0 | X130: =Раздел2!I130 -> 0 | Y130: =Раздел2!J130 -> 0 | Z130: =Раздел2!K130 -> 0
B131: Прыжки на лыжах с трамплина | C131: 124 | D131: 0 | E131: 0 | F131: 0 | G131: 0 | H131: 0 | I131: 0 | J131: 0 | K131: 0 | L131: 0 | M131: 0 | N131: 0 | O131: 0 | P131: 0 | Q131: 0 | R131: 0 | U131: =Раздел2!F131 -> 0 | V131: =Раздел2!F131 -> 0 | W131: =Раздел2!H131 -> 0 | X131: =Раздел2!I131 -> 0 | Y131: =Раздел2!J131 -> 0 | Z131: =Раздел2!K131 -> 0
B132: Пулевая стрельба - всего | C132: 125 | D132: 0 | E132: =SUM(E133:E137) -> 0 | F132: =SUM(F133:F137) -> 0 | G132: =SUM(G133:G137) -> 0 | H132: =SUM(H133:H137) -> 0 | I132: 0 | J132: =SUM(J133:J137) -> 0 | K132: =SUM(K133:K137) -> 0 | L132: =SUM(L133:L137) -> 0 | M132: =SUM(M133:M137) -> 0 | N132: 0 | O132: =SUM(O133:O137) -> 0 | P132: =SUM(P133:P137) -> 0 | Q132: =SUM(Q133:Q137) -> 0 | R132: =SUM(R133:R137) -> 0 | U132: =Раздел2!F132 -> 0 | V132: =Раздел2!F132 -> 0 | W132: =Раздел2!H132 -> 0 | X132: =Раздел2!I132 -> 0 | Y132: =Раздел2!J132 -> 0 | Z132: =Раздел2!K132 -> 0
B133: в том числе: Пневматическая винтовка | C133: 126 | D133: 0 | E133: 0 | F133: 0 | G133: 0 | H133: 0 | I133: 0 | J133: 0 | K133: 0 | L133: 0 | M133: 0 | N133: 0 | O133: 0 | P133: 0 | Q133: 0 | R133: 0 | U133: =Раздел2!F133 -> 0 | V133: =Раздел2!F133 -> 0 | W133: =Раздел2!H133 -> 0 | X133: =Раздел2!I133 -> 0 | Y133: =Раздел2!J133 -> 0 | Z133: =Раздел2!K133 -> 0
B134: Пневматический пистолет | C134: 127 | D134: 0 | E134: 0 | F134: 0 | G134: 0 | H134: 0 | I134: 0 | J134: 0 | K134: 0 | L134: 0 | M134: 0 | N134: 0 | O134: 0 | P134: 0 | Q134: 0 | R134: 0 | U134: =Раздел2!F134 -> 0 | V134: =Раздел2!F134 -> 0 | W134: =Раздел2!H134 -> 0 | X134: =Раздел2!I134 -> 0 | Y134: =Раздел2!J134 -> 0 | Z134: =Раздел2!K134 -> 0
B135: Малокалиберная винтовка | C135: 128 | D135: 0 | E135: 0 | F135: 0 | G135: 0 | H135: 0 | I135: 0 | J135: 0 | K135: 0 | L135: 0 | M135: 0 | N135: 0 | O135: 0 | P135: 0 | Q135: 0 | R135: 0 | U135: =Раздел2!F135 -> 0 | V135: =Раздел2!F135 -> 0 | W135: =Раздел2!H135 -> 0 | X135: =Раздел2!I135 -> 0 | Y135: =Раздел2!J135 -> 0 | Z135: =Раздел2!K135 -> 0
B136: Малокалиберный пистолет | C136: 129 | D136: 0 | E136: 0 | F136: 0 | G136: 0 | H136: 0 | I136: 0 | J136: 0 | K136: 0 | L136: 0 | M136: 0 | N136: 0 | O136: 0 | P136: 0 | Q136: 0 | R136: 0 | U136: =Раздел2!F136 -> 0 | V136: =Раздел2!F136 -> 0 | W136: =Раздел2!H136 -> 0 | X136: =Раздел2!I136 -> 0 | Y136: =Раздел2!J136 -> 0 | Z136: =Раздел2!K136 -> 0
B137: Движущаяся мишень | C137: 130 | D137: =SUM(E137:H137) -> 0 | E137: 0 | F137: 0 | G137: 0 | H137: 0 | I137: =SUM(J137:M137) -> 0 | J137: 0 | K137: 0 | L137: 0 | M137: 0 | N137: =SUM(O137:R137) -> 0 | O137: 0 | P137: 0 | Q137: 0 | R137: 0 | U137: =Раздел2!F137 -> 0 | V137: =Раздел2!F137 -> 0 | W137: =Раздел2!H137 -> 0 | X137: =Раздел2!I137 -> 0 | Y137: =Раздел2!J137 -> 0 | Z137: =Раздел2!K137 -> 0
B138: Пэйнтбол | C138: 131 | D138: 0 | E138: 0 | F138: 0 | G138: 0 | H138: 0 | I138: 0 | J138: 0 | K138: 0 | L138: 0 | M138: 0 | N138: 0 | O138: 0 | P138: 0 | Q138: 0 | R138: 0 | U138: =Раздел2!F138 -> 0 | V138: =Раздел2!F138 -> 0 | W138: =Раздел2!H138 -> 0 | X138: =Раздел2!I138 -> 0 | Y138: =Раздел2!J138 -> 0 | Z138: =Раздел2!K138 -> 0
B139: Радиоспорт | C139: 132 | D139: 0 | E139: 0 | F139: 0 | G139: 0 | H139: 0 | I139: 0 | J139: 0 | K139: 0 | L139: 0 | M139: 0 | N139: 0 | O139: 0 | P139: 0 | Q139: 0 | R139: 0 | U139: =Раздел2!F139 -> 0 | V139: =Раздел2!F139 -> 0 | W139: =Раздел2!H139 -> 0 | X139: =Раздел2!I139 -> 0 | Y139: =Раздел2!J139 -> 0 | Z139: =Раздел2!K139 -> 0
B140: Рафтинг | C140: 133 | D140: 0 | E140: 0 | F140: 0 | G140: 0 | H140: 0 | I140: 0 | J140: 0 | K140: 0 | L140: 0 | M140: 0 | N140: 0 | O140: 0 | P140: 0 | Q140: 0 | R140: 0 | U140: =Раздел2!F140 -> 0 | V140: =Раздел2!F140 -> 0 | W140: =Раздел2!H140 -> 0 | X140: =Раздел2!I140 -> 0 | Y140: =Раздел2!J140 -> 0 | Z140: =Раздел2!K140 -> 0
B141: Регби - всего | C141: 134 | D141: 0 | E141: =SUM(E142:E145) -> 0 | F141: =SUM(F142:F145) -> 0 | G141: =SUM(G142:G145) -> 0 | H141: =SUM(H142:H145) -> 0 | I141: 0 | J141: =SUM(J142:J145) -> 0 | K141: =SUM(K142:K145) -> 0 | L141: =SUM(L142:L145) -> 0 | M141: =SUM(M142:M145) -> 0 | N141: 0 | O141: =SUM(O142:O145) -> 0 | P141: =SUM(P142:P145) -> 0 | Q141: =SUM(Q142:Q145) -> 0 | R141: =SUM(R142:R145) -> 0 | U141: =Раздел2!F141 -> 0 | V141: =Раздел2!F141 -> 0 | W141: =Раздел2!H141 -> 0 | X141: =Раздел2!I141 -> 0 | Y141: =Раздел2!J141 -> 0 | Z141: =Раздел2!K141 -> 0
B142: в том числе: Регби | C142: 135 | D142: 0 | E142: 0 | F142: 0 | G142: 0 | H142: 0 | I142: 0 | J142: 0 | K142: 0 | L142: 0 | M142: 0 | N142: 0 | O142: 0 | P142: 0 | Q142: 0 | R142: 0 | U142: =Раздел2!F142 -> 0 | V142: =Раздел2!F142 -> 0 | W142: =Раздел2!H142 -> 0 | X142: =Раздел2!I142 -> 0 | Y142: =Раздел2!J142 -> 0 | Z142: =Раздел2!K142 -> 0
B143: Регби 7 (муж.) | C143: 136 | D143: 0 | E143: 0 | F143: 0 | G143: 0 | H143: 0 | I143: 0 | J143: 0 | K143: 0 | L143: 0 | M143: 0 | N143: 0 | O143: 0 | P143: 0 | Q143: 0 | R143: 0 | U143: =Раздел2!F143 -> 0 | V143: =Раздел2!F143 -> 0 | W143: =Раздел2!H143 -> 0 | X143: =Раздел2!I143 -> 0 | Y143: =Раздел2!J143 -> 0 | Z143: =Раздел2!K143 -> 0
B144: Регби 7 (жен.) | C144: 137 | D144: 0 | E144: 0 | F144: 0 | G144: 0 | H144: 0 | I144: 0 | J144: 0 | K144: 0 | L144: 0 | M144: 0 | N144: 0 | O144: 0 | P144: 0 | Q144: 0 | R144: 0 | U144: =Раздел2!F144 -> 0 | V144: =Раздел2!F144 -> 0 | W144: =Раздел2!H144 -> 0 | X144: =Раздел2!I144 -> 0 | Y144: =Раздел2!J144 -> 0 | Z144: =Раздел2!K144 -> 0
B145: Регби - пляжное | C145: 138 | D145: 0 | E145: 0 | F145: 0 | G145: 0 | H145: 0 | I145: 0 | J145: 0 | K145: 0 | L145: 0 | M145: 0 | N145: 0 | O145: 0 | P145: 0 | Q145: 0 | R145: 0 | U145: =Раздел2!F145 -> 0 | V145: =Раздел2!F145 -> 0 | W145: =Раздел2!H145 -> 0 | X145: =Раздел2!I145 -> 0 | Y145: =Раздел2!J145 -> 0 | Z145: =Раздел2!K145 -> 0
B146: Регбол | C146: 139 | D146: 0 | E146: 0 | F146: 0 | G146: 0 | H146: 0 | I146: 0 | J146: 0 | K146: 0 | L146: 0 | M146: 0 | N146: 0 | O146: 0 | P146: 0 | Q146: 0 | R146: 0 | U146: =Раздел2!F146 -> 0 | V146: =Раздел2!F146 -> 0 | W146: =Раздел2!H146 -> 0 | X146: =Раздел2!I146 -> 0 | Y146: =Раздел2!J146 -> 0 | Z146: =Раздел2!K146 -> 0
B147: Роллер спорт | C147: 140 | D147: 0 | E147: 0 | F147: 0 | G147: 0 | H147: 0 | I147: 0 | J147: 0 | K147: 0 | L147: 0 | M147: 0 | N147: 0 | O147: 0 | P147: 0 | Q147: 0 | R147: 0 | U147: =Раздел2!F147 -> 0 | V147: =Раздел2!F147 -> 0 | W147: =Раздел2!H147 -> 0 | X147: =Раздел2!I147 -> 0 | Y147: =Раздел2!J147 -> 0 | Z147: =Раздел2!K147 -> 0
B148: Рукопашный бой | C148: 141 | D148: 0 | E148: 0 | F148: 0 | G148: 0 | H148: 0 | I148: 0 | J148: 0 | K148: 0 | L148: 0 | M148: 0 | N148: 0 | O148: 0 | P148: 0 | Q148: 0 | R148: 0 | U148: =Раздел2!F148 -> 0 | V148: =Раздел2!F148 -> 0 | W148: =Раздел2!H148 -> 0 | X148: =Раздел2!I148 -> 0 | Y148: =Раздел2!J148 -> 0 | Z148: =Раздел2!K148 -> 0
B149: Рыболовный спорт | C149: 142 | D149: 0 | E149: 0 | F149: 0 | G149: 0 | H149: 0 | I149: 0 | J149: 0 | K149: 0 | L149: 0 | M149: 0 | N149: 0 | O149: 0 | P149: 0 | Q149: 0 | R149: 0 | U149: =Раздел2!F149 -> 0 | V149: =Раздел2!F149 -> 0 | W149: =Раздел2!H149 -> 0 | X149: =Раздел2!I149 -> 0 | Y149: =Раздел2!J149 -> 0 | Z149: =Раздел2!K149 -> 0
B150: Сават | C150: 143 | D150: 0 | E150: 0 | F150: 0 | G150: 0 | H150: 0 | I150: 0 | J150: 0 | K150: 0 | L150: 0 | M150: 0 | N150: 0 | O150: 0 | P150: 0 | Q150: 0 | R150: 0 | U150: =Раздел2!F150 -> 0 | V150: =Раздел2!F150 -> 0 | W150: =Раздел2!H150 -> 0 | X150: =Раздел2!I150 -> 0 | Y150: =Раздел2!J150 -> 0 | Z150: =Раздел2!K150 -> 0
B151: Самбо | C151: 144 | D151: 0 | E151: 0 | F151: 0 | G151: 0 | H151: 0 | I151: 0 | J151: 0 | K151: 0 | L151: 0 | M151: 0 | N151: 0 | O151: 0 | P151: 0 | Q151: 0 | R151: 0 | U151: =Раздел2!F151 -> 0 | V151: =Раздел2!F151 -> 0 | W151: =Раздел2!H151 -> 0 | X151: =Раздел2!I151 -> 0 | Y151: =Раздел2!J151 -> 0 | Z151: =Раздел2!K151 -> 0
B152: Самолетный спорт | C152: 145 | D152: 0 | E152: 0 | F152: 0 | G152: 0 | H152: 0 | I152: 0 | J152: 0 | K152: 0 | L152: 0 | M152: 0 | N152: 0 | O152: 0 | P152: 0 | Q152: 0 | R152: 0 | U152: =Раздел2!F152 -> 0 | V152: =Раздел2!F152 -> 0 | W152: =Раздел2!H152 -> 0 | X152: =Раздел2!I152 -> 0 | Y152: =Раздел2!J152 -> 0 | Z152: =Раздел2!K152 -> 0
B153: Санный спорт | C153: 146 | D153: 0 | E153: 0 | F153: 0 | G153: 0 | H153: 0 | I153: 0 | J153: 0 | K153: 0 | L153: 0 | M153: 0 | N153: 0 | O153: 0 | P153: 0 | Q153: 0 | R153: 0 | U153: =Раздел2!F153 -> 0 | V153: =Раздел2!F153 -> 0 | W153: =Раздел2!H153 -> 0 | X153: =Раздел2!I153 -> 0 | Y153: =Раздел2!J153 -> 0 | Z153: =Раздел2!K153 -> 0
B154: Северное многоборье | C154: 147 | D154: 0 | E154: 0 | F154: 0 | G154: 0 | H154: 0 | I154: 0 | J154: 0 | K154: 0 | L154: 0 | M154: 0 | N154: 0 | O154: 0 | P154: 0 | Q154: 0 | R154: 0 | U154: =Раздел2!F154 -> 0 | V154: =Раздел2!F154 -> 0 | W154: =Раздел2!H154 -> 0 | X154: =Раздел2!I154 -> 0 | Y154: =Раздел2!J154 -> 0 | Z154: =Раздел2!K154 -> 0
B155: Серфинг | C155: 148 | D155: 0 | E155: 0 | F155: 0 | G155: 0 | H155: 0 | I155: 0 | J155: 0 | K155: 0 | L155: 0 | M155: 0 | N155: 0 | O155: 0 | P155: 0 | Q155: 0 | R155: 0 | U155: =Раздел2!F155 -> 0 | V155: =Раздел2!F155 -> 0 | W155: =Раздел2!H155 -> 0 | X155: =Раздел2!I155 -> 0 | Y155: =Раздел2!J155 -> 0 | Z155: =Раздел2!K155 -> 0
B156: Синхронное плавание | C156: 149 | D156: 0 | E156: 0 | F156: 0 | G156: 0 | H156: 0 | I156: 0 | J156: 0 | K156: 0 | L156: 0 | M156: 0 | N156: 0 | O156: 0 | P156: 0 | Q156: 0 | R156: 0 | U156: =Раздел2!F156 -> 0 | V156: =Раздел2!F156 -> 0 | W156: =Раздел2!H156 -> 0 | X156: =Раздел2!I156 -> 0 | Y156: =Раздел2!J156 -> 0 | Z156: =Раздел2!K156 -> 0
B157: Скалолазание | C157: 150 | D157: 0 | E157: 0 | F157: 0 | G157: 0 | H157: 0 | I157: 0 | J157: 0 | K157: 0 | L157: 0 | M157: 0 | N157: 0 | O157: 0 | P157: 0 | Q157: 0 | R157: 0 | U157: =Раздел2!F157 -> 0 | V157: =Раздел2!F157 -> 0 | W157: =Раздел2!H157 -> 0 | X157: =Раздел2!I157 -> 0 | Y157: =Раздел2!J157 -> 0 | Z157: =Раздел2!K157 -> 0
B158: Скейтбординг | C158: 151 | D158: 0 | E158: 0 | F158: 0 | G158: 0 | H158: 0 | I158: 0 | J158: 0 | K158: 0 | L158: 0 | M158: 0 | N158: 0 | O158: 0 | P158: 0 | Q158: 0 | R158: 0 | U158: =Раздел2!F158 -> 0 | V158: =Раздел2!F158 -> 0 | W158: =Раздел2!H158 -> 0 | X158: =Раздел2!I158 -> 0 | Y158: =Раздел2!J158 -> 0 | Z158: =Раздел2!K158 -> 0
B159: Сквош | C159: 152 | D159: 0 | E159: 0 | F159: 0 | G159: 0 | H159: 0 | I159: 0 | J159: 0 | K159: 0 | L159: 0 | M159: 0 | N159: 0 | O159: 0 | P159: 0 | Q159: 0 | R159: 0 | U159: =Раздел2!F159 -> 0 | V159: =Раздел2!F159 -> 0 | W159: =Раздел2!H159 -> 0 | X159: =Раздел2!I159 -> 0 | Y159: =Раздел2!J159 -> 0 | Z159: =Раздел2!K159 -> 0
B160: Служебно-прикладной спорт ФСО России | C160: 153 | D160: 0 | E160: 0 | F160: 0 | G160: 0 | H160: 0 | I160: 0 | J160: 0 | K160: 0 | L160: 0 | M160: 0 | N160: 0 | O160: 0 | P160: 0 | Q160: 0 | R160: 0 | U160: =Раздел2!F160 -> 0 | V160: =Раздел2!F160 -> 0 | W160: =Раздел2!H160 -> 0 | X160: =Раздел2!I160 -> 0 | Y160: =Раздел2!J160 -> 0 | Z160: =Раздел2!K160 -> 0
B161: Служебно-прикладной спорт ГФС России | C161: 154 | D161: 0 | E161: 0 | F161: 0 | G161: 0 | H161: 0 | I161: 0 | J161: 0 | K161: 0 | L161: 0 | M161: 0 | N161: 0 | O161: 0 | P161: 0 | Q161: 0 | R161: 0 | U161: =Раздел2!F161 -> 0 | V161: =Раздел2!F161 -> 0 | W161: =Раздел2!H161 -> 0 | X161: =Раздел2!I161 -> 0 | Y161: =Раздел2!J161 -> 0 | Z161: =Раздел2!K161 -> 0
B162: Служебно-прикладной спорт ФСКН России | C162: 155 | D162: 0 | E162: 0 | F162: 0 | G162: 0 | H162: 0 | I162: 0 | J162: 0 | K162: 0 | L162: 0 | M162: 0 | N162: 0 | O162: 0 | P162: 0 | Q162: 0 | R162: 0 | U162: =Раздел2!F162 -> 0 | V162: =Раздел2!F162 -> 0 | W162: =Раздел2!H162 -> 0 | X162: =Раздел2!I162 -> 0 | Y162: =Раздел2!J162 -> 0 | Z162: =Раздел2!K162 -> 0
B163: Служебно-прикладной спорт ФТС России | C163: 156 | D163: 0 | E163: 0 | F163: 0 | G163: 0 | H163: 0 | I163: 0 | J163: 0 | K163: 0 | L163: 0 | M163: 0 | N163: 0 | O163: 0 | P163: 0 | Q163: 0 | R163: 0 | U163: =Раздел2!F163 -> 0 | V163: =Раздел2!F163 -> 0 | W163: =Раздел2!H163 -> 0 | X163: =Раздел2!I163 -> 0 | Y163: =Раздел2!J163 -> 0 | Z163: =Раздел2!K163 -> 0
B164: Служебное двоеборье | C164: 157 | D164: 0 | E164: 0 | F164: 0 | G164: 0 | H164: 0 | I164: 0 | J164: 0 | K164: 0 | L164: 0 | M164: 0 | N164: 0 | O164: 0 | P164: 0 | Q164: 0 | R164: 0 | U164: =Раздел2!F164 -> 0 | V164: =Раздел2!F164 -> 0 | W164: =Раздел2!H164 -> 0 | X164: =Раздел2!I164 -> 0 | Y164: =Раздел2!J164 -> 0 | Z164: =Раздел2!K164 -> 0
B165: Служебное единоборство | C165: 158 | D165: 0 | E165: 0 | F165: 0 | G165: 0 | H165: 0 | I165: 0 | J165: 0 | K165: 0 | L165: 0 | M165: 0 | N165: 0 | O165: 0 | P165: 0 | Q165: 0 | R165: 0 | U165: =Раздел2!F165 -> 0 | V165: =Раздел2!F165 -> 0 | W165: =Раздел2!H165 -> 0 | X165: =Раздел2!I165 -> 0 | Y165: =Раздел2!J165 -> 0 | Z165: =Раздел2!K165 -> 0
B166: Служебное многоборье | C166: 159 | D166: 0 | E166: 0 | F166: 0 | G166: 0 | H166: 0 | I166: 0 | J166: 0 | K166: 0 | L166: 0 | M166: 0 | N166: 0 | O166: 0 | P166: 0 | Q166: 0 | R166: 0 | U166: =Раздел2!F166 -> 0 | V166: =Раздел2!F166 -> 0 | W166: =Раздел2!H166 -> 0 | X166: =Раздел2!I166 -> 0 | Y166: =Раздел2!J166 -> 0 | Z166: =Раздел2!K166 -> 0
B167: Служебное собаководство | C167: 160 | D167: 0 | E167: 0 | F167: 0 | G167: 0 | H167: 0 | I167: 0 | J167: 0 | K167: 0 | L167: 0 | M167: 0 | N167: 0 | O167: 0 | P167: 0 | Q167: 0 | R167: 0 | U167: =Раздел2!F167 -> 0 | V167: =Раздел2!F167 -> 0 | W167: =Раздел2!H167 -> 0 | X167: =Раздел2!I167 -> 0 | Y167: =Раздел2!J167 -> 0 | Z167: =Раздел2!K167 -> 0
B168: Служебный биатлон | C168: 161 | D168: 0 | E168: 0 | F168: 0 | G168: 0 | H168: 0 | I168: 0 | J168: 0 | K168: 0 | L168: 0 | M168: 0 | N168: 0 | O168: 0 | P168: 0 | Q168: 0 | R168: 0 | U168: =Раздел2!F168 -> 0 | V168: =Раздел2!F168 -> 0 | W168: =Раздел2!H168 -> 0 | X168: =Раздел2!I168 -> 0 | Y168: =Раздел2!J168 -> 0 | Z168: =Раздел2!K168 -> 0
B169: Спасательный спорт | C169: 162 | D169: 0 | E169: 0 | F169: 0 | G169: 0 | H169: 0 | I169: 0 | J169: 0 | K169: 0 | L169: 0 | M169: 0 | N169: 0 | O169: 0 | P169: 0 | Q169: 0 | R169: 0 | U169: =Раздел2!F169 -> 0 | V169: =Раздел2!F169 -> 0 | W169: =Раздел2!H169 -> 0 | X169: =Раздел2!I169 -> 0 | Y169: =Раздел2!J169 -> 0 | Z169: =Раздел2!K169 -> 0
B170: Стрельба из боевого ручного стрелкового оружия | C170: 163 | D170: 0 | E170: 0 | F170: 0 | G170: 0 | H170: 0 | I170: 0 | J170: 0 | K170: 0 | L170: 0 | M170: 0 | N170: 0 | O170: 0 | P170: 0 | Q170: 0 | R170: 0 | U170: =Раздел2!F170 -> 0 | V170: =Раздел2!F170 -> 0 | W170: =Раздел2!H170 -> 0 | X170: =Раздел2!I170 -> 0 | Y170: =Раздел2!J170 -> 0 | Z170: =Раздел2!K170 -> 0
B171: Стрельба из штатного или табельного оружия | C171: 164 | D171: 0 | E171: 0 | F171: 0 | G171: 0 | H171: 0 | I171: 0 | J171: 0 | K171: 0 | L171: 0 | M171: 0 | N171: 0 | O171: 0 | P171: 0 | Q171: 0 | R171: 0 | U171: =Раздел2!F171 -> 0 | V171: =Раздел2!F171 -> 0 | W171: =Раздел2!H171 -> 0 | X171: =Раздел2!I171 -> 0 | Y171: =Раздел2!J171 -> 0 | Z171: =Раздел2!K171 -> 0
B172: Смешанное боевое единоборство (ММА) | C172: 165 | D172: 0 | E172: 0 | F172: 0 | G172: 0 | H172: 0 | I172: 0 | J172: 0 | K172: 0 | L172: 0 | M172: 0 | N172: 0 | O172: 0 | P172: 0 | Q172: 0 | R172: 0 | U172: =Раздел2!F172 -> 0 | V172: =Раздел2!F172 -> 0 | W172: =Раздел2!H172 -> 0 | X172: =Раздел2!I172 -> 0 | Y172: =Раздел2!J172 -> 0 | Z172: =Раздел2!K172 -> 0
B173: Сноуборд | C173: 166 | D173: 0 | E173: 0 | F173: 0 | G173: 0 | H173: 0 | I173: 0 | J173: 0 | K173: 0 | L173: 0 | M173: 0 | N173: 0 | O173: 0 | P173: 0 | Q173: 0 | R173: 0 | U173: =Раздел2!F173 -> 0 | V173: =Раздел2!F173 -> 0 | W173: =Раздел2!H173 -> 0 | X173: =Раздел2!I173 -> 0 | Y173: =Раздел2!J173 -> 0 | Z173: =Раздел2!K173 -> 0
B174: Современное пятиборье | C174: 167 | D174: 0 | E174: 0 | F174: 0 | G174: 0 | H174: 0 | I174: 0 | J174: 0 | K174: 0 | L174: 0 | M174: 0 | N174: 0 | O174: 0 | P174: 0 | Q174: 0 | R174: 0 | U174: =Раздел2!F174 -> 0 | V174: =Раздел2!F174 -> 0 | W174: =Раздел2!H174 -> 0 | X174: =Раздел2!I174 -> 0 | Y174: =Раздел2!J174 -> 0 | Z174: =Раздел2!K174 -> 0
B175: Софтбол | C175: 168 | D175: 0 | E175: 0 | F175: 0 | G175: 0 | H175: 0 | I175: 0 | J175: 0 | K175: 0 | L175: 0 | M175: 0 | N175: 0 | O175: 0 | P175: 0 | Q175: 0 | R175: 0 | U175: =Раздел2!F175 -> 0 | V175: =Раздел2!F175 -> 0 | W175: =Раздел2!H175 -> 0 | X175: =Раздел2!I175 -> 0 | Y175: =Раздел2!J175 -> 0 | Z175: =Раздел2!K175 -> 0
B176: Спорт сверхлегкой авиации | C176: 169 | D176: 0 | E176: 0 | F176: 0 | G176: 0 | H176: 0 | I176: 0 | J176: 0 | K176: 0 | L176: 0 | M176: 0 | N176: 0 | O176: 0 | P176: 0 | Q176: 0 | R176: 0 | U176: =Раздел2!F176 -> 0 | V176: =Раздел2!F176 -> 0 | W176: =Раздел2!H176 -> 0 | X176: =Раздел2!I176 -> 0 | Y176: =Раздел2!J176 -> 0 | Z176: =Раздел2!K176 -> 0
B177: Спортивная акробатика | C177: 170 | D177: 0 | E177: 0 | F177: 0 | G177: 0 | H177: 0 | I177: 0 | J177: 0 | K177: 0 | L177: 0 | M177: 0 | N177: 0 | O177: 0 | P177: 0 | Q177: 0 | R177: 0 | U177: =Раздел2!F177 -> 0 | V177: =Раздел2!F177 -> 0 | W177: =Раздел2!H177 -> 0 | X177: =Раздел2!I177 -> 0 | Y177: =Раздел2!J177 -> 0 | Z177: =Раздел2!K177 -> 0
B178: Спортивная аэробика | C178: 171 | D178: 0 | E178: 0 | F178: 0 | G178: 0 | H178: 0 | I178: 0 | J178: 0 | K178: 0 | L178: 0 | M178: 0 | N178: 0 | O178: 0 | P178: 0 | Q178: 0 | R178: 0 | U178: =Раздел2!F178 -> 297 | V178: =Раздел2!F178 -> 297 | W178: =Раздел2!H178 -> 28 | X178: =Раздел2!I178 -> 11 | Y178: =Раздел2!J178 -> 0 | Z178: =Раздел2!K178 -> 0
B179: Спортивная борьба - всего | C179: 172 | D179: 0 | E179: =SUM(E180:E184) -> 0 | F179: =SUM(F180:F184) -> 0 | G179: =SUM(G180:G184) -> 0 | H179: =SUM(H180:H184) -> 0 | I179: 0 | J179: =SUM(J180:J184) -> 0 | K179: =SUM(K180:K184) -> 0 | L179: =SUM(L180:L184) -> 0 | M179: =SUM(M180:M184) -> 0 | N179: 0 | O179: =SUM(O180:O184) -> 0 | P179: =SUM(P180:P184) -> 0 | Q179: =SUM(Q180:Q184) -> 0 | R179: =SUM(R180:R184) -> 0 | U179: =Раздел2!F179 -> 0 | V179: =Раздел2!F179 -> 0 | W179: =Раздел2!H179 -> 0 | X179: =Раздел2!I179 -> 0 | Y179: =Раздел2!J179 -> 0 | Z179: =Раздел2!K179 -> 0
B180: в том числе: Вольная борьба | C180: 173 | D180: 0 | E180: 0 | F180: 0 | G180: 0 | H180: 0 | I180: 0 | J180: 0 | K180: 0 | L180: 0 | M180: 0 | N180: 0 | O180: 0 | P180: 0 | Q180: 0 | R180: 0 | U180: =Раздел2!F180 -> 0 | V180: =Раздел2!F180 -> 0 | W180: =Раздел2!H180 -> 0 | X180: =Раздел2!I180 -> 0 | Y180: =Раздел2!J180 -> 0 | Z180: =Раздел2!K180 -> 0
B181: Греко-римская борьба | C181: 174 | D181: 0 | E181: 0 | F181: 0 | G181: 0 | H181: 0 | I181: 0 | J181: 0 | K181: 0 | L181: 0 | M181: 0 | N181: 0 | O181: 0 | P181: 0 | Q181: 0 | R181: 0 | U181: =Раздел2!F181 -> 0 | V181: =Раздел2!F181 -> 0 | W181: =Раздел2!H181 -> 0 | X181: =Раздел2!I181 -> 0 | Y181: =Раздел2!J181 -> 0 | Z181: =Раздел2!K181 -> 0
B182: Грэпплинг | C182: 175 | D182: 0 | E182: 0 | F182: 0 | G182: 0 | H182: 0 | I182: 0 | J182: 0 | K182: 0 | L182: 0 | M182: 0 | N182: 0 | O182: 0 | P182: 0 | Q182: 0 | R182: 0 | U182: =Раздел2!F182 -> 0 | V182: =Раздел2!F182 -> 0 | W182: =Раздел2!H182 -> 0 | X182: =Раздел2!I182 -> 0 | Y182: =Раздел2!J182 -> 0 | Z182: =Раздел2!K182 -> 0
B183: Грэпплинг-ги | C183: 176 | D183: 0 | E183: 0 | F183: 0 | G183: 0 | H183: 0 | I183: 0 | J183: 0 | K183: 0 | L183: 0 | M183: 0 | N183: 0 | O183: 0 | P183: 0 | Q183: 0 | R183: 0 | U183: =Раздел2!F183 -> 0 | V183: =Раздел2!F183 -> 0 | W183: =Раздел2!H183 -> 0 | X183: =Раздел2!I183 -> 0 | Y183: =Раздел2!J183 -> 0 | Z183: =Раздел2!K183 -> 0
B184: Панкратион | C184: 177 | D184: 0 | E184: 0 | F184: 0 | G184: 0 | H184: 0 | I184: 0 | J184: 0 | K184: 0 | L184: 0 | M184: 0 | N184: 0 | O184: 0 | P184: 0 | Q184: 0 | R184: 0 | U184: =Раздел2!F184 -> 0 | V184: =Раздел2!F184 -> 0 | W184: =Раздел2!H184 -> 0 | X184: =Раздел2!I184 -> 0 | Y184: =Раздел2!J184 -> 0 | Z184: =Раздел2!K184 -> 0
B185: Спортивно-прикладное собаководство | C185: 178 | D185: 0 | E185: 0 | F185: 0 | G185: 0 | H185: 0 | I185: 0 | J185: 0 | K185: 0 | L185: 0 | M185: 0 | N185: 0 | O185: 0 | P185: 0 | Q185: 0 | R185: 0 | U185: =Раздел2!F185 -> 0 | V185: =Раздел2!F185 -> 0 | W185: =Раздел2!H185 -> 0 | X185: =Раздел2!I185 -> 0 | Y185: =Раздел2!J185 -> 0 | Z185: =Раздел2!K185 -> 0
B186: Спортивная гимнастика | C186: 179 | D186: 0 | E186: 0 | F186: 0 | G186: 0 | H186: 0 | I186: 0 | J186: 0 | K186: 0 | L186: 0 | M186: 0 | N186: 0 | O186: 0 | P186: 0 | Q186: 0 | R186: 0 | U186: =Раздел2!F186 -> 0 | V186: =Раздел2!F186 -> 0 | W186: =Раздел2!H186 -> 0 | X186: =Раздел2!I186 -> 0 | Y186: =Раздел2!J186 -> 0 | Z186: =Раздел2!K186 -> 0
B187: Спортивное ориентирование | C187: 180 | D187: 0 | E187: 0 | F187: 0 | G187: 0 | H187: 0 | I187: 0 | J187: 0 | K187: 0 | L187: 0 | M187: 0 | N187: 0 | O187: 0 | P187: 0 | Q187: 0 | R187: 0 | U187: =Раздел2!F187 -> 0 | V187: =Раздел2!F187 -> 0 | W187: =Раздел2!H187 -> 0 | X187: =Раздел2!I187 -> 0 | Y187: =Раздел2!J187 -> 0 | Z187: =Раздел2!K187 -> 0
B188: Спортивный бридж | C188: 181 | D188: 0 | E188: 0 | F188: 0 | G188: 0 | H188: 0 | I188: 0 | J188: 0 | K188: 0 | L188: 0 | M188: 0 | N188: 0 | O188: 0 | P188: 0 | Q188: 0 | R188: 0 | U188: =Раздел2!F188 -> 0 | V188: =Раздел2!F188 -> 0 | W188: =Раздел2!H188 -> 0 | X188: =Раздел2!I188 -> 0 | Y188: =Раздел2!J188 -> 0 | Z188: =Раздел2!K188 -> 0
B189: Спортивный туризм | C189: 182 | D189: 0 | E189: 0 | F189: 0 | G189: 0 | H189: 0 | I189: 0 | J189: 0 | K189: 0 | L189: 0 | M189: 0 | N189: 0 | O189: 0 | P189: 0 | Q189: 0 | R189: 0 | U189: =Раздел2!F189 -> 0 | V189: =Раздел2!F189 -> 0 | W189: =Раздел2!H189 -> 0 | X189: =Раздел2!I189 -> 0 | Y189: =Раздел2!J189 -> 0 | Z189: =Раздел2!K189 -> 0
B190: Стендовая стрельба - всего | C190: 183 | D190: 0 | E190: =SUM(E191:E194) -> 0 | F190: =SUM(F191:F194) -> 0 | G190: =SUM(G191:G194) -> 0 | H190: =SUM(H191:H194) -> 0 | I190: 0 | J190: =SUM(J191:J194) -> 0 | K190: =SUM(K191:K194) -> 0 | L190: =SUM(L191:L194) -> 0 | M190: =SUM(M191:M194) -> 0 | N190: 0 | O190: =SUM(O191:O194) -> 0 | P190: =SUM(P191:P194) -> 0 | Q190: =SUM(Q191:Q194) -> 0 | R190: =SUM(R191:R194) -> 0 | U190: =Раздел2!F190 -> 0 | V190: =Раздел2!F190 -> 0 | W190: =Раздел2!H190 -> 0 | X190: =Раздел2!I190 -> 0 | Y190: =Раздел2!J190 -> 0 | Z190: =Раздел2!K190 -> 0
B191: в том числе: Трап | C191: 184 | D191: 0 | E191: 0 | F191: 0 | G191: 0 | H191: 0 | I191: 0 | J191: 0 | K191: 0 | L191: 0 | M191: 0 | N191: 0 | O191: 0 | P191: 0 | Q191: 0 | R191: 0 | U191: =Раздел2!F191 -> 0 | V191: =Раздел2!F191 -> 0 | W191: =Раздел2!H191 -> 0 | X191: =Раздел2!I191 -> 0 | Y191: =Раздел2!J191 -> 0 | Z191: =Раздел2!K191 -> 0
B192: Скит | C192: 185 | D192: 0 | E192: 0 | F192: 0 | G192: 0 | H192: 0 | I192: 0 | J192: 0 | K192: 0 | L192: 0 | M192: 0 | N192: 0 | O192: 0 | P192: 0 | Q192: 0 | R192: 0 | U192: =Раздел2!F192 -> 0 | V192: =Раздел2!F192 -> 0 | W192: =Раздел2!H192 -> 0 | X192: =Раздел2!I192 -> 0 | Y192: =Раздел2!J192 -> 0 | Z192: =Раздел2!K192 -> 0
B193: Дубль-трап | C193: 186 | D193: 0 | E193: 0 | F193: 0 | G193: 0 | H193: 0 | I193: 0 | J193: 0 | K193: 0 | L193: 0 | M193: 0 | N193: 0 | O193: 0 | P193: 0 | Q193: 0 | R193: 0 | U193: =Раздел2!F193 -> 0 | V193: =Раздел2!F193 -> 0 | W193: =Раздел2!H193 -> 0 | X193: =Раздел2!I193 -> 0 | Y193: =Раздел2!J193 -> 0 | Z193: =Раздел2!K193 -> 0
B194: Спортинг | C194: 187 | D194: 0 | E194: 0 | F194: 0 | G194: 0 | H194: 0 | I194: 0 | J194: 0 | K194: 0 | L194: 0 | M194: 0 | N194: 0 | O194: 0 | P194: 0 | Q194: 0 | R194: 0 | U194: =Раздел2!F194 -> 0 | V194: =Раздел2!F194 -> 0 | W194: =Раздел2!H194 -> 0 | X194: =Раздел2!I194 -> 0 | Y194: =Раздел2!J194 -> 0 | Z194: =Раздел2!K194 -> 0
B195: Стрельба из арбалета | C195: 188 | D195: 0 | E195: 0 | F195: 0 | G195: 0 | H195: 0 | I195: 0 | J195: 0 | K195: 0 | L195: 0 | M195: 0 | N195: 0 | O195: 0 | P195: 0 | Q195: 0 | R195: 0 | U195: =Раздел2!F195 -> 0 | V195: =Раздел2!F195 -> 0 | W195: =Раздел2!H195 -> 0 | X195: =Раздел2!I195 -> 0 | Y195: =Раздел2!J195 -> 0 | Z195: =Раздел2!K195 -> 0
B196: Стрельба из лука - всего | C196: 189 | D196: 0 | E196: =SUM(E197:E199) -> 0 | F196: =SUM(F197:F199) -> 0 | G196: =SUM(G197:G199) -> 0 | H196: =SUM(H197:H199) -> 0 | I196: 0 | J196: =SUM(J197:J199) -> 0 | K196: =SUM(K197:K199) -> 0 | L196: =SUM(L197:L199) -> 0 | M196: =SUM(M197:M199) -> 0 | N196: 0 | O196: =SUM(O197:O199) -> 0 | P196: =SUM(P197:P199) -> 0 | Q196: =SUM(Q197:Q199) -> 0 | R196: =SUM(R197:R199) -> 0 | U196: =Раздел2!F196 -> 0 | V196: =Раздел2!F196 -> 0 | W196: =Раздел2!H196 -> 0 | X196: =Раздел2!I196 -> 0 | Y196: =Раздел2!J196 -> 0 | Z196: =Раздел2!K196 -> 0
B197: в том числе: Классический лук | C197: 190 | D197: 0 | E197: 0 | F197: 0 | G197: 0 | H197: 0 | I197: 0 | J197: 0 | K197: 0 | L197: 0 | M197: 0 | N197: 0 | O197: 0 | P197: 0 | Q197: 0 | R197: 0 | U197: =Раздел2!F197 -> 0 | V197: =Раздел2!F197 -> 0 | W197: =Раздел2!H197 -> 0 | X197: =Раздел2!I197 -> 0 | Y197: =Раздел2!J197 -> 0 | Z197: =Раздел2!K197 -> 0
B198: Блочный лук | C198: 191 | D198: 0 | E198: 0 | F198: 0 | G198: 0 | H198: 0 | I198: 0 | J198: 0 | K198: 0 | L198: 0 | M198: 0 | N198: 0 | O198: 0 | P198: 0 | Q198: 0 | R198: 0 | U198: =Раздел2!F198 -> 0 | V198: =Раздел2!F198 -> 0 | W198: =Раздел2!H198 -> 0 | X198: =Раздел2!I198 -> 0 | Y198: =Раздел2!J198 -> 0 | Z198: =Раздел2!K198 -> 0
B199: Ачери | C199: 192 | D199: 0 | E199: 0 | F199: 0 | G199: 0 | H199: 0 | I199: 0 | J199: 0 | K199: 0 | L199: 0 | M199: 0 | N199: 0 | O199: 0 | P199: 0 | Q199: 0 | R199: 0 | U199: =Раздел2!F199 -> 0 | V199: =Раздел2!F199 -> 0 | W199: =Раздел2!H199 -> 0 | X199: =Раздел2!I199 -> 0 | Y199: =Раздел2!J199 -> 0 | Z199: =Раздел2!K199 -> 0
B200: Судомодельный спорт | C200: 193 | D200: 0 | E200: 0 | F200: 0 | G200: 0 | H200: 0 | I200: 0 | J200: 0 | K200: 0 | L200: 0 | M200: 0 | N200: 0 | O200: 0 | P200: 0 | Q200: 0 | R200: 0 | U200: =Раздел2!F200 -> 0 | V200: =Раздел2!F200 -> 0 | W200: =Раздел2!H200 -> 0 | X200: =Раздел2!I200 -> 0 | Y200: =Раздел2!J200 -> 0 | Z200: =Раздел2!K200 -> 0
B201: Сумо | C201: 194 | D201: =SUM(E201:H201) -> 0 | E201: 0 | F201: 0 | G201: 0 | H201: 0 | I201: =SUM(J201:M201) -> 0 | J201: 0 | K201: 0 | L201: 0 | M201: 0 | N201: =SUM(O201:R201) -> 0 | O201: 0 | P201: 0 | Q201: 0 | R201: 0 | U201: =Раздел2!F201 -> 0 | V201: =Раздел2!F201 -> 0 | W201: =Раздел2!H201 -> 0 | X201: =Раздел2!I201 -> 0 | Y201: =Раздел2!J201 -> 0 | Z201: =Раздел2!K201 -> 0
... 48 more rows

Sheet Раздел4
B1: Раздел IV. Спортивные разряды, спортивные звания
Q2: Код по ОКЕИ: человек – 792
B3: Виды спорта | C3: № строки | D3: Из числа занимающихся (гр. 5 раздела II) спортсменов, имеющих разряды, звания | M3: Разряды, звания, присвоенные и подтвержденные в отчетном году | AB3: Раздел2 графа3 Число отделений | AC3: Раздел2 графа5 Число отделений
D4: Всего | E4: спортивные разряды | I4: спортивные звания | M4: Всего | N4: спортивные разряды присвоенные | R4: спортивные разряды подтвержденные | V4: спортивные звания присвоенные
E5: Всего | F5: в том числе: | I5: Всего | J5: в том числе: | N5: Всего | O5: в том числе: | R5: Всего | S5: в том числе: | V5: Всего | W5: в том числе:
F6: КМС | G6: 1 разряд | H6: другие разряды | J6: ЗМС | K6: МСМК | L6: МС | O6: КМС | P6: 1 разряд | Q6: другие разряды | S6: КМС | T6: 1 разряд | U6: другие разряды | W6: ЗМС | X6: МСМК | Y6: МС
B7: 1 | C7: 2 | D7: 3 | E7: 4 | F7: 5 | G7: 6 | H7: 7 | I7: 8 | J7: 9 | K7: 10 | L7: 11 | M7: 12 | N7: 13 | O7: 14 | P7: 15 | Q7: 16 | R7: 17 | S7: 18 | T7: 19 | U7: 20 | V7: 21 | W7: 22 | X7: 23 | Y7: 24
B8: Авиамодельный спорт | C8: 01 | D8: =E8+I8 -> 0 | E8: =SUM(F8:H8) -> 0 | I8: =SUM(J8:L8) -> 0 | M8: =N8+V8 -> 0 | N8: =SUM(O8:Q8) -> 0 | R8: =SUM(S8:U8) -> 0 | V8: =SUM(W8:Y8) -> 0 | AB8: =Раздел2!#REF! ->  | AC8: =Раздел2!F8 -> 0
B9: Автомобильный спорт | C9: 02 | D9: =E9+I9 -> 0 | E9: =SUM(F9:H9) -> 0 | I9: =SUM(J9:L9) -> 0 | M9: =N9+V9 -> 0 | N9: =SUM(O9:Q9) -> 0 | R9: =SUM(S9:U9) -> 0 | V9: =SUM(W9:Y9) -> 0 | AB9: =Раздел2!#REF! ->  | AC9: =Раздел2!F9 -> 0
B10: Автомодельный спорт | C10: 03 | D10: 0 | E10: 0 | I10: 0 | M10: 0 | N10: 0 | R10: 0 | V10: 0 | AB10: =Раздел2!#REF! ->  | AC10: =Раздел2!F10 -> 0
B11: Айкидо | C11: 04 | D11: 0 | E11: 0 | I11: 0 | M11: 0 | N11: 0 | R11: 0 | V11: 0 | AB11: =Раздел2!#REF! ->  | AC11: =Раздел2!F11 -> 0
B12: Айсшток | C12: 05 | D12: 0 | E12: 0 | I12: 0 | M12: 0 | N12: 0 | R12: 0 | V12: 0 | AB12: =Раздел2!#REF! ->  | AC12: =Раздел2!F12 -> 0
B13: Акробатический рок-н-ролл | C13: 06 | D13: 0 | E13: 0 | I13: 0 | M13: 0 | N13: 0 | R13: 0 | V13: 0 | AB13: =Раздел2!#REF! ->  | AC13: =Раздел2!F13 -> 0
B14: Альпинизм | C14: 07 | D14: 0 | E14: 0 | F14: 0 | G14: 0 | H14: 0 | I14: 0 | J14: 0 | K14: 0 | L14: 0 | M14: 0 | N14: 0 | O14: 0 | P14: 0 | Q14: 0 | R14: 0 | S14: 0 | T14: 0 | U14: 0 | V14: 0 | W14: 0 | X14: 0 | Y14: 0 | AB14: =Раздел2!#REF! ->  | AC14: =Раздел2!F14 -> 0
B15: Американский футбол | C15: 08 | D15: 0 | E15: 0 | F15: 0 | G15: 0 | H15: 0 | I15: 0 | J15: 0 | K15: 0 | L15: 0 | M15: 0 | N15: 0 | O15: 0 | P15: 0 | Q15: 0 | R15: 0 | S15: 0 | T15: 0 | U15: 0 | V15: 0 | W15: 0 | X15: 0 | Y15: 0 | AB15: =Раздел2!#REF! ->  | AC15: =Раздел2!F15 -> 0
B16: Армейский рукопашный бой | C16: 09 | D16: 0 | E16: 0 | I16: 0 | M16: 0 | N16: 0 | R16: 0 | V16: 0 | AB16: =Раздел2!#REF! ->  | AC16: =Раздел2!F16 -> 0
B17: Армрестлинг | C17: 10 | D17: 0 | E17: 0 | F17: 0 | G17: 0 | H17: 0 | I17: 0 | J17: 0 | K17: 0 | L17: 0 | M17: 0 | N17: 0 | O17: 0 | P17: 0 | Q17: 0 | R17: 0 | S17: 0 | T17: 0 | U17: 0 | V17: 0 | W17: 0 | X17: 0 | Y17: 0 | AB17: =Раздел2!#REF! ->  | AC17: =Раздел2!F17 -> 0
B18: Бадминтон | C18: 11 | D18: 0 | E18: 0 | F18: 0 | G18: 0 | H18: 0 | I18: 0 | J18: 0 | K18: 0 | L18: 0 | M18: 0 | N18: 0 | O18: 0 | P18: 0 | Q18: 0 | R18: 0 | S18: 0 | T18: 0 | U18: 0 | V18: 0 | W18: 0 | X18: 0 | Y18: 0 | AB18: =Раздел2!#REF! ->  | AC18: =Раздел2!F18 -> 0
B19: Баскетбол - всего | C19: 12 | D19: 6 | E19: 6 | F19: =SUM(F20:F21) -> 0 | G19: =SUM(G20:G21) -> 0 | H19: =SUM(H20:H21) -> 6 | I19: 0 | J19: =SUM(J20:J21) -> 0 | K19: =SUM(K20:K21) -> 0 | L19: =SUM(L20:L21) -> 0 | M19: 6 | N19: 6 | O19: =SUM(O20:O21) -> 0 | P19: =SUM(P20:P21) -> 0 | Q19: =SUM(Q20:Q21) -> 6 | R19: 0 | S19: =SUM(S20:S21) -> 0 | T19: =SUM(T20:T21) -> 0 | U19: =SUM(U20:U21) -> 0 | V19: 0 | W19: =SUM(W20:W21) -> 0 | X19: =SUM(X20:X21) -> 0 | Y19: =SUM(Y20:Y21) -> 0 | AB19: =Раздел2!#REF! ->  | AC19: =Раздел2!F19 -> 134
B20: в том числе: Баскетбол (муж.) | C20: 13 | D20: 6 | E20: 6 | F20: 0 | G20: 0 | H20: 6 | I20: 0 | J20: 0 | K20: 0 | L20: 0 | M20: 6 | N20: 6 | O20: 0 | P20: 0 | Q20: 6 | R20: 0 | S20: 0 | T20: 0 | U20: 0 | V20: 0 | W20: 0 | X20: 0 | Y20: 0 | AB20: =Раздел2!#REF! ->  | AC20: =Раздел2!F20 -> 93
B21: Баскетбол (жен.) | C21: 14 | D21: 0 | E21: 0 | I21: 0 | M21: 0 | N21: 0 | R21: 0 | V21: 0 | AB21: =Раздел2!#REF! ->  | AC21: =Раздел2!F21 -> 41
B22: Бейсбол | C22: 15 | D22: 0 | E22: 0 | F22: 0 | G22: 0 | H22: 0 | I22: 0 | J22: 0 | K22: 0 | L22: 0 | M22: 0 | N22: 0 | O22: 0 | P22: 0 | Q22: 0 | R22: 0 | S22: 0 | T22: 0 | U22: 0 | V22: 0 | W22: 0 | X22: 0 | Y22: 0 | AB22: =Раздел2!#REF! ->  | AC22: =Раздел2!F22 -> 0
B23: Биатлон | C23: 16 | D23: 0 | E23: 0 | F23: 0 | G23: 0 | H23: 0 | I23: 0 | J23: 0 | K23: 0 | L23: 0 | M23: 0 | N23: 0 | O23: 0 | P23: 0 | Q23: 0 | R23: 0 | S23: 0 | T23: 0 | U23: 0 | V23: 0 | W23: 0 | X23: 0 | Y23: 0 | AB23: =Раздел2!#REF! ->  | AC23: =Раздел2!F23 -> 0
B24: Бильярдный спорт | C24: 17 | D24: 0 | E24: 0 | F24: 0 | G24: 0 | H24: 0 | I24: 0 | J24: 0 | K24: 0 | L24: 0 | M24: 0 | N24: 0 | O24: 0 | P24: 0 | Q24: 0 | R24: 0 | S24: 0 | T24: 0 | U24: 0 | V24: 0 | W24: 0 | X24: 0 | Y24: 0 | AB24: =Раздел2!#REF! ->  | AC24: =Раздел2!F24 -> 0
B25: Бобслей - всего | C25: 18 | D25: 0 | E25: 0 | F25: =SUM(F26:F27) -> 0 | G25: =SUM(G26:G27) -> 0 | H25: =SUM(H26:H27) -> 0 | I25: 0 | J25: =SUM(J26:J27) -> 0 | K25: =SUM(K26:K27) -> 0 | L25: =SUM(L26:L27) -> 0 | M25: 0 | N25: 0 | O25: =SUM(O26:O27) -> 0 | P25: =SUM(P26:P27) -> 0 | Q25: =SUM(Q26:Q27) -> 0 | R25: 0 | S25: =SUM(S26:S27) -> 0 | T25: =SUM(T26:T27) -> 0 | U25: =SUM(U26:U27) -> 0 | V25: 0 | W25: =SUM(W26:W27) -> 0 | X25: =SUM(X26:X27) -> 0 | Y25: =SUM(Y26:Y27) -> 0 | AB25: =Раздел2!#REF! ->  | AC25: =Раздел2!F25 -> 0
B26: в том числе: Бобслей | C26: 19 | D26: 0 | E26: 0 | F26: 0 | G26: 0 | H26: 0 | I26: 0 | J26: 0 | K26: 0 | L26: 0 | M26: 0 | N26: 0 | O26: 0 | P26: 0 | Q26: 0 | R26: 0 | S26: 0 | T26: 0 | U26: 0 | V26: 0 | W26: 0 | X26: 0 | Y26: 0 | AB26: =Раздел2!#REF! ->  | AC26: =Раздел2!F26 -> 0
B27: Скелетон | C27: 20 | D27: 0 | E27: 0 | F27: 0 | G27: 0 | H27: 0 | I27: 0 | J27: 0 | K27: 0 | L27: 0 | M27: 0 | N27: 0 | O27: 0 | P27: 0 | Q27: 0 | R27: 0 | S27: 0 | T27: 0 | U27: 0 | V27: 0 | W27: 0 | X27: 0 | Y27: 0 | AB27: =Раздел2!#REF! ->  | AC27: =Раздел2!F27 -> 0
B28: Бодибилдинг | C28: 21 | D28: 0 | E28: 0 | F28: 0 | G28: 0 | H28: 0 | I28: 0 | J28: 0 | K28: 0 | L28: 0 | M28: 0 | N28: 0 | O28: 0 | P28: 0 | Q28: 0 | R28: 0 | S28: 0 | T28: 0 | U28: 0 | V28: 0 | W28: 0 | X28: 0 | Y28: 0 | AB28: =Раздел2!#REF! ->  | AC28: =Раздел2!F28 -> 0
B29: Бокс | C29: 22 | D29: 0 | E29: 0 | F29: 0 | G29: 0 | H29: 0 | I29: 0 | J29: 0 | K29: 0 | L29: 0 | M29: 0 | N29: 0 | O29: 0 | P29: 0 | Q29: 0 | R29: 0 | S29: 0 | T29: 0 | U29: 0 | V29: 0 | W29: 0 | X29: 0 | Y29: 0 | AB29: =Раздел2!#REF! ->  | AC29: =Раздел2!F29 -> 90
B30: Борьба на поясах | C30: 23 | D30: 0 | E30: 0 | F30: 0 | G30: 0 | H30: 0 | I30: 0 | J30: 0 | K30: 0 | L30: 0 | M30: 0 | N30: 0 | O30: 0 | P30: 0 | Q30: 0 | R30: 0 | S30: 0 | T30: 0 | U30: 0 | V30: 0 | W30: 0 | X30: 0 | Y30: 0 | AB30: =Раздел2!#REF! ->  | AC30: =Раздел2!F30 -> 0
B31: Боулинг | C31: 24 | D31: 0 | E31: 0 | F31: 0 | G31: 0 | H31: 0 | I31: 0 | J31: 0 | K31: 0 | L31: 0 | M31: 0 | N31: 0 | O31: 0 | P31: 0 | Q31: 0 | R31: 0 | S31: 0 | T31: 0 | U31: 0 | V31: 0 | W31: 0 | X31: 0 | Y31: 0 | AB31: =Раздел2!#REF! ->  | AC31: =Раздел2!F31 -> 0
B32: Велоспорт ВМХ | C32: 25 | D32: 0 | E32: 0 | F32: 0 | G32: 0 | H32: 0 | I32: 0 | J32: 0 | K32: 0 | L32: 0 | M32: 0 | N32: 0 | O32: 0 | P32: 0 | Q32: 0 | R32: 0 | S32: 0 | T32: 0 | U32: 0 | V32: 0 | W32: 0 | X32: 0 | Y32: 0 | AB32: =Раздел2!#REF! ->  | AC32: =Раздел2!F32 -> 0
B33: Велоспорт – маунтинбайк | C33: 26 | D33: 0 | E33: 0 | F33: 0 | G33: 0 | H33: 0 | I33: 0 | J33: 0 | K33: 0 | L33: 0 | M33: 0 | N33: 0 | O33: 0 | P33: 0 | Q33: 0 | R33: 0 | S33: 0 | T33: 0 | U33: 0 | V33: 0 | W33: 0 | X33: 0 | Y33: 0 | AB33: =Раздел2!#REF! ->  | AC33: =Раздел2!F33 -> 0
B34: Велоспорт – трек | C34: 27 | D34: 0 | E34: 0 | F34: 0 | G34: 0 | H34: 0 | I34: 0 | J34: 0 | K34: 0 | L34: 0 | M34: 0 | N34: 0 | O34: 0 | P34: 0 | Q34: 0 | R34: 0 | S34: 0 | T34: 0 | U34: 0 | V34: 0 | W34: 0 | X34: 0 | Y34: 0 | AB34: =Раздел2!#REF! ->  | AC34: =Раздел2!F34 -> 0
B35: Велоспорт – шоссе | C35: 28 | D35: 0 | E35: 0 | F35: 0 | G35: 0 | H35: 0 | I35: 0 | J35: 0 | K35: 0 | L35: 0 | M35: 0 | N35: 0 | O35: 0 | P35: 0 | Q35: 0 | R35: 0 | S35: 0 | T35: 0 | U35: 0 | V35: 0 | W35: 0 | X35: 0 | Y35: 0 | AB35: =Раздел2!#REF! ->  | AC35: =Раздел2!F35 -> 0
B36: Вертолетный спорт | C36: 29 | D36: 0 | E36: 0 | F36: 0 | G36: 0 | H36: 0 | I36: 0 | J36: 0 | K36: 0 | L36: 0 | M36: 0 | N36: 0 | O36: 0 | P36: 0 | Q36: 0 | R36: 0 | S36: 0 | T36: 0 | U36: 0 | V36: 0 | W36: 0 | X36: 0 | Y36: 0 | AB36: =Раздел2!#REF! ->  | AC36: =Раздел2!F36 -> 0
B37: Водно-моторный спорт | C37: 30 | D37: 0 | E37: 0 | F37: 0 | G37: 0 | H37: 0 | I37: 0 | J37: 0 | K37: 0 | L37: 0 | M37: 0 | N37: 0 | O37: 0 | P37: 0 | Q37: 0 | R37: 0 | S37: 0 | T37: 0 | U37: 0 | V37: 0 | W37: 0 | X37: 0 | Y37: 0 | AB37: =Раздел2!#REF! ->  | AC37: =Раздел2!F37 -> 0
B38: Водное поло - всего | C38: 31 | D38: 0 | E38: 0 | F38: =SUM(F39:F40) -> 0 | G38: =SUM(G39:G40) -> 0 | H38: =SUM(H39:H40) -> 0 | I38: 0 | J38: =SUM(J39:J40) -> 0 | K38: =SUM(K39:K40) -> 0 | L38: =SUM(L39:L40) -> 0 | M38: 0 | N38: 0 | O38: =SUM(O39:O40) -> 0 | P38: =SUM(P39:P40) -> 0 | Q38: =SUM(Q39:Q40) -> 0 | R38: 0 | S38: =SUM(S39:S40) -> 0 | T38: =SUM(T39:T40) -> 0 | U38: =SUM(U39:U40) -> 0 | V38: 0 | W38: =SUM(W39:W40) -> 0 | X38: =SUM(X39:X40) -> 0 | Y38: =SUM(Y39:Y40) -> 0 | AB38: =Раздел2!#REF! ->  | AC38: =Раздел2!F38 -> 0
B39: в том числе: Водное поло (муж.) | C39: 32 | D39: 0 | E39: 0 | I39: 0 | M39: 0 | N39: 0 | R39: 0 | V39: 0 | AB39: =Раздел2!#REF! ->  | AC39: =Раздел2!F39 -> 0
B40: Водное поло (жен.) | C40: 33 | D40: 0 | E40: 0 | I40: 0 | M40: 0 | N40: 0 | R40: 0 | V40: 0 | AB40: =Раздел2!#REF! ->  | AC40: =Раздел2!F40 -> 0
B41: Воднолыжный спорт | C41: 34 | D41: 0 | E41: 0 | I41: 0 | M41: 0 | N41: 0 | R41: 0 | V41: 0 | AB41: =Раздел2!#REF! ->  | AC41: =Раздел2!F41 -> 0
B42: Военно-прикладной спорт | C42: 35 | D42: 0 | E42: 0 | I42: 0 | M42: 0 | N42: 0 | R42: 0 | V42: 0 | AB42: =Раздел2!#REF! ->  | AC42: =Раздел2!F42 -> 0
B43: Военно-спортивное многоборье | C43: 36 | D43: 0 | E43: 0 | I43: 0 | M43: 0 | N43: 0 | R43: 0 | V43: 0 | AB43: =Раздел2!#REF! ->  | AC43: =Раздел2!F43 -> 0
B44: Воздухоплавательный спорт | C44: 37 | D44: 0 | E44: 0 | F44: 0 | G44: 0 | H44: 0 | I44: 0 | J44: 0 | K44: 0 | L44: 0 | M44: 0 | N44: 0 | O44: 0 | P44: 0 | Q44: 0 | R44: 0 | S44: 0 | T44: 0 | U44: 0 | V44: 0 | W44: 0 | X44: 0 | Y44: 0 | AB44: =Раздел2!#REF! ->  | AC44: =Раздел2!F44 -> 0
B45: Волейбол - всего | C45: 38 | D45: 2 | E45: 2 | F45: =SUM(F46:F49) -> 0 | G45: =SUM(G46:G49) -> 0 | H45: =SUM(H46:H49) -> 2 | I45: 0 | J45: =SUM(J46:J49) -> 0 | K45: =SUM(K46:K49) -> 0 | L45: =SUM(L46:L49) -> 0 | M45: 7 | N45: 7 | O45: =SUM(O46:O49) -> 0 | P45: =SUM(P46:P49) -> 0 | Q45: =SUM(Q46:Q49) -> 7 | R45: 0 | S45: =SUM(S46:S49) -> 0 | T45: =SUM(T46:T49) -> 0 | U45: =SUM(U46:U49) -> 0 | V45: 0 | W45: =SUM(W46:W49) -> 0 | X45: =SUM(X46:X49) -> 0 | Y45: =SUM(Y46:Y49) -> 0 | AB45: =Раздел2!#REF! ->  | AC45: =Раздел2!F45 -> 80
B46: в том числе: Волейбол (муж.) | C46: 39 | D46: 0 | E46: 0 | F46: 0 | G46: 0 | H46: 0 | I46: 0 | J46: 0 | K46: 0 | L46: 0 | M46: 4 | N46: 4 | O46: 0 | P46: 0 | Q46: 4 | R46: 0 | S46: 0 | T46: 0 | U46: 0 | V46: 0 | W46: 0 | X46: 0 | Y46: 0 | AB46: =Раздел2!#REF! ->  | AC46: =Раздел2!F46 -> 21
B47: Волейбол (жен.) | C47: 40 | D47: 2 | E47: 2 | H47: 2 | I47: 0 | M47: 3 | N47: 3 | Q47: 3 | R47: 0 | V47: 0 | AB47: =Раздел2!#REF! ->  | AC47: =Раздел2!F47 -> 59
B48: Пляжный волейбол (муж.) | C48: 41 | D48: 0 | E48: 0 | F48: 0 | G48: 0 | H48: 0 | I48: 0 | J48: 0 | K48: 0 | L48: 0 | M48: 0 | N48: 0 | O48: 0 | P48: 0 | Q48: 0 | R48: 0 | S48: 0 | T48: 0 | U48: 0 | V48: 0 | W48: 0 | X48: 0 | Y48: 0 | AB48: =Раздел2!#REF! ->  | AC48: =Раздел2!F48 -> 0
B49: Пляжный волейбол (жен.) | C49: 42 | D49: 0 | E49: 0 | F49: 0 | G49: 0 | H49: 0 | I49: 0 | J49: 0 | K49: 0 | L49: 0 | M49: 0 | N49: 0 | O49: 0 | P49: 0 | Q49: 0 | R49: 0 | S49: 0 | T49: 0 | U49: 0 | V49: 0 | W49: 0 | X49: 0 | Y49: 0 | AB49: =Раздел2!#REF! ->  | AC49: =Раздел2!F49 -> 0
B50: Восточное боевое единоборство | C50: 43 | D50: 0 | E50: 0 | F50: 0 | G50: 0 | H50: 0 | I50: 0 | J50: 0 | K50: 0 | L50: 0 | M50: 0 | N50: 0 | O50: 0 | P50: 0 | Q50: 0 | R50: 0 | S50: 0 | T50: 0 | U50: 0 | V50: 0 | W50: 0 | X50: 0 | Y50: 0 | AB50: =Раздел2!#REF! ->  | AC50: =Раздел2!F50 -> 0
B51: Всестилевое карате | C51: 44 | D51: 0 | E51: 0 | F51: 0 | G51: 0 | H51: 0 | I51: 0 | J51: 0 | K51: 0 | L51: 0 | M51: 0 | N51: 0 | O51: 0 | P51: 0 | Q51: 0 | R51: 0 | S51: 0 | T51: 0 | U51: 0 | V51: 0 | W51: 0 | X51: 0 | Y51: 0 | AB51: =Раздел2!#REF! ->  | AC51: =Раздел2!F51 -> 0
B52: Гандбол - всего | C52: 45 | D52: 0 | E52: 0 | F52: =SUM(F53:F55) -> 0 | G52: =SUM(G53:G55) -> 0 | H52: =SUM(H53:H55) -> 0 | I52: 0 | J52: =SUM(J53:J55) -> 0 | K52: =SUM(K53:K55) -> 0 | L52: =SUM(L53:L55) -> 0 | M52: 0 | N52: 0 | O52: =SUM(O53:O55) -> 0 | P52: =SUM(P53:P55) -> 0 | Q52: =SUM(Q53:Q55) -> 0 | R52: 0 | S52: =SUM(S53:S55) -> 0 | T52: =SUM(T53:T55) -> 0 | U52: =SUM(U53:U55) -> 0 | V52: 0 | W52: =SUM(W53:W55) -> 0 | X52: =SUM(X53:X55) -> 0 | Y52: =SUM(Y53:Y55) -> 0 | AB52: =Раздел2!#REF! ->  | AC52: =Раздел2!F52 -> 0
B53: в том числе: Гандбол (муж.) | C53: 46 | D53: 0 | E53: 0 | F53: 0 | G53: 0 | H53: 0 | I53: 0 | J53: 0 | K53: 0 | L53: 0 | M53: 0 | N53: 0 | O53: 0 | P53: 0 | Q53: 0 | R53: 0 | S53: 0 | T53: 0 | U53: 0 | V53: 0 | W53: 0 | X53: 0 | Y53: 0 | AB53: =Раздел2!#REF! ->  | AC53: =Раздел2!F53 -> 0
B54: Гандбол (жен.) | C54: 47 | D54: 0 | E54: 0 | F54: 0 | G54: 0 | H54: 0 | I54: 0 | J54: 0 | K54: 0 | L54: 0 | M54: 0 | N54: 0 | O54: 0 | P54: 0 | Q54: 0 | R54: 0 | S54: 0 | T54: 0 | U54: 0 | V54: 0 | W54: 0 | X54: 0 | Y54: 0 | AB54: =Раздел2!#REF! ->  | AC54: =Раздел2!F54 -> 0
B55: Пляжный гандбол | C55: 48 | D55: 0 | E55: 0 | I55: 0 | M55: 0 | N55: 0 | R55: 0 | V55: 0 | AB55: =Раздел2!#REF! ->  | AC55: =Раздел2!F55 -> 0
B56: Гиревой спорт | C56: 49 | D56: 0 | E56: 0 | F56: 0 | G56: 0 | H56: 0 | I56: 0 | J56: 0 | K56: 0 | L56: 0 | M56: 0 | N56: 0 | O56: 0 | P56: 0 | Q56: 0 | R56: 0 | S56: 0 | T56: 0 | U56: 0 | V56: 0 | W56: 0 | X56: 0 | Y56: 0 | AB56: =Раздел2!#REF! ->  | AC56: =Раздел2!F56 -> 0
B57: Го | C57: 50 | D57: 0 | E57: 0 | F57: 0 | G57: 0 | H57: 0 | I57: 0 | J57: 0 | K57: 0 | L57: 0 | M57: 0 | N57: 0 | O57: 0 | P57: 0 | Q57: 0 | R57: 0 | S57: 0 | T57: 0 | U57: 0 | V57: 0 | W57: 0 | X57: 0 | Y57: 0 | AB57: =Раздел2!#REF! ->  | AC57: =Раздел2!F57 -> 0
B58: Гольф | C58: 51 | D58: 0 | E58: 0 | F58: 0 | G58: 0 | H58: 0 | I58: 0 | J58: 0 | K58: 0 | L58: 0 | M58: 0 | N58: 0 | O58: 0 | P58: 0 | Q58: 0 | R58: 0 | S58: 0 | T58: 0 | U58: 0 | V58: 0 | W58: 0 | X58: 0 | Y58: 0 | AB58: =Раздел2!#REF! ->  | AC58: =Раздел2!F58 -> 0
B59: Горнолыжный спорт | C59: 52 | D59: 0 | E59: 0 | F59: 0 | G59: 0 | H59: 0 | I59: 0 | J59: 0 | K59: 0 | L59: 0 | M59: 0 | N59: 0 | O59: 0 | P59: 0 | Q59: 0 | R59: 0 | S59: 0 | T59: 0 | U59: 0 | V59: 0 | W59: 0 | X59: 0 | Y59: 0 | AB59: =Раздел2!#REF! ->  | AC59: =Раздел2!F59 -> 0
B60: Городошный спорт | C60: 53 | D60: 0 | E60: 0 | F60: 0 | G60: 0 | H60: 0 | I60: 0 | J60: 0 | K60: 0 | L60: 0 | M60: 0 | N60: 0 | O60: 0 | P60: 0 | Q60: 0 | R60: 0 | S60: 0 | T60: 0 | U60: 0 | V60: 0 | W60: 0 | X60: 0 | Y60: 0 | AB60: =Раздел2!#REF! ->  | AC60: =Раздел2!F60 -> 0
B61: Гребля на байдарках и каноэ | C61: 54 | D61: 0 | E61: 0 | F61: 0 | G61: 0 | H61: 0 | I61: 0 | J61: 0 | K61: 0 | L61: 0 | M61: 0 | N61: 0 | O61: 0 | P61: 0 | Q61: 0 | R61: 0 | S61: 0 | T61: 0 | U61: 0 | V61: 0 | W61: 0 | X61: 0 | Y61: 0 | AB61: =Раздел2!#REF! ->  | AC61: =Раздел2!F61 -> 0
B62: Гребля на шлюпках | C62: 55 | D62: 0 | E62: 0 | I62: 0 | M62: 0 | N62: 0 | R62: 0 | V62: 0 | AB62: =Раздел2!#REF! ->  | AC62: =Раздел2!F62 -> 0
B63: Гребной слалом | C63: 56 | D63: 0 | E63: 0 | F63: 0 | G63: 0 | H63: 0 | I63: 0 | J63: 0 | K63: 0 | L63: 0 | M63: 0 | N63: 0 | O63: 0 | P63: 0 | Q63: 0 | R63: 0 | S63: 0 | T63: 0 | U63: 0 | V63: 0 | W63: 0 | X63: 0 | Y63: 0 | AB63: =Раздел2!#REF! ->  | AC63: =Раздел2!F63 -> 0
B64: Гребной спорт - всего | C64: 57 | D64: 0 | E64: 0 | F64: =SUM(F65:F68) -> 0 | G64: =SUM(G65:G68) -> 0 | H64: =SUM(H65:H68) -> 0 | I64: 0 | J64: =SUM(J65:J68) -> 0 | K64: =SUM(K65:K68) -> 0 | L64: =SUM(L65:L68) -> 0 | M64: 0 | N64: 0 | O64: =SUM(O65:O68) -> 0 | P64: =SUM(P65:P68) -> 0 | Q64: =SUM(Q65:Q68) -> 0 | R64: 0 | S64: =SUM(S65:S68) -> 0 | T64: =SUM(T65:T68) -> 0 | U64: =SUM(U65:U68) -> 0 | V64: 0 | W64: =SUM(W65:W68) -> 0 | X64: =SUM(X65:X68) -> 0 | Y64: =SUM(Y65:Y68) -> 0 | AB64: =Раздел2!#REF! ->  | AC64: =Раздел2!F64 -> 0
B65: в том числе: Академическая гребля | C65: 58 | D65: 0 | E65: 0 | F65: 0 | G65: 0 | H65: 0 | I65: 0 | J65: 0 | K65: 0 | L65: 0 | M65: 0 | N65: 0 | O65: 0 | P65: 0 | Q65: 0 | R65: 0 | S65: 0 | T65: 0 | U65: 0 | V65: 0 | W65: 0 | X65: 0 | Y65: 0 | AB65: =Раздел2!#REF! ->  | AC65: =Раздел2!F65 -> 0
B66: Гребля-индор | C66: 59 | D66: 0 | E66: 0 | F66: 0 | G66: 0 | H66: 0 | I66: 0 | J66: 0 | K66: 0 | L66: 0 | M66: 0 | N66: 0 | O66: 0 | P66: 0 | Q66: 0 | R66: 0 | S66: 0 | T66: 0 | U66: 0 | V66: 0 | W66: 0 | X66: 0 | Y66: 0 | AB66: =Раздел2!#REF! ->  | AC66: =Раздел2!F66 -> 0
B67: Народная гребля | C67: 60 | D67: 0 | E67: 0 | F67: 0 | G67: 0 | H67: 0 | I67: 0 | J67: 0 | K67: 0 | L67: 0 | M67: 0 | N67: 0 | O67: 0 | P67: 0 | Q67: 0 | R67: 0 | S67: 0 | T67: 0 | U67: 0 | V67: 0 | W67: 0 | X67: 0 | Y67: 0 | AB67: =Раздел2!#REF! ->  | AC67: =Раздел2!F67 -> 0
B68: Прибрежная гребля | C68: 61 | D68: 0 | E68: 0 | F68: 0 | G68: 0 | H68: 0 | I68: 0 | J68: 0 | K68: 0 | L68: 0 | M68: 0 | N68: 0 | O68: 0 | P68: 0 | Q68: 0 | R68: 0 | S68: 0 | T68: 0 | U68: 0 | V68: 0 | W68: 0 | X68: 0 | Y68: 0 | AB68: =Раздел2!#REF! ->  | AC68: =Раздел2!F68 -> 0
B69: Гребно-парусное двоеборье | C69: 62 | D69: 0 | E69: 0 | F69: 0 | G69: 0 | H69: 0 | I69: 0 | J69: 0 | K69: 0 | L69: 0 | M69: 0 | N69: 0 | O69: 0 | P69: 0 | Q69: 0 | R69: 0 | S69: 0 | T69: 0 | U69: 0 | V69: 0 | W69: 0 | X69: 0 | Y69: 0 | AB69: =Раздел2!#REF! ->  | AC69: =Раздел2!F69 -> 0
B70: Дартс | C70: 63 | D70: 0 | E70: 0 | F70: 0 | G70: 0 | H70: 0 | I70: 0 | J70: 0 | K70: 0 | L70: 0 | M70: 0 | N70: 0 | O70: 0 | P70: 0 | Q70: 0 | R70: 0 | S70: 0 | T70: 0 | U70: 0 | V70: 0 | W70: 0 | X70: 0 | Y70: 0 | AB70: =Раздел2!#REF! ->  | AC70: =Раздел2!F70 -> 0
B71: Джиу-джитсу | C71: 64 | D71: 0 | E71: 0 | F71: 0 | G71: 0 | H71: 0 | I71: 0 | J71: 0 | K71: 0 | L71: 0 | M71: 0 | N71: 0 | O71: 0 | P71: 0 | Q71: 0 | R71: 0 | S71: 0 | T71: 0 | U71: 0 | V71: 0 | W71: 0 | X71: 0 | Y71: 0 | AB71: =Раздел2!#REF! ->  | AC71: =Раздел2!F71 -> 0
B72: Дзюдо | C72: 65 | D72: 115 | E72: 115 | F72: 4 | G72: 3 | H72: 108 | I72: 0 | J72: 0 | K72: 0 | L72: 0 | M72: 79 | N72: 79 | O72: 5 | P72: 0 | Q72: 74 | R72: 0 | S72: 0 | T72: 0 | U72: 0 | V72: 0 | W72: 0 | X72: 0 | Y72: 0 | AB72: =Раздел2!#REF! ->  | AC72: =Раздел2!F72 -> 282
B73: Ездовой спорт | C73: 66 | D73: =E73+I73 -> 0 | E73: =SUM(F73:H73) -> 0 | F73: 0 | G73: 0 | H73: 0 | I73: =SUM(J73:L73) -> 0 | J73: 0 | K73: 0 | L73: 0 | M73: =N73+V73 -> 0 | N73: =SUM(O73:Q73) -> 0 | O73: 0 | P73: 0 | Q73: 0 | R73: =SUM(S73:U73) -> 0 | S73: 0 | T73: 0 | U73: 0 | V73: =SUM(W73:Y73) -> 0 | W73: 0 | X73: 0 | Y73: 0 | AB73: =Раздел2!#REF! ->  | AC73: =Раздел2!F73 -> 0
B74: Капоэйра | C74: 67 | D74: 0 | E74: 0 | F74: 0 | G74: 0 | H74: 0 | I74: 0 | J74: 0 | K74: 0 | L74: 0 | M74: 0 | N74: 0 | O74: 0 | P74: 0 | Q74: 0 | R74: 0 | S74: 0 | T74: 0 | U74: 0 | V74: 0 | W74: 0 | X74: 0 | Y74: 0 | AB74: =Раздел2!#REF! ->  | AC74: =Раздел2!F74 -> 0
B75: Каратэ | C75: 68 | D75: 0 | E75: 0 | F75: 0 | G75: 0 | H75: 0 | I75: 0 | J75: 0 | K75: 0 | L75: 0 | M75: 0 | N75: 0 | O75: 0 | P75: 0 | Q75: 0 | R75: 0 | S75: 0 | T75: 0 | U75: 0 | V75: 0 | W75: 0 | X75: 0 | Y75: 0 | AB75: =Раздел2!#REF! ->  | AC75: =Раздел2!F75 -> 0
B76: Кендо | C76: 69 | D76: 0 | E76: 0 | F76: 0 | G76: 0 | H76: 0 | I76: 0 | J76: 0 | K76: 0 | L76: 0 | M76: 0 | N76: 0 | O76: 0 | P76: 0 | Q76: 0 | R76: 0 | S76: 0 | T76: 0 | U76: 0 | V76: 0 | W76: 0 | X76: 0 | Y76: 0 | AB76: =Раздел2!#REF! ->  | AC76: =Раздел2!F76 -> 0
B77: Керешу | C77: 70 | D77: 0 | E77: 0 | F77: 0 | G77: 0 | H77: 0 | I77: 0 | J77: 0 | K77: 0 | L77: 0 | M77: 0 | N77: 0 | O77: 0 | P77: 0 | Q77: 0 | R77: 0 | S77: 0 | T77: 0 | U77: 0 | V77: 0 | W77: 0 | X77: 0 | Y77: 0 | AB77: =Раздел2!#REF! ->  | AC77: =Раздел2!F77 -> 0
B78: Керлинг - всего | C78: 71 | D78: 0 | E78: 0 | F78: =SUM(F79:F80) -> 0 | G78: =SUM(G79:G80) -> 0 | H78: =SUM(H79:H80) -> 0 | I78: 0 | J78: =SUM(J79:J80) -> 0 | K78: =SUM(K79:K80) -> 0 | L78: =SUM(L79:L80) -> 0 | M78: 0 | N78: 0 | O78: =SUM(O79:O80) -> 0 | P78: =SUM(P79:P80) -> 0 | Q78: =SUM(Q79:Q80) -> 0 | R78: 0 | S78: =SUM(S79:S80) -> 0 | T78: =SUM(T79:T80) -> 0 | U78: =SUM(U79:U80) -> 0 | V78: 0 | W78: =SUM(W79:W80) -> 0 | X78: =SUM(X79:X80) -> 0 | Y78: =SUM(Y79:Y80) -> 0 | AB78: =Раздел2!#REF! ->  | AC78: =Раздел2!F78 -> 0
B79: в том числе: Керлинг (муж.) | C79: 72 | D79: 0 | E79: 0 | F79: 0 | G79: 0 | H79: 0 | I79: 0 | J79: 0 | K79: 0 | L79: 0 | M79: 0 | N79: 0 | O79: 0 | P79: 0 | Q79: 0 | R79: 0 | S79: 0 | T79: 0 | U79: 0 | V79: 0 | W79: 0 | X79: 0 | Y79: 0 | AB79: =Раздел2!#REF! ->  | AC79: =Раздел2!F79 -> 0
B80: Керлинг (жен.) | C80: 73 | D80: 0 | E80: 0 | F80: 0 | G80: 0 | H80: 0 | I80: 0 | J80: 0 | K80: 0 | L80: 0 | M80: 0 | N80: 0 | O80: 0 | P80: 0 | Q80: 0 | R80: 0 | S80: 0 | T80: 0 | U80: 0 | V80: 0 | W80: 0 | X80: 0 | Y80: 0 | AB80: =Раздел2!#REF! ->  | AC80: =Раздел2!F80 -> 0
B81: Кикбоксинг | C81: 74 | D81: 0 | E81: 0 | F81: 0 | G81: 0 | H81: 0 | I81: 0 | J81: 0 | K81: 0 | L81: 0 | M81: 0 | N81: 0 | O81: 0 | P81: 0 | Q81: 0 | R81: 0 | S81: 0 | T81: 0 | U81: 0 | V81: 0 | W81: 0 | X81: 0 | Y81: 0 | AB81: =Раздел2!#REF! ->  | AC81: =Раздел2!F81 -> 0
B82: Кинологический спорт | C82: 75 | D82: 0 | E82: 0 | F82: 0 | G82: 0 | H82: 0 | I82: 0 | J82: 0 | K82: 0 | L82: 0 | M82: 0 | N82: 0 | O82: 0 | P82: 0 | Q82: 0 | R82: 0 | S82: 0 | T82: 0 | U82: 0 | V82: 0 | W82: 0 | X82: 0 | Y82: 0 | AB82: =Раздел2!#REF! ->  | AC82: =Раздел2!F82 -> 0
B83: Киокусинкай | C83: 76 | D83: 0 | E83: 0 | F83: 0 | G83: 0 | H83: 0 | I83: 0 | J83: 0 | K83: 0 | L83: 0 | M83: 0 | N83: 0 | O83: 0 | P83: 0 | Q83: 0 | R83: 0 | S83: 0 | T83: 0 | U83: 0 | V83: 0 | W83: 0 | X83: 0 | Y83: 0 | AB83: =Раздел2!#REF! ->  | AC83: =Раздел2!F83 -> 0
B84: Комплексное единоборство | C84: 77 | D84: 0 | E84: 0 | F84: 0 | G84: 0 | H84: 0 | I84: 0 | J84: 0 | K84: 0 | L84: 0 | M84: 0 | N84: 0 | O84: 0 | P84: 0 | Q84: 0 | R84: 0 | S84: 0 | T84: 0 | U84: 0 | V84: 0 | W84: 0 | X84: 0 | Y84: 0 | AB84: =Раздел2!#REF! ->  | AC84: =Раздел2!F84 -> 0
B85: Компьютерный спорт | C85: 78 | D85: 0 | E85: 0 | F85: 0 | G85: 0 | H85: 0 | I85: 0 | J85: 0 | K85: 0 | L85: 0 | M85: 0 | N85: 0 | O85: 0 | P85: 0 | Q85: 0 | R85: 0 | S85: 0 | T85: 0 | U85: 0 | V85: 0 | W85: 0 | X85: 0 | Y85: 0 | AB85: =Раздел2!#REF! ->  | AC85: =Раздел2!F85 -> 0
B86: Конный спорт | C86: 79 | D86: 0 | E86: 0 | F86: 0 | G86: 0 | H86: 0 | I86: 0 | J86: 0 | K86: 0 | L86: 0 | M86: 0 | N86: 0 | O86: 0 | P86: 0 | Q86: 0 | R86: 0 | S86: 0 | T86: 0 | U86: 0 | V86: 0 | W86: 0 | X86: 0 | Y86: 0 | AB86: =Раздел2!#REF! ->  | AC86: =Раздел2!F86 -> 0
B87: Конькобежный спорт - всего | C87: 80 | D87: 0 | E87: 0 | F87: =SUM(F88:F89) -> 0 | G87: =SUM(G88:G89) -> 0 | H87: =SUM(H88:H89) -> 0 | I87: 0 | J87: =SUM(J88:J89) -> 0 | K87: =SUM(K88:K89) -> 0 | L87: =SUM(L88:L89) -> 0 | M87: 0 | N87: 0 | O87: =SUM(O88:O89) -> 0 | P87: =SUM(P88:P89) -> 0 | Q87: =SUM(Q88:Q89) -> 0 | R87: 0 | S87: =SUM(S88:S89) -> 0 | T87: =SUM(T88:T89) -> 0 | U87: =SUM(U88:U89) -> 0 | V87: 0 | W87: =SUM(W88:W89) -> 0 | X87: =SUM(X88:X89) -> 0 | Y87: =SUM(Y88:Y89) -> 0 | AB87: =Раздел2!#REF! ->  | AC87: =Раздел2!F87 -> 0
B88: в том числе: Конькобежный спорт | C88: 81 | D88: 0 | E88: 0 | F88: 0 | G88: 0 | H88: 0 | I88: 0 | J88: 0 | K88: 0 | L88: 0 | M88: 0 | N88: 0 | O88: 0 | P88: 0 | Q88: 0 | R88: 0 | S88: 0 | T88: 0 | U88: 0 | V88: 0 | W88: 0 | X88: 0 | Y88: 0 | AB88: =Раздел2!#REF! ->  | AC88: =Раздел2!F88 -> 0
B89: Шорт-трек | C89: 82 | D89: 0 | E89: 0 | F89: 0 | G89: 0 | H89: 0 | I89: 0 | J89: 0 | K89: 0 | L89: 0 | M89: 0 | N89: 0 | O89: 0 | P89: 0 | Q89: 0 | R89: 0 | S89: 0 | T89: 0 | U89: 0 | V89: 0 | W89: 0 | X89: 0 | Y89: 0 | AB89: =Раздел2!#REF! ->  | AC89: =Раздел2!F89 -> 0
B90: Корэш | C90: 83 | D90: 0 | E90: 0 | F90: 0 | G90: 0 | H90: 0 | I90: 0 | J90: 0 | K90: 0 | L90: 0 | M90: 0 | N90: 0 | O90: 0 | P90: 0 | Q90: 0 | R90: 0 | S90: 0 | T90: 0 | U90: 0 | V90: 0 | W90: 0 | X90: 0 | Y90: 0 | AB90: =Раздел2!#REF! ->  | AC90: =Раздел2!F90 -> 0
B91: Корфбол | C91: 84 | D91: 0 | E91: 0 | F91: 0 | G91: 0 | H91: 0 | I91: 0 | J91: 0 | K91: 0 | L91: 0 | M91: 0 | N91: 0 | O91: 0 | P91: 0 | Q91: 0 | R91: 0 | S91: 0 | T91: 0 | U91: 0 | V91: 0 | W91: 0 | X91: 0 | Y91: 0 | AB91: =Раздел2!#REF! ->  | AC91: =Раздел2!F91 -> 0
B92: Лапта | C92: 85 | D92: 0 | E92: 0 | F92: 0 | G92: 0 | H92: 0 | I92: 0 | J92: 0 | K92: 0 | L92: 0 | M92: 0 | N92: 0 | O92: 0 | P92: 0 | Q92: 0 | R92: 0 | S92: 0 | T92: 0 | U92: 0 | V92: 0 | W92: 0 | X92: 0 | Y92: 0 | AB92: =Раздел2!#REF! ->  | AC92: =Раздел2!F92 -> 0
B93: Легкая атлетика - всего | C93: 86 | D93: 0 | E93: 0 | F93: =SUM(F94:F100) -> 0 | G93: =SUM(G94:G100) -> 0 | H93: =SUM(H94:H100) -> 0 | I93: 0 | J93: =SUM(J94:J100) -> 0 | K93: =SUM(K94:K100) -> 0 | L93: =SUM(L94:L100) -> 0 | M93: 0 | N93: 0 | O93: =SUM(O94:O100) -> 0 | P93: =SUM(P94:P100) -> 0 | Q93: =SUM(Q94:Q100) -> 0 | R93: 0 | S93: =SUM(S94:S100) -> 0 | T93: =SUM(T94:T100) -> 0 | U93: =SUM(U94:U100) -> 0 | V93: 0 | W93: =SUM(W94:W100) -> 0 | X93: =SUM(X94:X100) -> 0 | Y93: =SUM(Y94:Y100) -> 0 | AB93: =Раздел2!#REF! ->  | AC93: =Раздел2!F93 -> 187
B94: в том числе: Спринтерский и барьерный бег | C94: 87 | D94: 0 | E94: 0 | F94: 0 | G94: 0 | H94: 0 | I94: 0 | J94: 0 | K94: 0 | L94: 0 | M94: 0 | N94: 0 | O94: 0 | P94: 0 | Q94: 0 | R94: 0 | S94: 0 | T94: 0 | U94: 0 | V94: 0 | W94: 0 | X94: 0 | Y94: 0 | AB94: =Раздел2!#REF! ->  | AC94: =Раздел2!F94 -> 0
B95: Бег на средние дистанции и бег с препятствиями | C95: 88 | D95: 0 | E95: 0 | F95: 0 | G95: 0 | H95: 0 | I95: 0 | J95: 0 | K95: 0 | L95: 0 | M95: 0 | N95: 0 | O95: 0 | P95: 0 | Q95: 0 | R95: 0 | S95: 0 | T95: 0 | U95: 0 | V95: 0 | W95: 0 | X95: 0 | Y95: 0 | AB95: =Раздел2!#REF! ->  | AC95: =Раздел2!F95 -> 0
B96: Бег на длинные и сверхдлинные дистанции | C96: 89 | D96: 0 | E96: 0 | F96: 0 | G96: 0 | H96: 0 | I96: 0 | J96: 0 | K96: 0 | L96: 0 | M96: 0 | N96: 0 | O96: 0 | P96: 0 | Q96: 0 | R96: 0 | S96: 0 | T96: 0 | U96: 0 | V96: 0 | W96: 0 | X96: 0 | Y96: 0 | AB96: =Раздел2!#REF! ->  | AC96: =Раздел2!F96 -> 0
B97: Многоборья | C97: 90 | D97: 0 | E97: 0 | F97: 0 | G97: 0 | H97: 0 | I97: 0 | J97: 0 | K97: 0 | L97: 0 | M97: 0 | N97: 0 | O97: 0 | P97: 0 | Q97: 0 | R97: 0 | S97: 0 | T97: 0 | U97: 0 | V97: 0 | W97: 0 | X97: 0 | Y97: 0 | AB97: =Раздел2!#REF! ->  | AC97: =Раздел2!F97 -> 187
B98: Прыжки | C98: 91 | D98: 0 | E98: 0 | F98: 0 | G98: 0 | H98: 0 | I98: 0 | J98: 0 | K98: 0 | L98: 0 | M98: 0 | N98: 0 | O98: 0 | P98: 0 | Q98: 0 | R98: 0 | S98: 0 | T98: 0 | U98: 0 | V98: 0 | W98: 0 | X98: 0 | Y98: 0 | AB98: =Раздел2!#REF! ->  | AC98: =Раздел2!F98 -> 0
B99: Метания | C99: 92 | D99: 0 | E99: 0 | F99: 0 | G99: 0 | H99: 0 | I99: 0 | J99: 0 | K99: 0 | L99: 0 | M99: 0 | N99: 0 | O99: 0 | P99: 0 | Q99: 0 | R99: 0 | S99: 0 | T99: 0 | U99: 0 | V99: 0 | W99: 0 | X99: 0 | Y99: 0 | AB99: =Раздел2!#REF! ->  | AC99: =Раздел2!F99 -> 0
B100: Спортивная ходьба | C100: 93 | D100: 0 | E100: 0 | F100: 0 | G100: 0 | H100: 0 | I100: 0 | J100: 0 | K100: 0 | L100: 0 | M100: 0 | N100: 0 | O100: 0 | P100: 0 | Q100: 0 | R100: 0 | S100: 0 | T100: 0 | U100: 0 | V100: 0 | W100: 0 | X100: 0 | Y100: 0 | AB100: =Раздел2!#REF! ->  | AC100: =Раздел2!F100 -> 0
B101: Лыжное двоеборье | C101: 94 | D101: 0 | E101: 0 | F101: 0 | G101: 0 | H101: 0 | I101: 0 | J101: 0 | K101: 0 | L101: 0 | M101: 0 | N101: 0 | O101: 0 | P101: 0 | Q101: 0 | R101: 0 | S101: 0 | T101: 0 | U101: 0 | V101: 0 | W101: 0 | X101: 0 | Y101: 0 | AB101: =Раздел2!#REF! ->  | AC101: =Раздел2!F101 -> 0
B102: Лыжные гонки | C102: 95 | D102: 0 | E102: 0 | F102: 0 | G102: 0 | H102: 0 | I102: 0 | J102: 0 | K102: 0 | L102: 0 | M102: 0 | N102: 0 | O102: 0 | P102: 0 | Q102: 0 | R102: 0 | S102: 0 | T102: 0 | U102: 0 | V102: 0 | W102: 0 | X102: 0 | Y102: 0 | AB102: =Раздел2!#REF! ->  | AC102: =Раздел2!F102 -> 0
B103: Мас-рестлинг | C103: 96 | D103: 0 | E103: 0 | F103: 0 | G103: 0 | H103: 0 | I103: 0 | J103: 0 | K103: 0 | L103: 0 | M103: 0 | N103: 0 | O103: 0 | P103: 0 | Q103: 0 | R103: 0 | S103: 0 | T103: 0 | U103: 0 | V103: 0 | W103: 0 | X103: 0 | Y103: 0 | AB103: =Раздел2!#REF! ->  | AC103: =Раздел2!F103 -> 0
B104: Международное военно-спортивное многоборье | C104: 97 | D104: 0 | E104: 0 | F104: 0 | G104: 0 | H104: 0 | I104: 0 | J104: 0 | K104: 0 | L104: 0 | M104: 0 | N104: 0 | O104: 0 | P104: 0 | Q104: 0 | R104: 0 | S104: 0 | T104: 0 | U104: 0 | V104: 0 | W104: 0 | X104: 0 | Y104: 0 | AB104: =Раздел2!#REF! ->  | AC104: =Раздел2!F104 -> 0
B105: Многоборье кинологов | C105: 98 | D105: 0 | E105: 0 | F105: 0 | G105: 0 | H105: 0 | I105: 0 | J105: 0 | K105: 0 | L105: 0 | M105: 0 | N105: 0 | O105: 0 | P105: 0 | Q105: 0 | R105: 0 | S105: 0 | T105: 0 | U105: 0 | V105: 0 | W105: 0 | X105: 0 | Y105: 0 | AB105: =Раздел2!#REF! ->  | AC105: =Раздел2!F105 -> 0
B106: Многоборье спасателей МЧС России | C106: 99 | D106: 0 | E106: 0 | F106: 0 | G106: 0 | H106: 0 | I106: 0 | J106: 0 | K106: 0 | L106: 0 | M106: 0 | N106: 0 | O106: 0 | P106: 0 | Q106: 0 | R106: 0 | S106: 0 | T106: 0 | U106: 0 | V106: 0 | W106: 0 | X106: 0 | Y106: 0 | AB106: =Раздел2!#REF! ->  | AC106: =Раздел2!F106 -> 0
B107: Морское многоборье | C107: 100 | D107: 0 | E107: 0 | F107: 0 | G107: 0 | H107: 0 | I107: 0 | J107: 0 | K107: 0 | L107: 0 | M107: 0 | N107: 0 | O107: 0 | P107: 0 | Q107: 0 | R107: 0 | S107: 0 | T107: 0 | U107: 0 | V107: 0 | W107: 0 | X107: 0 | Y107: 0 | AB107: =Раздел2!#REF! ->  | AC107: =Раздел2!F107 -> 0
B108: Мотоциклетный спорт | C108: 101 | D108: 0 | E108: 0 | F108: 0 | G108: 0 | H108: 0 | I108: 0 | J108: 0 | K108: 0 | L108: 0 | M108: 0 | N108: 0 | O108: 0 | P108: 0 | Q108: 0 | R108: 0 | S108: 0 | T108: 0 | U108: 0 | V108: 0 | W108: 0 | X108: 0 | Y108: 0 | AB108: =Раздел2!#REF! ->  | AC108: =Раздел2!F108 -> 0
B109: Настольный теннис | C109: 102 | D109: 0 | E109: 0 | F109: 0 | G109: 0 | H109: 0 | I109: 0 | J109: 0 | K109: 0 | L109: 0 | M109: 0 | N109: 0 | O109: 0 | P109: 0 | Q109: 0 | R109: 0 | S109: 0 | T109: 0 | U109: 0 | V109: 0 | W109: 0 | X109: 0 | Y109: 0 | AB109: =Раздел2!#REF! ->  | AC109: =Раздел2!F109 -> 0
B110: Парашютный спорт | C110: 103 | D110: 0 | E110: 0 | F110: 0 | G110: 0 | H110: 0 | I110: 0 | J110: 0 | K110: 0 | L110: 0 | M110: 0 | N110: 0 | O110: 0 | P110: 0 | Q110: 0 | R110: 0 | S110: 0 | T110: 0 | U110: 0 | V110: 0 | W110: 0 | X110: 0 | Y110: 0 | AB110: =Раздел2!#REF! ->  | AC110: =Раздел2!F110 -> 0
B111: Парусный спорт | C111: 104 | D111: 0 | E111: 0 | F111: 0 | G111: 0 | H111: 0 | I111: 0 | J111: 0 | K111: 0 | L111: 0 | M111: 0 | N111: 0 | O111: 0 | P111: 0 | Q111: 0 | R111: 0 | S111: 0 | T111: 0 | U111: 0 | V111: 0 | W111: 0 | X111: 0 | Y111: 0 | AB111: =Раздел2!#REF! ->  | AC111: =Раздел2!F111 -> 0
B112: Пауэрлифтинг | C112: 105 | D112: 0 | E112: 0 | F112: 0 | G112: 0 | H112: 0 | I112: 0 | J112: 0 | K112: 0 | L112: 0 | M112: 0 | N112: 0 | O112: 0 | P112: 0 | Q112: 0 | R112: 0 | S112: 0 | T112: 0 | U112: 0 | V112: 0 | W112: 0 | X112: 0 | Y112: 0 | AB112: =Раздел2!#REF! ->  | AC112: =Раздел2!F112 -> 0
B113: Перетягивание каната | C113: 106 | D113: 0 | E113: 0 | F113: 0 | G113: 0 | H113: 0 | I113: 0 | J113: 0 | K113: 0 | L113: 0 | M113: 0 | N113: 0 | O113: 0 | P113: 0 | Q113: 0 | R113: 0 | S113: 0 | T113: 0 | U113: 0 | V113: 0 | W113: 0 | X113: 0 | Y113: 0 | AB113: =Раздел2!#REF! ->  | AC113: =Раздел2!F113 -> 0
B114: Петанк | C114: 107 | D114: 0 | E114: 0 | F114: 0 | G114: 0 | H114: 0 | I114: 0 | J114: 0 | K114: 0 | L114: 0 | M114: 0 | N114: 0 | O114: 0 | P114: 0 | Q114: 0 | R114: 0 | S114: 0 | T114: 0 | U114: 0 | V114: 0 | W114: 0 | X114: 0 | Y114: 0 | AB114: =Раздел2!#REF! ->  | AC114: =Раздел2!F114 -> 0
B115: Плавание - всего | C115: 108 | D115: 0 | E115: 0 | F115: =SUM(F116:F117) -> 0 | G115: =SUM(G116:G117) -> 0 | H115: =SUM(H116:H117) -> 0 | I115: 0 | J115: =SUM(J116:J117) -> 0 | K115: =SUM(K116:K117) -> 0 | L115: =SUM(L116:L117) -> 0 | M115: 0 | N115: 0 | O115: =SUM(O116:O117) -> 0 | P115: =SUM(P116:P117) -> 0 | Q115: =SUM(Q116:Q117) -> 0 | R115: 0 | S115: =SUM(S116:S117) -> 0 | T115: =SUM(T116:T117) -> 0 | U115: =SUM(U116:U117) -> 0 | V115: 0 | W115: =SUM(W116:W117) -> 0 | X115: =SUM(X116:X117) -> 0 | Y115: =SUM(Y116:Y117) -> 0 | AB115: =Раздел2!#REF! ->  | AC115: =Раздел2!F115 -> 0
B116: в том числе: Плавание | C116: 109 | D116: 0 | E116: 0 | F116: 0 | G116: 0 | H116: 0 | I116: 0 | J116: 0 | K116: 0 | L116: 0 | M116: 0 | N116: 0 | O116: 0 | P116: 0 | Q116: 0 | R116: 0 | S116: 0 | T116: 0 | U116: 0 | V116: 0 | W116: 0 | X116: 0 | Y116: 0 | AB116: =Раздел2!#REF! ->  | AC116: =Раздел2!F116 -> 0
B117: Открытая вода | C117: 110 | D117: 0 | E117: 0 | F117: 0 | G117: 0 | H117: 0 | I117: 0 | J117: 0 | K117: 0 | L117: 0 | M117: 0 | N117: 0 | O117: 0 | P117: 0 | Q117: 0 | R117: 0 | S117: 0 | T117: 0 | U117: 0 | V117: 0 | W117: 0 | X117: 0 | Y117: 0 | AB117: =Раздел2!#REF! ->  | AC117: =Раздел2!F117 -> 0
B118: Планерный спорт | C118: 111 | D118: 0 | E118: 0 | F118: 0 | G118: 0 | H118: 0 | I118: 0 | J118: 0 | K118: 0 | L118: 0 | M118: 0 | N118: 0 | O118: 0 | P118: 0 | Q118: 0 | R118: 0 | S118: 0 | T118: 0 | U118: 0 | V118: 0 | W118: 0 | X118: 0 | Y118: 0 | AB118: =Раздел2!#REF! ->  | AC118: =Раздел2!F118 -> 0
B119: Подводный спорт | C119: 112 | D119: 0 | E119: 0 | F119: 0 | G119: 0 | H119: 0 | I119: 0 | J119: 0 | K119: 0 | L119: 0 | M119: 0 | N119: 0 | O119: 0 | P119: 0 | Q119: 0 | R119: 0 | S119: 0 | T119: 0 | U119: 0 | V119: 0 | W119: 0 | X119: 0 | Y119: 0 | AB119: =Раздел2!#REF! ->  | AC119: =Раздел2!F119 -> 0
B120: Пожарно-прикладной спорт | C120: 113 | D120: 0 | E120: 0 | F120: 0 | G120: 0 | H120: 0 | I120: 0 | J120: 0 | K120: 0 | L120: 0 | M120: 0 | N120: 0 | O120: 0 | P120: 0 | Q120: 0 | R120: 0 | S120: 0 | T120: 0 | U120: 0 | V120: 0 | W120: 0 | X120: 0 | Y120: 0 | AB120: =Раздел2!#REF! ->  | AC120: =Раздел2!F120 -> 0
B121: Полиатлон | C121: 114 | D121: 0 | E121: 0 | F121: 0 | G121: 0 | H121: 0 | I121: 0 | J121: 0 | K121: 0 | L121: 0 | M121: 0 | N121: 0 | O121: 0 | P121: 0 | Q121: 0 | R121: 0 | S121: 0 | T121: 0 | U121: 0 | V121: 0 | W121: 0 | X121: 0 | Y121: 0 | AB121: =Раздел2!#REF! ->  | AC121: =Раздел2!F121 -> 0
B122: Практическая стрельба | C122: 115 | D122: 0 | E122: 0 | F122: 0 | G122: 0 | H122: 0 | I122: 0 | J122: 0 | K122: 0 | L122: 0 | M122: 0 | N122: 0 | O122: 0 | P122: 0 | Q122: 0 | R122: 0 | S122: 0 | T122: 0 | U122: 0 | V122: 0 | W122: 0 | X122: 0 | Y122: 0 | AB122: =Раздел2!#REF! ->  | AC122: =Раздел2!F122 -> 0
B123: Прыжки в воду - всего | C123: 116 | D123: 0 | E123: 0 | F123: =SUM(F124:F125) -> 0 | G123: =SUM(G124:G125) -> 0 | H123: =SUM(H124:H125) -> 0 | I123: 0 | J123: =SUM(J124:J125) -> 0 | K123: =SUM(K124:K125) -> 0 | L123: =SUM(L124:L125) -> 0 | M123: 0 | N123: 0 | O123: =SUM(O124:O125) -> 0 | P123: =SUM(P124:P125) -> 0 | Q123: =SUM(Q124:Q125) -> 0 | R123: 0 | S123: =SUM(S124:S125) -> 0 | T123: =SUM(T124:T125) -> 0 | U123: =SUM(U124:U125) -> 0 | V123: 0 | W123: =SUM(W124:W125) -> 0 | X123: =SUM(X124:X125) -> 0 | Y123: =SUM(Y124:Y125) -> 0 | AB123: =Раздел2!#REF! ->  | AC123: =Раздел2!F123 -> 0
B124: в том числе: Прыжки в воду | C124: 117 | D124: 0 | E124: 0 | F124: 0 | G124: 0 | H124: 0 | I124: 0 | J124: 0 | K124: 0 | L124: 0 | M124: 0 | N124: 0 | O124: 0 | P124: 0 | Q124: 0 | R124: 0 | S124: 0 | T124: 0 | U124: 0 | V124: 0 | W124: 0 | X124: 0 | Y124: 0 | AB124: =Раздел2!#REF! ->  | AC124: =Раздел2!F124 -> 0
B125: Прыжки в открытый водоем | C125: 118 | D125: 0 | E125: 0 | F125: 0 | G125: 0 | H125: 0 | I125: 0 | J125: 0 | K125: 0 | L125: 0 | M125: 0 | N125: 0 | O125: 0 | P125: 0 | Q125: 0 | R125: 0 | S125: 0 | T125: 0 | U125: 0 | V125: 0 | W125: 0 | X125: 0 | Y125: 0 | AB125: =Раздел2!#REF! ->  | AC125: =Раздел2!F125 -> 0
B126: Прыжки на батуте - всего | C126: 119 | D126: 0 | E126: 0 | F126: =SUM(F127:F130) -> 0 | G126: =SUM(G127:G130) -> 0 | H126: =SUM(H127:H130) -> 0 | I126: 0 | J126: =SUM(J127:J130) -> 0 | K126: =SUM(K127:K130) -> 0 | L126: =SUM(L127:L130) -> 0 | M126: 0 | N126: 0 | O126: =SUM(O127:O130) -> 0 | P126: =SUM(P127:P130) -> 0 | Q126: =SUM(Q127:Q130) -> 0 | R126: 0 | S126: =SUM(S127:S130) -> 0 | T126: =SUM(T127:T130) -> 0 | U126: =SUM(U127:U130) -> 0 | V126: 0 | W126: =SUM(W127:W130) -> 0 | X126: =SUM(X127:X130) -> 0 | Y126: =SUM(Y127:Y130) -> 0 | AB126: =Раздел2!#REF! ->  | AC126: =Раздел2!F126 -> 0
B127: в том числе: Акробатическая дорожка | C127: 120 | D127: 0 | E127: 0 | F127: 0 | G127: 0 | H127: 0 | I127: 0 | J127: 0 | K127: 0 | L127: 0 | M127: 0 | N127: 0 | O127: 0 | P127: 0 | Q127: 0 | R127: 0 | S127: 0 | T127: 0 | U127: 0 | V127: 0 | W127: 0 | X127: 0 | Y127: 0 | AB127: =Раздел2!#REF! ->  | AC127: =Раздел2!F127 -> 0
B128: Двойной минитрамп | C128: 121 | D128: 0 | E128: 0 | F128: 0 | G128: 0 | H128: 0 | I128: 0 | J128: 0 | K128: 0 | L128: 0 | M128: 0 | N128: 0 | O128: 0 | P128: 0 | Q128: 0 | R128: 0 | S128: 0 | T128: 0 | U128: 0 | V128: 0 | W128: 0 | X128: 0 | Y128: 0 | AB128: =Раздел2!#REF! ->  | AC128: =Раздел2!F128 -> 0
B129: Индивидуальные прыжки | C129: 122 | D129: 0 | E129: 0 | F129: 0 | G129: 0 | H129: 0 | I129: 0 | J129: 0 | K129: 0 | L129: 0 | M129: 0 | N129: 0 | O129: 0 | P129: 0 | Q129: 0 | R129: 0 | S129: 0 | T129: 0 | U129: 0 | V129: 0 | W129: 0 | X129: 0 | Y129: 0 | AB129: =Раздел2!#REF! ->  | AC129: =Раздел2!F129 -> 0
B130: Синхронные прыжки | C130: 123 | D130: 0 | E130: 0 | F130: 0 | G130: 0 | H130: 0 | I130: 0 | J130: 0 | K130: 0 | L130: 0 | M130: 0 | N130: 0 | O130: 0 | P130: 0 | Q130: 0 | R130: 0 | S130: 0 | T130: 0 | U130: 0 | V130: 0 | W130: 0 | X130: 0 | Y130: 0 | AB130: =Раздел2!#REF! ->  | AC130: =Раздел2!F130 -> 0
B131: Прыжки на лыжах с трамплина | C131: 124 | D131: 0 | E131: 0 | F131: 0 | G131: 0 | H131: 0 | I131: 0 | J131: 0 | K131: 0 | L131: 0 | M131: 0 | N131: 0 | O131: 0 | P131: 0 | Q131: 0 | R131: 0 | S131: 0 | T131: 0 | U131: 0 | V131: 0 | W131: 0 | X131: 0 | Y131: 0 | AB131: =Раздел2!#REF! ->  | AC131: =Раздел2!F131 -> 0
B132: Пулевая стрельба - всего | C132: 125 | D132: 0 | E132: 0 | F132: =SUM(F133:F137) -> 0 | G132: =SUM(G133:G137) -> 0 | H132: =SUM(H133:H137) -> 0 | I132: 0 | J132: =SUM(J133:J137) -> 0 | K132: =SUM(K133:K137) -> 0 | L132: =SUM(L133:L137) -> 0 | M132: 0 | N132: 0 | O132: =SUM(O133:O137) -> 0 | P132: =SUM(P133:P137) -> 0 | Q132: =SUM(Q133:Q137) -> 0 | R132: 0 | S132: =SUM(S133:S137) -> 0 | T132: =SUM(T133:T137) -> 0 | U132: =SUM(U133:U137) -> 0 | V132: 0 | W132: =SUM(W133:W137) -> 0 | X132: =SUM(X133:X137) -> 0 | Y132: =SUM(Y133:Y137) -> 0 | AB132: =Раздел2!#REF! ->  | AC132: =Раздел2!F132 -> 0
B133: в том числе: Пневматическая винтовка | C133: 126 | D133: 0 | E133: 0 | F133: 0 | G133: 0 | H133: 0 | I133: 0 | J133: 0 | K133: 0 | L133: 0 | M133: 0 | N133: 0 | O133: 0 | P133: 0 | Q133: 0 | R133: 0 | S133: 0 | T133: 0 | U133: 0 | V133: 0 | W133: 0 | X133: 0 | Y133: 0 | AB133: =Раздел2!#REF! ->  | AC133: =Раздел2!F133 -> 0
B134: Пневматический пистолет | C134: 127 | D134: 0 | E134: 0 | F134: 0 | G134: 0 | H134: 0 | I134: 0 | J134: 0 | K134: 0 | L134: 0 | M134: 0 | N134: 0 | O134: 0 | P134: 0 | Q134: 0 | R134: 0 | S134: 0 | T134: 0 | U134: 0 | V134: 0 | W134: 0 | X134: 0 | Y134: 0 | AB134: =Раздел2!#REF! ->  | AC134: =Раздел2!F134 -> 0
B135: Малокалиберная винтовка | C135: 128 | D135: 0 | E135: 0 | F135: 0 | G135: 0 | H135: 0 | I135: 0 | J135: 0 | K135: 0 | L135: 0 | M135: 0 | N135: 0 | O135: 0 | P135: 0 | Q135: 0 | R135: 0 | S135: 0 | T135: 0 | U135: 0 | V135: 0 | W135: 0 | X135: 0 | Y135: 0 | AB135: =Раздел2!#REF! ->  | AC135: =Раздел2!F135 -> 0
B136: Малокалиберный пистолет | C136: 129 | D136: 0 | E136: 0 | F136: 0 | G136: 0 | H136: 0 | I136: 0 | J136: 0 | K136: 0 | L136: 0 | M136: 0 | N136: 0 | O136: 0 | P136: 0 | Q136: 0 | R136: 0 | S136: 0 | T136: 0 | U136: 0 | V136: 0 | W136: 0 | X136: 0 | Y136: 0 | AB136: =Раздел2!#REF! ->  | AC136: =Раздел2!F136 -> 0
B137: Движущаяся мишень | C137: 130 | D137: =E137+I137 -> 0 | E137: =SUM(F137:H137) -> 0 | F137: 0 | G137: 0 | H137: 0 | I137: =SUM(J137:L137) -> 0 | J137: 0 | K137: 0 | L137: 0 | M137: =N137+V137 -> 0 | N137: =SUM(O137:Q137) -> 0 | O137: 0 | P137: 0 | Q137: 0 | R137: =SUM(S137:U137) -> 0 | S137: 0 | T137: 0 | U137: 0 | V137: =SUM(W137:Y137) -> 0 | W137: 0 | X137: 0 | Y137: 0 | AB137: =Раздел2!#REF! ->  | AC137: =Раздел2!F137 -> 0
B138: Пэйнтбол | C138: 131 | D138: 0 | E138: 0 | F138: 0 | G138: 0 | H138: 0 | I138: 0 | J138: 0 | K138: 0 | L138: 0 | M138: 0 | N138: 0 | O138: 0 | P138: 0 | Q138: 0 | R138: 0 | S138: 0 | T138: 0 | U138: 0 | V138: 0 | W138: 0 | X138: 0 | Y138: 0 | AB138: =Раздел2!#REF! ->  | AC138: =Раздел2!F138 -> 0
B139: Радиоспорт | C139: 132 | D139: 0 | E139: 0 | F139: 0 | G139: 0 | H139: 0 | I139: 0 | J139: 0 | K139: 0 | L139: 0 | M139: 0 | N139: 0 | O139: 0 | P139: 0 | Q139: 0 | R139: 0 | S139: 0 | T139: 0 | U139: 0 | V139: 0 | W139: 0 | X139: 0 | Y139: 0 | AB139: =Раздел2!#REF! ->  | AC139: =Раздел2!F139 -> 0
B140: Рафтинг | C140: 133 | D140: 0 | E140: 0 | F140: 0 | G140: 0 | H140: 0 | I140: 0 | J140: 0 | K140: 0 | L140: 0 | M140: 0 | N140: 0 | O140: 0 | P140: 0 | Q140: 0 | R140: 0 | S140: 0 | T140: 0 | U140: 0 | V140: 0 | W140: 0 | X140: 0 | Y140: 0 | AB140: =Раздел2!#REF! ->  | AC140: =Раздел2!F140 -> 0
B141: Регби - всего | C141: 134 | D141: 0 | E141: 0 | F141: =SUM(F142:F145) -> 0 | G141: =SUM(G142:G145) -> 0 | H141: =SUM(H142:H145) -> 0 | I141: 0 | J141: =SUM(J142:J145) -> 0 | K141: =SUM(K142:K145) -> 0 | L141: =SUM(L142:L145) -> 0 | M141: 0 | N141: 0 | O141: =SUM(O142:O145) -> 0 | P141: =SUM(P142:P145) -> 0 | Q141: =SUM(Q142:Q145) -> 0 | R141: 0 | S141: =SUM(S142:S145) -> 0 | T141: =SUM(T142:T145) -> 0 | U141: =SUM(U142:U145) -> 0 | V141: 0 | W141: =SUM(W142:W145) -> 0 | X141: =SUM(X142:X145) -> 0 | Y141: =SUM(Y142:Y145) -> 0 | AB141: =Раздел2!#REF! ->  | AC141: =Раздел2!F141 -> 0
B142: в том числе: Регби | C142: 135 | D142: 0 | E142: 0 | F142: 0 | G142: 0 | H142: 0 | I142: 0 | J142: 0 | K142: 0 | L142: 0 | M142: 0 | N142: 0 | O142: 0 | P142: 0 | Q142: 0 | R142: 0 | S142: 0 | T142: 0 | U142: 0 | V142: 0 | W142: 0 | X142: 0 | Y142: 0 | AB142: =Раздел2!#REF! ->  | AC142: =Раздел2!F142 -> 0
B143: Регби 7 (муж.) | C143: 136 | D143: 0 | E143: 0 | F143: 0 | G143: 0 | H143: 0 | I143: 0 | J143: 0 | K143: 0 | L143: 0 | M143: 0 | N143: 0 | O143: 0 | P143: 0 | Q143: 0 | R143: 0 | S143: 0 | T143: 0 | U143: 0 | V143: 0 | W143: 0 | X143: 0 | Y143: 0 | AB143: =Раздел2!#REF! ->  | AC143: =Раздел2!F143 -> 0
B144: Регби 7 (жен.) | C144: 137 | D144: 0 | E144: 0 | F144: 0 | G144: 0 | H144: 0 | I144: 0 | J144: 0 | K144: 0 | L144: 0 | M144: 0 | N144: 0 | O144: 0 | P144: 0 | Q144: 0 | R144: 0 | S144: 0 | T144: 0 | U144: 0 | V144: 0 | W144: 0 | X144: 0 | Y144: 0 | AB144: =Раздел2!#REF! ->  | AC144: =Раздел2!F144 -> 0
B145: Регби - пляжное | C145: 138 | D145: 0 | E145: 0 | F145: 0 | G145: 0 | H145: 0 | I145: 0 | J145: 0 | K145: 0 | L145: 0 | M145: 0 | N145: 0 | O145: 0 | P145: 0 | Q145: 0 | R145: 0 | S145: 0 | T145: 0 | U145: 0 | V145: 0 | W145: 0 | X145: 0 | Y145: 0 | AB145: =Раздел2!#REF! ->  | AC145: =Раздел2!F145 -> 0
B146: Регбол | C146: 139 | D146: 0 | E146: 0 | F146: 0 | G146: 0 | H146: 0 | I146: 0 | J146: 0 | K146: 0 | L146: 0 | M146: 0 | N146: 0 | O146: 0 | P146: 0 | Q146: 0 | R146: 0 | S146: 0 | T146: 0 | U146: 0 | V146: 0 | W146: 0 | X146: 0 | Y146: 0 | AB146: =Раздел2!#REF! ->  | AC146: =Раздел2!F146 -> 0
B147: Роллер спорт | C147: 140 | D147: 0 | E147: 0 | F147: 0 | G147: 0 | H147: 0 | I147: 0 | J147: 0 | K147: 0 | L147: 0 | M147: 0 | N147: 0 | O147: 0 | P147: 0 | Q147: 0 | R147: 0 | S147: 0 | T147: 0 | U147: 0 | V147: 0 | W147: 0 | X147: 0 | Y147: 0 | AB147: =Раздел2!#REF! ->  | AC147: =Раздел2!F147 -> 0
B148: Рукопашный бой | C148: 141 | D148: 0 | E148: 0 | F148: 0 | G148: 0 | H148: 0 | I148: 0 | J148: 0 | K148: 0 | L148: 0 | M148: 0 | N148: 0 | O148: 0 | P148: 0 | Q148: 0 | R148: 0 | S148: 0 | T148: 0 | U148: 0 | V148: 0 | W148: 0 | X148: 0 | Y148: 0 | AB148: =Раздел2!#REF! ->  | AC148: =Раздел2!F148 -> 0
B149: Рыболовный спорт | C149: 142 | D149: 0 | E149: 0 | F149: 0 | G149: 0 | H149: 0 | I149: 0 | J149: 0 | K149: 0 | L149: 0 | M149: 0 | N149: 0 | O149: 0 | P149: 0 | Q149: 0 | R149: 0 | S149: 0 | T149: 0 | U149: 0 | V149: 0 | W149: 0 | X149: 0 | Y149: 0 | AB149: =Раздел2!#REF! ->  | AC149: =Раздел2!F149 -> 0
B150: Сават | C150: 143 | D150: 0 | E150: 0 | F150: 0 | G150: 0 | H150: 0 | I150: 0 | J150: 0 | K150: 0 | L150: 0 | M150: 0 | N150: 0 | O150: 0 | P150: 0 | Q150: 0 | R150: 0 | S150: 0 | T150: 0 | U150: 0 | V150: 0 | W150: 0 | X150: 0 | Y150: 0 | AB150: =Раздел2!#REF! ->  | AC150: =Раздел2!F150 -> 0
B151: Самбо | C151: 144 | D151: 0 | E151: 0 | F151: 0 | G151: 0 | H151: 0 | I151: 0 | J151: 0 | K151: 0 | L151: 0 | M151: 0 | N151: 0 | O151: 0 | P151: 0 | Q151: 0 | R151: 0 | S151: 0 | T151: 0 | U151: 0 | V151: 0 | W151: 0 | X151: 0 | Y151: 0 | AB151: =Раздел2!#REF! ->  | AC151: =Раздел2!F151 -> 0
B152: Самолетный спорт | C152: 145 | D152: 0 | E152: 0 | F152: 0 | G152: 0 | H152: 0 | I152: 0 | J152: 0 | K152: 0 | L152: 0 | M152: 0 | N152: 0 | O152: 0 | P152: 0 | Q152: 0 | R152: 0 | S152: 0 | T152: 0 | U152: 0 | V152: 0 | W152: 0 | X152: 0 | Y152: 0 | AB152: =Раздел2!#REF! ->  | AC152: =Раздел2!F152 -> 0
B153: Санный спорт | C153: 146 | D153: 0 | E153: 0 | F153: 0 | G153: 0 | H153: 0 | I153: 0 | J153: 0 | K153: 0 | L153: 0 | M153: 0 | N153: 0 | O153: 0 | P153: 0 | Q153: 0 | R153: 0 | S153: 0 | T153: 0 | U153: 0 | V153: 0 | W153: 0 | X153: 0 | Y153: 0 | AB153: =Раздел2!#REF! ->  | AC153: =Раздел2!F153 -> 0
B154: Северное многоборье | C154: 147 | D154: 0 | E154: 0 | F154: 0 | G154: 0 | H154: 0 | I154: 0 | J154: 0 | K154: 0 | L154: 0 | M154: 0 | N154: 0 | O154: 0 | P154: 0 | Q154: 0 | R154: 0 | S154: 0 | T154: 0 | U154: 0 | V154: 0 | W154: 0 | X154: 0 | Y154: 0 | AB154: =Раздел2!#REF! ->  | AC154: =Раздел2!F154 -> 0
B155: Серфинг | C155: 148 | D155: 0 | E155: 0 | F155: 0 | G155: 0 | H155: 0 | I155: 0 | J155: 0 | K155: 0 | L155: 0 | M155: 0 | N155: 0 | O155: 0 | P155: 0 | Q155: 0 | R155: 0 | S155: 0 | T155: 0 | U155: 0 | V155: 0 | W155: 0 | X155: 0 | Y155: 0 | AB155: =Раздел2!#REF! ->  | AC155: =Раздел2!F155 -> 0
B156: Синхронное плавание | C156: 149 | D156: 0 | E156: 0 | F156: 0 | G156: 0 | H156: 0 | I156: 0 | J156: 0 | K156: 0 | L156: 0 | M156: 0 | N156: 0 | O156: 0 | P156: 0 | Q156: 0 | R156: 0 | S156: 0 | T156: 0 | U156: 0 | V156: 0 | W156: 0 | X156: 0 | Y156: 0 | AB156: =Раздел2!#REF! ->  | AC156: =Раздел2!F156 -> 0
B157: Скалолазание | C157: 150 | D157: 0 | E157: 0 | F157: 0 | G157: 0 | H157: 0 | I157: 0 | J157: 0 | K157: 0 | L157: 0 | M157: 0 | N157: 0 | O157: 0 | P157: 0 | Q157: 0 | R157: 0 | S157: 0 | T157: 0 | U157: 0 | V157: 0 | W157: 0 | X157: 0 | Y157: 0 | AB157: =Раздел2!#REF! ->  | AC157: =Раздел2!F157 -> 0
B158: Скейтбординг | C158: 151 | D158: 0 | E158: 0 | F158: 0 | G158: 0 | H158: 0 | I158: 0 | J158: 0 | K158: 0 | L158: 0 | M158: 0 | N158: 0 | O158: 0 | P158: 0 | Q158: 0 | R158: 0 | S158: 0 | T158: 0 | U158: 0 | V158: 0 | W158: 0 | X158: 0 | Y158: 0 | AB158: =Раздел2!#REF! ->  | AC158: =Раздел2!F158 -> 0
B159: Сквош | C159: 152 | D159: 0 | E159: 0 | F159: 0 | G159: 0 | H159: 0 | I159: 0 | J159: 0 | K159: 0 | L159: 0 | M159: 0 | N159: 0 | O159: 0 | P159: 0 | Q159: 0 | R159: 0 | S159: 0 | T159: 0 | U159: 0 | V159: 0 | W159: 0 | X159: 0 | Y159: 0 | AB159: =Раздел2!#REF! ->  | AC159: =Раздел2!F159 -> 0
B160: Служебно-прикладной спорт ФСО России | C160: 153 | D160: 0 | E160: 0 | F160: 0 | G160: 0 | H160: 0 | I160: 0 | J160: 0 | K160: 0 | L160: 0 | M160: 0 | N160: 0 | O160: 0 | P160: 0 | Q160: 0 | R160: 0 | S160: 0 | T160: 0 | U160: 0 | V160: 0 | W160: 0 | X160: 0 | Y160: 0 | AB160: =Раздел2!#REF! ->  | AC160: =Раздел2!F160 -> 0
B161: Служебно-прикладной спорт ГФС России | C161: 154 | D161: 0 | E161: 0 | F161: 0 | G161: 0 | H161: 0 | I161: 0 | J161: 0 | K161: 0 | L161: 0 | M161: 0 | N161: 0 | O161: 0 | P161: 0 | Q161: 0 | R161: 0 | S161: 0 | T161: 0 | U161: 0 | V161: 0 | W161: 0 | X161: 0 | Y161: 0 | AB161: =Раздел2!#REF! ->  | AC161: =Раздел2!F161 -> 0
B162: Служебно-прикладной спорт ФСКН России | C162: 155 | D162: 0 | E162: 0 | F162: 0 | G162: 0 | H162: 0 | I162: 0 | J162: 0 | K162: 0 | L162: 0 | M162: 0 | N162: 0 | O162: 0 | P162: 0 | Q162: 0 | R162: 0 | S162: 0 | T162: 0 | U162: 0 | V162: 0 | W162: 0 | X162: 0 | Y162: 0 | AB162: =Раздел2!#REF! ->  | AC162: =Раздел2!F162 -> 0
B163: Служебно-прикладной спорт ФТС России | C163: 156 | D163: 0 | E163: 0 | F163: 0 | G163: 0 | H163: 0 | I163: 0 | J163: 0 | K163: 0 | L163: 0 | M163: 0 | N163: 0 | O163: 0 | P163: 0 | Q163: 0 | R163: 0 | S163: 0 | T163: 0 | U163: 0 | V163: 0 | W163: 0 | X163: 0 | Y163: 0 | AB163: =Раздел2!#REF! ->  | AC163: =Раздел2!F163 -> 0
B164: Служебное двоеборье | C164: 157 | D164: 0 | E164: 0 | F164: 0 | G164: 0 | H164: 0 | I164: 0 | J164: 0 | K164: 0 | L164: 0 | M164: 0 | N164: 0 | O164: 0 | P164: 0 | Q164: 0 | R164: 0 | S164: 0 | T164: 0 | U164: 0 | V164: 0 | W164: 0 | X164: 0 | Y164: 0 | AB164: =Раздел2!#REF! ->  | AC164: =Раздел2!F164 -> 0
B165: Служебное единоборство | C165: 158 | D165: 0 | E165: 0 | F165: 0 | G165: 0 | H165: 0 | I165: 0 | J165: 0 | K165: 0 | L165: 0 | M165: 0 | N165: 0 | O165: 0 | P165: 0 | Q165: 0 | R165: 0 | S165: 0 | T165: 0 | U165: 0 | V165: 0 | W165: 0 | X165: 0 | Y165: 0 | AB165: =Раздел2!#REF! ->  | AC165: =Раздел2!F165 -> 0
B166: Служебное многоборье | C166: 159 | D166: 0 | E166: 0 | F166: 0 | G166: 0 | H166: 0 | I166: 0 | J166: 0 | K166: 0 | L166: 0 | M166: 0 | N166: 0 | O166: 0 | P166: 0 | Q166: 0 | R166: 0 | S166: 0 | T166: 0 | U166: 0 | V166: 0 | W166: 0 | X166: 0 | Y166: 0 | AB166: =Раздел2!#REF! ->  | AC166: =Раздел2!F166 -> 0
B167: Служебное собаководство | C167: 160 | D167: 0 | E167: 0 | F167: 0 | G167: 0 | H167: 0 | I167: 0 | J167: 0 | K167: 0 | L167: 0 | M167: 0 | N167: 0 | O167: 0 | P167: 0 | Q167: 0 | R167: 0 | S167: 0 | T167: 0 | U167: 0 | V167: 0 | W167: 0 | X167: 0 | Y167: 0 | AB167: =Раздел2!#REF! ->  | AC167: =Раздел2!F167 -> 0
B168: Служебный биатлон | C168: 161 | D168: 0 | E168: 0 | F168: 0 | G168: 0 | H168: 0 | I168: 0 | J168: 0 | K168: 0 | L168: 0 | M168: 0 | N168: 0 | O168: 0 | P168: 0 | Q168: 0 | R168: 0 | S168: 0 | T168: 0 | U168: 0 | V168: 0 | W168: 0 | X168: 0 | Y168: 0 | AB168: =Раздел2!#REF! ->  | AC168: =Раздел2!F168 -> 0
B169: Спасательный спорт | C169: 162 | D169: 0 | E169: 0 | F169: 0 | G169: 0 | H169: 0 | I169: 0 | J169: 0 | K169: 0 | L169: 0 | M169: 0 | N169: 0 | O169: 0 | P169: 0 | Q169: 0 | R169: 0 | S169: 0 | T169: 0 | U169: 0 | V169: 0 | W169: 0 | X169: 0 | Y169: 0 | AB169: =Раздел2!#REF! ->  | AC169: =Раздел2!F169 -> 0
B170: Стрельба из боевого ручного стрелкового оружия | C170: 163 | D170: 0 | E170: 0 | F170: 0 | G170: 0 | H170: 0 | I170: 0 | J170: 0 | K170: 0 | L170: 0 | M170: 0 | N170: 0 | O170: 0 | P170: 0 | Q170: 0 | R170: 0 | S170: 0 | T170: 0 | U170: 0 | V170: 0 | W170: 0 | X170: 0 | Y170: 0 | AB170: =Раздел2!#REF! ->  | AC170: =Раздел2!F170 -> 0
B171: Стрельба из штатного или табельного оружия | C171: 164 | D171: 0 | E171: 0 | F171: 0 | G171: 0 | H171: 0 | I171: 0 | J171: 0 | K171: 0 | L171: 0 | M171: 0 | N171: 0 | O171: 0 | P171: 0 | Q171: 0 | R171: 0 | S171: 0 | T171: 0 | U171: 0 | V171: 0 | W171: 0 | X171: 0 | Y171: 0 | AB171: =Раздел2!#REF! ->  | AC171: =Раздел2!F171 -> 0
B172: Смешанное боевое единоборство (ММА) | C172: 165 | D172: 0 | E172: 0 | F172: 0 | G172: 0 | H172: 0 | I172: 0 | J172: 0 | K172: 0 | L172: 0 | M172: 0 | N172: 0 | O172: 0 | P172: 0 | Q172: 0 | R172: 0 | S172: 0 | T172: 0 | U172: 0 | V172: 0 | W172: 0 | X172: 0 | Y172: 0 | AB172: =Раздел2!#REF! ->  | AC172: =Раздел2!F172 -> 0
B173: Сноуборд | C173: 166 | D173: 0 | E173: 0 | F173: 0 | G173: 0 | H173: 0 | I173: 0 | J173: 0 | K173: 0 | L173: 0 | M173: 0 | N173: 0 | O173: 0 | P173: 0 | Q173: 0 | R173: 0 | S173: 0 | T173: 0 | U173: 0 | V173: 0 | W173: 0 | X173: 0 | Y173: 0 | AB173: =Раздел2!#REF! ->  | AC173: =Раздел2!F173 -> 0
B174: Современное пятиборье | C174: 167 | D174: 0 | E174: 0 | F174: 0 | G174: 0 | H174: 0 | I174: 0 | J174: 0 | K174: 0 | L174: 0 | M174: 0 | N174: 0 | O174: 0 | P174: 0 | Q174: 0 | R174: 0 | S174: 0 | T174: 0 | U174: 0 | V174: 0 | W174: 0 | X174: 0 | Y174: 0 | AB174: =Раздел2!#REF! ->  | AC174: =Раздел2!F174 -> 0
B175: Софтбол | C175: 168 | D175: 0 | E175: 0 | F175: 0 | G175: 0 | H175: 0 | I175: 0 | J175: 0 | K175: 0 | L175: 0 | M175: 0 | N175: 0 | O175: 0 | P175: 0 | Q175: 0 | R175: 0 | S175: 0 | T175: 0 | U175: 0 | V175: 0 | W175: 0 | X175: 0 | Y175: 0 | AB175: =Раздел2!#REF! ->  | AC175: =Раздел2!F175 -> 0
B176: Спорт сверхлегкой авиации | C176: 169 | D176: 0 | E176: 0 | F176: 0 | G176: 0 | H176: 0 | I176: 0 | J176: 0 | K176: 0 | L176: 0 | M176: 0 | N176: 0 | O176: 0 | P176: 0 | Q176: 0 | R176: 0 | S176: 0 | T176: 0 | U176: 0 | V176: 0 | W176: 0 | X176: 0 | Y176: 0 | AB176: =Раздел2!#REF! ->  | AC176: =Раздел2!F176 -> 0
B177: Спортивная акробатика | C177: 170 | D177: 0 | E177: 0 | F177: 0 | G177: 0 | H177: 0 | I177: 0 | J177: 0 | K177: 0 | L177: 0 | M177: 0 | N177: 0 | O177: 0 | P177: 0 | Q177: 0 | R177: 0 | S177: 0 | T177: 0 | U177: 0 | V177: 0 | W177: 0 | X177: 0 | Y177: 0 | AB177: =Раздел2!#REF! ->  | AC177: =Раздел2!F177 -> 0
B178: Спортивная аэробика | C178: 171 | D178: 31 | E178: 31 | F178: 0 | G178: 0 | H178: 31 | I178: 0 | J178: 0 | K178: 0 | L178: 0 | M178: 19 | N178: 19 | O178: 0 | P178: 0 | Q178: 19 | R178: 0 | S178: 0 | T178: 0 | U178: 0 | V178: 0 | W178: 0 | X178: 0 | Y178: 0 | AB178: =Раздел2!#REF! ->  | AC178: =Раздел2!F178 -> 297
B179: Спортивная борьба - всего | C179: 172 | D179: 0 | E179: 0 | F179: =SUM(F180:F184) -> 0 | G179: =SUM(G180:G184) -> 0 | H179: =SUM(H180:H184) -> 0 | I179: 0 | J179: =SUM(J180:J184) -> 0 | K179: =SUM(K180:K184) -> 0 | L179: =SUM(L180:L184) -> 0 | M179: 0 | N179: 0 | O179: =SUM(O180:O184) -> 0 | P179: =SUM(P180:P184) -> 0 | Q179: =SUM(Q180:Q184) -> 0 | R179: 0 | S179: =SUM(S180:S184) -> 0 | T179: =SUM(T180:T184) -> 0 | U179: =SUM(U180:U184) -> 0 | V179: 0 | W179: =SUM(W180:W184) -> 0 | X179: =SUM(X180:X184) -> 0 | Y179: =SUM(Y180:Y184) -> 0 | AB179: =Раздел2!#REF! ->  | AC179: =Раздел2!F179 -> 0
B180: в том числе: Вольная борьба | C180: 173 | D180: 0 | E180: 0 | F180: 0 | G180: 0 | H180: 0 | I180: 0 | J180: 0 | K180: 0 | L180: 0 | M180: 0 | N180: 0 | O180: 0 | P180: 0 | Q180: 0 | R180: 0 | S180: 0 | T180: 0 | U180: 0 | V180: 0 | W180: 0 | X180: 0 | Y180: 0 | AB180: =Раздел2!#REF! ->  | AC180: =Раздел2!F180 -> 0
B181: Греко-римская борьба | C181: 174 | D181: 0 | E181: 0 | F181: 0 | G181: 0 | H181: 0 | I181: 0 | J181: 0 | K181: 0 | L181: 0 | M181: 0 | N181: 0 | O181: 0 | P181: 0 | Q181: 0 | R181: 0 | S181: 0 | T181: 0 | U181: 0 | V181: 0 | W181: 0 | X181: 0 | Y181: 0 | AB181: =Раздел2!#REF! ->  | AC181: =Раздел2!F181 -> 0
B182: Грэпплинг | C182: 175 | D182: 0 | E182: 0 | F182: 0 | G182: 0 | H182: 0 | I182: 0 | J182: 0 | K182: 0 | L182: 0 | M182: 0 | N182: 0 | O182: 0 | P182: 0 | Q182: 0 | R182: 0 | S182: 0 | T182: 0 | U182: 0 | V182: 0 | W182: 0 | X182: 0 | Y182: 0 | AB182: =Раздел2!#REF! ->  | AC182: =Раздел2!F182 -> 0
B183: Грэпплинг-ги | C183: 176 | D183: 0 | E183: 0 | F183: 0 | G183: 0 | H183: 0 | I183: 0 | J183: 0 | K183: 0 | L183: 0 | M183: 0 | N183: 0 | O183: 0 | P183: 0 | Q183: 0 | R183: 0 | S183: 0 | T183: 0 | U183: 0 | V183: 0 | W183: 0 | X183: 0 | Y183: 0 | AB183: =Раздел2!#REF! ->  | AC183: =Раздел2!F183 -> 0
B184: Панкратион | C184: 177 | D184: 0 | E184: 0 | F184: 0 | G184: 0 | H184: 0 | I184: 0 | J184: 0 | K184: 0 | L184: 0 | M184: 0 | N184: 0 | O184: 0 | P184: 0 | Q184: 0 | R184: 0 | S184: 0 | T184: 0 | U184: 0 | V184: 0 | W184: 0 | X184: 0 | Y184: 0 | AB184: =Раздел2!#REF! ->  | AC184: =Раздел2!F184 -> 0
B185: Спортивно-прикладное собаководство | C185: 178 | D185: 0 | E185: 0 | F185: 0 | G185: 0 | H185: 0 | I185: 0 | J185: 0 | K185: 0 | L185: 0 | M185: 0 | N185: 0 | O185: 0 | P185: 0 | Q185: 0 | R185: 0 | S185: 0 | T185: 0 | U185: 0 | V185: 0 | W185: 0 | X185: 0 | Y185: 0 | AB185: =Раздел2!#REF! ->  | AC185: =Раздел2!F185 -> 0
B186: Спортивная гимнастика | C186: 179 | D186: 0 | E186: 0 | F186: 0 | G186: 0 | H186: 0 | I186: 0 | J186: 0 | K186: 0 | L186: 0 | M186: 0 | N186: 0 | O186: 0 | P186: 0 | Q186: 0 | R186: 0 | S186: 0 | T186: 0 | U186: 0 | V186: 0 | W186: 0 | X186: 0 | Y186: 0 | AB186: =Раздел2!#REF! ->  | AC186: =Раздел2!F186 -> 0
B187: Спортивное ориентирование | C187: 180 | D187: 0 | E187: 0 | F187: 0 | G187: 0 | H187: 0 | I187: 0 | J187: 0 | K187: 0 | L187: 0 | M187: 0 | N187: 0 | O187: 0 | P187: 0 | Q187: 0 | R187: 0 | S187: 0 | T187: 0 | U187: 0 | V187: 0 | W187: 0 | X187: 0 | Y187: 0 | AB187: =Раздел2!#REF! ->  | AC187: =Раздел2!F187 -> 0
B188: Спортивный бридж | C188: 181 | D188: 0 | E188: 0 | F188: 0 | G188: 0 | H188: 0 | I188: 0 | J188: 0 | K188: 0 | L188: 0 | M188: 0 | N188: 0 | O188: 0 | P188: 0 | Q188: 0 | R188: 0 | S188: 0 | T188: 0 | U188: 0 | V188: 0 | W188: 0 | X188: 0 | Y188: 0 | AB188: =Раздел2!#REF! ->  | AC188: =Раздел2!F188 -> 0
B189: Спортивный туризм | C189: 182 | D189: 0 | E189: 0 | F189: 0 | G189: 0 | H189: 0 | I189: 0 | J189: 0 | K189: 0 | L189: 0 | M189: 0 | N189: 0 | O189: 0 | P189: 0 | Q189: 0 | R189: 0 | S189: 0 | T189: 0 | U189: 0 | V189: 0 | W189: 0 | X189: 0 | Y189: 0 | AB189: =Раздел2!#REF! ->  | AC189: =Раздел2!F189 -> 0
B190: Стендовая стрельба - всего | C190: 183 | D190: 0 | E190: 0 | F190: =SUM(F191:F194) -> 0 | G190: =SUM(G191:G194) -> 0 | H190: =SUM(H191:H194) -> 0 | I190: 0 | J190: =SUM(J191:J194) -> 0 | K190: =SUM(K191:K194) -> 0 | L190: =SUM(L191:L194) -> 0 | M190: 0 | N190: 0 | O190: =SUM(O191:O194) -> 0 | P190: =SUM(P191:P194) -> 0 | Q190: =SUM(Q191:Q194) -> 0 | R190: 0 | S190: =SUM(S191:S194) -> 0 | T190: =SUM(T191:T194) -> 0 | U190: =SUM(U191:U194) -> 0 | V190: 0 | W190: =SUM(W191:W194) -> 0 | X190: =SUM(X191:X194) -> 0 | Y190: =SUM(Y191:Y194) -> 0 | AB190: =Раздел2!#REF! ->  | AC190: =Раздел2!F190 -> 0
B191: в том числе: Трап | C191: 184 | D191: 0 | E191: 0 | F191: 0 | G191: 0 | H191: 0 | I191: 0 | J191: 0 | K191: 0 | L191: 0 | M191: 0 | N191: 0 | O191: 0 | P191: 0 | Q191: 0 | R191: 0 | S191: 0 | T191: 0 | U191: 0 | V191: 0 | W191: 0 | X191: 0 | Y191: 0 | AB191: =Раздел2!#REF! ->  | AC191: =Раздел2!F191 -> 0
B192: Скит | C192: 185 | D192: 0 | E192: 0 | F192: 0 | G192: 0 | H192: 0 | I192: 0 | J192: 0 | K192: 0 | L192: 0 | M192: 0 | N192: 0 | O192: 0 | P192: 0 | Q192: 0 | R192: 0 | S192: 0 | T192: 0 | U192: 0 | V192: 0 | W192: 0 | X192: 0 | Y192: 0 | AB192: =Раздел2!#REF! ->  | AC192: =Раздел2!F192 -> 0
B193: Дубль-трап | C193: 186 | D193: 0 | E193: 0 | F193: 0 | G193: 0 | H193: 0 | I193: 0 | J193: 0 | K193: 0 | L193: 0 | M193: 0 | N193: 0 | O193: 0 | P193: 0 | Q193: 0 | R193: 0 | S193: 0 | T193: 0 | U193: 0 | V193: 0 | W193: 0 | X193: 0 | Y193: 0 | AB193: =Раздел2!#REF! ->  | AC193: =Раздел2!F193 -> 0
B194: Спортинг | C194: 187 | D194: 0 | E194: 0 | F194: 0 | G194: 0 | H194: 0 | I194: 0 | J194: 0 | K194: 0 | L194: 0 | M194: 0 | N194: 0 | O194: 0 | P194: 0 | Q194: 0 | R194: 0 | S194: 0 | T194: 0 | U194: 0 | V194: 0 | W194: 0 | X194: 0 | Y194: 0 | AB194: =Раздел2!#REF! ->  | AC194: =Раздел2!F194 -> 0
B195: Стрельба из арбалета | C195: 188 | D195: 0 | E195: 0 | F195: 0 | G195: 0 | H195: 0 | I195: 0 | J195: 0 | K195: 0 | L195: 0 | M195: 0 | N195: 0 | O195: 0 | P195: 0 | Q195: 0 | R195: 0 | S195: 0 | T195: 0 | U195: 0 | V195: 0 | W195: 0 | X195: 0 | Y195: 0 | AB195: =Раздел2!#REF! ->  | AC195: =Раздел2!F195 -> 0
B196: Стрельба из лука - всего | C196: 189 | D196: 0 | E196: 0 | F196: =SUM(F197:F199) -> 0 | G196: =SUM(G197:G199) -> 0 | H196: =SUM(H197:H199) -> 0 | I196: 0 | J196: =SUM(J197:J199) -> 0 | K196: =SUM(K197:K199) -> 0 | L196: =SUM(L197:L199) -> 0 | M196: 0 | N196: 0 | O196: =SUM(O197:O199) -> 0 | P196: =SUM(P197:P199) -> 0 | Q196: =SUM(Q197:Q199) -> 0 | R196: 0 | S196: =SUM(S197:S199) -> 0 | T196: =SUM(T197:T199) -> 0 | U196: =SUM(U197:U199) -> 0 | V196: 0 | W196: =SUM(W197:W199) -> 0 | X196: =SUM(X197:X199) -> 0 | Y196: =SUM(Y197:Y199) -> 0 | AB196: =Раздел2!#REF! ->  | AC196: =Раздел2!F196 -> 0
B197: в том числе: Классический лук | C197: 190 | D197: 0 | E197: 0 | F197: 0 | G197: 0 | H197: 0 | I197: 0 | J197: 0 | K197: 0 | L197: 0 | M197: 0 | N197: 0 | O197: 0 | P197: 0 | Q197: 0 | R197: 0 | S197: 0 | T197: 0 | U197: 0 | V197: 0 | W197: 0 | X197: 0 | Y197: 0 | AB197: =Раздел2!#REF! ->  | AC197: =Раздел2!F197 -> 0
B198: Блочный лук | C198: 191 | D198: 0 | E198: 0 | F198: 0 | G198: 0 | H198: 0 | I198: 0 | J198: 0 | K198: 0 | L198: 0 | M198: 0 | N198: 0 | O198: 0 | P198: 0 | Q198: 0 | R198: 0 | S198: 0 | T198: 0 | U198: 0 | V198: 0 | W198: 0 | X198: 0 | Y198: 0 | AB198: =Раздел2!#REF! ->  | AC198: =Раздел2!F198 -> 0
B199: Ачери | C199: 192 | D199: 0 | E199: 0 | F199: 0 | G199: 0 | H199: 0 | I199: 0 | J199: 0 | K199: 0 | L199: 0 | M199: 0 | N199: 0 | O199: 0 | P199: 0 | Q199: 0 | R199: 0 | S199: 0 | T199: 0 | U199: 0 | V199: 0 | W199: 0 | X199: 0 | Y199: 0 | AB199: =Раздел2!#REF! ->  | AC199: =Раздел2!F199 -> 0
B200: Судомодельный спорт | C200: 193 | D200: 0 | E200: 0 | F200: 0 | G200: 0 | H200: 0 | I200: 0 | J200: 0 | K200: 0 | L200: 0 | M200: 0 | N200: 0 | O200: 0 | P200: 0 | Q200: 0 | R200: 0 | S200: 0 | T200: 0 | U200: 0 | V200: 0 | W200: 0 | X200: 0 | Y200: 0 | AB200: =Раздел2!#REF! ->  | AC200: =Раздел2!F200 -> 0
... 49 more rows

Sheet Раздел5
B1: Раздел V. Занимающиеся – кандидаты в спортивные сборные команды России
B2: Код по ОКЕИ: человек 792
B3: Виды спорта | C3: № строки | D3: Из числа занимающихся (гр. 5 раздела II) – кандидаты, состоящие в списках спортивных сборных команд | J3: Кандидаты, подготовленные в отчетном году
D4: Юношеский состав | F4: Юниорский состав | H4: Основной состав | J4: Юношеский состав | L4: Юниорский состав | N4: Основной состав
D5: основной | E5: резерв | F5: основной | G5: резерв | H5: основной | I5: резерв | J5: основной | K5: резерв | L5: основной | M5: резерв | N5: основной | O5: резерв
B6: 1 | C6: 2 | D6: 3 | E6: 4 | F6: 5 | G6: 6 | H6: 7 | I6: 8 | J6: 9 | K6: 10 | L6: 11 | M6: 12 | N6: 13 | O6: 14
B7: Авиамодельный спорт | C7: 01 | R7: =Раздел2!F8 -> 0
B8: Автомобильный спорт | C8: 02 | R8: =Раздел2!F9 -> 0
B9: Автомодельный спорт | C9: 03 | R9: =Раздел2!F10 -> 0
B10: Айкидо | C10: 04 | R10: =Раздел2!F11 -> 0
B11: Айсшток | C11: 05 | R11: =Раздел2!F12 -> 0
B12: Акробатический рок-н-ролл | C12: 06 | R12: =Раздел2!F13 -> 0
B13: Альпинизм | C13: 07 | D13: 0 | E13: 0 | F13: 0 | G13: 0 | H13: 0 | I13: 0 | J13: 0 | K13: 0 | L13: 0 | M13: 0 | N13: 0 | O13: 0 | R13: =Раздел2!F14 -> 0
B14: Американский футбол | C14: 08 | D14: 0 | E14: 0 | F14: 0 | G14: 0 | H14: 0 | I14: 0 | J14: 0 | K14: 0 | L14: 0 | M14: 0 | N14: 0 | O14: 0 | R14: =Раздел2!F15 -> 0
B15: Армейский рукопашный бой | C15: 09 | R15: =Раздел2!F16 -> 0
B16: Армрестлинг | C16: 10 | D16: 0 | E16: 0 | F16: 0 | G16: 0 | H16: 0 | I16: 0 | J16: 0 | K16: 0 | L16: 0 | M16: 0 | N16: 0 | O16: 0 | R16: =Раздел2!F17 -> 0
B17: Бадминтон | C17: 11 | D17: 0 | E17: 0 | F17: 0 | G17: 0 | H17: 0 | I17: 0 | J17: 0 | K17: 0 | L17: 0 | M17: 0 | N17: 0 | O17: 0 | R17: =Раздел2!F18 -> 0
B18: Баскетбол - всего | C18: 12 | D18: =SUM(D19:D20) -> 0 | E18: 0 | F18: 0 | G18: 0 | H18: 0 | I18: 0 | J18: 0 | K18: 0 | L18: 0 | M18: 0 | N18: 0 | O18: 0 | R18: =Раздел2!F19 -> 134
B19: в том числе: Баскетбол (муж.) | C19: 13 | D19: 0 | E19: 0 | F19: 0 | G19: 0 | H19: 0 | I19: 0 | J19: 0 | K19: 0 | L19: 0 | M19: 0 | N19: 0 | O19: 0 | R19: =Раздел2!F20 -> 93
B20: Баскетбол (жен.) | C20: 14 | R20: =Раздел2!F21 -> 41
B21: Бейсбол | C21: 15 | D21: 0 | E21: 0 | F21: 0 | G21: 0 | H21: 0 | I21: 0 | J21: 0 | K21: 0 | L21: 0 | M21: 0 | N21: 0 | O21: 0 | R21: =Раздел2!F22 -> 0
B22: Биатлон | C22: 16 | D22: 0 | E22: 0 | F22: 0 | G22: 0 | H22: 0 | I22: 0 | J22: 0 | K22: 0 | L22: 0 | M22: 0 | N22: 0 | O22: 0 | R22: =Раздел2!F23 -> 0
B23: Бильярдный спорт | C23: 17 | D23: 0 | E23: 0 | F23: 0 | G23: 0 | H23: 0 | I23: 0 | J23: 0 | K23: 0 | L23: 0 | M23: 0 | N23: 0 | O23: 0 | R23: =Раздел2!F24 -> 0
B24: Бобслей - всего | C24: 18 | D24: =SUM(D25:D26) -> 0 | E24: 0 | F24: 0 | G24: 0 | H24: 0 | I24: 0 | J24: 0 | K24: 0 | L24: 0 | M24: 0 | N24: 0 | O24: 0 | R24: =Раздел2!F25 -> 0
B25: в том числе: Бобслей | C25: 19 | D25: 0 | E25: 0 | F25: 0 | G25: 0 | H25: 0 | I25: 0 | J25: 0 | K25: 0 | L25: 0 | M25: 0 | N25: 0 | O25: 0 | R25: =Раздел2!F26 -> 0
B26: Скелетон | C26: 20 | D26: 0 | E26: 0 | F26: 0 | G26: 0 | H26: 0 | I26: 0 | J26: 0 | K26: 0 | L26: 0 | M26: 0 | N26: 0 | O26: 0 | R26: =Раздел2!F27 -> 0
B27: Бодибилдинг | C27: 21 | D27: 0 | E27: 0 | F27: 0 | G27: 0 | H27: 0 | I27: 0 | J27: 0 | K27: 0 | L27: 0 | M27: 0 | N27: 0 | O27: 0 | R27: =Раздел2!F28 -> 0
B28: Бокс | C28: 22 | D28: 0 | E28: 0 | F28: 0 | G28: 0 | H28: 0 | I28: 0 | J28: 0 | K28: 0 | L28: 0 | M28: 0 | N28: 0 | O28: 0 | R28: =Раздел2!F29 -> 90
B29: Борьба на поясах | C29: 23 | D29: 0 | E29: 0 | F29: 0 | G29: 0 | H29: 0 | I29: 0 | J29: 0 | K29: 0 | L29: 0 | M29: 0 | N29: 0 | O29: 0 | R29: =Раздел2!F30 -> 0
B30: Боулинг | C30: 24 | D30: 0 | E30: 0 | F30: 0 | G30: 0 | H30: 0 | I30: 0 | J30: 0 | K30: 0 | L30: 0 | M30: 0 | N30: 0 | O30: 0 | R30: =Раздел2!F31 -> 0
B31: Велоспорт ВМХ | C31: 25 | D31: 0 | E31: 0 | F31: 0 | G31: 0 | H31: 0 | I31: 0 | J31: 0 | K31: 0 | L31: 0 | M31: 0 | N31: 0 | O31: 0 | R31: =Раздел2!F32 -> 0
B32: Велоспорт – маунтинбайк | C32: 26 | D32: 0 | E32: 0 | F32: 0 | G32: 0 | H32: 0 | I32: 0 | J32: 0 | K32: 0 | L32: 0 | M32: 0 | N32: 0 | O32: 0 | R32: =Раздел2!F33 -> 0
B33: Велоспорт – трек | C33: 27 | D33: 0 | E33: 0 | F33: 0 | G33: 0 | H33: 0 | I33: 0 | J33: 0 | K33: 0 | L33: 0 | M33: 0 | N33: 0 | O33: 0 | R33: =Раздел2!F34 -> 0
B34: Велоспорт – шоссе | C34: 28 | D34: 0 | E34: 0 | F34: 0 | G34: 0 | H34: 0 | I34: 0 | J34: 0 | K34: 0 | L34: 0 | M34: 0 | N34: 0 | O34: 0 | R34: =Раздел2!F35 -> 0
B35: Вертолетный спорт | C35: 29 | D35: 0 | E35: 0 | F35: 0 | G35: 0 | H35: 0 | I35: 0 | J35: 0 | K35: 0 | L35: 0 | M35: 0 | N35: 0 | O35: 0 | R35: =Раздел2!F36 -> 0
B36: Водно-моторный спорт | C36: 30 | D36: 0 | E36: 0 | F36: 0 | G36: 0 | H36: 0 | I36: 0 | J36: 0 | K36: 0 | L36: 0 | M36: 0 | N36: 0 | O36: 0 | R36: =Раздел2!F37 -> 0
B37: Водное поло - всего | C37: 31 | D37: =SUM(D38:D39) -> 0 | E37: 0 | F37: 0 | G37: 0 | H37: 0 | I37: 0 | J37: 0 | K37: 0 | L37: 0 | M37: 0 | N37: 0 | O37: 0 | R37: =Раздел2!F38 -> 0
B38: в том числе: Водное поло (муж.) | C38: 32 | R38: =Раздел2!F39 -> 0
B39: Водное поло (жен.) | C39: 33 | R39: =Раздел2!F40 -> 0
B40: Воднолыжный спорт | C40: 34 | R40: =Раздел2!F41 -> 0
B41: Военно-прикладной спорт | C41: 35 | R41: =Раздел2!F42 -> 0
B42: Военно-спортивное многоборье | C42: 36 | R42: =Раздел2!F43 -> 0
B43: Воздухоплавательный спорт | C43: 37 | D43: 0 | E43: 0 | F43: 0 | G43: 0 | H43: 0 | I43: 0 | J43: 0 | K43: 0 | L43: 0 | M43: 0 | N43: 0 | O43: 0 | R43: =Раздел2!F44 -> 0
B44: Волейбол - всего | C44: 38 | D44: =SUM(D45:D48) -> 0 | E44: 0 | F44: 0 | G44: 0 | H44: 0 | I44: 0 | J44: 0 | K44: 0 | L44: 0 | M44: 0 | N44: 0 | O44: 0 | R44: =Раздел2!F45 -> 80
B45: в том числе: Волейбол (муж.) | C45: 39 | D45: 0 | E45: 0 | F45: 0 | G45: 0 | H45: 0 | I45: 0 | J45: 0 | K45: 0 | L45: 0 | M45: 0 | N45: 0 | O45: 0 | R45: =Раздел2!F46 -> 21
B46: Волейбол (жен.) | C46: 40 | R46: =Раздел2!F47 -> 59
B47: Пляжный волейбол (муж.) | C47: 41 | D47: 0 | E47: 0 | F47: 0 | G47: 0 | H47: 0 | I47: 0 | J47: 0 | K47: 0 | L47: 0 | M47: 0 | N47: 0 | O47: 0 | R47: =Раздел2!F48 -> 0
B48: Пляжный волейбол (жен.) | C48: 42 | D48: 0 | E48: 0 | F48: 0 | G48: 0 | H48: 0 | I48: 0 | J48: 0 | K48: 0 | L48: 0 | M48: 0 | N48: 0 | O48: 0 | R48: =Раздел2!F49 -> 0
B49: Восточное боевое единоборство | C49: 43 | D49: 0 | E49: 0 | F49: 0 | G49: 0 | H49: 0 | I49: 0 | J49: 0 | K49: 0 | L49: 0 | M49: 0 | N49: 0 | O49: 0 | R49: =Раздел2!F50 -> 0
B50: Всестилевое карате | C50: 44 | D50: 0 | E50: 0 | F50: 0 | G50: 0 | H50: 0 | I50: 0 | J50: 0 | K50: 0 | L50: 0 | M50: 0 | N50: 0 | O50: 0 | R50: =Раздел2!F51 -> 0
B51: Гандбол - всего | C51: 45 | D51: =SUM(D52:D54) -> 0 | E51: 0 | F51: 0 | G51: 0 | H51: 0 | I51: 0 | J51: 0 | K51: 0 | L51: 0 | M51: 0 | N51: 0 | O51: 0 | R51: =Раздел2!F52 -> 0
B52: в том числе: Гандбол (муж.) | C52: 46 | D52: 0 | E52: 0 | F52: 0 | G52: 0 | H52: 0 | I52: 0 | J52: 0 | K52: 0 | L52: 0 | M52: 0 | N52: 0 | O52: 0 | R52: =Раздел2!F53 -> 0
B53: Гандбол (жен.) | C53: 47 | D53: 0 | E53: 0 | F53: 0 | G53: 0 | H53: 0 | I53: 0 | J53: 0 | K53: 0 | L53: 0 | M53: 0 | N53: 0 | O53: 0 | R53: =Раздел2!F54 -> 0
B54: Пляжный гандбол | C54: 48 | R54: =Раздел2!F55 -> 0
B55: Гиревой спорт | C55: 49 | D55: 0 | E55: 0 | F55: 0 | G55: 0 | H55: 0 | I55: 0 | J55: 0 | K55: 0 | L55: 0 | M55: 0 | N55: 0 | O55: 0 | R55: =Раздел2!F56 -> 0
B56: Го | C56: 50 | D56: 0 | E56: 0 | F56: 0 | G56: 0 | H56: 0 | I56: 0 | J56: 0 | K56: 0 | L56: 0 | M56: 0 | N56: 0 | O56: 0 | R56: =Раздел2!F57 -> 0
B57: Гольф | C57: 51 | D57: 0 | E57: 0 | F57: 0 | G57: 0 | H57: 0 | I57: 0 | J57: 0 | K57: 0 | L57: 0 | M57: 0 | N57: 0 | O57: 0 | R57: =Раздел2!F58 -> 0
B58: Горнолыжный спорт | C58: 52 | D58: 0 | E58: 0 | F58: 0 | G58: 0 | H58: 0 | I58: 0 | J58: 0 | K58: 0 | L58: 0 | M58: 0 | N58: 0 | O58: 0 | R58: =Раздел2!F59 -> 0
B59: Городошный спорт | C59: 53 | D59: 0 | E59: 0 | F59: 0 | G59: 0 | H59: 0 | I59: 0 | J59: 0 | K59: 0 | L59: 0 | M59: 0 | N59: 0 | O59: 0 | R59: =Раздел2!F60 -> 0
B60: Гребля на байдарках и каноэ | C60: 54 | D60: 0 | E60: 0 | F60: 0 | G60: 0 | H60: 0 | I60: 0 | J60: 0 | K60: 0 | L60: 0 | M60: 0 | N60: 0 | O60: 0 | R60: =Раздел2!F61 -> 0
B61: Гребля на шлюпках | C61: 55 | R61: =Раздел2!F62 -> 0
B62: Гребной слалом | C62: 56 | D62: 0 | E62: 0 | F62: 0 | G62: 0 | H62: 0 | I62: 0 | J62: 0 | K62: 0 | L62: 0 | M62: 0 | N62: 0 | O62: 0 | R62: =Раздел2!F63 -> 0
B63: Гребной спорт - всего | C63: 57 | D63: =SUM(D64:D67) -> 0 | E63: 0 | F63: 0 | G63: 0 | H63: 0 | I63: 0 | J63: 0 | K63: 0 | L63: 0 | M63: 0 | N63: 0 | O63: 0 | R63: =Раздел2!F64 -> 0
B64: в том числе: Академическая гребля | C64: 58 | D64: 0 | E64: 0 | F64: 0 | G64: 0 | H64: 0 | I64: 0 | J64: 0 | K64: 0 | L64: 0 | M64: 0 | N64: 0 | O64: 0 | R64: =Раздел2!F65 -> 0
B65: Гребля-индор | C65: 59 | D65: 0 | E65: 0 | F65: 0 | G65: 0 | H65: 0 | I65: 0 | J65: 0 | K65: 0 | L65: 0 | M65: 0 | N65: 0 | O65: 0 | R65: =Раздел2!F66 -> 0
B66: Народная гребля | C66: 60 | D66: 0 | E66: 0 | F66: 0 | G66: 0 | H66: 0 | I66: 0 | J66: 0 | K66: 0 | L66: 0 | M66: 0 | N66: 0 | O66: 0 | R66: =Раздел2!F67 -> 0
B67: Прибрежная гребля | C67: 61 | D67: 0 | E67: 0 | F67: 0 | G67: 0 | H67: 0 | I67: 0 | J67: 0 | K67: 0 | L67: 0 | M67: 0 | N67: 0 | O67: 0 | R67: =Раздел2!F68 -> 0
B68: Гребно-парусное двоеборье | C68: 62 | D68: 0 | E68: 0 | F68: 0 | G68: 0 | H68: 0 | I68: 0 | J68: 0 | K68: 0 | L68: 0 | M68: 0 | N68: 0 | O68: 0 | R68: =Раздел2!F69 -> 0
B69: Дартс | C69: 63 | D69: 0 | E69: 0 | F69: 0 | G69: 0 | H69: 0 | I69: 0 | J69: 0 | K69: 0 | L69: 0 | M69: 0 | N69: 0 | O69: 0 | R69: =Раздел2!F70 -> 0
B70: Джиу-джитсу | C70: 64 | D70: 0 | E70: 0 | F70: 0 | G70: 0 | H70: 0 | I70: 0 | J70: 0 | K70: 0 | L70: 0 | M70: 0 | N70: 0 | O70: 0 | R70: =Раздел2!F71 -> 0
B71: Дзюдо | C71: 65 | D71: 0 | E71: 0 | F71: 0 | G71: 0 | H71: 0 | I71: 0 | J71: 0 | K71: 0 | L71: 0 | M71: 0 | N71: 0 | O71: 0 | R71: =Раздел2!F72 -> 282
B72: Ездовой спорт | C72: 66 | D72: 0 | E72: 0 | F72: 0 | G72: 0 | H72: 0 | I72: 0 | J72: 0 | K72: 0 | L72: 0 | M72: 0 | N72: 0 | O72: 0 | R72: =Раздел2!F73 -> 0
B73: Капоэйра | C73: 67 | D73: 0 | E73: 0 | F73: 0 | G73: 0 | H73: 0 | I73: 0 | J73: 0 | K73: 0 | L73: 0 | M73: 0 | N73: 0 | O73: 0 | R73: =Раздел2!F74 -> 0
B74: Каратэ | C74: 68 | D74: 0 | E74: 0 | F74: 0 | G74: 0 | H74: 0 | I74: 0 | J74: 0 | K74: 0 | L74: 0 | M74: 0 | N74: 0 | O74: 0 | R74: =Раздел2!F75 -> 0
B75: Кендо | C75: 69 | D75: 0 | E75: 0 | F75: 0 | G75: 0 | H75: 0 | I75: 0 | J75: 0 | K75: 0 | L75: 0 | M75: 0 | N75: 0 | O75: 0 | R75: =Раздел2!F76 -> 0
B76: Керешу | C76: 70 | D76: 0 | E76: 0 | F76: 0 | G76: 0 | H76: 0 | I76: 0 | J76: 0 | K76: 0 | L76: 0 | M76: 0 | N76: 0 | O76: 0 | R76: =Раздел2!F77 -> 0
B77: Керлинг - всего | C77: 71 | D77: =SUM(D78:D79) -> 0 | E77: 0 | F77: 0 | G77: 0 | H77: 0 | I77: 0 | J77: 0 | K77: 0 | L77: 0 | M77: 0 | N77: 0 | O77: 0 | R77: =Раздел2!F78 -> 0
B78: в том числе: Керлинг (муж.) | C78: 72 | D78: 0 | E78: 0 | F78: 0 | G78: 0 | H78: 0 | I78: 0 | J78: 0 | K78: 0 | L78: 0 | M78: 0 | N78: 0 | O78: 0 | R78: =Раздел2!F79 -> 0
B79: Керлинг (жен.) | C79: 73 | D79: 0 | E79: 0 | F79: 0 | G79: 0 | H79: 0 | I79: 0 | J79: 0 | K79: 0 | L79: 0 | M79: 0 | N79: 0 | O79: 0 | R79: =Раздел2!F80 -> 0
B80: Кикбоксинг | C80: 74 | D80: 0 | E80: 0 | F80: 0 | G80: 0 | H80: 0 | I80: 0 | J80: 0 | K80: 0 | L80: 0 | M80: 0 | N80: 0 | O80: 0 | R80: =Раздел2!F81 -> 0
B81: Кинологический спорт | C81: 75 | D81: 0 | E81: 0 | F81: 0 | G81: 0 | H81: 0 | I81: 0 | J81: 0 | K81: 0 | L81: 0 | M81: 0 | N81: 0 | O81: 0 | R81: =Раздел2!F82 -> 0
B82: Киокусинкай | C82: 76 | D82: 0 | E82: 0 | F82: 0 | G82: 0 | H82: 0 | I82: 0 | J82: 0 | K82: 0 | L82: 0 | M82: 0 | N82: 0 | O82: 0 | R82: =Раздел2!F83 -> 0
B83: Комплексное единоборство | C83: 77 | D83: 0 | E83: 0 | F83: 0 | G83: 0 | H83: 0 | I83: 0 | J83: 0 | K83: 0 | L83: 0 | M83: 0 | N83: 0 | O83: 0 | R83: =Раздел2!F84 -> 0
B84: Компьютерный спорт | C84: 78 | D84: 0 | E84: 0 | F84: 0 | G84: 0 | H84: 0 | I84: 0 | J84: 0 | K84: 0 | L84: 0 | M84: 0 | N84: 0 | O84: 0 | R84: =Раздел2!F85 -> 0
B85: Конный спорт | C85: 79 | D85: 0 | E85: 0 | F85: 0 | G85: 0 | H85: 0 | I85: 0 | J85: 0 | K85: 0 | L85: 0 | M85: 0 | N85: 0 | O85: 0 | R85: =Раздел2!F86 -> 0
B86: Конькобежный спорт - всего | C86: 80 | D86: =SUM(D87:D88) -> 0 | E86: 0 | F86: 0 | G86: 0 | H86: 0 | I86: 0 | J86: 0 | K86: 0 | L86: 0 | M86: 0 | N86: 0 | O86: 0 | R86: =Раздел2!F87 -> 0
B87: в том числе: Конькобежный спорт | C87: 81 | D87: 0 | E87: 0 | F87: 0 | G87: 0 | H87: 0 | I87: 0 | J87: 0 | K87: 0 | L87: 0 | M87: 0 | N87: 0 | O87: 0 | R87: =Раздел2!F88 -> 0
B88: Шорт-трек | C88: 82 | D88: 0 | E88: 0 | F88: 0 | G88: 0 | H88: 0 | I88: 0 | J88: 0 | K88: 0 | L88: 0 | M88: 0 | N88: 0 | O88: 0 | R88: =Раздел2!F89 -> 0
B89: Корэш | C89: 83 | D89: 0 | E89: 0 | F89: 0 | G89: 0 | H89: 0 | I89: 0 | J89: 0 | K89: 0 | L89: 0 | M89: 0 | N89: 0 | O89: 0 | R89: =Раздел2!F90 -> 0
B90: Корфбол | C90: 84 | D90: 0 | E90: 0 | F90: 0 | G90: 0 | H90: 0 | I90: 0 | J90: 0 | K90: 0 | L90: 0 | M90: 0 | N90: 0 | O90: 0 | R90: =Раздел2!F91 -> 0
B91: Лапта | C91: 85 | D91: 0 | E91: 0 | F91: 0 | G91: 0 | H91: 0 | I91: 0 | J91: 0 | K91: 0 | L91: 0 | M91: 0 | N91: 0 | O91: 0 | R91: =Раздел2!F92 -> 0
B92: Легкая атлетика - всего | C92: 86 | D92: =SUM(D93:D99) -> 0 | E92: 0 | F92: 0 | G92: 0 | H92: 0 | I92: 0 | J92: 0 | K92: 0 | L92: 0 | M92: 0 | N92: 0 | O92: 0 | R92: =Раздел2!F93 -> 187
B93: в том числе: Спринтерский и барьерный бег | C93: 87 | D93: 0 | E93: 0 | F93: 0 | G93: 0 | H93: 0 | I93: 0 | J93: 0 | K93: 0 | L93: 0 | M93: 0 | N93: 0 | O93: 0 | R93: =Раздел2!F94 -> 0
B94: Бег на средние дистанции и бег с препятствиями | C94: 88 | D94: 0 | E94: 0 | F94: 0 | G94: 0 | H94: 0 | I94: 0 | J94: 0 | K94: 0 | L94: 0 | M94: 0 | N94: 0 | O94: 0 | R94: =Раздел2!F95 -> 0
B95: Бег на длинные и сверхдлинные дистанции | C95: 89 | D95: 0 | E95: 0 | F95: 0 | G95: 0 | H95: 0 | I95: 0 | J95: 0 | K95: 0 | L95: 0 | M95: 0 | N95: 0 | O95: 0 | R95: =Раздел2!F96 -> 0
B96: Многоборья | C96: 90 | D96: 0 | E96: 0 | F96: 0 | G96: 0 | H96: 0 | I96: 0 | J96: 0 | K96: 0 | L96: 0 | M96: 0 | N96: 0 | O96: 0 | R96: =Раздел2!F97 -> 187
B97: Прыжки | C97: 91 | D97: 0 | E97: 0 | F97: 0 | G97: 0 | H97: 0 | I97: 0 | J97: 0 | K97: 0 | L97: 0 | M97: 0 | N97: 0 | O97: 0 | R97: =Раздел2!F98 -> 0
B98: Метания | C98: 92 | D98: 0 | E98: 0 | F98: 0 | G98: 0 | H98: 0 | I98: 0 | J98: 0 | K98: 0 | L98: 0 | M98: 0 | N98: 0 | O98: 0 | R98: =Раздел2!F99 -> 0
B99: Спортивная ходьба | C99: 93 | D99: 0 | E99: 0 | F99: 0 | G99: 0 | H99: 0 | I99: 0 | J99: 0 | K99: 0 | L99: 0 | M99: 0 | N99: 0 | O99: 0 | R99: =Раздел2!F100 -> 0
B100: Лыжное двоеборье | C100: 94 | D100: 0 | E100: 0 | F100: 0 | G100: 0 | H100: 0 | I100: 0 | J100: 0 | K100: 0 | L100: 0 | M100: 0 | N100: 0 | O100: 0 | R100: =Раздел2!F101 -> 0
B101: Лыжные гонки | C101: 95 | D101: 0 | E101: 0 | F101: 0 | G101: 0 | H101: 0 | I101: 0 | J101: 0 | K101: 0 | L101: 0 | M101: 0 | N101: 0 | O101: 0 | R101: =Раздел2!F102 -> 0
B102: Мас-рестлинг | C102: 96 | D102: 0 | E102: 0 | F102: 0 | G102: 0 | H102: 0 | I102: 0 | J102: 0 | K102: 0 | L102: 0 | M102: 0 | N102: 0 | O102: 0 | R102: =Раздел2!F103 -> 0
B103: Международное военно-спортивное многоборье | C103: 97 | D103: 0 | E103: 0 | F103: 0 | G103: 0 | H103: 0 | I103: 0 | J103: 0 | K103: 0 | L103: 0 | M103: 0 | N103: 0 | O103: 0 | R103: =Раздел2!F104 -> 0
B104: Многоборье кинологов | C104: 98 | D104: 0 | E104: 0 | F104: 0 | G104: 0 | H104: 0 | I104: 0 | J104: 0 | K104: 0 | L104: 0 | M104: 0 | N104: 0 | O104: 0 | R104: =Раздел2!F105 -> 0
B105: Многоборье спасателей МЧС России | C105: 99 | D105: 0 | E105: 0 | F105: 0 | G105: 0 | H105: 0 | I105: 0 | J105: 0 | K105: 0 | L105: 0 | M105: 0 | N105: 0 | O105: 0 | R105: =Раздел2!F106 -> 0
B106: Морское многоборье | C106: 100 | D106: 0 | E106: 0 | F106: 0 | G106: 0 | H106: 0 | I106: 0 | J106: 0 | K106: 0 | L106: 0 | M106: 0 | N106: 0 | O106: 0 | R106: =Раздел2!F107 -> 0
B107: Мотоциклетный спорт | C107: 101 | D107: 0 | E107: 0 | F107: 0 | G107: 0 | H107: 0 | I107: 0 | J107: 0 | K107: 0 | L107: 0 | M107: 0 | N107: 0 | O107: 0 | R107: =Раздел2!F108 -> 0
B108: Настольный теннис | C108: 102 | D108: 0 | E108: 0 | F108: 0 | G108: 0 | H108: 0 | I108: 0 | J108: 0 | K108: 0 | L108: 0 | M108: 0 | N108: 0 | O108: 0 | R108: =Раздел2!F109 -> 0
B109: Парашютный спорт | C109: 103 | D109: 0 | E109: 0 | F109: 0 | G109: 0 | H109: 0 | I109: 0 | J109: 0 | K109: 0 | L109: 0 | M109: 0 | N109: 0 | O109: 0 | R109: =Раздел2!F110 -> 0
B110: Парусный спорт | C110: 104 | D110: 0 | E110: 0 | F110: 0 | G110: 0 | H110: 0 | I110: 0 | J110: 0 | K110: 0 | L110: 0 | M110: 0 | N110: 0 | O110: 0 | R110: =Раздел2!F111 -> 0
B111: Пауэрлифтинг | C111: 105 | D111: 0 | E111: 0 | F111: 0 | G111: 0 | H111: 0 | I111: 0 | J111: 0 | K111: 0 | L111: 0 | M111: 0 | N111: 0 | O111: 0 | R111: =Раздел2!F112 -> 0
B112: Перетягивание каната | C112: 106 | D112: 0 | E112: 0 | F112: 0 | G112: 0 | H112: 0 | I112: 0 | J112: 0 | K112: 0 | L112: 0 | M112: 0 | N112: 0 | O112: 0 | R112: =Раздел2!F113 -> 0
B113: Петанк | C113: 107 | D113: 0 | E113: 0 | F113: 0 | G113: 0 | H113: 0 | I113: 0 | J113: 0 | K113: 0 | L113: 0 | M113: 0 | N113: 0 | O113: 0 | R113: =Раздел2!F114 -> 0
B114: Плавание - всего | C114: 108 | D114: =SUM(D115:D116) -> 0 | E114: 0 | F114: 0 | G114: 0 | H114: 0 | I114: 0 | J114: 0 | K114: 0 | L114: 0 | M114: 0 | N114: 0 | O114: 0 | R114: =Раздел2!F115 -> 0
B115: в том числе: Плавание | C115: 109 | D115: 0 | E115: 0 | F115: 0 | G115: 0 | H115: 0 | I115: 0 | J115: 0 | K115: 0 | L115: 0 | M115: 0 | N115: 0 | O115: 0 | R115: =Раздел2!F116 -> 0
B116: Открытая вода | C116: 110 | D116: 0 | E116: 0 | F116: 0 | G116: 0 | H116: 0 | I116: 0 | J116: 0 | K116: 0 | L116: 0 | M116: 0 | N116: 0 | O116: 0 | R116: =Раздел2!F117 -> 0
B117: Планерный спорт | C117: 111 | D117: 0 | E117: 0 | F117: 0 | G117: 0 | H117: 0 | I117: 0 | J117: 0 | K117: 0 | L117: 0 | M117: 0 | N117: 0 | O117: 0 | R117: =Раздел2!F118 -> 0
B118: Подводный спорт | C118: 112 | D118: 0 | E118: 0 | F118: 0 | G118: 0 | H118: 0 | I118: 0 | J118: 0 | K118: 0 | L118: 0 | M118: 0 | N118: 0 | O118: 0 | R118: =Раздел2!F119 -> 0
B119: Пожарно-прикладной спорт | C119: 113 | D119: 0 | E119: 0 | F119: 0 | G119: 0 | H119: 0 | I119: 0 | J119: 0 | K119: 0 | L119: 0 | M119: 0 | N119: 0 | O119: 0 | R119: =Раздел2!F120 -> 0
B120: Полиатлон | C120: 114 | D120: 0 | E120: 0 | F120: 0 | G120: 0 | H120: 0 | I120: 0 | J120: 0 | K120: 0 | L120: 0 | M120: 0 | N120: 0 | O120: 0 | R120: =Раздел2!F121 -> 0
B121: Практическая стрельба | C121: 115 | D121: 0 | E121: 0 | F121: 0 | G121: 0 | H121: 0 | I121: 0 | J121: 0 | K121: 0 | L121: 0 | M121: 0 | N121: 0 | O121: 0 | R121: =Раздел2!F122 -> 0
B122: Прыжки в воду - всего | C122: 116 | D122: =SUM(D123:D124) -> 0 | E122: 0 | F122: 0 | G122: 0 | H122: 0 | I122: 0 | J122: 0 | K122: 0 | L122: 0 | M122: 0 | N122: 0 | O122: 0 | R122: =Раздел2!F123 -> 0
B123: в том числе: Прыжки в воду | C123: 117 | D123: 0 | E123: 0 | F123: 0 | G123: 0 | H123: 0 | I123: 0 | J123: 0 | K123: 0 | L123: 0 | M123: 0 | N123: 0 | O123: 0 | R123: =Раздел2!F124 -> 0
B124: Прыжки в открытый водоем | C124: 118 | D124: 0 | E124: 0 | F124: 0 | G124: 0 | H124: 0 | I124: 0 | J124: 0 | K124: 0 | L124: 0 | M124: 0 | N124: 0 | O124: 0 | R124: =Раздел2!F125 -> 0
B125: Прыжки на батуте - всего | C125: 119 | D125: =SUM(D126:D129) -> 0 | E125: 0 | F125: 0 | G125: 0 | H125: 0 | I125: 0 | J125: 0 | K125: 0 | L125: 0 | M125: 0 | N125: 0 | O125: 0 | R125: =Раздел2!F126 -> 0
B126: в том числе: Акробатическая дорожка | C126: 120 | D126: 0 | E126: 0 | F126: 0 | G126: 0 | H126: 0 | I126: 0 | J126: 0 | K126: 0 | L126: 0 | M126: 0 | N126: 0 | O126: 0 | R126: =Раздел2!F127 -> 0
B127: Двойной минитрамп | C127: 121 | D127: 0 | E127: 0 | F127: 0 | G127: 0 | H127: 0 | I127: 0 | J127: 0 | K127: 0 | L127: 0 | M127: 0 | N127: 0 | O127: 0 | R127: =Раздел2!F128 -> 0
B128: Индивидуальные прыжки | C128: 122 | D128: 0 | E128: 0 | F128: 0 | G128: 0 | H128: 0 | I128: 0 | J128: 0 | K128: 0 | L128: 0 | M128: 0 | N128: 0 | O128: 0 | R128: =Раздел2!F129 -> 0
B129: Синхронные прыжки | C129: 123 | D129: 0 | E129: 0 | F129: 0 | G129: 0 | H129: 0 | I129: 0 | J129: 0 | K129: 0 | L129: 0 | M129: 0 | N129: 0 | O129: 0 | R129: =Раздел2!F130 -> 0
B130: Прыжки на лыжах с трамплина | C130: 124 | D130: 0 | E130: 0 | F130: 0 | G130: 0 | H130: 0 | I130: 0 | J130: 0 | K130: 0 | L130: 0 | M130: 0 | N130: 0 | O130: 0 | R130: =Раздел2!F131 -> 0
B131: Пулевая стрельба - всего | C131: 125 | D131: =SUM(D132:D136) -> 0 | E131: 0 | F131: 0 | G131: 0 | H131: 0 | I131: 0 | J131: 0 | K131: 0 | L131: 0 | M131: 0 | N131: 0 | O131: 0 | R131: =Раздел2!F132 -> 0
B132: в том числе: Пневматическая винтовка | C132: 126 | D132: 0 | E132: 0 | F132: 0 | G132: 0 | H132: 0 | I132: 0 | J132: 0 | K132: 0 | L132: 0 | M132: 0 | N132: 0 | O132: 0 | R132: =Раздел2!F133 -> 0
B133: Пневматический пистолет | C133: 127 | D133: 0 | E133: 0 | F133: 0 | G133: 0 | H133: 0 | I133: 0 | J133: 0 | K133: 0 | L133: 0 | M133: 0 | N133: 0 | O133: 0 | R133: =Раздел2!F134 -> 0
B134: Малокалиберная винтовка | C134: 128 | D134: 0 | E134: 0 | F134: 0 | G134: 0 | H134: 0 | I134: 0 | J134: 0 | K134: 0 | L134: 0 | M134: 0 | N134: 0 | O134: 0 | R134: =Раздел2!F135 -> 0
B135: Малокалиберный пистолет | C135: 129 | D135: 0 | E135: 0 | F135: 0 | G135: 0 | H135: 0 | I135: 0 | J135: 0 | K135: 0 | L135: 0 | M135: 0 | N135: 0 | O135: 0 | R135: =Раздел2!F136 -> 0
B136: Движущаяся мишень | C136: 130 | D136: 0 | E136: 0 | F136: 0 | G136: 0 | H136: 0 | I136: 0 | J136: 0 | K136: 0 | L136: 0 | M136: 0 | N136: 0 | O136: 0 | R136: =Раздел2!F137 -> 0
B137: Пэйнтбол | C137: 131 | D137: 0 | E137: 0 | F137: 0 | G137: 0 | H137: 0 | I137: 0 | J137: 0 | K137: 0 | L137: 0 | M137: 0 | N137: 0 | O137: 0 | R137: =Раздел2!F138 -> 0
B138: Радиоспорт | C138: 132 | D138: 0 | E138: 0 | F138: 0 | G138: 0 | H138: 0 | I138: 0 | J138: 0 | K138: 0 | L138: 0 | M138: 0 | N138: 0 | O138: 0 | R138: =Раздел2!F139 -> 0
B139: Рафтинг | C139: 133 | D139: 0 | E139: 0 | F139: 0 | G139: 0 | H139: 0 | I139: 0 | J139: 0 | K139: 0 | L139: 0 | M139: 0 | N139: 0 | O139: 0 | R139: =Раздел2!F140 -> 0
B140: Регби - всего | C140: 134 | D140: =SUM(D141:D144) -> 0 | E140: 0 | F140: 0 | G140: 0 | H140: 0 | I140: 0 | J140: 0 | K140: 0 | L140: 0 | M140: 0 | N140: 0 | O140: 0 | R140: =Раздел2!F141 -> 0
B141: в том числе: Регби | C141: 135 | D141: 0 | E141: 0 | F141: 0 | G141: 0 | H141: 0 | I141: 0 | J141: 0 | K141: 0 | L141: 0 | M141: 0 | N141: 0 | O141: 0 | R141: =Раздел2!F142 -> 0
B142: Регби 7 (муж.) | C142: 136 | D142: 0 | E142: 0 | F142: 0 | G142: 0 | H142: 0 | I142: 0 | J142: 0 | K142: 0 | L142: 0 | M142: 0 | N142: 0 | O142: 0 | R142: =Раздел2!F143 -> 0
B143: Регби 7 (жен.) | C143: 137 | D143: 0 | E143: 0 | F143: 0 | G143: 0 | H143: 0 | I143: 0 | J143: 0 | K143: 0 | L143: 0 | M143: 0 | N143: 0 | O143: 0 | R143: =Раздел2!F144 -> 0
B144: Регби - пляжное | C144: 138 | D144: 0 | E144: 0 | F144: 0 | G144: 0 | H144: 0 | I144: 0 | J144: 0 | K144: 0 | L144: 0 | M144: 0 | N144: 0 | O144: 0 | R144: =Раздел2!F145 -> 0
B145: Регбол | C145: 139 | D145: 0 | E145: 0 | F145: 0 | G145: 0 | H145: 0 | I145: 0 | J145: 0 | K145: 0 | L145: 0 | M145: 0 | N145: 0 | O145: 0 | R145: =Раздел2!F146 -> 0
B146: Роллер спорт | C146: 140 | D146: 0 | E146: 0 | F146: 0 | G146: 0 | H146: 0 | I146: 0 | J146: 0 | K146: 0 | L146: 0 | M146: 0 | N146: 0 | O146: 0 | R146: =Раздел2!F147 -> 0
B147: Рукопашный бой | C147: 141 | D147: 0 | E147: 0 | F147: 0 | G147: 0 | H147: 0 | I147: 0 | J147: 0 | K147: 0 | L147: 0 | M147: 0 | N147: 0 | O147: 0 | R147: =Раздел2!F148 -> 0
B148: Рыболовный спорт | C148: 142 | D148: 0 | E148: 0 | F148: 0 | G148: 0 | H148: 0 | I148: 0 | J148: 0 | K148: 0 | L148: 0 | M148: 0 | N148: 0 | O148: 0 | R148: =Раздел2!F149 -> 0
B149: Сават | C149: 143 | D149: 0 | E149: 0 | F149: 0 | G149: 0 | H149: 0 | I149: 0 | J149: 0 | K149: 0 | L149: 0 | M149: 0 | N149: 0 | O149: 0 | R149: =Раздел2!F150 -> 0
B150: Самбо | C150: 144 | D150: 0 | E150: 0 | F150: 0 | G150: 0 | H150: 0 | I150: 0 | J150: 0 | K150: 0 | L150: 0 | M150: 0 | N150: 0 | O150: 0 | R150: =Раздел2!F151 -> 0
B151: Самолетный спорт | C151: 145 | D151: 0 | E151: 0 | F151: 0 | G151: 0 | H151: 0 | I151: 0 | J151: 0 | K151: 0 | L151: 0 | M151: 0 | N151: 0 | O151: 0 | R151: =Раздел2!F152 -> 0
B152: Санный спорт | C152: 146 | D152: 0 | E152: 0 | F152: 0 | G152: 0 | H152: 0 | I152: 0 | J152: 0 | K152: 0 | L152: 0 | M152: 0 | N152: 0 | O152: 0 | R152: =Раздел2!F153 -> 0
B153: Северное многоборье | C153: 147 | D153: 0 | E153: 0 | F153: 0 | G153: 0 | H153: 0 | I153: 0 | J153: 0 | K153: 0 | L153: 0 | M153: 0 | N153: 0 | O153: 0 | R153: =Раздел2!F154 -> 0
B154: Серфинг | C154: 148 | D154: 0 | E154: 0 | F154: 0 | G154: 0 | H154: 0 | I154: 0 | J154: 0 | K154: 0 | L154: 0 | M154: 0 | N154: 0 | O154: 0 | R154: =Раздел2!F155 -> 0
B155: Синхронное плавание | C155: 149 | D155: 0 | E155: 0 | F155: 0 | G155: 0 | H155: 0 | I155: 0 | J155: 0 | K155: 0 | L155: 0 | M155: 0 | N155: 0 | O155: 0 | R155: =Раздел2!F156 -> 0
B156: Скалолазание | C156: 150 | D156: 0 | E156: 0 | F156: 0 | G156: 0 | H156: 0 | I156: 0 | J156: 0 | K156: 0 | L156: 0 | M156: 0 | N156: 0 | O156: 0 | R156: =Раздел2!F157 -> 0
B157: Скейтбординг | C157: 151 | D157: 0 | E157: 0 | F157: 0 | G157: 0 | H157: 0 | I157: 0 | J157: 0 | K157: 0 | L157: 0 | M157: 0 | N157: 0 | O157: 0 | R157: =Раздел2!F158 -> 0
B158: Сквош | C158: 152 | D158: 0 | E158: 0 | F158: 0 | G158: 0 | H158: 0 | I158: 0 | J158: 0 | K158: 0 | L158: 0 | M158: 0 | N158: 0 | O158: 0 | R158: =Раздел2!F159 -> 0
B159: Служебно-прикладной спорт ФСО России | C159: 153 | D159: 0 | E159: 0 | F159: 0 | G159: 0 | H159: 0 | I159: 0 | J159: 0 | K159: 0 | L159: 0 | M159: 0 | N159: 0 | O159: 0 | R159: =Раздел2!F160 -> 0
B160: Служебно-прикладной спорт ГФС России | C160: 154 | D160: 0 | E160: 0 | F160: 0 | G160: 0 | H160: 0 | I160: 0 | J160: 0 | K160: 0 | L160: 0 | M160: 0 | N160: 0 | O160: 0 | R160: =Раздел2!F161 -> 0
B161: Служебно-прикладной спорт ФСКН России | C161: 155 | D161: 0 | E161: 0 | F161: 0 | G161: 0 | H161: 0 | I161: 0 | J161: 0 | K161: 0 | L161: 0 | M161: 0 | N161: 0 | O161: 0 | R161: =Раздел2!F162 -> 0
B162: Служебно-прикладной спорт ФТС России | C162: 156 | D162: 0 | E162: 0 | F162: 0 | G162: 0 | H162: 0 | I162: 0 | J162: 0 | K162: 0 | L162: 0 | M162: 0 | N162: 0 | O162: 0 | R162: =Раздел2!F163 -> 0
B163: Служебное двоеборье | C163: 157 | D163: 0 | E163: 0 | F163: 0 | G163: 0 | H163: 0 | I163: 0 | J163: 0 | K163: 0 | L163: 0 | M163: 0 | N163: 0 | O163: 0 | R163: =Раздел2!F164 -> 0
B164: Служебное единоборство | C164: 158 | D164: 0 | E164: 0 | F164: 0 | G164: 0 | H164: 0 | I164: 0 | J164: 0 | K164: 0 | L164: 0 | M164: 0 | N164: 0 | O164: 0 | R164: =Раздел2!F165 -> 0
B165: Служебное многоборье | C165: 159 | D165: 0 | E165: 0 | F165: 0 | G165: 0 | H165: 0 | I165: 0 | J165: 0 | K165: 0 | L165: 0 | M165: 0 | N165: 0 | O165: 0 | R165: =Раздел2!F166 -> 0
B166: Служебное собаководство | C166: 160 | D166: 0 | E166: 0 | F166: 0 | G166: 0 | H166: 0 | I166: 0 | J166: 0 | K166: 0 | L166: 0 | M166: 0 | N166: 0 | O166: 0 | R166: =Раздел2!F167 -> 0
B167: Служебный биатлон | C167: 161 | D167: 0 | E167: 0 | F167: 0 | G167: 0 | H167: 0 | I167: 0 | J167: 0 | K167: 0 | L167: 0 | M167: 0 | N167: 0 | O167: 0 | R167: =Раздел2!F168 -> 0
B168: Спасательный спорт | C168: 162 | D168: 0 | E168: 0 | F168: 0 | G168: 0 | H168: 0 | I168: 0 | J168: 0 | K168: 0 | L168: 0 | M168: 0 | N168: 0 | O168: 0 | R168: =Раздел2!F169 -> 0
B169: Стрельба из боевого ручного стрелкового оружия | C169: 163 | D169: 0 | E169: 0 | F169: 0 | G169: 0 | H169: 0 | I169: 0 | J169: 0 | K169: 0 | L169: 0 | M169: 0 | N169: 0 | O169: 0 | R169: =Раздел2!F170 -> 0
B170: Стрельба из штатного или табельного оружия | C170: 164 | D170: 0 | E170: 0 | F170: 0 | G170: 0 | H170: 0 | I170: 0 | J170: 0 | K170: 0 | L170: 0 | M170: 0 | N170: 0 | O170: 0 | R170: =Раздел2!F171 -> 0
B171: Смешанное боевое единоборство (ММА) | C171: 165 | D171: 0 | E171: 0 | F171: 0 | G171: 0 | H171: 0 | I171: 0 | J171: 0 | K171: 0 | L171: 0 | M171: 0 | N171: 0 | O171: 0 | R171: =Раздел2!F172 -> 0
B172: Сноуборд | C172: 166 | D172: 0 | E172: 0 | F172: 0 | G172: 0 | H172: 0 | I172: 0 | J172: 0 | K172: 0 | L172: 0 | M172: 0 | N172: 0 | O172: 0 | R172: =Раздел2!F173 -> 0
B173: Современное пятиборье | C173: 167 | D173: 0 | E173: 0 | F173: 0 | G173: 0 | H173: 0 | I173: 0 | J173: 0 | K173: 0 | L173: 0 | M173: 0 | N173: 0 | O173: 0 | R173: =Раздел2!F174 -> 0
B174: Софтбол | C174: 168 | D174: 0 | E174: 0 | F174: 0 | G174: 0 | H174: 0 | I174: 0 | J174: 0 | K174: 0 | L174: 0 | M174: 0 | N174: 0 | O174: 0 | R174: =Раздел2!F175 -> 0
B175: Спорт сверхлегкой авиации | C175: 169 | D175: 0 | E175: 0 | F175: 0 | G175: 0 | H175: 0 | I175: 0 | J175: 0 | K175: 0 | L175: 0 | M175: 0 | N175: 0 | O175: 0 | R175: =Раздел2!F176 -> 0
B176: Спортивная акробатика | C176: 170 | D176: 0 | E176: 0 | F176: 0 | G176: 0 | H176: 0 | I176: 0 | J176: 0 | K176: 0 | L176: 0 | M176: 0 | N176: 0 | O176: 0 | R176: =Раздел2!F177 -> 0
B177: Спортивная аэробика | C177: 171 | D177: 0 | E177: 0 | F177: 0 | G177: 0 | H177: 0 | I177: 0 | J177: 0 | K177: 0 | L177: 0 | M177: 0 | N177: 0 | O177: 0 | R177: =Раздел2!F178 -> 297
B178: Спортивная борьба - всего | C178: 172 | D178: =SUM(D179:D183) -> 0 | E178: 0 | F178: 0 | G178: 0 | H178: 0 | I178: 0 | J178: 0 | K178: 0 | L178: 0 | M178: 0 | N178: 0 | O178: 0 | R178: =Раздел2!F179 -> 0
B179: в том числе: Вольная борьба | C179: 173 | D179: 0 | E179: 0 | F179: 0 | G179: 0 | H179: 0 | I179: 0 | J179: 0 | K179: 0 | L179: 0 | M179: 0 | N179: 0 | O179: 0 | R179: =Раздел2!F180 -> 0
B180: Греко-римская борьба | C180: 174 | D180: 0 | E180: 0 | F180: 0 | G180: 0 | H180: 0 | I180: 0 | J180: 0 | K180: 0 | L180: 0 | M180: 0 | N180: 0 | O180: 0 | R180: =Раздел2!F181 -> 0
B181: Грэпплинг | C181: 175 | D181: 0 | E181: 0 | F181: 0 | G181: 0 | H181: 0 | I181: 0 | J181: 0 | K181: 0 | L181: 0 | M181: 0 | N181: 0 | O181: 0 | R181: =Раздел2!F182 -> 0
B182: Грэпплинг-ги | C182: 176 | D182: 0 | E182: 0 | F182: 0 | G182: 0 | H182: 0 | I182: 0 | J182: 0 | K182: 0 | L182: 0 | M182: 0 | N182: 0 | O182: 0 | R182: =Раздел2!F183 -> 0
B183: Панкратион | C183: 177 | D183: 0 | E183: 0 | F183: 0 | G183: 0 | H183: 0 | I183: 0 | J183: 0 | K183: 0 | L183: 0 | M183: 0 | N183: 0 | O183: 0 | R183: =Раздел2!F184 -> 0
B184: Спортивно-прикладное собаководство | C184: 178 | D184: 0 | E184: 0 | F184: 0 | G184: 0 | H184: 0 | I184: 0 | J184: 0 | K184: 0 | L184: 0 | M184: 0 | N184: 0 | O184: 0 | R184: =Раздел2!F185 -> 0
B185: Спортивная гимнастика | C185: 179 | D185: 0 | E185: 0 | F185: 0 | G185: 0 | H185: 0 | I185: 0 | J185: 0 | K185: 0 | L185: 0 | M185: 0 | N185: 0 | O185: 0 | R185: =Раздел2!F186 -> 0
B186: Спортивное ориентирование | C186: 180 | D186: 0 | E186: 0 | F186: 0 | G186: 0 | H186: 0 | I186: 0 | J186: 0 | K186: 0 | L186: 0 | M186: 0 | N186: 0 | O186: 0 | R186: =Раздел2!F187 -> 0
B187: Спортивный бридж | C187: 181 | D187: 0 | E187: 0 | F187: 0 | G187: 0 | H187: 0 | I187: 0 | J187: 0 | K187: 0 | L187: 0 | M187: 0 | N187: 0 | O187: 0 | R187: =Раздел2!F188 -> 0
B188: Спортивный туризм | C188: 182 | D188: 0 | E188: 0 | F188: 0 | G188: 0 | H188: 0 | I188: 0 | J188: 0 | K188: 0 | L188: 0 | M188: 0 | N188: 0 | O188: 0 | R188: =Раздел2!F189 -> 0
B189: Стендовая стрельба - всего | C189: 183 | D189: =SUM(D190:D193) -> 0 | E189: 0 | F189: 0 | G189: 0 | H189: 0 | I189: 0 | J189: 0 | K189: 0 | L189: 0 | M189: 0 | N189: 0 | O189: 0 | R189: =Раздел2!F190 -> 0
B190: в том числе: Трап | C190: 184 | D190: 0 | E190: 0 | F190: 0 | G190: 0 | H190: 0 | I190: 0 | J190: 0 | K190: 0 | L190: 0 | M190: 0 | N190: 0 | O190: 0 | R190: =Раздел2!F191 -> 0
B191: Скит | C191: 185 | D191: 0 | E191: 0 | F191: 0 | G191: 0 | H191: 0 | I191: 0 | J191: 0 | K191: 0 | L191: 0 | M191: 0 | N191: 0 | O191: 0 | R191: =Раздел2!F192 -> 0
B192: Дубль-трап | C192: 186 | D192: 0 | E192: 0 | F192: 0 | G192: 0 | H192: 0 | I192: 0 | J192: 0 | K192: 0 | L192: 0 | M192: 0 | N192: 0 | O192: 0 | R192: =Раздел2!F193 -> 0
B193: Спортинг | C193: 187 | D193: 0 | E193: 0 | F193: 0 | G193: 0 | H193: 0 | I193: 0 | J193: 0 | K193: 0 | L193: 0 | M193: 0 | N193: 0 | O193: 0 | R193: =Раздел2!F194 -> 0
B194: Стрельба из арбалета | C194: 188 | D194: 0 | E194: 0 | F194: 0 | G194: 0 | H194: 0 | I194: 0 | J194: 0 | K194: 0 | L194: 0 | M194: 0 | N194: 0 | O194: 0 | R194: =Раздел2!F195 -> 0
B195: Стрельба из лука - всего | C195: 189 | D195: =SUM(D196:D198) -> 0 | E195: 0 | F195: 0 | G195: 0 | H195: 0 | I195: 0 | J195: 0 | K195: 0 | L195: 0 | M195: 0 | N195: 0 | O195: 0 | R195: =Раздел2!F196 -> 0
B196: в том числе: Классический лук | C196: 190 | D196: 0 | E196: 0 | F196: 0 | G196: 0 | H196: 0 | I196: 0 | J196: 0 | K196: 0 | L196: 0 | M196: 0 | N196: 0 | O196: 0 | R196: =Раздел2!F197 -> 0
B197: Блочный лук | C197: 191 | D197: 0 | E197: 0 | F197: 0 | G197: 0 | H197: 0 | I197: 0 | J197: 0 | K197: 0 | L197: 0 | M197: 0 | N197: 0 | O197: 0 | R197: =Раздел2!F198 -> 0
B198: Ачери | C198: 192 | D198: 0 | E198: 0 | F198: 0 | G198: 0 | H198: 0 | I198: 0 | J198: 0 | K198: 0 | L198: 0 | M198: 0 | N198: 0 | O198: 0 | R198: =Раздел2!F199 -> 0
B199: Судомодельный спорт | C199: 193 | D199: 0 | E199: 0 | F199: 0 | G199: 0 | H199: 0 | I199: 0 | J199: 0 | K199: 0 | L199: 0 | M199: 0 | N199: 0 | O199: 0 | R199: =Раздел2!F200 -> 0
B200: Сумо | C200: 194 | D200: 0 | E200: 0 | F200: 0 | G200: 0 | H200: 0 | I200: 0 | J200: 0 | K200: 0 | L200: 0 | M200: 0 | N200: 0 | O200: 0 | R200: =Раздел2!F201 -> 0
... 48 more rows

Sheet Раздел6
B1: Раздел VI. Всероссийские спортивные соревнования
AC2: Коды по ОКЕИ: человек – 792, единица - 642
B3: Виды спорта | C3: № строки | D3: Всего зани-маю-щихся | E3: Результаты выступлений на соревнованиях | AK3: Раздел2 графа3 Число отделений
E4: Всего | J4: Чемпионат России | O4: Первенство России среди юниоров и юниорок | T4: Первенство России среди юношей и девушек | Y4: Кубок России | AD4: Прочие официальные всероссийские соревнования
E6: 1 | F6: 2 | G6: 3 | H6: 4-6 | I6: учас-тие | J6: 1 | K6: 2 | L6: 3 | M6: 4-6 | N6: учас-тие | O6: 1 | P6: 2 | Q6: 3 | R6: 4-6 | S6: учас-тие | T6: 1 | U6: 2 | V6: 3 | W6: 4-6 | X6: учас-тие | Y6: 1 | Z6: 2 | AA6: 3 | AB6: 4-6 | AC6: учас-тие | AD6: 1 | AE6: 2 | AF6: 3 | AG6: 4-6 | AH6: учас-тие
B7: 1 | C7: 2 | D7: 3 | E7: 4 | F7: 5 | G7: 6 | H7: 7 | I7: 8 | J7: 9 | K7: 10 | L7: 11 | M7: 12 | N7: 13 | O7: 14 | P7: 15 | Q7: 16 | R7: 17 | S7: 18 | T7: 19 | U7: 20 | V7: 21 | W7: 22 | X7: 23 | Y7: 24 | Z7: 25 | AA7: 26 | AB7: 27 | AC7: 28 | AD7: 29 | AE7: 30 | AF7: 31 | AG7: 32 | AH7: 33
B8: Авиамодельный спорт | C8: 01 | D8: =Раздел2!F8 -> 0 | E8: =J8+O8+T8+Y8+AD8 -> 0 | F8: =K8+P8+U8+Z8+AE8 -> 0 | G8: =L8+Q8+V8+AA8+AF8 -> 0 | H8: =M8+R8+W8+AB8+AG8 -> 0 | I8: =N8+S8+X8+AC8+AH8 -> 0 | AK8: =Раздел2!#REF! -> 
B9: Автомобильный спорт | C9: 02 | D9: =Раздел2!F9 -> 0 | E9: =J9+O9+T9+Y9+AD9 -> 0 | F9: =K9+P9+U9+Z9+AE9 -> 0 | G9: =L9+Q9+V9+AA9+AF9 -> 0 | H9: =M9+R9+W9+AB9+AG9 -> 0 | I9: =N9+S9+X9+AC9+AH9 -> 0 | AK9: =Раздел2!#REF! -> 
B10: Автомодельный спорт | C10: 03 | D10: =Раздел2!F10 -> 0 | E10: 0 | F10: 0 | G10: 0 | H10: 0 | I10: 0 | AK10: =Раздел2!#REF! -> 
B11: Айкидо | C11: 04 | D11: =Раздел2!F11 -> 0 | E11: 0 | F11: 0 | G11: 0 | H11: 0 | I11: 0 | AK11: =Раздел2!#REF! -> 
B12: Айсшток | C12: 05 | D12: =Раздел2!F12 -> 0 | E12: 0 | F12: 0 | G12: 0 | H12: 0 | I12: 0 | AK12: =Раздел2!#REF! -> 
B13: Акробатический рок-н-ролл | C13: 06 | D13: =Раздел2!F13 -> 0 | E13: 0 | F13: 0 | G13: 0 | H13: 0 | I13: 0 | AK13: =Раздел2!#REF! -> 
B14: Альпинизм | C14: 07 | D14: =Раздел2!F14 -> 0 | E14: 0 | F14: 0 | G14: 0 | H14: 0 | I14: 0 | AK14: =Раздел2!#REF! -> 
B15: Американский футбол | C15: 08 | D15: =Раздел2!F15 -> 0 | E15: 0 | F15: 0 | G15: 0 | H15: 0 | I15: 0 | AK15: =Раздел2!#REF! -> 
B16: Армейский рукопашный бой | C16: 09 | D16: =Раздел2!F16 -> 0 | E16: 0 | F16: 0 | G16: 0 | H16: 0 | I16: 0 | AK16: =Раздел2!#REF! -> 
B17: Армрестлинг | C17: 10 | D17: =Раздел2!F17 -> 0 | E17: 0 | F17: 0 | G17: 0 | H17: 0 | I17: 0 | AK17: =Раздел2!#REF! -> 
B18: Бадминтон | C18: 11 | D18: =Раздел2!F18 -> 0 | E18: 0 | F18: 0 | G18: 0 | H18: 0 | I18: 0 | AK18: =Раздел2!#REF! -> 
B19: Баскетбол - всего | C19: 12 | D19: =Раздел2!F19 -> 134 | E19: 0 | F19: 0 | G19: 0 | H19: 0 | I19: 0 | J19: =SUM(J20:J21) -> 0 | K19: 0 | L19: 0 | M19: 0 | N19: 0 | O19: 0 | P19: 0 | Q19: 0 | R19: 0 | S19: 0 | T19: 0 | U19: 0 | V19: 0 | W19: 0 | X19: 0 | Y19: 0 | Z19: 0 | AA19: 0 | AB19: 0 | AC19: 0 | AD19: 0 | AE19: 0 | AF19: 0 | AG19: 0 | AH19: 0 | AK19: =Раздел2!#REF! -> 
B20: в том числе: Баскетбол (муж.) | C20: 13 | D20: =Раздел2!F20 -> 93 | E20: 0 | F20: 0 | G20: 0 | H20: 0 | I20: 0 | AK20: =Раздел2!#REF! -> 
B21: Баскетбол (жен.) | C21: 14 | D21: =Раздел2!F21 -> 41 | E21: 0 | F21: 0 | G21: 0 | H21: 0 | I21: 0 | AK21: =Раздел2!#REF! -> 
B22: Бейсбол | C22: 15 | D22: =Раздел2!F22 -> 0 | E22: 0 | F22: 0 | G22: 0 | H22: 0 | I22: 0 | AK22: =Раздел2!#REF! -> 
B23: Биатлон | C23: 16 | D23: =Раздел2!F23 -> 0 | E23: 0 | F23: 0 | G23: 0 | H23: 0 | I23: 0 | AK23: =Раздел2!#REF! -> 
B24: Бильярдный спорт | C24: 17 | D24: =Раздел2!F24 -> 0 | E24: 0 | F24: 0 | G24: 0 | H24: 0 | I24: 0 | AK24: =Раздел2!#REF! -> 
B25: Бобслей - всего | C25: 18 | D25: =Раздел2!F25 -> 0 | E25: 0 | F25: 0 | G25: 0 | H25: 0 | I25: 0 | J25: =SUM(J26:J27) -> 0 | K25: 0 | L25: 0 | M25: 0 | N25: 0 | O25: 0 | P25: 0 | Q25: 0 | R25: 0 | S25: 0 | T25: 0 | U25: 0 | V25: 0 | W25: 0 | X25: 0 | Y25: 0 | Z25: 0 | AA25: 0 | AB25: 0 | AC25: 0 | AD25: 0 | AE25: 0 | AF25: 0 | AG25: 0 | AH25: 0 | AK25: =Раздел2!#REF! -> 
B26: в том числе: Бобслей | C26: 19 | D26: =Раздел2!F26 -> 0 | E26: 0 | F26: 0 | G26: 0 | H26: 0 | I26: 0 | AK26: =Раздел2!#REF! -> 
B27: Скелетон | C27: 20 | D27: =Раздел2!F27 -> 0 | E27: 0 | F27: 0 | G27: 0 | H27: 0 | I27: 0 | AK27: =Раздел2!#REF! -> 
B28: Бодибилдинг | C28: 21 | D28: =Раздел2!F28 -> 0 | E28: 0 | F28: 0 | G28: 0 | H28: 0 | I28: 0 | AK28: =Раздел2!#REF! -> 
B29: Бокс | C29: 22 | D29: =Раздел2!F29 -> 90 | E29: 0 | F29: 0 | G29: 0 | H29: 0 | I29: 0 | AK29: =Раздел2!#REF! -> 
B30: Борьба на поясах | C30: 23 | D30: =Раздел2!F30 -> 0 | E30: 0 | F30: 0 | G30: 0 | H30: 0 | I30: 0 | AK30: =Раздел2!#REF! -> 
B31: Боулинг | C31: 24 | D31: =Раздел2!F31 -> 0 | E31: 0 | F31: 0 | G31: 0 | H31: 0 | I31: 0 | AK31: =Раздел2!#REF! -> 
B32: Велоспорт ВМХ | C32: 25 | D32: =Раздел2!F32 -> 0 | E32: 0 | F32: 0 | G32: 0 | H32: 0 | I32: 0 | AK32: =Раздел2!#REF! -> 
B33: Велоспорт – маунтинбайк | C33: 26 | D33: =Раздел2!F33 -> 0 | E33: 0 | F33: 0 | G33: 0 | H33: 0 | I33: 0 | AK33: =Раздел2!#REF! -> 
B34: Велоспорт – трек | C34: 27 | D34: =Раздел2!F34 -> 0 | E34: 0 | F34: 0 | G34: 0 | H34: 0 | I34: 0 | AK34: =Раздел2!#REF! -> 
B35: Велоспорт – шоссе | C35: 28 | D35: =Раздел2!F35 -> 0 | E35: 0 | F35: 0 | G35: 0 | H35: 0 | I35: 0 | AK35: =Раздел2!#REF! -> 
B36: Вертолетный спорт | C36: 29 | D36: =Раздел2!F36 -> 0 | E36: 0 | F36: 0 | G36: 0 | H36: 0 | I36: 0 | AK36: =Раздел2!#REF! -> 
B37: Водно-моторный спорт | C37: 30 | D37: =Раздел2!F37 -> 0 | E37: 0 | F37: 0 | G37: 0 | H37: 0 | I37: 0 | AK37: =Раздел2!#REF! -> 
B38: Водное поло - всего | C38: 31 | D38: =Раздел2!F38 -> 0 | E38: 0 | F38: 0 | G38: 0 | H38: 0 | I38: 0 | J38: =SUM(J39:J40) -> 0 | K38: 0 | L38: 0 | M38: 0 | N38: 0 | O38: 0 | P38: 0 | Q38: 0 | R38: 0 | S38: 0 | T38: 0 | U38: 0 | V38: 0 | W38: 0 | X38: 0 | Y38: 0 | Z38: 0 | AA38: 0 | AB38: 0 | AC38: 0 | AD38: 0 | AE38: 0 | AF38: 0 | AG38: 0 | AH38: 0 | AK38: =Раздел2!#REF! -> 
B39: в том числе: Водное поло (муж.) | C39: 32 | D39: =Раздел2!F39 -> 0 | E39: 0 | F39: 0 | G39: 0 | H39: 0 | I39: 0 | AK39: =Раздел2!#REF! -> 
B40: Водное поло (жен.) | C40: 33 | D40: =Раздел2!F40 -> 0 | E40: 0 | F40: 0 | G40: 0 | H40: 0 | I40: 0 | AK40: =Раздел2!#REF! -> 
B41: Воднолыжный спорт | C41: 34 | D41: =Раздел2!F41 -> 0 | E41: 0 | F41: 0 | G41: 0 | H41: 0 | I41: 0 | AK41: =Раздел2!#REF! -> 
B42: Военно-прикладной спорт | C42: 35 | D42: =Раздел2!F42 -> 0 | E42: 0 | F42: 0 | G42: 0 | H42: 0 | I42: 0 | AK42: =Раздел2!#REF! -> 
B43: Военно-спортивное многоборье | C43: 36 | D43: =Раздел2!F43 -> 0 | E43: 0 | F43: 0 | G43: 0 | H43: 0 | I43: 0 | AK43: =Раздел2!#REF! -> 
B44: Воздухоплавательный спорт | C44: 37 | D44: =Раздел2!F44 -> 0 | E44: 0 | F44: 0 | G44: 0 | H44: 0 | I44: 0 | AK44: =Раздел2!#REF! -> 
B45: Волейбол - всего | C45: 38 | D45: =Раздел2!F45 -> 80 | E45: 0 | F45: 0 | G45: 0 | H45: 0 | I45: 0 | J45: =SUM(J46:J49) -> 0 | K45: 0 | L45: 0 | M45: 0 | N45: 0 | O45: 0 | P45: 0 | Q45: 0 | R45: 0 | S45: 0 | T45: 0 | U45: 0 | V45: 0 | W45: 0 | X45: 0 | Y45: 0 | Z45: 0 | AA45: 0 | AB45: 0 | AC45: 0 | AD45: 0 | AE45: 0 | AF45: 0 | AG45: 0 | AH45: 0 | AK45: =Раздел2!#REF! -> 
B46: в том числе: Волейбол (муж.) | C46: 39 | D46: =Раздел2!F46 -> 21 | E46: 0 | F46: 0 | G46: 0 | H46: 0 | I46: 0 | AK46: =Раздел2!#REF! -> 
B47: Волейбол (жен.) | C47: 40 | D47: =Раздел2!F47 -> 59 | E47: 0 | F47: 0 | G47: 0 | H47: 0 | I47: 0 | AK47: =Раздел2!#REF! -> 
B48: Пляжный волейбол (муж.) | C48: 41 | D48: =Раздел2!F48 -> 0 | E48: 0 | F48: 0 | G48: 0 | H48: 0 | I48: 0 | AK48: =Раздел2!#REF! -> 
B49: Пляжный волейбол (жен.) | C49: 42 | D49: =Раздел2!F49 -> 0 | E49: 0 | F49: 0 | G49: 0 | H49: 0 | I49: 0 | AK49: =Раздел2!#REF! -> 
B50: Восточное боевое единоборство | C50: 43 | D50: =Раздел2!F50 -> 0 | E50: 0 | F50: 0 | G50: 0 | H50: 0 | I50: 0 | AK50: =Раздел2!#REF! -> 
B51: Всестилевое карате | C51: 44 | D51: =Раздел2!F51 -> 0 | E51: 0 | F51: 0 | G51: 0 | H51: 0 | I51: 0 | AK51: =Раздел2!#REF! -> 
B52: Гандбол - всего | C52: 45 | D52: =Раздел2!F52 -> 0 | E52: 0 | F52: 0 | G52: 0 | H52: 0 | I52: 0 | J52: =SUM(J53:J55) -> 0 | K52: 0 | L52: 0 | M52: 0 | N52: 0 | O52: 0 | P52: 0 | Q52: 0 | R52: 0 | S52: 0 | T52: 0 | U52: 0 | V52: 0 | W52: 0 | X52: 0 | Y52: 0 | Z52: 0 | AA52: 0 | AB52: 0 | AC52: 0 | AD52: 0 | AE52: 0 | AF52: 0 | AG52: 0 | AH52: 0 | AK52: =Раздел2!#REF! -> 
B53: в том числе: Гандбол (муж.) | C53: 46 | D53: =Раздел2!F53 -> 0 | E53: 0 | F53: 0 | G53: 0 | H53: 0 | I53: 0 | J53: 0 | K53: 0 | L53: 0 | M53: 0 | N53: 0 | O53: 0 | P53: 0 | Q53: 0 | R53: 0 | S53: 0 | T53: 0 | U53: 0 | V53: 0 | W53: 0 | X53: 0 | Y53: 0 | Z53: 0 | AA53: 0 | AB53: 0 | AC53: 0 | AD53: 0 | AE53: 0 | AF53: 0 | AG53: 0 | AH53: 0 | AK53: =Раздел2!#REF! -> 
B54: Гандбол (жен.) | C54: 47 | D54: =Раздел2!F54 -> 0 | E54: 0 | F54: 0 | G54: 0 | H54: 0 | I54: 0 | J54: 0 | K54: 0 | L54: 0 | M54: 0 | N54: 0 | O54: 0 | P54: 0 | Q54: 0 | R54: 0 | S54: 0 | T54: 0 | U54: 0 | V54: 0 | W54: 0 | X54: 0 | Y54: 0 | Z54: 0 | AA54: 0 | AB54: 0 | AC54: 0 | AD54: 0 | AE54: 0 | AF54: 0 | AG54: 0 | AH54: 0 | AK54: =Раздел2!#REF! -> 
B55: Пляжный гандбол | C55: 48 | D55: =Раздел2!F55 -> 0 | E55: 0 | F55: 0 | G55: 0 | H55: 0 | I55: 0 | AK55: =Раздел2!#REF! -> 
B56: Гиревой спорт | C56: 49 | D56: =Раздел2!F56 -> 0 | E56: 0 | F56: 0 | G56: 0 | H56: 0 | I56: 0 | J56: 0 | K56: 0 | L56: 0 | M56: 0 | N56: 0 | O56: 0 | P56: 0 | Q56: 0 | R56: 0 | S56: 0 | T56: 0 | U56: 0 | V56: 0 | W56: 0 | X56: 0 | Y56: 0 | Z56: 0 | AA56: 0 | AB56: 0 | AC56: 0 | AD56: 0 | AE56: 0 | AF56: 0 | AG56: 0 | AH56: 0 | AK56: =Раздел2!#REF! -> 
B57: Го | C57: 50 | D57: =Раздел2!F57 -> 0 | E57: 0 | F57: 0 | G57: 0 | H57: 0 | I57: 0 | J57: 0 | K57: 0 | L57: 0 | M57: 0 | N57: 0 | O57: 0 | P57: 0 | Q57: 0 | R57: 0 | S57: 0 | T57: 0 | U57: 0 | V57: 0 | W57: 0 | X57: 0 | Y57: 0 | Z57: 0 | AA57: 0 | AB57: 0 | AC57: 0 | AD57: 0 | AE57: 0 | AF57: 0 | AG57: 0 | AH57: 0 | AK57: =Раздел2!#REF! -> 
B58: Гольф | C58: 51 | D58: =Раздел2!F58 -> 0 | E58: 0 | F58: 0 | G58: 0 | H58: 0 | I58: 0 | J58: 0 | K58: 0 | L58: 0 | M58: 0 | N58: 0 | O58: 0 | P58: 0 | Q58: 0 | R58: 0 | S58: 0 | T58: 0 | U58: 0 | V58: 0 | W58: 0 | X58: 0 | Y58: 0 | Z58: 0 | AA58: 0 | AB58: 0 | AC58: 0 | AD58: 0 | AE58: 0 | AF58: 0 | AG58: 0 | AH58: 0 | AK58: =Раздел2!#REF! -> 
B59: Горнолыжный спорт | C59: 52 | D59: =Раздел2!F59 -> 0 | E59: 0 | F59: 0 | G59: 0 | H59: 0 | I59: 0 | J59: 0 | K59: 0 | L59: 0 | M59: 0 | N59: 0 | O59: 0 | P59: 0 | Q59: 0 | R59: 0 | S59: 0 | T59: 0 | U59: 0 | V59: 0 | W59: 0 | X59: 0 | Y59: 0 | Z59: 0 | AA59: 0 | AB59: 0 | AC59: 0 | AD59: 0 | AE59: 0 | AF59: 0 | AG59: 0 | AH59: 0 | AK59: =Раздел2!#REF! -> 
B60: Городошный спорт | C60: 53 | D60: =Раздел2!F60 -> 0 | E60: 0 | F60: 0 | G60: 0 | H60: 0 | I60: 0 | J60: 0 | K60: 0 | L60: 0 | M60: 0 | N60: 0 | O60: 0 | P60: 0 | Q60: 0 | R60: 0 | S60: 0 | T60: 0 | U60: 0 | V60: 0 | W60: 0 | X60: 0 | Y60: 0 | Z60: 0 | AA60: 0 | AB60: 0 | AC60: 0 | AD60: 0 | AE60: 0 | AF60: 0 | AG60: 0 | AH60: 0 | AK60: =Раздел2!#REF! -> 
B61: Гребля на байдарках и каноэ | C61: 54 | D61: =Раздел2!F61 -> 0 | E61: 0 | F61: 0 | G61: 0 | H61: 0 | I61: 0 | J61: 0 | K61: 0 | L61: 0 | M61: 0 | N61: 0 | O61: 0 | P61: 0 | Q61: 0 | R61: 0 | S61: 0 | T61: 0 | U61: 0 | V61: 0 | W61: 0 | X61: 0 | Y61: 0 | Z61: 0 | AA61: 0 | AB61: 0 | AC61: 0 | AD61: 0 | AE61: 0 | AF61: 0 | AG61: 0 | AH61: 0 | AK61: =Раздел2!#REF! -> 
B62: Гребля на шлюпках | C62: 55 | D62: =Раздел2!F62 -> 0 | E62: 0 | F62: 0 | G62: 0 | H62: 0 | I62: 0 | AK62: =Раздел2!#REF! -> 
B63: Гребной слалом | C63: 56 | D63: =Раздел2!F63 -> 0 | E63: 0 | F63: 0 | G63: 0 | H63: 0 | I63: 0 | J63: 0 | K63: 0 | L63: 0 | M63: 0 | N63: 0 | O63: 0 | P63: 0 | Q63: 0 | R63: 0 | S63: 0 | T63: 0 | U63: 0 | V63: 0 | W63: 0 | X63: 0 | Y63: 0 | Z63: 0 | AA63: 0 | AB63: 0 | AC63: 0 | AD63: 0 | AE63: 0 | AF63: 0 | AG63: 0 | AH63: 0 | AK63: =Раздел2!#REF! -> 
B64: Гребной спорт - всего | C64: 57 | D64: =Раздел2!F64 -> 0 | E64: 0 | F64: 0 | G64: 0 | H64: 0 | I64: 0 | J64: =SUM(J65:J68) -> 0 | K64: 0 | L64: 0 | M64: 0 | N64: 0 | O64: 0 | P64: 0 | Q64: 0 | R64: 0 | S64: 0 | T64: 0 | U64: 0 | V64: 0 | W64: 0 | X64: 0 | Y64: 0 | Z64: 0 | AA64: 0 | AB64: 0 | AC64: 0 | AD64: 0 | AE64: 0 | AF64: 0 | AG64: 0 | AH64: 0 | AK64: =Раздел2!#REF! -> 
B65: в том числе: Академическая гребля | C65: 58 | D65: =Раздел2!F65 -> 0 | E65: 0 | F65: 0 | G65: 0 | H65: 0 | I65: 0 | J65: 0 | K65: 0 | L65: 0 | M65: 0 | N65: 0 | O65: 0 | P65: 0 | Q65: 0 | R65: 0 | S65: 0 | T65: 0 | U65: 0 | V65: 0 | W65: 0 | X65: 0 | Y65: 0 | Z65: 0 | AA65: 0 | AB65: 0 | AC65: 0 | AD65: 0 | AE65: 0 | AF65: 0 | AG65: 0 | AH65: 0 | AK65: =Раздел2!#REF! -> 
B66: Гребля-индор | C66: 59 | D66: =Раздел2!F66 -> 0 | E66: 0 | F66: 0 | G66: 0 | H66: 0 | I66: 0 | J66: 0 | K66: 0 | L66: 0 | M66: 0 | N66: 0 | O66: 0 | P66: 0 | Q66: 0 | R66: 0 | S66: 0 | T66: 0 | U66: 0 | V66: 0 | W66: 0 | X66: 0 | Y66: 0 | Z66: 0 | AA66: 0 | AB66: 0 | AC66: 0 | AD66: 0 | AE66: 0 | AF66: 0 | AG66: 0 | AH66: 0 | AK66: =Раздел2!#REF! -> 
B67: Народная гребля | C67: 60 | D67: =Раздел2!F67 -> 0 | E67: 0 | F67: 0 | G67: 0 | H67: 0 | I67: 0 | J67: 0 | K67: 0 | L67: 0 | M67: 0 | N67: 0 | O67: 0 | P67: 0 | Q67: 0 | R67: 0 | S67: 0 | T67: 0 | U67: 0 | V67: 0 | W67: 0 | X67: 0 | Y67: 0 | Z67: 0 | AA67: 0 | AB67: 0 | AC67: 0 | AD67: 0 | AE67: 0 | AF67: 0 | AG67: 0 | AH67: 0 | AK67: =Раздел2!#REF! -> 
B68: Прибрежная гребля | C68: 61 | D68: =Раздел2!F68 -> 0 | E68: 0 | F68: 0 | G68: 0 | H68: 0 | I68: 0 | J68: 0 | K68: 0 | L68: 0 | M68: 0 | N68: 0 | O68: 0 | P68: 0 | Q68: 0 | R68: 0 | S68: 0 | T68: 0 | U68: 0 | V68: 0 | W68: 0 | X68: 0 | Y68: 0 | Z68: 0 | AA68: 0 | AB68: 0 | AC68: 0 | AD68: 0 | AE68: 0 | AF68: 0 | AG68: 0 | AH68: 0 | AK68: =Раздел2!#REF! -> 
B69: Гребно-парусное двоеборье | C69: 62 | D69: =Раздел2!F69 -> 0 | E69: 0 | F69: 0 | G69: 0 | H69: 0 | I69: 0 | J69: 0 | K69: 0 | L69: 0 | M69: 0 | N69: 0 | O69: 0 | P69: 0 | Q69: 0 | R69: 0 | S69: 0 | T69: 0 | U69: 0 | V69: 0 | W69: 0 | X69: 0 | Y69: 0 | Z69: 0 | AA69: 0 | AB69: 0 | AC69: 0 | AD69: 0 | AE69: 0 | AF69: 0 | AG69: 0 | AH69: 0 | AK69: =Раздел2!#REF! -> 
B70: Дартс | C70: 63 | D70: =Раздел2!F70 -> 0 | E70: 0 | F70: 0 | G70: 0 | H70: 0 | I70: 0 | J70: 0 | K70: 0 | L70: 0 | M70: 0 | N70: 0 | O70: 0 | P70: 0 | Q70: 0 | R70: 0 | S70: 0 | T70: 0 | U70: 0 | V70: 0 | W70: 0 | X70: 0 | Y70: 0 | Z70: 0 | AA70: 0 | AB70: 0 | AC70: 0 | AD70: 0 | AE70: 0 | AF70: 0 | AG70: 0 | AH70: 0 | AK70: =Раздел2!#REF! -> 
B71: Джиу-джитсу | C71: 64 | D71: =Раздел2!F71 -> 0 | E71: 0 | F71: 0 | G71: 0 | H71: 0 | I71: 0 | J71: 0 | K71: 0 | L71: 0 | M71: 0 | N71: 0 | O71: 0 | P71: 0 | Q71: 0 | R71: 0 | S71: 0 | T71: 0 | U71: 0 | V71: 0 | W71: 0 | X71: 0 | Y71: 0 | Z71: 0 | AA71: 0 | AB71: 0 | AC71: 0 | AD71: 0 | AE71: 0 | AF71: 0 | AG71: 0 | AH71: 0 | AK71: =Раздел2!#REF! -> 
B72: Дзюдо | C72: 65 | D72: =Раздел2!F72 -> 282 | E72: 0 | F72: 0 | G72: 1 | H72: 0 | I72: 6 | J72: 0 | K72: 0 | L72: 0 | M72: 0 | N72: 0 | O72: 0 | P72: 0 | R72: 0 | S72: 2 | T72: 0 | U72: 0 | V72: 0 | W72: 0 | X72: 1 | Y72: 0 | Z72: 0 | AA72: 0 | AB72: 0 | AC72: 0 | AD72: 0 | AE72: 0 | AF72: 1 | AG72: 0 | AH72: 3 | AK72: =Раздел2!#REF! -> 
B73: Ездовой спорт | C73: 66 | D73: =Раздел2!F73 -> 0 | E73: =J73+O73+T73+Y73+AD73 -> 0 | F73: =K73+P73+U73+Z73+AE73 -> 0 | G73: =L73+Q73+V73+AA73+AF73 -> 0 | H73: =M73+R73+W73+AB73+AG73 -> 0 | I73: =N73+S73+X73+AC73+AH73 -> 0 | J73: 0 | K73: 0 | L73: 0 | M73: 0 | N73: 0 | O73: 0 | P73: 0 | Q73: 0 | R73: 0 | S73: 0 | T73: 0 | U73: 0 | V73: 0 | W73: 0 | X73: 0 | Y73: 0 | Z73: 0 | AA73: 0 | AB73: 0 | AC73: 0 | AD73: 0 | AE73: 0 | AF73: 0 | AG73: 0 | AH73: 0 | AK73: =Раздел2!#REF! -> 
B74: Капоэйра | C74: 67 | D74: =Раздел2!F74 -> 0 | E74: 0 | F74: 0 | G74: 0 | H74: 0 | I74: 0 | J74: 0 | K74: 0 | L74: 0 | M74: 0 | N74: 0 | O74: 0 | P74: 0 | Q74: 0 | R74: 0 | S74: 0 | T74: 0 | U74: 0 | V74: 0 | W74: 0 | X74: 0 | Y74: 0 | Z74: 0 | AA74: 0 | AB74: 0 | AC74: 0 | AD74: 0 | AE74: 0 | AF74: 0 | AG74: 0 | AH74: 0 | AK74: =Раздел2!#REF! -> 
B75: Каратэ | C75: 68 | D75: =Раздел2!F75 -> 0 | E75: 0 | F75: 0 | G75: 0 | H75: 0 | I75: 0 | J75: 0 | K75: 0 | L75: 0 | M75: 0 | N75: 0 | O75: 0 | P75: 0 | Q75: 0 | R75: 0 | S75: 0 | T75: 0 | U75: 0 | V75: 0 | W75: 0 | X75: 0 | Y75: 0 | Z75: 0 | AA75: 0 | AB75: 0 | AC75: 0 | AD75: 0 | AE75: 0 | AF75: 0 | AG75: 0 | AH75: 0 | AK75: =Раздел2!#REF! -> 
B76: Кендо | C76: 69 | D76: =Раздел2!F76 -> 0 | E76: 0 | F76: 0 | G76: 0 | H76: 0 | I76: 0 | J76: 0 | K76: 0 | L76: 0 | M76: 0 | N76: 0 | O76: 0 | P76: 0 | Q76: 0 | R76: 0 | S76: 0 | T76: 0 | U76: 0 | V76: 0 | W76: 0 | X76: 0 | Y76: 0 | Z76: 0 | AA76: 0 | AB76: 0 | AC76: 0 | AD76: 0 | AE76: 0 | AF76: 0 | AG76: 0 | AH76: 0 | AK76: =Раздел2!#REF! -> 
B77: Керешу | C77: 70 | D77: =Раздел2!F77 -> 0 | E77: 0 | F77: 0 | G77: 0 | H77: 0 | I77: 0 | J77: 0 | K77: 0 | L77: 0 | M77: 0 | N77: 0 | O77: 0 | P77: 0 | Q77: 0 | R77: 0 | S77: 0 | T77: 0 | U77: 0 | V77: 0 | W77: 0 | X77: 0 | Y77: 0 | Z77: 0 | AA77: 0 | AB77: 0 | AC77: 0 | AD77: 0 | AE77: 0 | AF77: 0 | AG77: 0 | AH77: 0 | AK77: =Раздел2!#REF! -> 
B78: Керлинг - всего | C78: 71 | D78: =Раздел2!F78 -> 0 | E78: 0 | F78: 0 | G78: 0 | H78: 0 | I78: 0 | J78: =SUM(J79:J80) -> 0 | K78: 0 | L78: 0 | M78: 0 | N78: 0 | O78: 0 | P78: 0 | Q78: 0 | R78: 0 | S78: 0 | T78: 0 | U78: 0 | V78: 0 | W78: 0 | X78: 0 | Y78: 0 | Z78: 0 | AA78: 0 | AB78: 0 | AC78: 0 | AD78: 0 | AE78: 0 | AF78: 0 | AG78: 0 | AH78: 0 | AK78: =Раздел2!#REF! -> 
B79: в том числе: Керлинг (муж.) | C79: 72 | D79: =Раздел2!F79 -> 0 | E79: 0 | F79: 0 | G79: 0 | H79: 0 | I79: 0 | J79: 0 | K79: 0 | L79: 0 | M79: 0 | N79: 0 | O79: 0 | P79: 0 | Q79: 0 | R79: 0 | S79: 0 | T79: 0 | U79: 0 | V79: 0 | W79: 0 | X79: 0 | Y79: 0 | Z79: 0 | AA79: 0 | AB79: 0 | AC79: 0 | AD79: 0 | AE79: 0 | AF79: 0 | AG79: 0 | AH79: 0 | AK79: =Раздел2!#REF! -> 
B80: Керлинг (жен.) | C80: 73 | D80: =Раздел2!F80 -> 0 | E80: 0 | F80: 0 | G80: 0 | H80: 0 | I80: 0 | J80: 0 | K80: 0 | L80: 0 | M80: 0 | N80: 0 | O80: 0 | P80: 0 | Q80: 0 | R80: 0 | S80: 0 | T80: 0 | U80: 0 | V80: 0 | W80: 0 | X80: 0 | Y80: 0 | Z80: 0 | AA80: 0 | AB80: 0 | AC80: 0 | AD80: 0 | AE80: 0 | AF80: 0 | AG80: 0 | AH80: 0 | AK80: =Раздел2!#REF! -> 
B81: Кикбоксинг | C81: 74 | D81: =Раздел2!F81 -> 0 | E81: 0 | F81: 0 | G81: 0 | H81: 0 | I81: 0 | J81: 0 | K81: 0 | L81: 0 | M81: 0 | N81: 0 | O81: 0 | P81: 0 | Q81: 0 | R81: 0 | S81: 0 | T81: 0 | U81: 0 | V81: 0 | W81: 0 | X81: 0 | Y81: 0 | Z81: 0 | AA81: 0 | AB81: 0 | AC81: 0 | AD81: 0 | AE81: 0 | AF81: 0 | AG81: 0 | AH81: 0 | AK81: =Раздел2!#REF! -> 
B82: Кинологический спорт | C82: 75 | D82: =Раздел2!F82 -> 0 | E82: 0 | F82: 0 | G82: 0 | H82: 0 | I82: 0 | J82: 0 | K82: 0 | L82: 0 | M82: 0 | N82: 0 | O82: 0 | P82: 0 | Q82: 0 | R82: 0 | S82: 0 | T82: 0 | U82: 0 | V82: 0 | W82: 0 | X82: 0 | Y82: 0 | Z82: 0 | AA82: 0 | AB82: 0 | AC82: 0 | AD82: 0 | AE82: 0 | AF82: 0 | AG82: 0 | AH82: 0 | AK82: =Раздел2!#REF! -> 
B83: Киокусинкай | C83: 76 | D83: =Раздел2!F83 -> 0 | E83: 0 | F83: 0 | G83: 0 | H83: 0 | I83: 0 | J83: 0 | K83: 0 | L83: 0 | M83: 0 | N83: 0 | O83: 0 | P83: 0 | Q83: 0 | R83: 0 | S83: 0 | T83: 0 | U83: 0 | V83: 0 | W83: 0 | X83: 0 | Y83: 0 | Z83: 0 | AA83: 0 | AB83: 0 | AC83: 0 | AD83: 0 | AE83: 0 | AF83: 0 | AG83: 0 | AH83: 0 | AK83: =Раздел2!#REF! -> 
B84: Комплексное единоборство | C84: 77 | D84: =Раздел2!F84 -> 0 | E84: 0 | F84: 0 | G84: 0 | H84: 0 | I84: 0 | J84: 0 | K84: 0 | L84: 0 | M84: 0 | N84: 0 | O84: 0 | P84: 0 | Q84: 0 | R84: 0 | S84: 0 | T84: 0 | U84: 0 | V84: 0 | W84: 0 | X84: 0 | Y84: 0 | Z84: 0 | AA84: 0 | AB84: 0 | AC84: 0 | AD84: 0 | AE84: 0 | AF84: 0 | AG84: 0 | AH84: 0 | AK84: =Раздел2!#REF! -> 
B85: Компьютерный спорт | C85: 78 | D85: =Раздел2!F85 -> 0 | E85: 0 | F85: 0 | G85: 0 | H85: 0 | I85: 0 | J85: 0 | K85: 0 | L85: 0 | M85: 0 | N85: 0 | O85: 0 | P85: 0 | Q85: 0 | R85: 0 | S85: 0 | T85: 0 | U85: 0 | V85: 0 | W85: 0 | X85: 0 | Y85: 0 | Z85: 0 | AA85: 0 | AB85: 0 | AC85: 0 | AD85: 0 | AE85: 0 | AF85: 0 | AG85: 0 | AH85: 0 | AK85: =Раздел2!#REF! -> 
B86: Конный спорт | C86: 79 | D86: =Раздел2!F86 -> 0 | E86: 0 | F86: 0 | G86: 0 | H86: 0 | I86: 0 | J86: 0 | K86: 0 | L86: 0 | M86: 0 | N86: 0 | O86: 0 | P86: 0 | Q86: 0 | R86: 0 | S86: 0 | T86: 0 | U86: 0 | V86: 0 | W86: 0 | X86: 0 | Y86: 0 | Z86: 0 | AA86: 0 | AB86: 0 | AC86: 0 | AD86: 0 | AE86: 0 | AF86: 0 | AG86: 0 | AH86: 0 | AK86: =Раздел2!#REF! -> 
B87: Конькобежный спорт - всего | C87: 80 | D87: =Раздел2!F87 -> 0 | E87: 0 | F87: 0 | G87: 0 | H87: 0 | I87: 0 | J87: =SUM(J88:J89) -> 0 | K87: 0 | L87: 0 | M87: 0 | N87: 0 | O87: 0 | P87: 0 | Q87: 0 | R87: 0 | S87: 0 | T87: 0 | U87: 0 | V87: 0 | W87: 0 | X87: 0 | Y87: 0 | Z87: 0 | AA87: 0 | AB87: 0 | AC87: 0 | AD87: 0 | AE87: 0 | AF87: 0 | AG87: 0 | AH87: 0 | AK87: =Раздел2!#REF! -> 
B88: в том числе: Конькобежный спорт | C88: 81 | D88: =Раздел2!F88 -> 0 | E88: 0 | F88: 0 | G88: 0 | H88: 0 | I88: 0 | J88: 0 | K88: 0 | L88: 0 | M88: 0 | N88: 0 | O88: 0 | P88: 0 | Q88: 0 | R88: 0 | S88: 0 | T88: 0 | U88: 0 | V88: 0 | W88: 0 | X88: 0 | Y88: 0 | Z88: 0 | AA88: 0 | AB88: 0 | AC88: 0 | AD88: 0 | AE88: 0 | AF88: 0 | AG88: 0 | AH88: 0 | AK88: =Раздел2!#REF! -> 
B89: Шорт-трек | C89: 82 | D89: =Раздел2!F89 -> 0 | E89: 0 | F89: 0 | G89: 0 | H89: 0 | I89: 0 | J89: 0 | K89: 0 | L89: 0 | M89: 0 | N89: 0 | O89: 0 | P89: 0 | Q89: 0 | R89: 0 | S89: 0 | T89: 0 | U89: 0 | V89: 0 | W89: 0 | X89: 0 | Y89: 0 | Z89: 0 | AA89: 0 | AB89: 0 | AC89: 0 | AD89: 0 | AE89: 0 | AF89: 0 | AG89: 0 | AH89: 0 | AK89: =Раздел2!#REF! -> 
B90: Корэш | C90: 83 | D90: =Раздел2!F90 -> 0 | E90: 0 | F90: 0 | G90: 0 | H90: 0 | I90: 0 | J90: 0 | K90: 0 | L90: 0 | M90: 0 | N90: 0 | O90: 0 | P90: 0 | Q90: 0 | R90: 0 | S90: 0 | T90: 0 | U90: 0 | V90: 0 | W90: 0 | X90: 0 | Y90: 0 | Z90: 0 | AA90: 0 | AB90: 0 | AC90: 0 | AD90: 0 | AE90: 0 | AF90: 0 | AG90: 0 | AH90: 0 | AK90: =Раздел2!#REF! -> 
B91: Корфбол | C91: 84 | D91: =Раздел2!F91 -> 0 | E91: 0 | F91: 0 | G91: 0 | H91: 0 | I91: 0 | J91: 0 | K91: 0 | L91: 0 | M91: 0 | N91: 0 | O91: 0 | P91: 0 | Q91: 0 | R91: 0 | S91: 0 | T91: 0 | U91: 0 | V91: 0 | W91: 0 | X91: 0 | Y91: 0 | Z91: 0 | AA91: 0 | AB91: 0 | AC91: 0 | AD91: 0 | AE91: 0 | AF91: 0 | AG91: 0 | AH91: 0 | AK91: =Раздел2!#REF! -> 
B92: Лапта | C92: 85 | D92: =Раздел2!F92 -> 0 | E92: 0 | F92: 0 | G92: 0 | H92: 0 | I92: 0 | J92: 0 | K92: 0 | L92: 0 | M92: 0 | N92: 0 | O92: 0 | P92: 0 | Q92: 0 | R92: 0 | S92: 0 | T92: 0 | U92: 0 | V92: 0 | W92: 0 | X92: 0 | Y92: 0 | Z92: 0 | AA92: 0 | AB92: 0 | AC92: 0 | AD92: 0 | AE92: 0 | AF92: 0 | AG92: 0 | AH92: 0 | AK92: =Раздел2!#REF! -> 
B93: Легкая атлетика - всего | C93: 86 | D93: =Раздел2!F93 -> 187 | E93: 0 | F93: 0 | G93: 0 | H93: 0 | I93: 0 | J93: =SUM(J94:J100) -> 0 | K93: 0 | L93: 0 | M93: 0 | N93: 0 | O93: 0 | P93: 0 | Q93: 0 | R93: 0 | S93: 0 | T93: 0 | U93: 0 | V93: 0 | W93: 0 | X93: 0 | Y93: 0 | Z93: 0 | AA93: 0 | AB93: 0 | AC93: 0 | AD93: 0 | AE93: 0 | AF93: 0 | AG93: 0 | AH93: 0 | AK93: =Раздел2!#REF! -> 
B94: в том числе: Спринтерский и барьерный бег | C94: 87 | D94: =Раздел2!F94 -> 0 | E94: 0 | F94: 0 | G94: 0 | H94: 0 | I94: 0 | J94: 0 | K94: 0 | L94: 0 | M94: 0 | N94: 0 | O94: 0 | P94: 0 | Q94: 0 | R94: 0 | S94: 0 | T94: 0 | U94: 0 | V94: 0 | W94: 0 | X94: 0 | Y94: 0 | Z94: 0 | AA94: 0 | AB94: 0 | AC94: 0 | AD94: 0 | AE94: 0 | AF94: 0 | AG94: 0 | AH94: 0 | AK94: =Раздел2!#REF! -> 
B95: Бег на средние дистанции и бег с препятствиями | C95: 88 | D95: =Раздел2!F95 -> 0 | E95: 0 | F95: 0 | G95: 0 | H95: 0 | I95: 0 | J95: 0 | K95: 0 | L95: 0 | M95: 0 | N95: 0 | O95: 0 | P95: 0 | Q95: 0 | R95: 0 | S95: 0 | T95: 0 | U95: 0 | V95: 0 | W95: 0 | X95: 0 | Y95: 0 | Z95: 0 | AA95: 0 | AB95: 0 | AC95: 0 | AD95: 0 | AE95: 0 | AF95: 0 | AG95: 0 | AH95: 0 | AK95: =Раздел2!#REF! -> 
B96: Бег на длинные и сверхдлинные дистанции | C96: 89 | D96: =Раздел2!F96 -> 0 | E96: 0 | F96: 0 | G96: 0 | H96: 0 | I96: 0 | J96: 0 | K96: 0 | L96: 0 | M96: 0 | N96: 0 | O96: 0 | P96: 0 | Q96: 0 | R96: 0 | S96: 0 | T96: 0 | U96: 0 | V96: 0 | W96: 0 | X96: 0 | Y96: 0 | Z96: 0 | AA96: 0 | AB96: 0 | AC96: 0 | AD96: 0 | AE96: 0 | AF96: 0 | AG96: 0 | AH96: 0 | AK96: =Раздел2!#REF! -> 
B97: Многоборья | C97: 90 | D97: =Раздел2!F97 -> 187 | E97: 0 | F97: 0 | G97: 0 | H97: 0 | I97: 0 | J97: 0 | K97: 0 | L97: 0 | M97: 0 | N97: 0 | O97: 0 | P97: 0 | Q97: 0 | R97: 0 | S97: 0 | T97: 0 | U97: 0 | V97: 0 | W97: 0 | X97: 0 | Y97: 0 | Z97: 0 | AA97: 0 | AB97: 0 | AC97: 0 | AD97: 0 | AE97: 0 | AF97: 0 | AG97: 0 | AH97: 0 | AK97: =Раздел2!#REF! -> 
B98: Прыжки | C98: 91 | D98: =Раздел2!F98 -> 0 | E98: 0 | F98: 0 | G98: 0 | H98: 0 | I98: 0 | J98: 0 | K98: 0 | L98: 0 | M98: 0 | N98: 0 | O98: 0 | P98: 0 | Q98: 0 | R98: 0 | S98: 0 | T98: 0 | U98: 0 | V98: 0 | W98: 0 | X98: 0 | Y98: 0 | Z98: 0 | AA98: 0 | AB98: 0 | AC98: 0 | AD98: 0 | AE98: 0 | AF98: 0 | AG98: 0 | AH98: 0 | AK98: =Раздел2!#REF! -> 
B99: Метания | C99: 92 | D99: =Раздел2!F99 -> 0 | E99: 0 | F99: 0 | G99: 0 | H99: 0 | I99: 0 | J99: 0 | K99: 0 | L99: 0 | M99: 0 | N99: 0 | O99: 0 | P99: 0 | Q99: 0 | R99: 0 | S99: 0 | T99: 0 | U99: 0 | V99: 0 | W99: 0 | X99: 0 | Y99: 0 | Z99: 0 | AA99: 0 | AB99: 0 | AC99: 0 | AD99: 0 | AE99: 0 | AF99: 0 | AG99: 0 | AH99: 0 | AK99: =Раздел2!#REF! -> 
B100: Спортивная ходьба | C100: 93 | D100: =Раздел2!F100 -> 0 | E100: 0 | F100: 0 | G100: 0 | H100: 0 | I100: 0 | J100: 0 | K100: 0 | L100: 0 | M100: 0 | N100: 0 | O100: 0 | P100: 0 | Q100: 0 | R100: 0 | S100: 0 | T100: 0 | U100: 0 | V100: 0 | W100: 0 | X100: 0 | Y100: 0 | Z100: 0 | AA100: 0 | AB100: 0 | AC100: 0 | AD100: 0 | AE100: 0 | AF100: 0 | AG100: 0 | AH100: 0 | AK100: =Раздел2!#REF! -> 
B101: Лыжное двоеборье | C101: 94 | D101: =Раздел2!F101 -> 0 | E101: 0 | F101: 0 | G101: 0 | H101: 0 | I101: 0 | J101: 0 | K101: 0 | L101: 0 | M101: 0 | N101: 0 | O101: 0 | P101: 0 | Q101: 0 | R101: 0 | S101: 0 | T101: 0 | U101: 0 | V101: 0 | W101: 0 | X101: 0 | Y101: 0 | Z101: 0 | AA101: 0 | AB101: 0 | AC101: 0 | AD101: 0 | AE101: 0 | AF101: 0 | AG101: 0 | AH101: 0 | AK101: =Раздел2!#REF! -> 
B102: Лыжные гонки | C102: 95 | D102: =Раздел2!F102 -> 0 | E102: 0 | F102: 0 | G102: 0 | H102: 0 | I102: 0 | J102: 0 | K102: 0 | L102: 0 | M102: 0 | N102: 0 | O102: 0 | P102: 0 | Q102: 0 | R102: 0 | S102: 0 | T102: 0 | U102: 0 | V102: 0 | W102: 0 | X102: 0 | Y102: 0 | Z102: 0 | AA102: 0 | AB102: 0 | AC102: 0 | AD102: 0 | AE102: 0 | AF102: 0 | AG102: 0 | AH102: 0 | AK102: =Раздел2!#REF! -> 
B103: Мас-рестлинг | C103: 96 | D103: =Раздел2!F103 -> 0 | E103: 0 | F103: 0 | G103: 0 | H103: 0 | I103: 0 | J103: 0 | K103: 0 | L103: 0 | M103: 0 | N103: 0 | O103: 0 | P103: 0 | Q103: 0 | R103: 0 | S103: 0 | T103: 0 | U103: 0 | V103: 0 | W103: 0 | X103: 0 | Y103: 0 | Z103: 0 | AA103: 0 | AB103: 0 | AC103: 0 | AD103: 0 | AE103: 0 | AF103: 0 | AG103: 0 | AH103: 0 | AK103: =Раздел2!#REF! -> 
B104: Международное военно-спортивное многоборье | C104: 97 | D104: =Раздел2!F104 -> 0 | E104: 0 | F104: 0 | G104: 0 | H104: 0 | I104: 0 | J104: 0 | K104: 0 | L104: 0 | M104: 0 | N104: 0 | O104: 0 | P104: 0 | Q104: 0 | R104: 0 | S104: 0 | T104: 0 | U104: 0 | V104: 0 | W104: 0 | X104: 0 | Y104: 0 | Z104: 0 | AA104: 0 | AB104: 0 | AC104: 0 | AD104: 0 | AE104: 0 | AF104: 0 | AG104: 0 | AH104: 0 | AK104: =Раздел2!#REF! -> 
B105: Многоборье кинологов | C105: 98 | D105: =Раздел2!F105 -> 0 | E105: 0 | F105: 0 | G105: 0 | H105: 0 | I105: 0 | J105: 0 | K105: 0 | L105: 0 | M105: 0 | N105: 0 | O105: 0 | P105: 0 | Q105: 0 | R105: 0 | S105: 0 | T105: 0 | U105: 0 | V105: 0 | W105: 0 | X105: 0 | Y105: 0 | Z105: 0 | AA105: 0 | AB105: 0 | AC105: 0 | AD105: 0 | AE105: 0 | AF105: 0 | AG105: 0 | AH105: 0 | AK105: =Раздел2!#REF! -> 
B106: Многоборье спасателей МЧС России | C106: 99 | D106: =Раздел2!F106 -> 0 | E106: 0 | F106: 0 | G106: 0 | H106: 0 | I106: 0 | J106: 0 | K106: 0 | L106: 0 | M106: 0 | N106: 0 | O106: 0 | P106: 0 | Q106: 0 | R106: 0 | S106: 0 | T106: 0 | U106: 0 | V106: 0 | W106: 0 | X106: 0 | Y106: 0 | Z106: 0 | AA106: 0 | AB106: 0 | AC106: 0 | AD106: 0 | AE106: 0 | AF106: 0 | AG106: 0 | AH106: 0 | AK106: =Раздел2!#REF! -> 
B107: Морское многоборье | C107: 100 | D107: =Раздел2!F107 -> 0 | E107: 0 | F107: 0 | G107: 0 | H107: 0 | I107: 0 | J107: 0 | K107: 0 | L107: 0 | M107: 0 | N107: 0 | O107: 0 | P107: 0 | Q107: 0 | R107: 0 | S107: 0 | T107: 0 | U107: 0 | V107: 0 | W107: 0 | X107: 0 | Y107: 0 | Z107: 0 | AA107: 0 | AB107: 0 | AC107: 0 | AD107: 0 | AE107: 0 | AF107: 0 | AG107: 0 | AH107: 0 | AK107: =Раздел2!#REF! -> 
B108: Мотоциклетный спорт | C108: 101 | D108: =Раздел2!F108 -> 0 | E108: 0 | F108: 0 | G108: 0 | H108: 0 | I108: 0 | J108: 0 | K108: 0 | L108: 0 | M108: 0 | N108: 0 | O108: 0 | P108: 0 | Q108: 0 | R108: 0 | S108: 0 | T108: 0 | U108: 0 | V108: 0 | W108: 0 | X108: 0 | Y108: 0 | Z108: 0 | AA108: 0 | AB108: 0 | AC108: 0 | AD108: 0 | AE108: 0 | AF108: 0 | AG108: 0 | AH108: 0 | AK108: =Раздел2!#REF! -> 
B109: Настольный теннис | C109: 102 | D109: =Раздел2!F109 -> 0 | E109: 0 | F109: 0 | G109: 0 | H109: 0 | I109: 0 | J109: 0 | K109: 0 | L109: 0 | M109: 0 | N109: 0 | O109: 0 | P109: 0 | Q109: 0 | R109: 0 | S109: 0 | T109: 0 | U109: 0 | V109: 0 | W109: 0 | X109: 0 | Y109: 0 | Z109: 0 | AA109: 0 | AB109: 0 | AC109: 0 | AD109: 0 | AE109: 0 | AF109: 0 | AG109: 0 | AH109: 0 | AK109: =Раздел2!#REF! -> 
B110: Парашютный спорт | C110: 103 | D110: =Раздел2!F110 -> 0 | E110: 0 | F110: 0 | G110: 0 | H110: 0 | I110: 0 | J110: 0 | K110: 0 | L110: 0 | M110: 0 | N110: 0 | O110: 0 | P110: 0 | Q110: 0 | R110: 0 | S110: 0 | T110: 0 | U110: 0 | V110: 0 | W110: 0 | X110: 0 | Y110: 0 | Z110: 0 | AA110: 0 | AB110: 0 | AC110: 0 | AD110: 0 | AE110: 0 | AF110: 0 | AG110: 0 | AH110: 0 | AK110: =Раздел2!#REF! -> 
B111: Парусный спорт | C111: 104 | D111: =Раздел2!F111 -> 0 | E111: 0 | F111: 0 | G111: 0 | H111: 0 | I111: 0 | J111: 0 | K111: 0 | L111: 0 | M111: 0 | N111: 0 | O111: 0 | P111: 0 | Q111: 0 | R111: 0 | S111: 0 | T111: 0 | U111: 0 | V111: 0 | W111: 0 | X111: 0 | Y111: 0 | Z111: 0 | AA111: 0 | AB111: 0 | AC111: 0 | AD111: 0 | AE111: 0 | AF111: 0 | AG111: 0 | AH111: 0 | AK111: =Раздел2!#REF! -> 
B112: Пауэрлифтинг | C112: 105 | D112: =Раздел2!F112 -> 0 | E112: 0 | F112: 0 | G112: 0 | H112: 0 | I112: 0 | J112: 0 | K112: 0 | L112: 0 | M112: 0 | N112: 0 | O112: 0 | P112: 0 | Q112: 0 | R112: 0 | S112: 0 | T112: 0 | U112: 0 | V112: 0 | W112: 0 | X112: 0 | Y112: 0 | Z112: 0 | AA112: 0 | AB112: 0 | AC112: 0 | AD112: 0 | AE112: 0 | AF112: 0 | AG112: 0 | AH112: 0 | AK112: =Раздел2!#REF! -> 
B113: Перетягивание каната | C113: 106 | D113: =Раздел2!F113 -> 0 | E113: 0 | F113: 0 | G113: 0 | H113: 0 | I113: 0 | J113: 0 | K113: 0 | L113: 0 | M113: 0 | N113: 0 | O113: 0 | P113: 0 | Q113: 0 | R113: 0 | S113: 0 | T113: 0 | U113: 0 | V113: 0 | W113: 0 | X113: 0 | Y113: 0 | Z113: 0 | AA113: 0 | AB113: 0 | AC113: 0 | AD113: 0 | AE113: 0 | AF113: 0 | AG113: 0 | AH113: 0 | AK113: =Раздел2!#REF! -> 
B114: Петанк | C114: 107 | D114: =Раздел2!F114 -> 0 | E114: 0 | F114: 0 | G114: 0 | H114: 0 | I114: 0 | J114: 0 | K114: 0 | L114: 0 | M114: 0 | N114: 0 | O114: 0 | P114: 0 | Q114: 0 | R114: 0 | S114: 0 | T114: 0 | U114: 0 | V114: 0 | W114: 0 | X114: 0 | Y114: 0 | Z114: 0 | AA114: 0 | AB114: 0 | AC114: 0 | AD114: 0 | AE114: 0 | AF114: 0 | AG114: 0 | AH114: 0 | AK114: =Раздел2!#REF! -> 
B115: Плавание - всего | C115: 108 | D115: =Раздел2!F115 -> 0 | E115: 0 | F115: 0 | G115: 0 | H115: 0 | I115: 0 | J115: =SUM(J116:J117) -> 0 | K115: 0 | L115: 0 | M115: 0 | N115: 0 | O115: 0 | P115: 0 | Q115: 0 | R115: 0 | S115: 0 | T115: 0 | U115: 0 | V115: 0 | W115: 0 | X115: 0 | Y115: 0 | Z115: 0 | AA115: 0 | AB115: 0 | AC115: 0 | AD115: 0 | AE115: 0 | AF115: 0 | AG115: 0 | AH115: 0 | AK115: =Раздел2!#REF! -> 
B116: в том числе: Плавание | C116: 109 | D116: =Раздел2!F116 -> 0 | E116: 0 | F116: 0 | G116: 0 | H116: 0 | I116: 0 | J116: 0 | K116: 0 | L116: 0 | M116: 0 | N116: 0 | O116: 0 | P116: 0 | Q116: 0 | R116: 0 | S116: 0 | T116: 0 | U116: 0 | V116: 0 | W116: 0 | X116: 0 | Y116: 0 | Z116: 0 | AA116: 0 | AB116: 0 | AC116: 0 | AD116: 0 | AE116: 0 | AF116: 0 | AG116: 0 | AH116: 0 | AK116: =Раздел2!#REF! -> 
B117: Открытая вода | C117: 110 | D117: =Раздел2!F117 -> 0 | E117: 0 | F117: 0 | G117: 0 | H117: 0 | I117: 0 | J117: 0 | K117: 0 | L117: 0 | M117: 0 | N117: 0 | O117: 0 | P117: 0 | Q117: 0 | R117: 0 | S117: 0 | T117: 0 | U117: 0 | V117: 0 | W117: 0 | X117: 0 | Y117: 0 | Z117: 0 | AA117: 0 | AB117: 0 | AC117: 0 | AD117: 0 | AE117: 0 | AF117: 0 | AG117: 0 | AH117: 0 | AK117: =Раздел2!#REF! -> 
B118: Планерный спорт | C118: 111 | D118: =Раздел2!F118 -> 0 | E118: 0 | F118: 0 | G118: 0 | H118: 0 | I118: 0 | J118: 0 | K118: 0 | L118: 0 | M118: 0 | N118: 0 | O118: 0 | P118: 0 | Q118: 0 | R118: 0 | S118: 0 | T118: 0 | U118: 0 | V118: 0 | W118: 0 | X118: 0 | Y118: 0 | Z118: 0 | AA118: 0 | AB118: 0 | AC118: 0 | AD118: 0 | AE118: 0 | AF118: 0 | AG118: 0 | AH118: 0 | AK118: =Раздел2!#REF! -> 
B119: Подводный спорт | C119: 112 | D119: =Раздел2!F119 -> 0 | E119: 0 | F119: 0 | G119: 0 | H119: 0 | I119: 0 | J119: 0 | K119: 0 | L119: 0 | M119: 0 | N119: 0 | O119: 0 | P119: 0 | Q119: 0 | R119: 0 | S119: 0 | T119: 0 | U119: 0 | V119: 0 | W119: 0 | X119: 0 | Y119: 0 | Z119: 0 | AA119: 0 | AB119: 0 | AC119: 0 | AD119: 0 | AE119: 0 | AF119: 0 | AG119: 0 | AH119: 0
B120: Пожарно-прикладной спорт | C120: 113 | D120: =Раздел2!F120 -> 0 | E120: 0 | F120: 0 | G120: 0 | H120: 0 | I120: 0 | J120: 0 | K120: 0 | L120: 0 | M120: 0 | N120: 0 | O120: 0 | P120: 0 | Q120: 0 | R120: 0 | S120: 0 | T120: 0 | U120: 0 | V120: 0 | W120: 0 | X120: 0 | Y120: 0 | Z120: 0 | AA120: 0 | AB120: 0 | AC120: 0 | AD120: 0 | AE120: 0 | AF120: 0 | AG120: 0 | AH120: 0
B121: Полиатлон | C121: 114 | D121: =Раздел2!F121 -> 0 | E121: 0 | F121: 0 | G121: 0 | H121: 0 | I121: 0 | J121: 0 | K121: 0 | L121: 0 | M121: 0 | N121: 0 | O121: 0 | P121: 0 | Q121: 0 | R121: 0 | S121: 0 | T121: 0 | U121: 0 | V121: 0 | W121: 0 | X121: 0 | Y121: 0 | Z121: 0 | AA121: 0 | AB121: 0 | AC121: 0 | AD121: 0 | AE121: 0 | AF121: 0 | AG121: 0 | AH121: 0
B122: Практическая стрельба | C122: 115 | D122: =Раздел2!F122 -> 0 | E122: 0 | F122: 0 | G122: 0 | H122: 0 | I122: 0 | J122: 0 | K122: 0 | L122: 0 | M122: 0 | N122: 0 | O122: 0 | P122: 0 | Q122: 0 | R122: 0 | S122: 0 | T122: 0 | U122: 0 | V122: 0 | W122: 0 | X122: 0 | Y122: 0 | Z122: 0 | AA122: 0 | AB122: 0 | AC122: 0 | AD122: 0 | AE122: 0 | AF122: 0 | AG122: 0 | AH122: 0
B123: Прыжки в воду - всего | C123: 116 | D123: =Раздел2!F123 -> 0 | E123: 0 | F123: 0 | G123: 0 | H123: 0 | I123: 0 | J123: =SUM(J124:J125) -> 0 | K123: 0 | L123: 0 | M123: 0 | N123: 0 | O123: 0 | P123: 0 | Q123: 0 | R123: 0 | S123: 0 | T123: 0 | U123: 0 | V123: 0 | W123: 0 | X123: 0 | Y123: 0 | Z123: 0 | AA123: 0 | AB123: 0 | AC123: 0 | AD123: 0 | AE123: 0 | AF123: 0 | AG123: 0 | AH123: 0
B124: в том числе: Прыжки в воду | C124: 117 | D124: =Раздел2!F124 -> 0 | E124: 0 | F124: 0 | G124: 0 | H124: 0 | I124: 0 | J124: 0 | K124: 0 | L124: 0 | M124: 0 | N124: 0 | O124: 0 | P124: 0 | Q124: 0 | R124: 0 | S124: 0 | T124: 0 | U124: 0 | V124: 0 | W124: 0 | X124: 0 | Y124: 0 | Z124: 0 | AA124: 0 | AB124: 0 | AC124: 0 | AD124: 0 | AE124: 0 | AF124: 0 | AG124: 0 | AH124: 0
B125: Прыжки в открытый водоем | C125: 118 | D125: =Раздел2!F125 -> 0 | E125: 0 | F125: 0 | G125: 0 | H125: 0 | I125: 0 | J125: 0 | K125: 0 | L125: 0 | M125: 0 | N125: 0 | O125: 0 | P125: 0 | Q125: 0 | R125: 0 | S125: 0 | T125: 0 | U125: 0 | V125: 0 | W125: 0 | X125: 0 | Y125: 0 | Z125: 0 | AA125: 0 | AB125: 0 | AC125: 0 | AD125: 0 | AE125: 0 | AF125: 0 | AG125: 0 | AH125: 0
B126: Прыжки на батуте - всего | C126: 119 | D126: =Раздел2!F126 -> 0 | E126: 0 | F126: 0 | G126: 0 | H126: 0 | I126: 0 | J126: =SUM(J127:J130) -> 0 | K126: 0 | L126: 0 | M126: 0 | N126: 0 | O126: 0 | P126: 0 | Q126: 0 | R126: 0 | S126: 0 | T126: 0 | U126: 0 | V126: 0 | W126: 0 | X126: 0 | Y126: 0 | Z126: 0 | AA126: 0 | AB126: 0 | AC126: 0 | AD126: 0 | AE126: 0 | AF126: 0 | AG126: 0 | AH126: 0
B127: в том числе: Акробатическая дорожка | C127: 120 | D127: =Раздел2!F127 -> 0 | E127: 0 | F127: 0 | G127: 0 | H127: 0 | I127: 0 | J127: 0 | K127: 0 | L127: 0 | M127: 0 | N127: 0 | O127: 0 | P127: 0 | Q127: 0 | R127: 0 | S127: 0 | T127: 0 | U127: 0 | V127: 0 | W127: 0 | X127: 0 | Y127: 0 | Z127: 0 | AA127: 0 | AB127: 0 | AC127: 0 | AD127: 0 | AE127: 0 | AF127: 0 | AG127: 0 | AH127: 0
B128: Двойной минитрамп | C128: 121 | D128: =Раздел2!F128 -> 0 | E128: 0 | F128: 0 | G128: 0 | H128: 0 | I128: 0 | J128: 0 | K128: 0 | L128: 0 | M128: 0 | N128: 0 | O128: 0 | P128: 0 | Q128: 0 | R128: 0 | S128: 0 | T128: 0 | U128: 0 | V128: 0 | W128: 0 | X128: 0 | Y128: 0 | Z128: 0 | AA128: 0 | AB128: 0 | AC128: 0 | AD128: 0 | AE128: 0 | AF128: 0 | AG128: 0 | AH128: 0
B129: Индивидуальные прыжки | C129: 122 | D129: =Раздел2!F129 -> 0 | E129: 0 | F129: 0 | G129: 0 | H129: 0 | I129: 0 | J129: 0 | K129: 0 | L129: 0 | M129: 0 | N129: 0 | O129: 0 | P129: 0 | Q129: 0 | R129: 0 | S129: 0 | T129: 0 | U129: 0 | V129: 0 | W129: 0 | X129: 0 | Y129: 0 | Z129: 0 | AA129: 0 | AB129: 0 | AC129: 0 | AD129: 0 | AE129: 0 | AF129: 0 | AG129: 0 | AH129: 0
B130: Синхронные прыжки | C130: 123 | D130: =Раздел2!F130 -> 0 | E130: 0 | F130: 0 | G130: 0 | H130: 0 | I130: 0 | J130: 0 | K130: 0 | L130: 0 | M130: 0 | N130: 0 | O130: 0 | P130: 0 | Q130: 0 | R130: 0 | S130: 0 | T130: 0 | U130: 0 | V130: 0 | W130: 0 | X130: 0 | Y130: 0 | Z130: 0 | AA130: 0 | AB130: 0 | AC130: 0 | AD130: 0 | AE130: 0 | AF130: 0 | AG130: 0 | AH130: 0
B131: Прыжки на лыжах с трамплина | C131: 124 | D131: =Раздел2!F131 -> 0 | E131: 0 | F131: 0 | G131: 0 | H131: 0 | I131: 0 | J131: 0 | K131: 0 | L131: 0 | M131: 0 | N131: 0 | O131: 0 | P131: 0 | Q131: 0 | R131: 0 | S131: 0 | T131: 0 | U131: 0 | V131: 0 | W131: 0 | X131: 0 | Y131: 0 | Z131: 0 | AA131: 0 | AB131: 0 | AC131: 0 | AD131: 0 | AE131: 0 | AF131: 0 | AG131: 0 | AH131: 0
B132: Пулевая стрельба - всего | C132: 125 | D132: =Раздел2!F132 -> 0 | E132: 0 | F132: 0 | G132: 0 | H132: 0 | I132: 0 | J132: =SUM(J133:J137) -> 0 | K132: 0 | L132: 0 | M132: 0 | N132: 0 | O132: 0 | P132: 0 | Q132: 0 | R132: 0 | S132: 0 | T132: 0 | U132: 0 | V132: 0 | W132: 0 | X132: 0 | Y132: 0 | Z132: 0 | AA132: 0 | AB132: 0 | AC132: 0 | AD132: 0 | AE132: 0 | AF132: 0 | AG132: 0 | AH132: 0
B133: в том числе: Пневматическая винтовка | C133: 126 | D133: =Раздел2!F133 -> 0 | E133: 0 | F133: 0 | G133: 0 | H133: 0 | I133: 0 | J133: 0 | K133: 0 | L133: 0 | M133: 0 | N133: 0 | O133: 0 | P133: 0 | Q133: 0 | R133: 0 | S133: 0 | T133: 0 | U133: 0 | V133: 0 | W133: 0 | X133: 0 | Y133: 0 | Z133: 0 | AA133: 0 | AB133: 0 | AC133: 0 | AD133: 0 | AE133: 0 | AF133: 0 | AG133: 0 | AH133: 0
B134: Пневматический пистолет | C134: 127 | D134: =Раздел2!F134 -> 0 | E134: 0 | F134: 0 | G134: 0 | H134: 0 | I134: 0 | J134: 0 | K134: 0 | L134: 0 | M134: 0 | N134: 0 | O134: 0 | P134: 0 | Q134: 0 | R134: 0 | S134: 0 | T134: 0 | U134: 0 | V134: 0 | W134: 0 | X134: 0 | Y134: 0 | Z134: 0 | AA134: 0 | AB134: 0 | AC134: 0 | AD134: 0 | AE134: 0 | AF134: 0 | AG134: 0 | AH134: 0
B135: Малокалиберная винтовка | C135: 128 | D135: =Раздел2!F135 -> 0 | E135: 0 | F135: 0 | G135: 0 | H135: 0 | I135: 0 | J135: 0 | K135: 0 | L135: 0 | M135: 0 | N135: 0 | O135: 0 | P135: 0 | Q135: 0 | R135: 0 | S135: 0 | T135: 0 | U135: 0 | V135: 0 | W135: 0 | X135: 0 | Y135: 0 | Z135: 0 | AA135: 0 | AB135: 0 | AC135: 0 | AD135: 0 | AE135: 0 | AF135: 0 | AG135: 0 | AH135: 0
B136: Малокалиберный пистолет | C136: 129 | D136: =Раздел2!F136 -> 0 | E136: 0 | F136: 0 | G136: 0 | H136: 0 | I136: 0 | J136: 0 | K136: 0 | L136: 0 | M136: 0 | N136: 0 | O136: 0 | P136: 0 | Q136: 0 | R136: 0 | S136: 0 | T136: 0 | U136: 0 | V136: 0 | W136: 0 | X136: 0 | Y136: 0 | Z136: 0 | AA136: 0 | AB136: 0 | AC136: 0 | AD136: 0 | AE136: 0 | AF136: 0 | AG136: 0 | AH136: 0
B137: Движущаяся мишень | C137: 130 | D137: =Раздел2!F137 -> 0 | E137: =J137+O137+T137+Y137+AD137 -> 0 | F137: =K137+P137+U137+Z137+AE137 -> 0 | G137: =L137+Q137+V137+AA137+AF137 -> 0 | H137: =M137+R137+W137+AB137+AG137 -> 0 | I137: =N137+S137+X137+AC137+AH137 -> 0 | J137: 0 | K137: 0 | L137: 0 | M137: 0 | N137: 0 | O137: 0 | P137: 0 | Q137: 0 | R137: 0 | S137: 0 | T137: 0 | U137: 0 | V137: 0 | W137: 0 | X137: 0 | Y137: 0 | Z137: 0 | AA137: 0 | AB137: 0 | AC137: 0 | AD137: 0 | AE137: 0 | AF137: 0 | AG137: 0 | AH137: 0
B138: Пэйнтбол | C138: 131 | D138: =Раздел2!F138 -> 0 | E138: 0 | F138: 0 | G138: 0 | H138: 0 | I138: 0 | J138: 0 | K138: 0 | L138: 0 | M138: 0 | N138: 0 | O138: 0 | P138: 0 | Q138: 0 | R138: 0 | S138: 0 | T138: 0 | U138: 0 | V138: 0 | W138: 0 | X138: 0 | Y138: 0 | Z138: 0 | AA138: 0 | AB138: 0 | AC138: 0 | AD138: 0 | AE138: 0 | AF138: 0 | AG138: 0 | AH138: 0
B139: Радиоспорт | C139: 132 | D139: =Раздел2!F139 -> 0 | E139: 0 | F139: 0 | G139: 0 | H139: 0 | I139: 0 | J139: 0 | K139: 0 | L139: 0 | M139: 0 | N139: 0 | O139: 0 | P139: 0 | Q139: 0 | R139: 0 | S139: 0 | T139: 0 | U139: 0 | V139: 0 | W139: 0 | X139: 0 | Y139: 0 | Z139: 0 | AA139: 0 | AB139: 0 | AC139: 0 | AD139: 0 | AE139: 0 | AF139: 0 | AG139: 0 | AH139: 0
B140: Рафтинг | C140: 133 | D140: =Раздел2!F140 -> 0 | E140: 0 | F140: 0 | G140: 0 | H140: 0 | I140: 0 | J140: 0 | K140: 0 | L140: 0 | M140: 0 | N140: 0 | O140: 0 | P140: 0 | Q140: 0 | R140: 0 | S140: 0 | T140: 0 | U140: 0 | V140: 0 | W140: 0 | X140: 0 | Y140: 0 | Z140: 0 | AA140: 0 | AB140: 0 | AC140: 0 | AD140: 0 | AE140: 0 | AF140: 0 | AG140: 0 | AH140: 0
B141: Регби - всего | C141: 134 | D141: =Раздел2!F141 -> 0 | E141: 0 | F141: 0 | G141: 0 | H141: 0 | I141: 0 | J141: =SUM(J142:J145) -> 0 | K141: 0 | L141: 0 | M141: 0 | N141: 0 | O141: 0 | P141: 0 | Q141: 0 | R141: 0 | S141: 0 | T141: 0 | U141: 0 | V141: 0 | W141: 0 | X141: 0 | Y141: 0 | Z141: 0 | AA141: 0 | AB141: 0 | AC141: 0 | AD141: 0 | AE141: 0 | AF141: 0 | AG141: 0 | AH141: 0
B142: в том числе: Регби | C142: 135 | D142: =Раздел2!F142 -> 0 | E142: 0 | F142: 0 | G142: 0 | H142: 0 | I142: 0 | J142: 0 | K142: 0 | L142: 0 | M142: 0 | N142: 0 | O142: 0 | P142: 0 | Q142: 0 | R142: 0 | S142: 0 | T142: 0 | U142: 0 | V142: 0 | W142: 0 | X142: 0 | Y142: 0 | Z142: 0 | AA142: 0 | AB142: 0 | AC142: 0 | AD142: 0 | AE142: 0 | AF142: 0 | AG142: 0 | AH142: 0
B143: Регби 7 (муж.) | C143: 136 | D143: =Раздел2!F143 -> 0 | E143: 0 | F143: 0 | G143: 0 | H143: 0 | I143: 0 | J143: 0 | K143: 0 | L143: 0 | M143: 0 | N143: 0 | O143: 0 | P143: 0 | Q143: 0 | R143: 0 | S143: 0 | T143: 0 | U143: 0 | V143: 0 | W143: 0 | X143: 0 | Y143: 0 | Z143: 0 | AA143: 0 | AB143: 0 | AC143: 0 | AD143: 0 | AE143: 0 | AF143: 0 | AG143: 0 | AH143: 0
B144: Регби 7 (жен.) | C144: 137 | D144: =Раздел2!F144 -> 0 | E144: 0 | F144: 0 | G144: 0 | H144: 0 | I144: 0 | J144: 0 | K144: 0 | L144: 0 | M144: 0 | N144: 0 | O144: 0 | P144: 0 | Q144: 0 | R144: 0 | S144: 0 | T144: 0 | U144: 0 | V144: 0 | W144: 0 | X144: 0 | Y144: 0 | Z144: 0 | AA144: 0 | AB144: 0 | AC144: 0 | AD144: 0 | AE144: 0 | AF144: 0 | AG144: 0 | AH144: 0
B145: Регби - пляжное | C145: 138 | D145: =Раздел2!F145 -> 0 | E145: 0 | F145: 0 | G145: 0 | H145: 0 | I145: 0 | J145: 0 | K145: 0 | L145: 0 | M145: 0 | N145: 0 | O145: 0 | P145: 0 | Q145: 0 | R145: 0 | S145: 0 | T145: 0 | U145: 0 | V145: 0 | W145: 0 | X145: 0 | Y145: 0 | Z145: 0 | AA145: 0 | AB145: 0 | AC145: 0 | AD145: 0 | AE145: 0 | AF145: 0 | AG145: 0 | AH145: 0
B146: Регбол | C146: 139 | D146: =Раздел2!F146 -> 0 | E146: 0 | F146: 0 | G146: 0 | H146: 0 | I146: 0 | J146: 0 | K146: 0 | L146: 0 | M146: 0 | N146: 0 | O146: 0 | P146: 0 | Q146: 0 | R146: 0 | S146: 0 | T146: 0 | U146: 0 | V146: 0 | W146: 0 | X146: 0 | Y146: 0 | Z146: 0 | AA146: 0 | AB146: 0 | AC146: 0 | AD146: 0 | AE146: 0 | AF146: 0 | AG146: 0 | AH146: 0
B147: Роллер спорт | C147: 140 | D147: =Раздел2!F147 -> 0 | E147: 0 | F147: 0 | G147: 0 | H147: 0 | I147: 0 | J147: 0 | K147: 0 | L147: 0 | M147: 0 | N147: 0 | O147: 0 | P147: 0 | Q147: 0 | R147: 0 | S147: 0 | T147: 0 | U147: 0 | V147: 0 | W147: 0 | X147: 0 | Y147: 0 | Z147: 0 | AA147: 0 | AB147: 0 | AC147: 0 | AD147: 0 | AE147: 0 | AF147: 0 | AG147: 0 | AH147: 0
B148: Рукопашный бой | C148: 141 | D148: =Раздел2!F148 -> 0 | E148: 0 | F148: 0 | G148: 0 | H148: 0 | I148: 0 | J148: 0 | K148: 0 | L148: 0 | M148: 0 | N148: 0 | O148: 0 | P148: 0 | Q148: 0 | R148: 0 | S148: 0 | T148: 0 | U148: 0 | V148: 0 | W148: 0 | X148: 0 | Y148: 0 | Z148: 0 | AA148: 0 | AB148: 0 | AC148: 0 | AD148: 0 | AE148: 0 | AF148: 0 | AG148: 0 | AH148: 0
B149: Рыболовный спорт | C149: 142 | D149: =Раздел2!F149 -> 0 | E149: 0 | F149: 0 | G149: 0 | H149: 0 | I149: 0 | J149: 0 | K149: 0 | L149: 0 | M149: 0 | N149: 0 | O149: 0 | P149: 0 | Q149: 0 | R149: 0 | S149: 0 | T149: 0 | U149: 0 | V149: 0 | W149: 0 | X149: 0 | Y149: 0 | Z149: 0 | AA149: 0 | AB149: 0 | AC149: 0 | AD149: 0 | AE149: 0 | AF149: 0 | AG149: 0 | AH149: 0
B150: Сават | C150: 143 | D150: =Раздел2!F150 -> 0 | E150: 0 | F150: 0 | G150: 0 | H150: 0 | I150: 0 | J150: 0 | K150: 0 | L150: 0 | M150: 0 | N150: 0 | O150: 0 | P150: 0 | Q150: 0 | R150: 0 | S150: 0 | T150: 0 | U150: 0 | V150: 0 | W150: 0 | X150: 0 | Y150: 0 | Z150: 0 | AA150: 0 | AB150: 0 | AC150: 0 | AD150: 0 | AE150: 0 | AF150: 0 | AG150: 0 | AH150: 0
B151: Самбо | C151: 144 | D151: =Раздел2!F151 -> 0 | E151: 0 | F151: 0 | G151: 0 | H151: 0 | I151: 0 | J151: 0 | K151: 0 | L151: 0 | M151: 0 | N151: 0 | O151: 0 | P151: 0 | Q151: 0 | R151: 0 | S151: 0 | T151: 0 | U151: 0 | V151: 0 | W151: 0 | X151: 0 | Y151: 0 | Z151: 0 | AA151: 0 | AB151: 0 | AC151: 0 | AD151: 0 | AE151: 0 | AF151: 0 | AG151: 0 | AH151: 0
B152: Самолетный спорт | C152: 145 | D152: =Раздел2!F152 -> 0 | E152: 0 | F152: 0 | G152: 0 | H152: 0 | I152: 0 | J152: 0 | K152: 0 | L152: 0 | M152: 0 | N152: 0 | O152: 0 | P152: 0 | Q152: 0 | R152: 0 | S152: 0 | T152: 0 | U152: 0 | V152: 0 | W152: 0 | X152: 0 | Y152: 0 | Z152: 0 | AA152: 0 | AB152: 0 | AC152: 0 | AD152: 0 | AE152: 0 | AF152: 0 | AG152: 0 | AH152: 0
B153: Санный спорт | C153: 146 | D153: =Раздел2!F153 -> 0 | E153: 0 | F153: 0 | G153: 0 | H153: 0 | I153: 0 | J153: 0 | K153: 0 | L153: 0 | M153: 0 | N153: 0 | O153: 0 | P153: 0 | Q153: 0 | R153: 0 | S153: 0 | T153: 0 | U153: 0 | V153: 0 | W153: 0 | X153: 0 | Y153: 0 | Z153: 0 | AA153: 0 | AB153: 0 | AC153: 0 | AD153: 0 | AE153: 0 | AF153: 0 | AG153: 0 | AH153: 0
B154: Северное многоборье | C154: 147 | D154: =Раздел2!F154 -> 0 | E154: 0 | F154: 0 | G154: 0 | H154: 0 | I154: 0 | J154: 0 | K154: 0 | L154: 0 | M154: 0 | N154: 0 | O154: 0 | P154: 0 | Q154: 0 | R154: 0 | S154: 0 | T154: 0 | U154: 0 | V154: 0 | W154: 0 | X154: 0 | Y154: 0 | Z154: 0 | AA154: 0 | AB154: 0 | AC154: 0 | AD154: 0 | AE154: 0 | AF154: 0 | AG154: 0 | AH154: 0
B155: Серфинг | C155: 148 | D155: =Раздел2!F155 -> 0 | E155: 0 | F155: 0 | G155: 0 | H155: 0 | I155: 0 | J155: 0 | K155: 0 | L155: 0 | M155: 0 | N155: 0 | O155: 0 | P155: 0 | Q155: 0 | R155: 0 | S155: 0 | T155: 0 | U155: 0 | V155: 0 | W155: 0 | X155: 0 | Y155: 0 | Z155: 0 | AA155: 0 | AB155: 0 | AC155: 0 | AD155: 0 | AE155: 0 | AF155: 0 | AG155: 0 | AH155: 0
B156: Синхронное плавание | C156: 149 | D156: =Раздел2!F156 -> 0 | E156: 0 | F156: 0 | G156: 0 | H156: 0 | I156: 0 | J156: 0 | K156: 0 | L156: 0 | M156: 0 | N156: 0 | O156: 0 | P156: 0 | Q156: 0 | R156: 0 | S156: 0 | T156: 0 | U156: 0 | V156: 0 | W156: 0 | X156: 0 | Y156: 0 | Z156: 0 | AA156: 0 | AB156: 0 | AC156: 0 | AD156: 0 | AE156: 0 | AF156: 0 | AG156: 0 | AH156: 0
B157: Скалолазание | C157: 150 | D157: =Раздел2!F157 -> 0 | E157: 0 | F157: 0 | G157: 0 | H157: 0 | I157: 0 | J157: 0 | K157: 0 | L157: 0 | M157: 0 | N157: 0 | O157: 0 | P157: 0 | Q157: 0 | R157: 0 | S157: 0 | T157: 0 | U157: 0 | V157: 0 | W157: 0 | X157: 0 | Y157: 0 | Z157: 0 | AA157: 0 | AB157: 0 | AC157: 0 | AD157: 0 | AE157: 0 | AF157: 0 | AG157: 0 | AH157: 0
B158: Скейтбординг | C158: 151 | D158: =Раздел2!F158 -> 0 | E158: 0 | F158: 0 | G158: 0 | H158: 0 | I158: 0 | J158: 0 | K158: 0 | L158: 0 | M158: 0 | N158: 0 | O158: 0 | P158: 0 | Q158: 0 | R158: 0 | S158: 0 | T158: 0 | U158: 0 | V158: 0 | W158: 0 | X158: 0 | Y158: 0 | Z158: 0 | AA158: 0 | AB158: 0 | AC158: 0 | AD158: 0 | AE158: 0 | AF158: 0 | AG158: 0 | AH158: 0
B159: Сквош | C159: 152 | D159: =Раздел2!F159 -> 0 | E159: 0 | F159: 0 | G159: 0 | H159: 0 | I159: 0 | J159: 0 | K159: 0 | L159: 0 | M159: 0 | N159: 0 | O159: 0 | P159: 0 | Q159: 0 | R159: 0 | S159: 0 | T159: 0 | U159: 0 | V159: 0 | W159: 0 | X159: 0 | Y159: 0 | Z159: 0 | AA159: 0 | AB159: 0 | AC159: 0 | AD159: 0 | AE159: 0 | AF159: 0 | AG159: 0 | AH159: 0
B160: Служебно-прикладной спорт ФСО России | C160: 153 | D160: =Раздел2!F160 -> 0 | E160: 0 | F160: 0 | G160: 0 | H160: 0 | I160: 0 | J160: 0 | K160: 0 | L160: 0 | M160: 0 | N160: 0 | O160: 0 | P160: 0 | Q160: 0 | R160: 0 | S160: 0 | T160: 0 | U160: 0 | V160: 0 | W160: 0 | X160: 0 | Y160: 0 | Z160: 0 | AA160: 0 | AB160: 0 | AC160: 0 | AD160: 0 | AE160: 0 | AF160: 0 | AG160: 0 | AH160: 0
B161: Служебно-прикладной спорт ГФС России | C161: 154 | D161: =Раздел2!F161 -> 0 | E161: 0 | F161: 0 | G161: 0 | H161: 0 | I161: 0 | J161: 0 | K161: 0 | L161: 0 | M161: 0 | N161: 0 | O161: 0 | P161: 0 | Q161: 0 | R161: 0 | S161: 0 | T161: 0 | U161: 0 | V161: 0 | W161: 0 | X161: 0 | Y161: 0 | Z161: 0 | AA161: 0 | AB161: 0 | AC161: 0 | AD161: 0 | AE161: 0 | AF161: 0 | AG161: 0 | AH161: 0
B162: Служебно-прикладной спорт ФСКН России | C162: 155 | D162: =Раздел2!F162 -> 0 | E162: 0 | F162: 0 | G162: 0 | H162: 0 | I162: 0 | J162: 0 | K162: 0 | L162: 0 | M162: 0 | N162: 0 | O162: 0 | P162: 0 | Q162: 0 | R162: 0 | S162: 0 | T162: 0 | U162: 0 | V162: 0 | W162: 0 | X162: 0 | Y162: 0 | Z162: 0 | AA162: 0 | AB162: 0 | AC162: 0 | AD162: 0 | AE162: 0 | AF162: 0 | AG162: 0 | AH162: 0
B163: Служебно-прикладной спорт ФТС России | C163: 156 | D163: =Раздел2!F163 -> 0 | E163: 0 | F163: 0 | G163: 0 | H163: 0 | I163: 0 | J163: 0 | K163: 0 | L163: 0 | M163: 0 | N163: 0 | O163: 0 | P163: 0 | Q163: 0 | R163: 0 | S163: 0 | T163: 0 | U163: 0 | V163: 0 | W163: 0 | X163: 0 | Y163: 0 | Z163: 0 | AA163: 0 | AB163: 0 | AC163: 0 | AD163: 0 | AE163: 0 | AF163: 0 | AG163: 0 | AH163: 0
B164: Служебное двоеборье | C164: 157 | D164: =Раздел2!F164 -> 0 | E164: 0 | F164: 0 | G164: 0 | H164: 0 | I164: 0 | J164: 0 | K164: 0 | L164: 0 | M164: 0 | N164: 0 | O164: 0 | P164: 0 | Q164: 0 | R164: 0 | S164: 0 | T164: 0 | U164: 0 | V164: 0 | W164: 0 | X164: 0 | Y164: 0 | Z164: 0 | AA164: 0 | AB164: 0 | AC164: 0 | AD164: 0 | AE164: 0 | AF164: 0 | AG164: 0 | AH164: 0
B165: Служебное единоборство | C165: 158 | D165: =Раздел2!F165 -> 0 | E165: 0 | F165: 0 | G165: 0 | H165: 0 | I165: 0 | J165: 0 | K165: 0 | L165: 0 | M165: 0 | N165: 0 | O165: 0 | P165: 0 | Q165: 0 | R165: 0 | S165: 0 | T165: 0 | U165: 0 | V165: 0 | W165: 0 | X165: 0 | Y165: 0 | Z165: 0 | AA165: 0 | AB165: 0 | AC165: 0 | AD165: 0 | AE165: 0 | AF165: 0 | AG165: 0 | AH165: 0
B166: Служебное многоборье | C166: 159 | D166: =Раздел2!F166 -> 0 | E166: 0 | F166: 0 | G166: 0 | H166: 0 | I166: 0 | J166: 0 | K166: 0 | L166: 0 | M166: 0 | N166: 0 | O166: 0 | P166: 0 | Q166: 0 | R166: 0 | S166: 0 | T166: 0 | U166: 0 | V166: 0 | W166: 0 | X166: 0 | Y166: 0 | Z166: 0 | AA166: 0 | AB166: 0 | AC166: 0 | AD166: 0 | AE166: 0 | AF166: 0 | AG166: 0 | AH166: 0
B167: Служебное собаководство | C167: 160 | D167: =Раздел2!F167 -> 0 | E167: 0 | F167: 0 | G167: 0 | H167: 0 | I167: 0 | J167: 0 | K167: 0 | L167: 0 | M167: 0 | N167: 0 | O167: 0 | P167: 0 | Q167: 0 | R167: 0 | S167: 0 | T167: 0 | U167: 0 | V167: 0 | W167: 0 | X167: 0 | Y167: 0 | Z167: 0 | AA167: 0 | AB167: 0 | AC167: 0 | AD167: 0 | AE167: 0 | AF167: 0 | AG167: 0 | AH167: 0
B168: Служебный биатлон | C168: 161 | D168: =Раздел2!F168 -> 0 | E168: 0 | F168: 0 | G168: 0 | H168: 0 | I168: 0 | J168: 0 | K168: 0 | L168: 0 | M168: 0 | N168: 0 | O168: 0 | P168: 0 | Q168: 0 | R168: 0 | S168: 0 | T168: 0 | U168: 0 | V168: 0 | W168: 0 | X168: 0 | Y168: 0 | Z168: 0 | AA168: 0 | AB168: 0 | AC168: 0 | AD168: 0 | AE168: 0 | AF168: 0 | AG168: 0 | AH168: 0
B169: Спасательный спорт | C169: 162 | D169: =Раздел2!F169 -> 0 | E169: 0 | F169: 0 | G169: 0 | H169: 0 | I169: 0 | J169: 0 | K169: 0 | L169: 0 | M169: 0 | N169: 0 | O169: 0 | P169: 0 | Q169: 0 | R169: 0 | S169: 0 | T169: 0 | U169: 0 | V169: 0 | W169: 0 | X169: 0 | Y169: 0 | Z169: 0 | AA169: 0 | AB169: 0 | AC169: 0 | AD169: 0 | AE169: 0 | AF169: 0 | AG169: 0 | AH169: 0
B170: Стрельба из боевого ручного стрелкового оружия | C170: 163 | D170: =Раздел2!F170 -> 0 | E170: 0 | F170: 0 | G170: 0 | H170: 0 | I170: 0 | J170: 0 | K170: 0 | L170: 0 | M170: 0 | N170: 0 | O170: 0 | P170: 0 | Q170: 0 | R170: 0 | S170: 0 | T170: 0 | U170: 0 | V170: 0 | W170: 0 | X170: 0 | Y170: 0 | Z170: 0 | AA170: 0 | AB170: 0 | AC170: 0 | AD170: 0 | AE170: 0 | AF170: 0 | AG170: 0 | AH170: 0
B171: Стрельба из штатного или табельного оружия | C171: 164 | D171: =Раздел2!F171 -> 0 | E171: 0 | F171: 0 | G171: 0 | H171: 0 | I171: 0 | J171: 0 | K171: 0 | L171: 0 | M171: 0 | N171: 0 | O171: 0 | P171: 0 | Q171: 0 | R171: 0 | S171: 0 | T171: 0 | U171: 0 | V171: 0 | W171: 0 | X171: 0 | Y171: 0 | Z171: 0 | AA171: 0 | AB171: 0 | AC171: 0 | AD171: 0 | AE171: 0 | AF171: 0 | AG171: 0 | AH171: 0
B172: Смешанное боевое единоборство (ММА) | C172: 165 | D172: =Раздел2!F172 -> 0 | E172: 0 | F172: 0 | G172: 0 | H172: 0 | I172: 0 | J172: 0 | K172: 0 | L172: 0 | M172: 0 | N172: 0 | O172: 0 | P172: 0 | Q172: 0 | R172: 0 | S172: 0 | T172: 0 | U172: 0 | V172: 0 | W172: 0 | X172: 0 | Y172: 0 | Z172: 0 | AA172: 0 | AB172: 0 | AC172: 0 | AD172: 0 | AE172: 0 | AF172: 0 | AG172: 0 | AH172: 0
B173: Сноуборд | C173: 166 | D173: =Раздел2!F173 -> 0 | E173: 0 | F173: 0 | G173: 0 | H173: 0 | I173: 0 | J173: 0 | K173: 0 | L173: 0 | M173: 0 | N173: 0 | O173: 0 | P173: 0 | Q173: 0 | R173: 0 | S173: 0 | T173: 0 | U173: 0 | V173: 0 | W173: 0 | X173: 0 | Y173: 0 | Z173: 0 | AA173: 0 | AB173: 0 | AC173: 0 | AD173: 0 | AE173: 0 | AF173: 0 | AG173: 0 | AH173: 0
B174: Современное пятиборье | C174: 167 | D174: =Раздел2!F174 -> 0 | E174: 0 | F174: 0 | G174: 0 | H174: 0 | I174: 0 | J174: 0 | K174: 0 | L174: 0 | M174: 0 | N174: 0 | O174: 0 | P174: 0 | Q174: 0 | R174: 0 | S174: 0 | T174: 0 | U174: 0 | V174: 0 | W174: 0 | X174: 0 | Y174: 0 | Z174: 0 | AA174: 0 | AB174: 0 | AC174: 0 | AD174: 0 | AE174: 0 | AF174: 0 | AG174: 0 | AH174: 0
B175: Софтбол | C175: 168 | D175: =Раздел2!F175 -> 0 | E175: 0 | F175: 0 | G175: 0 | H175: 0 | I175: 0 | J175: 0 | K175: 0 | L175: 0 | M175: 0 | N175: 0 | O175: 0 | P175: 0 | Q175: 0 | R175: 0 | S175: 0 | T175: 0 | U175: 0 | V175: 0 | W175: 0 | X175: 0 | Y175: 0 | Z175: 0 | AA175: 0 | AB175: 0 | AC175: 0 | AD175: 0 | AE175: 0 | AF175: 0 | AG175: 0 | AH175: 0
B176: Спорт сверхлегкой авиации | C176: 169 | D176: =Раздел2!F176 -> 0 | E176: 0 | F176: 0 | G176: 0 | H176: 0 | I176: 0 | J176: 0 | K176: 0 | L176: 0 | M176: 0 | N176: 0 | O176: 0 | P176: 0 | Q176: 0 | R176: 0 | S176: 0 | T176: 0 | U176: 0 | V176: 0 | W176: 0 | X176: 0 | Y176: 0 | Z176: 0 | AA176: 0 | AB176: 0 | AC176: 0 | AD176: 0 | AE176: 0 | AF176: 0 | AG176: 0 | AH176: 0
B177: Спортивная акробатика | C177: 170 | D177: =Раздел2!F177 -> 0 | E177: 0 | F177: 0 | G177: 0 | H177: 0 | I177: 0 | J177: 0 | K177: 0 | L177: 0 | M177: 0 | N177: 0 | O177: 0 | P177: 0 | Q177: 0 | R177: 0 | S177: 0 | T177: 0 | U177: 0 | V177: 0 | W177: 0 | X177: 0 | Y177: 0 | Z177: 0 | AA177: 0 | AB177: 0 | AC177: 0 | AD177: 0 | AE177: 0 | AF177: 0 | AG177: 0 | AH177: 0
B178: Спортивная аэробика | C178: 171 | D178: =Раздел2!F178 -> 297 | E178: 0 | F178: 0 | G178: 0 | H178: 0 | I178: 0 | J178: 0 | K178: 0 | L178: 0 | M178: 0 | N178: 0 | O178: 0 | P178: 0 | Q178: 0 | R178: 0 | S178: 0 | T178: 0 | U178: 0 | V178: 0 | W178: 0 | X178: 0 | Y178: 0 | Z178: 0 | AA178: 0 | AB178: 0 | AC178: 0 | AD178: 0 | AE178: 0 | AF178: 0 | AG178: 0 | AH178: 0
B179: Спортивная борьба - всего | C179: 172 | D179: =Раздел2!F179 -> 0 | E179: 0 | F179: 0 | G179: 0 | H179: 0 | I179: 0 | J179: =SUM(J180:J184) -> 0 | K179: 0 | L179: 0 | M179: 0 | N179: 0 | O179: 0 | P179: 0 | Q179: 0 | R179: 0 | S179: 0 | T179: 0 | U179: 0 | V179: 0 | W179: 0 | X179: 0 | Y179: 0 | Z179: 0 | AA179: 0 | AB179: 0 | AC179: 0 | AD179: 0 | AE179: 0 | AF179: 0 | AG179: 0 | AH179: 0
B180: в том числе: Вольная борьба | C180: 173 | D180: =Раздел2!F180 -> 0 | E180: 0 | F180: 0 | G180: 0 | H180: 0 | I180: 0 | J180: 0 | K180: 0 | L180: 0 | M180: 0 | N180: 0 | O180: 0 | P180: 0 | Q180: 0 | R180: 0 | S180: 0 | T180: 0 | U180: 0 | V180: 0 | W180: 0 | X180: 0 | Y180: 0 | Z180: 0 | AA180: 0 | AB180: 0 | AC180: 0 | AD180: 0 | AE180: 0 | AF180: 0 | AG180: 0 | AH180: 0
B181: Греко-римская борьба | C181: 174 | D181: =Раздел2!F181 -> 0 | E181: 0 | F181: 0 | G181: 0 | H181: 0 | I181: 0 | J181: 0 | K181: 0 | L181: 0 | M181: 0 | N181: 0 | O181: 0 | P181: 0 | Q181: 0 | R181: 0 | S181: 0 | T181: 0 | U181: 0 | V181: 0 | W181: 0 | X181: 0 | Y181: 0 | Z181: 0 | AA181: 0 | AB181: 0 | AC181: 0 | AD181: 0 | AE181: 0 | AF181: 0 | AG181: 0 | AH181: 0
B182: Грэпплинг | C182: 175 | D182: =Раздел2!F182 -> 0 | E182: 0 | F182: 0 | G182: 0 | H182: 0 | I182: 0 | J182: 0 | K182: 0 | L182: 0 | M182: 0 | N182: 0 | O182: 0 | P182: 0 | Q182: 0 | R182: 0 | S182: 0 | T182: 0 | U182: 0 | V182: 0 | W182: 0 | X182: 0 | Y182: 0 | Z182: 0 | AA182: 0 | AB182: 0 | AC182: 0 | AD182: 0 | AE182: 0 | AF182: 0 | AG182: 0 | AH182: 0
B183: Грэпплинг-ги | C183: 176 | D183: =Раздел2!F183 -> 0 | E183: 0 | F183: 0 | G183: 0 | H183: 0 | I183: 0 | J183: 0 | K183: 0 | L183: 0 | M183: 0 | N183: 0 | O183: 0 | P183: 0 | Q183: 0 | R183: 0 | S183: 0 | T183: 0 | U183: 0 | V183: 0 | W183: 0 | X183: 0 | Y183: 0 | Z183: 0 | AA183: 0 | AB183: 0 | AC183: 0 | AD183: 0 | AE183: 0 | AF183: 0 | AG183: 0 | AH183: 0
B184: Панкратион | C184: 177 | D184: =Раздел2!F184 -> 0 | E184: 0 | F184: 0 | G184: 0 | H184: 0 | I184: 0 | J184: 0 | K184: 0 | L184: 0 | M184: 0 | N184: 0 | O184: 0 | P184: 0 | Q184: 0 | R184: 0 | S184: 0 | T184: 0 | U184: 0 | V184: 0 | W184: 0 | X184: 0 | Y184: 0 | Z184: 0 | AA184: 0 | AB184: 0 | AC184: 0 | AD184: 0 | AE184: 0 | AF184: 0 | AG184: 0 | AH184: 0
B185: Спортивно-прикладное собаководство | C185: 178 | D185: =Раздел2!F185 -> 0 | E185: 0 | F185: 0 | G185: 0 | H185: 0 | I185: 0 | J185: 0 | K185: 0 | L185: 0 | M185: 0 | N185: 0 | O185: 0 | P185: 0 | Q185: 0 | R185: 0 | S185: 0 | T185: 0 | U185: 0 | V185: 0 | W185: 0 | X185: 0 | Y185: 0 | Z185: 0 | AA185: 0 | AB185: 0 | AC185: 0 | AD185: 0 | AE185: 0 | AF185: 0 | AG185: 0 | AH185: 0
B186: Спортивная гимнастика | C186: 179 | D186: =Раздел2!F186 -> 0 | E186: 0 | F186: 0 | G186: 0 | H186: 0 | I186: 0 | J186: 0 | K186: 0 | L186: 0 | M186: 0 | N186: 0 | O186: 0 | P186: 0 | Q186: 0 | R186: 0 | S186: 0 | T186: 0 | U186: 0 | V186: 0 | W186: 0 | X186: 0 | Y186: 0 | Z186: 0 | AA186: 0 | AB186: 0 | AC186: 0 | AD186: 0 | AE186: 0 | AF186: 0 | AG186: 0 | AH186: 0
B187: Спортивное ориентирование | C187: 180 | D187: =Раздел2!F187 -> 0 | E187: 0 | F187: 0 | G187: 0 | H187: 0 | I187: 0 | J187: 0 | K187: 0 | L187: 0 | M187: 0 | N187: 0 | O187: 0 | P187: 0 | Q187: 0 | R187: 0 | S187: 0 | T187: 0 | U187: 0 | V187: 0 | W187: 0 | X187: 0 | Y187: 0 | Z187: 0 | AA187: 0 | AB187: 0 | AC187: 0 | AD187: 0 | AE187: 0 | AF187: 0 | AG187: 0 | AH187: 0
B188: Спортивный бридж | C188: 181 | D188: =Раздел2!F188 -> 0 | E188: 0 | F188: 0 | G188: 0 | H188: 0 | I188: 0 | J188: 0 | K188: 0 | L188: 0 | M188: 0 | N188: 0 | O188: 0 | P188: 0 | Q188: 0 | R188: 0 | S188: 0 | T188: 0 | U188: 0 | V188: 0 | W188: 0 | X188: 0 | Y188: 0 | Z188: 0 | AA188: 0 | AB188: 0 | AC188: 0 | AD188: 0 | AE188: 0 | AF188: 0 | AG188: 0 | AH188: 0
B189: Спортивный туризм | C189: 182 | D189: =Раздел2!F189 -> 0 | E189: 0 | F189: 0 | G189: 0 | H189: 0 | I189: 0 | J189: 0 | K189: 0 | L189: 0 | M189: 0 | N189: 0 | O189: 0 | P189: 0 | Q189: 0 | R189: 0 | S189: 0 | T189: 0 | U189: 0 | V189: 0 | W189: 0 | X189: 0 | Y189: 0 | Z189: 0 | AA189: 0 | AB189: 0 | AC189: 0 | AD189: 0 | AE189: 0 | AF189: 0 | AG189: 0 | AH189: 0
B190: Стендовая стрельба - всего | C190: 183 | D190: =Раздел2!F190 -> 0 | E190: 0 | F190: 0 | G190: 0 | H190: 0 | I190: 0 | J190: =SUM(J191:J194) -> 0 | K190: 0 | L190: 0 | M190: 0 | N190: 0 | O190: 0 | P190: 0 | Q190: 0 | R190: 0 | S190: 0 | T190: 0 | U190: 0 | V190: 0 | W190: 0 | X190: 0 | Y190: 0 | Z190: 0 | AA190: 0 | AB190: 0 | AC190: 0 | AD190: 0 | AE190: 0 | AF190: 0 | AG190: 0 | AH190: 0
B191: в том числе: Трап | C191: 184 | D191: =Раздел2!F191 -> 0 | E191: 0 | F191: 0 | G191: 0 | H191: 0 | I191: 0 | J191: 0 | K191: 0 | L191: 0 | M191: 0 | N191: 0 | O191: 0 | P191: 0 | Q191: 0 | R191: 0 | S191: 0 | T191: 0 | U191: 0 | V191: 0 | W191: 0 | X191: 0 | Y191: 0 | Z191: 0 | AA191: 0 | AB191: 0 | AC191: 0 | AD191: 0 | AE191: 0 | AF191: 0 | AG191: 0 | AH191: 0
B192: Скит | C192: 185 | D192: =Раздел2!F192 -> 0 | E192: 0 | F192: 0 | G192: 0 | H192: 0 | I192: 0 | J192: 0 | K192: 0 | L192: 0 | M192: 0 | N192: 0 | O192: 0 | P192: 0 | Q192: 0 | R192: 0 | S192: 0 | T192: 0 | U192: 0 | V192: 0 | W192: 0 | X192: 0 | Y192: 0 | Z192: 0 | AA192: 0 | AB192: 0 | AC192: 0 | AD192: 0 | AE192: 0 | AF192: 0 | AG192: 0 | AH192: 0
B193: Дубль-трап | C193: 186 | D193: =Раздел2!F193 -> 0 | E193: 0 | F193: 0 | G193: 0 | H193: 0 | I193: 0 | J193: 0 | K193: 0 | L193: 0 | M193: 0 | N193: 0 | O193: 0 | P193: 0 | Q193: 0 | R193: 0 | S193: 0 | T193: 0 | U193: 0 | V193: 0 | W193: 0 | X193: 0 | Y193: 0 | Z193: 0 | AA193: 0 | AB193: 0 | AC193: 0 | AD193: 0 | AE193: 0 | AF193: 0 | AG193: 0 | AH193: 0
B194: Спортинг | C194: 187 | D194: =Раздел2!F194 -> 0 | E194: 0 | F194: 0 | G194: 0 | H194: 0 | I194: 0 | J194: 0 | K194: 0 | L194: 0 | M194: 0 | N194: 0 | O194: 0 | P194: 0 | Q194: 0 | R194: 0 | S194: 0 | T194: 0 | U194: 0 | V194: 0 | W194: 0 | X194: 0 | Y194: 0 | Z194: 0 | AA194: 0 | AB194: 0 | AC194: 0 | AD194: 0 | AE194: 0 | AF194: 0 | AG194: 0 | AH194: 0
B195: Стрельба из арбалета | C195: 188 | D195: =Раздел2!F195 -> 0 | E195: 0 | F195: 0 | G195: 0 | H195: 0 | I195: 0 | J195: 0 | K195: 0 | L195: 0 | M195: 0 | N195: 0 | O195: 0 | P195: 0 | Q195: 0 | R195: 0 | S195: 0 | T195: 0 | U195: 0 | V195: 0 | W195: 0 | X195: 0 | Y195: 0 | Z195: 0 | AA195: 0 | AB195: 0 | AC195: 0 | AD195: 0 | AE195: 0 | AF195: 0 | AG195: 0 | AH195: 0
B196: Стрельба из лука - всего | C196: 189 | D196: =Раздел2!F196 -> 0 | E196: 0 | F196: 0 | G196: 0 | H196: 0 | I196: 0 | J196: =SUM(J197:J199) -> 0 | K196: 0 | L196: 0 | M196: 0 | N196: 0 | O196: 0 | P196: 0 | Q196: 0 | R196: 0 | S196: 0 | T196: 0 | U196: 0 | V196: 0 | W196: 0 | X196: 0 | Y196: 0 | Z196: 0 | AA196: 0 | AB196: 0 | AC196: 0 | AD196: 0 | AE196: 0 | AF196: 0 | AG196: 0 | AH196: 0
